Workbook

Sheet Notes

Sheet Age profile chart

Sheet Forecast Ch1

Sheet Age profile summary
A1: Asset calcs | R1: Remaining life | W1: RC ($ millions) | AB1: RC (%)
R2: Very old | S2: Old | T2: moderate | U2: young | V2: new | W2: =R2 -> Very old | X2: =S2 -> Old | Y2: moderate | Z2: young | AA2: new | AB2: Very old | AC2: Old | AD2: moderate | AE2: young | AF2: new
M3: WARL | O3: WAL | Q3: WAA | R3: > | S3: > | T3: > | U3: > | V3: <=0.2 | W3: =R3 -> > | X3: > | Y3: > | Z3: > | AA3: <=0.2 | AB3: > | AC3: > | AD3: > | AE3: > | AF3: <=0.2
F4: Quantity | G4: Unit | H4: RC | I4: prop total | J4: Rank | K4: prop cat | L4: RC / unit | M4: (Rep life) | O4: Rep life | Q4: % Rep life | R4: =W4 -> 0.9 | S4: =X4 -> 0.8 | T4: =Y4 -> 0.4 | U4: =Z4 -> 0.2 | W4: 0.9 | X4: 0.8 | Y4: 0.4 | Z4: 0.2 | AA4: 0 | AB4: 0.9 | AC4: 0.8 | AD4: 0.4 | AE4: 0.2 | AF4: 0 | AG4: Std life | AH4: Std life | AI4: rep life
G5: Cost | H5: $ millions | I5: % | J5: total | K5: % | L5: $ ('000) | AG5: max | AH5: min
A6: 1 | D6: =VLOOKUP(A6,IDtable,2) -> POLES | F6: =SUMIF($A$21:$A$205,$A6,F$21:F$205) -> 311229 | H6: =SUMIF($A$21:$A$205,$A6,H$21:H$205)/1000 -> 2083.144668 | I6: =H6/($H$18) -> 0.2302318656 | J6: =RANK(I6,I$6:I$17) -> 2 | L6: =H6*1000/(F6+0.001) -> 6.693285849 | M6: =SUMIF($A$21:$A$205,$A6,N$21:N$205)/(H6*1000+0.000001) -> 35.22563488 | O6: =SUMIF($A$21:$A$205,$A6,P$21:P$205)/(H6*1000+0.000001) -> 57.22735447 | Q6: =(O6-M6)/(O6+0.000001) -> 0.3844615816 | R6: =$O6-R$4*$O6 -> 5.722735447 | S6: =$O6-S$4*$O6 -> 11.44547089 | T6: =$O6-T$4*$O6 -> 34.33641268 | U6: =$O6-U$4*$O6 -> 45.78188358 | V6: =$O6-V$4*$O6 -> 57.22735447 | W6: =SUMIF($A$21:$A$205,$A6,W$21:W$205)/1000 -> 81.64228452 | X6: 103.3998997 | Y6: 707.9506152 | Z6: 620.865169 | AA6: 569.2866998 | AB6: =IF($H6=0,0,W6/$H6) -> 0.03919184575 | AC6: =IF($H6=0,0,X6/$H6) -> 0.04963644688 | AD6: =IF($H6=0,0,Y6/$H6) -> 0.3398470716 | AE6: =IF($H6=0,0,Z6/$H6) -> 0.2980422716 | AF6: =IF($H6=0,0,AA6/$H6) -> 0.2732823642 | AG6: =MAX(IF($A$21:$A$205=$A6,$O$21:$O$205)) -> 60 | AH6: =MIN(IF($A$21:$A$205=$A6,$O$21:$O$205)) -> 15 | AI6: =IF(H6=0,0,SUMIF($A$21:$A$205,$A6,$AJ$21:$AJ$205)/(H6*1000)) -> 57.22735447
A7: 2 | D7: OVERHEAD CONDUCTORS | F7: =SUMIF($A$21:$A$205,$A7,F$21:F$205) -> 28492.7159 | H7: =SUMIF($A$21:$A$205,$A7,H$21:H$205)/1000 -> 3551.437501 | I7: =H7/($H$18) -> 0.3925095045 | J7: 1 | L7: 124.6436945 | M7: 24.87835966 | O7: 52.44438552 | Q7: 0.5256239551 | R7: =$O7-R$4*$O7 -> 5.244438552 | S7: 10.4888771 | T7: 31.46663131 | U7: 41.95550842 | V7: 52.44438552 | W7: 348.6573341 | X7: 412.5143554 | Y7: 1595.662952 | Z7: 507.8289698 | AA7: 686.7738897 | AB7: =IF($H7=0,0,W7/$H7) -> 0.09817358013 | AC7: =IF($H7=0,0,X7/$H7) -> 0.1161541926 | AD7: =IF($H7=0,0,Y7/$H7) -> 0.4493005865 | AE7: =IF($H7=0,0,Z7/$H7) -> 0.1429925121 | AF7: =IF($H7=0,0,AA7/$H7) -> 0.1933791287 | AG7: =MAX(IF($A$21:$A$205=$A7,$O$21:$O$205)) -> 60 | AH7: =MIN(IF($A$21:$A$205=$A7,$O$21:$O$205)) -> 50 | AI7: =IF(H7=0,0,SUMIF($A$21:$A$205,$A7,$AJ$21:$AJ$205)/(H7*1000)) -> 52.44438552
A8: 3 | D8: UNDERGROUND CABLES | F8: 15812.19896 | H8: 700.5773058 | I8: 0.07742871754 | J8: 4 | L8: 44.30612487 | M8: 38.3348885 | O8: 57.55108418 | Q8: 0.3338980598 | R8: 5.755108418 | S8: 11.51021684 | T8: 34.53065051 | U8: 46.04086734 | V8: 57.55108418 | W8: 10.44416293 | X8: 4.851348076 | Y8: 271.6278592 | Z8: 168.8615342 | AA8: 244.7924014 | AB8: 0.01490793785 | AC8: 0.006924786224 | AD8: 0.3877200374 | AE8: 0.2410319786 | AF8: 0.34941526 | AG8: =MAX(IF($A$21:$A$205=$A8,$O$21:$O$205)) -> 60 | AH8: =MIN(IF($A$21:$A$205=$A8,$O$21:$O$205)) -> 45 | AI8: 57.55108418
A9: 4 | D9: SERVICE LINES | F9: 704125 | H9: 469.7222751 | I9: 0.05191431846 | J9: 5 | L9: 0.6671006915 | M9: 13.47311115 | O9: 35 | Q9: 0.6150539494 | R9: 3.5 | S9: 7 | T9: 21 | U9: 28 | V9: 35 | W9: 99.35080733 | X9: 62.31182196 | Y9: 166.0848942 | Z9: 88.12660706 | AA9: 53.84814458 | AB9: 0.2115096784 | AC9: 0.132656732 | AD9: 0.3535810477 | AE9: 0.1876142813 | AF9: 0.1146382606 | AG9: =MAX(IF($A$21:$A$205=$A9,$O$21:$O$205)) -> 60 | AH9: =MIN(IF($A$21:$A$205=$A9,$O$21:$O$205)) -> 35 | AI9: 35
A10: 5 | D10: TRANSFORMERS | F10: 30176 | H10: 1975.6897 | I10: 0.2183558023 | J10: 3 | L10: 65.47221746 | M10: 32.12820035 | O10: 53.15901432 | Q10: 0.3956208339 | R10: 5.315901432 | S10: 10.63180286 | T10: 31.89540859 | U10: 42.52721145 | V10: 53.15901432 | W10: 111.612999 | X10: 151.5400728 | Y10: 593.3415371 | Z10: 330.5941946 | AA10: 788.6008961 | AB10: 0.05649318263 | AC10: 0.07670236517 | AD10: 0.3003212181 | AE10: 0.1673310311 | AF10: 0.399152203 | AG10: =MAX(IF($A$21:$A$205=$A10,$O$21:$O$205)) -> 55 | AH10: =MIN(IF($A$21:$A$205=$A10,$O$21:$O$205)) -> 51 | AI10: 53.15901432
A11: 6 | D11: SWITCHGEAR | F11: 70448 | H11: 267.457861 | I11: 0.02955979162 | J11: 6 | L11: 3.796528747 | M11: 28.71008313 | O11: 45.41096381 | Q11: 0.3677719854 | R11: 4.541096381 | S11: 9.082192763 | T11: 27.24657829 | U11: 36.32877105 | V11: 45.41096381 | W11: 31.91456893 | X11: 17.07718868 | Y11: 50.81930331 | Z11: 37.48602208 | AA11: 130.160778 | AB11: 0.119325597 | AC11: 0.06385001592 | AD11: 0.1900086358 | AE11: 0.1401567408 | AF11: 0.4866590105 | AG11: =MAX(IF($A$21:$A$205=$A11,$O$21:$O$205)) -> 51 | AH11: =MIN(IF($A$21:$A$205=$A11,$O$21:$O$205)) -> 35 | AI11: 45.41096381
A12: 7 | D12: PUBLIC LIGHTING | F12: 0 | H12: 0 | I12: 0 | J12: 7 | L12: 0 | M12: 0 | O12: 0 | Q12: 0 | R12: 0 | S12: 0 | T12: 0 | U12: 0 | V12: 0 | W12: 0 | X12: 0 | Y12: 0 | Z12: 0 | AA12: 0 | AB12: 0 | AC12: 0 | AD12: 0 | AE12: 0 | AF12: 0 | AG12: =MAX(IF($A$21:$A$205=$A12,$O$21:$O$205)) -> 0 | AH12: =MIN(IF($A$21:$A$205=$A12,$O$21:$O$205)) -> 0 | AI12: 0
A13: 8 | D13: SCADA, NETWORK CONTROL AND PROTECTION | F13: 0 | H13: 0 | I13: 0 | J13: 7 | L13: 0 | M13: 0 | O13: 0 | Q13: 0 | R13: 0 | S13: 0 | T13: 0 | U13: 0 | V13: 0 | W13: 0 | X13: 0 | Y13: 0 | Z13: 0 | AA13: 0 | AB13: 0 | AC13: 0 | AD13: 0 | AE13: 0 | AF13: 0 | AG13: =MAX(IF($A$21:$A$205=$A13,$O$21:$O$205)) -> 0 | AH13: =MIN(IF($A$21:$A$205=$A13,$O$21:$O$205)) -> 0 | AI13: 0
A14: 9 | D14: =VLOOKUP(A14,IDtable,2) -> OTHER | F14: =SUMIF($A$21:$A$205,$A14,F$21:F$205) -> 0 | H14: =SUMIF($A$21:$A$205,$A14,H$21:H$205)/1000 -> 0 | I14: =H14/($H$18) -> 0 | J14: 7 | L14: 0 | M14: 0 | O14: 0 | Q14: 0 | R14: =$O14-R$4*$O14 -> 0 | S14: 0 | T14: 0 | U14: 0 | V14: 0 | W14: 0 | X14: 0 | Y14: 0 | Z14: 0 | AA14: 0 | AB14: 0 | AC14: 0 | AD14: 0 | AE14: 0 | AF14: 0 | AG14: =MAX(IF($A$21:$A$205=$A14,$O$21:$O$205)) -> 0 | AH14: =MIN(IF($A$21:$A$205=$A14,$O$21:$O$205)) -> 0 | AI14: 0
A15: 10 | D15: =VLOOKUP(A15,IDtable,2) -> unused | F15: =SUMIF($A$21:$A$205,$A15,F$21:F$205) -> 0 | H15: =SUMIF($A$21:$A$205,$A15,H$21:H$205)/1000 -> 0 | I15: =H15/($H$18) -> 0 | J15: 7 | L15: 0 | M15: 0 | O15: 0 | Q15: 0 | R15: 0 | S15: 0 | T15: 0 | U15: 0 | V15: 0 | W15: 0 | X15: 0 | Y15: 0 | Z15: 0 | AA15: 0 | AB15: 0 | AC15: 0 | AD15: 0 | AE15: 0 | AF15: 0 | AG15: =MAX(IF($A$21:$A$205=$A15,$O$21:$O$205)) -> 0 | AH15: =MIN(IF($A$21:$A$205=$A15,$O$21:$O$205)) -> 0 | AI15: 0
A16: 11 | D16: =VLOOKUP(A16,IDtable,2) -> unused | F16: =SUMIF($A$21:$A$205,$A16,F$21:F$205) -> 0 | H16: =SUMIF($A$21:$A$205,$A16,H$21:H$205)/1000 -> 0 | I16: =H16/($H$18) -> 0 | J16: 7 | L16: 0 | M16: 0 | O16: 0 | Q16: 0 | R16: 0 | S16: 0 | T16: 0 | U16: 0 | V16: 0 | W16: 0 | X16: 0 | Y16: 0 | Z16: 0 | AA16: 0 | AB16: 0 | AC16: 0 | AD16: 0 | AE16: 0 | AF16: 0 | AG16: =MAX(IF($A$21:$A$205=$A16,$O$21:$O$205)) -> 0 | AH16: =MIN(IF($A$21:$A$205=$A16,$O$21:$O$205)) -> 0 | AI16: 0
A17: 12 | D17: =VLOOKUP(A17,IDtable,2) -> unused | F17: =SUMIF($A$21:$A$205,$A17,F$21:F$205) -> 0 | H17: =SUMIF($A$21:$A$205,$A17,H$21:H$205)/1000 -> 0 | I17: =H17/($H$18) -> 0 | J17: =RANK(I17,I$6:I$17) -> 7 | L17: =H17*1000/(F17+0.001) -> 0 | M17: =SUMIF($A$21:$A$205,$A17,N$21:N$205)/(H17*1000+0.000001) -> 0 | O17: =SUMIF($A$21:$A$205,$A17,P$21:P$205)/(H17*1000+0.000001) -> 0 | Q17: =(O17-M17)/(O17+0.000001) -> 0 | R17: 0 | S17: 0 | T17: 0 | U17: 0 | V17: 0 | W17: 0 | X17: 0 | Y17: 0 | Z17: 0 | AA17: 0 | AB17: 0 | AC17: 0 | AD17: 0 | AE17: 0 | AF17: 0 | AG17: =MAX(IF($A$21:$A$205=$A17,$O$21:$O$205)) -> 0 | AH17: =MIN(IF($A$21:$A$205=$A17,$O$21:$O$205)) -> 0 | AI17: 0
D18: Total | H18: =SUM(H6:H17) -> 9048.029311 | M18: =SUMPRODUCT(M6:M17,$H6:$H17)/$H18 -> 29.40676793 | O18: =SUMPRODUCT(O6:O17,$H6:$H17)/$H18 -> 52.98350599 | Q18: =SUMPRODUCT(Q6:Q17,$H6:$H17)/$H18 -> 0.4498684783 | W18: =SUM(W6:W17) -> 683.6221569 | X18: =SUM(X6:X17) -> 751.6946866 | Y18: =SUM(Y6:Y17) -> 3385.487161 | Z18: =SUM(Z6:Z17) -> 1753.762497 | AA18: =SUM(AA6:AA17) -> 2473.46281 | AB18: =W18/$H18 -> 0.07555481236 | AC18: =X18/$H18 -> 0.08307827713 | AD18: =Y18/$H18 -> 0.3741684565 | AE18: =Z18/$H18 -> 0.1938281184 | AF18: =AA18/$H18 -> 0.2733703356
D20: EDB categories
A21: ='Asset data'!A21 -> 0 | B21: ='Asset data'!B21 -> 0 | C21: ='Asset data'!C21 -> 0 | D21: ='Asset data'!E21 -> 0 | E21: =IF(A21>0,VLOOKUP(A21,IDtable,2),0) -> 0 | F21: =IF(A21>0,SUM('Asset data'!J21:CV21),0) -> 0 | G21: =IF(A21>0,'Asset data'!F21,0) -> 0 | H21: =IF(A21>0,SUM('Asset data'!CX21:GJ21),0) -> 0 | I21: =H21/$H$18/1000 -> 0 | J21: =IF(RANK(0,I$21:I$205)=RANK(I21,I$21:I$205),0,RANK(I21,I$21:I$205)) -> 0 | K21: =IF(A21>0,H21/(VLOOKUP(A21,$A$6:$H$17,8)*1000),0) -> 0 | L21: =IF($A21>0,H21/F21,0) -> 0 | M21: =IF($A21>0,SUMPRODUCT('Age profile (years)'!$CT21:$GF21,'Asset data'!$CX21:$GJ21)/H21-0.5,0) -> 0 | N21: =IF($A21>0,M21*H21,0) -> 0 | O21: =IF($A21>0,'Asset data'!G21,0) -> 0 | P21: =IF($A21>0,H21*O21,0) -> 0 | Q21: =IF($A21>0,(O21-M21)/O21,0) -> 0 | R21: =IF($A21>0,$O21-R$4*$O21,0) -> 0 | S21: 0 | T21: 0 | U21: 0 | W21: =IF($A21>0,SUMIF('Age profile (years)'!$CT21:$GF21,"<" & R21+0.5,'Asset data'!$CX21:$GJ21),0) -> 0 | X21: =IF($A21>0,SUMIF('Age profile (years)'!$CT21:$GF21,"<" & S21+0.5,'Asset data'!$CX21:$GJ21)-W21,0) -> 0 | Y21: =IF($A21>0,SUMIF('Age profile (years)'!$CT21:$GF21,"<" & T21+0.5,'Asset data'!$CX21:$GJ21)-X21-W21,0) -> 0 | Z21: =IF($A21>0,SUMIF('Age profile (years)'!$CT21:$GF21,"<" & U21+0.5,'Asset data'!$CX21:$GJ21)-Y21-X21-W21,0) -> 0 | AA21: =IF($A21>0,H21-Z21-Y21-X21-W21,0) -> 0 | AB21: =IF($A21>0,W21/$H21,0) -> 0 | AC21: 0 | AD21: 0 | AE21: 0 | AF21: 0 | AI21: =IF($A21>0,'RRR hist-forc'!K21,0) -> 0 | AJ21: =IF($A21>0,AI21*H21,0) -> 0
A22: ='Asset data'!A22 -> 1 | B22: ='Asset data'!B22 -> 0 | C22: ='Asset data'!C22 -> 0 | D22: ='Asset data'!E22 -> STAKING OF A WOODEN POLE | E22: POLES | F22: =IF(A22>0,SUM('Asset data'!J22:CV22),0) -> 4511 | G22: =IF(A22>0,'Asset data'!F22,0) -> 8.297713677 | H22: =IF(A22>0,SUM('Asset data'!CX22:GJ22),0) -> 37430.9864 | I22: 0.004136921435 | J22: 30 | K22: =IF(A22>0,H22/(VLOOKUP(A22,$A$6:$H$17,8)*1000),0) -> 0.01796850069 | L22: =IF($A22>0,H22/F22,0) -> 8.297713677 | M22: =IF($A22>0,SUMPRODUCT('Age profile (years)'!$CT22:$GF22,'Asset data'!$CX22:$GJ22)/H22-0.5,0) -> 8.275881179 | N22: =IF($A22>0,M22*H22,0) -> 309774.3959 | O22: =IF($A22>0,'Asset data'!G22,0) -> 15 | P22: =IF($A22>0,H22*O22,0) -> 561464.796 | Q22: =IF($A22>0,(O22-M22)/O22,0) -> 0.448274588 | R22: 1.5 | S22: 3 | T22: 9 | U22: 12 | W22: =IF($A22>0,SUMIF('Age profile (years)'!$CT22:$GF22,"<" & R22+0.5,'Asset data'!$CX22:$GJ22),0) -> 0 | X22: =IF($A22>0,SUMIF('Age profile (years)'!$CT22:$GF22,"<" & S22+0.5,'Asset data'!$CX22:$GJ22)-W22,0) -> 4978.628206 | Y22: =IF($A22>0,SUMIF('Age profile (years)'!$CT22:$GF22,"<" & T22+0.5,'Asset data'!$CX22:$GJ22)-X22-W22,0) -> 14935.88462 | Z22: =IF($A22>0,SUMIF('Age profile (years)'!$CT22:$GF22,"<" & U22+0.5,'Asset data'!$CX22:$GJ22)-Y22-X22-W22,0) -> 8098.568549 | AA22: =IF($A22>0,H22-Z22-Y22-X22-W22,0) -> 9417.905024 | AB22: 0 | AC22: 0.1330082022 | AD22: 0.3990246065 | AE22: 0.2163600089 | AF22: 0.2516071824 | AI22: =IF($A22>0,'RRR hist-forc'!K22,0) -> 15 | AJ22: =IF($A22>0,AI22*H22,0) -> 561464.796
A23: ='Asset data'!A23 -> 1 | B23: ='Asset data'!B23 -> 0 | C23: ='Asset data'!C23 -> 0 | D23: ='Asset data'!E23 -> ˂ = 1 kV; WOOD | E23: =IF(A23>0,VLOOKUP(A23,IDtable,2),0) -> POLES | F23: =IF(A23>0,SUM('Asset data'!J23:CV23),0) -> 138239 | G23: =IF(A23>0,'Asset data'!F23,0) -> 3.750405237 | H23: =IF(A23>0,SUM('Asset data'!CX23:GJ23),0) -> 518452.2696 | I23: =H23/$H$18/1000 -> 0.057300021 | J23: =IF(RANK(0,I$21:I$205)=RANK(I23,I$21:I$205),0,RANK(I23,I$21:I$205)) -> 5 | K23: =IF(A23>0,H23/(VLOOKUP(A23,$A$6:$H$17,8)*1000),0) -> 0.2488796277 | L23: =IF($A23>0,H23/F23,0) -> 3.750405237 | M23: =IF($A23>0,SUMPRODUCT('Age profile (years)'!$CT23:$GF23,'Asset data'!$CX23:$GJ23)/H23-0.5,0) -> 32.49769964 | N23: =IF($A23>0,M23*H23,0) -> 16848506.13 | O23: =IF($A23>0,'Asset data'!G23,0) -> 58 | P23: =IF($A23>0,H23*O23,0) -> 30070231.63 | Q23: =IF($A23>0,(O23-M23)/O23,0) -> 0.4396948339 | R23: 5.8 | S23: 11.6 | T23: 34.8 | U23: 46.4 | W23: =IF($A23>0,SUMIF('Age profile (years)'!$CT23:$GF23,"<" & R23+0.5,'Asset data'!$CX23:$GJ23),0) -> 25326.48657 | X23: =IF($A23>0,SUMIF('Age profile (years)'!$CT23:$GF23,"<" & S23+0.5,'Asset data'!$CX23:$GJ23)-W23,0) -> 30520.79782 | Y23: =IF($A23>0,SUMIF('Age profile (years)'!$CT23:$GF23,"<" & T23+0.5,'Asset data'!$CX23:$GJ23)-X23-W23,0) -> 214823.212 | Z23: =IF($A23>0,SUMIF('Age profile (years)'!$CT23:$GF23,"<" & U23+0.5,'Asset data'!$CX23:$GJ23)-Y23-X23-W23,0) -> 164166.4884 | AA23: =IF($A23>0,H23-Z23-Y23-X23-W23,0) -> 83615.28476 | AB23: =IF($A23>0,W23/$H23,0) -> 0.04885017976 | AC23: =IF($A23>0,X23/$H23,0) -> 0.05886906011 | AD23: =IF($A23>0,Y23/$H23,0) -> 0.4143548492 | AE23: =IF($A23>0,Z23/$H23,0) -> 0.3166472558 | AF23: =IF($A23>0,AA23/$H23,0) -> 0.1612786551 | AI23: =IF($A23>0,'RRR hist-forc'!K23,0) -> 58 | AJ23: =IF($A23>0,AI23*H23,0) -> 30070231.63
A24: ='Asset data'!A24 -> 1 | B24: ='Asset data'!B24 -> 0 | C24: ='Asset data'!C24 -> 0 | D24: ='Asset data'!E24 -> > 1 kV & < = 11 kV; WOOD | E24: POLES | F24: =IF(A24>0,SUM('Asset data'!J24:CV24),0) -> 123477 | G24: =IF(A24>0,'Asset data'!F24,0) -> 5.070124975 | H24: =IF(A24>0,SUM('Asset data'!CX24:GJ24),0) -> 626043.8215 | I24: 0.06919117965 | J24: 4 | K24: 0.3005282499 | L24: 5.070124975 | M24: =IF($A24>0,SUMPRODUCT('Age profile (years)'!$CT24:$GF24,'Asset data'!$CX24:$GJ24)/H24-0.5,0) -> 33.38030159 | N24: 20897531.57 | O24: =IF($A24>0,'Asset data'!G24,0) -> 58 | P24: 36310541.65 | Q24: 0.4244775587 | R24: 5.8 | S24: 11.6 | T24: 34.8 | U24: 46.4 | W24: =IF($A24>0,SUMIF('Age profile (years)'!$CT24:$GF24,"<" & R24+0.5,'Asset data'!$CX24:$GJ24),0) -> 29421.93523 | X24: =IF($A24>0,SUMIF('Age profile (years)'!$CT24:$GF24,"<" & S24+0.5,'Asset data'!$CX24:$GJ24)-W24,0) -> 35460.45407 | Y24: =IF($A24>0,SUMIF('Age profile (years)'!$CT24:$GF24,"<" & T24+0.5,'Asset data'!$CX24:$GJ24)-X24-W24,0) -> 249551.5513 | Z24: =IF($A24>0,SUMIF('Age profile (years)'!$CT24:$GF24,"<" & U24+0.5,'Asset data'!$CX24:$GJ24)-Y24-X24-W24,0) -> 190717.8211 | AA24: 120892.0599 | AB24: 0.04699660666 | AC24: 0.05664212768 | AD24: 0.3986167464 | AE24: 0.3046397305 | AF24: 0.1931047887 | AI24: =IF($A24>0,'RRR hist-forc'!K24,0) -> 58 | AJ24: 36310541.65
A25: ='Asset data'!A25 -> 1 | B25: ='Asset data'!B25 -> 0 | C25: ='Asset data'!C25 -> 0 | D25: ='Asset data'!E25 -> ˃ 11 kV & < = 22 kV; WOOD | E25: POLES | F25: =IF(A25>0,SUM('Asset data'!J25:CV25),0) -> 1590 | G25: =IF(A25>0,'Asset data'!F25,0) -> 6.071477093 | H25: =IF(A25>0,SUM('Asset data'!CX25:GJ25),0) -> 9653.648577 | I25: 0.001066933831 | J25: 43 | K25: 0.004634170984 | L25: 6.071477093 | M25: =IF($A25>0,SUMPRODUCT('Age profile (years)'!$CT25:$GF25,'Asset data'!$CX25:$GJ25)/H25-0.5,0) -> 33.41572327 | N25: 322583.6494 | O25: =IF($A25>0,'Asset data'!G25,0) -> 58 | P25: 559911.6175 | Q25: 0.4238668402 | R25: 5.8 | S25: 11.6 | T25: 34.8 | U25: 46.4 | W25: =IF($A25>0,SUMIF('Age profile (years)'!$CT25:$GF25,"<" & R25+0.5,'Asset data'!$CX25:$GJ25),0) -> 455.360782 | X25: =IF($A25>0,SUMIF('Age profile (years)'!$CT25:$GF25,"<" & S25+0.5,'Asset data'!$CX25:$GJ25)-W25,0) -> 546.4329383 | Y25: =IF($A25>0,SUMIF('Age profile (years)'!$CT25:$GF25,"<" & T25+0.5,'Asset data'!$CX25:$GJ25)-X25-W25,0) -> 3831.102045 | Z25: =IF($A25>0,SUMIF('Age profile (years)'!$CT25:$GF25,"<" & U25+0.5,'Asset data'!$CX25:$GJ25)-Y25-X25-W25,0) -> 2932.523436 | AA25: 1888.229376 | AB25: 0.04716981132 | AC25: 0.05660377358 | AD25: 0.3968553459 | AE25: 0.3037735849 | AF25: 0.1955974843 | AI25: =IF($A25>0,'RRR hist-forc'!K25,0) -> 58 | AJ25: 559911.6175
A26: ='Asset data'!A26 -> 1 | B26: ='Asset data'!B26 -> 0 | C26: ='Asset data'!C26 -> 0 | D26: ='Asset data'!E26 -> 33kV Wood | E26: POLES | F26: =IF(A26>0,SUM('Asset data'!J26:CV26),0) -> 14879 | G26: =IF(A26>0,'Asset data'!F26,0) -> 22.26773319 | H26: =IF(A26>0,SUM('Asset data'!CX26:GJ26),0) -> 331321.6021 | I26: 0.03661809557 | J26: 10 | K26: 0.1590487723 | L26: 22.26773319 | M26: =IF($A26>0,SUMPRODUCT('Age profile (years)'!$CT26:$GF26,'Asset data'!$CX26:$GJ26)/H26-0.5,0) -> 33.09231131 | N26: 10964197.6 | O26: =IF($A26>0,'Asset data'!G26,0) -> 58 | P26: 19216652.92 | Q26: 0.4294429084 | R26: 5.8 | S26: 11.6 | T26: 34.8 | U26: 46.4 | W26: =IF($A26>0,SUMIF('Age profile (years)'!$CT26:$GF26,"<" & R26+0.5,'Asset data'!$CX26:$GJ26),0) -> 15765.5551 | X26: =IF($A26>0,SUMIF('Age profile (years)'!$CT26:$GF26,"<" & S26+0.5,'Asset data'!$CX26:$GJ26)-W26,0) -> 18994.37641 | Y26: =IF($A26>0,SUMIF('Age profile (years)'!$CT26:$GF26,"<" & T26+0.5,'Asset data'!$CX26:$GJ26)-X26-W26,0) -> 133673.2023 | Z26: =IF($A26>0,SUMIF('Age profile (years)'!$CT26:$GF26,"<" & U26+0.5,'Asset data'!$CX26:$GJ26)-Y26-X26-W26,0) -> 102142.0921 | AA26: 60746.37613 | AB26: 0.047583843 | AC26: 0.05732912158 | AD26: 0.4034545332 | AE26: 0.3082868472 | AF26: 0.1833456549 | AI26: =IF($A26>0,'RRR hist-forc'!K26,0) -> 58 | AJ26: 19216652.92
A27: ='Asset data'!A27 -> 1 | B27: ='Asset data'!B27 -> 0 | C27: ='Asset data'!C27 -> 0 | D27: ='Asset data'!E27 -> 66kV Wood | E27: POLES | F27: =IF(A27>0,SUM('Asset data'!J27:CV27),0) -> 4170 | G27: =IF(A27>0,'Asset data'!F27,0) -> 24.885709 | H27: =IF(A27>0,SUM('Asset data'!CX27:GJ27),0) -> 103773.4065 | I27: 0.01146917223 | J27: 23 | K27: 0.04981574642 | L27: 24.885709 | M27: =IF($A27>0,SUMPRODUCT('Age profile (years)'!$CT27:$GF27,'Asset data'!$CX27:$GJ27)/H27-0.5,0) -> 32.09256595 | N27: 3330354.893 | O27: =IF($A27>0,'Asset data'!G27,0) -> 58 | P27: 6018857.579 | Q27: 0.4466798975 | R27: 5.8 | S27: 11.6 | T27: 34.8 | U27: 46.4 | W27: =IF($A27>0,SUMIF('Age profile (years)'!$CT27:$GF27,"<" & R27+0.5,'Asset data'!$CX27:$GJ27),0) -> 5151.341763 | X27: =IF($A27>0,SUMIF('Age profile (years)'!$CT27:$GF27,"<" & S27+0.5,'Asset data'!$CX27:$GJ27)-W27,0) -> 6221.42725 | Y27: =IF($A27>0,SUMIF('Age profile (years)'!$CT27:$GF27,"<" & T27+0.5,'Asset data'!$CX27:$GJ27)-X27-W27,0) -> 43749.07643 | Z27: =IF($A27>0,SUMIF('Age profile (years)'!$CT27:$GF27,"<" & U27+0.5,'Asset data'!$CX27:$GJ27)-Y27-X27-W27,0) -> 33421.50719 | AA27: 15230.05391 | AB27: 0.04964028777 | AC27: 0.05995203837 | AD27: 0.4215827338 | AE27: 0.3220623501 | AF27: 0.1467625899 | AI27: =IF($A27>0,'RRR hist-forc'!K27,0) -> 58 | AJ27: 6018857.579
A28: ='Asset data'!A28 -> 0 | B28: ='Asset data'!B28 -> 0 | C28: ='Asset data'!C28 -> 0 | D28: ='Asset data'!E28 -> > 22 kV & < = 66 kV; WOOD | E28: 0 | F28: =IF(A28>0,SUM('Asset data'!J28:CV28),0) -> 0 | G28: =IF(A28>0,'Asset data'!F28,0) -> 0 | H28: =IF(A28>0,SUM('Asset data'!CX28:GJ28),0) -> 0 | I28: 0 | J28: 0 | K28: 0 | L28: 0 | M28: =IF($A28>0,SUMPRODUCT('Age profile (years)'!$CT28:$GF28,'Asset data'!$CX28:$GJ28)/H28-0.5,0) -> 0 | N28: 0 | O28: =IF($A28>0,'Asset data'!G28,0) -> 0 | P28: 0 | Q28: 0 | R28: 0 | S28: 0 | T28: 0 | U28: 0 | W28: =IF($A28>0,SUMIF('Age profile (years)'!$CT28:$GF28,"<" & R28+0.5,'Asset data'!$CX28:$GJ28),0) -> 0 | X28: =IF($A28>0,SUMIF('Age profile (years)'!$CT28:$GF28,"<" & S28+0.5,'Asset data'!$CX28:$GJ28)-W28,0) -> 0 | Y28: =IF($A28>0,SUMIF('Age profile (years)'!$CT28:$GF28,"<" & T28+0.5,'Asset data'!$CX28:$GJ28)-X28-W28,0) -> 0 | Z28: =IF($A28>0,SUMIF('Age profile (years)'!$CT28:$GF28,"<" & U28+0.5,'Asset data'!$CX28:$GJ28)-Y28-X28-W28,0) -> 0 | AA28: 0 | AB28: 0 | AC28: 0 | AD28: 0 | AE28: 0 | AF28: 0 | AI28: =IF($A28>0,'RRR hist-forc'!K28,0) -> 0 | AJ28: 0
A29: ='Asset data'!A29 -> 1 | B29: ='Asset data'!B29 -> 0 | C29: ='Asset data'!C29 -> 0 | D29: ='Asset data'!E29 -> > 66 kV & < = 132 kV; WOOD | E29: POLES | F29: =IF(A29>0,SUM('Asset data'!J29:CV29),0) -> 3160 | G29: =IF(A29>0,'Asset data'!F29,0) -> 35.62325859 | H29: =IF(A29>0,SUM('Asset data'!CX29:GJ29),0) -> 112569.4971 | I29: 0.01244132764 | J29: 20 | K29: 0.05403825229 | L29: 35.62325859 | M29: =IF($A29>0,SUMPRODUCT('Age profile (years)'!$CT29:$GF29,'Asset data'!$CX29:$GJ29)/H29-0.5,0) -> 32.66360759 | N29: 3676925.882 | O29: =IF($A29>0,'Asset data'!G29,0) -> 58 | P29: 6529030.834 | Q29: 0.4368343518 | R29: 5.8 | S29: 11.6 | T29: 34.8 | U29: 46.4 | W29: =IF($A29>0,SUMIF('Age profile (years)'!$CT29:$GF29,"<" & R29+0.5,'Asset data'!$CX29:$GJ29),0) -> 5521.605081 | X29: =IF($A29>0,SUMIF('Age profile (years)'!$CT29:$GF29,"<" & S29+0.5,'Asset data'!$CX29:$GJ29)-W29,0) -> 6554.67958 | Y29: =IF($A29>0,SUMIF('Age profile (years)'!$CT29:$GF29,"<" & T29+0.5,'Asset data'!$CX29:$GJ29)-X29-W29,0) -> 46238.98965 | Z29: =IF($A29>0,SUMIF('Age profile (years)'!$CT29:$GF29,"<" & U29+0.5,'Asset data'!$CX29:$GJ29)-Y29-X29-W29,0) -> 35373.89578 | AA29: 18880.32705 | AB29: 0.04905063291 | AC29: 0.0582278481 | AD29: 0.4107594937 | AE29: 0.3142405063 | AF29: 0.167721519 | AI29: =IF($A29>0,'RRR hist-forc'!K29,0) -> 58 | AJ29: 6529030.834
A30: ='Asset data'!A30 -> 0 | B30: ='Asset data'!B30 -> 0 | C30: ='Asset data'!C30 -> 0 | D30: ='Asset data'!E30 -> > 132 kV; WOOD | E30: 0 | F30: =IF(A30>0,SUM('Asset data'!J30:CV30),0) -> 0 | G30: =IF(A30>0,'Asset data'!F30,0) -> 0 | H30: =IF(A30>0,SUM('Asset data'!CX30:GJ30),0) -> 0 | I30: 0 | J30: 0 | K30: 0 | L30: 0 | M30: =IF($A30>0,SUMPRODUCT('Age profile (years)'!$CT30:$GF30,'Asset data'!$CX30:$GJ30)/H30-0.5,0) -> 0 | N30: 0 | O30: =IF($A30>0,'Asset data'!G30,0) -> 0 | P30: 0 | Q30: 0 | R30: 0 | S30: 0 | T30: 0 | U30: 0 | W30: =IF($A30>0,SUMIF('Age profile (years)'!$CT30:$GF30,"<" & R30+0.5,'Asset data'!$CX30:$GJ30),0) -> 0 | X30: =IF($A30>0,SUMIF('Age profile (years)'!$CT30:$GF30,"<" & S30+0.5,'Asset data'!$CX30:$GJ30)-W30,0) -> 0 | Y30: =IF($A30>0,SUMIF('Age profile (years)'!$CT30:$GF30,"<" & T30+0.5,'Asset data'!$CX30:$GJ30)-X30-W30,0) -> 0 | Z30: =IF($A30>0,SUMIF('Age profile (years)'!$CT30:$GF30,"<" & U30+0.5,'Asset data'!$CX30:$GJ30)-Y30-X30-W30,0) -> 0 | AA30: 0 | AB30: 0 | AC30: 0 | AD30: 0 | AE30: 0 | AF30: 0 | AI30: =IF($A30>0,'RRR hist-forc'!K30,0) -> 0 | AJ30: 0
A31: ='Asset data'!A31 -> 1 | B31: ='Asset data'!B31 -> 0 | C31: ='Asset data'!C31 -> 0 | D31: ='Asset data'!E31 -> ˂ = 1 kV; CONCRETE | E31: POLES | F31: =IF(A31>0,SUM('Asset data'!J31:CV31),0) -> 2372 | G31: =IF(A31>0,'Asset data'!F31,0) -> 9.251079916 | H31: =IF(A31>0,SUM('Asset data'!CX31:GJ31),0) -> 21943.56156 | I31: 0.002425231043 | J31: 35 | K31: 0.01053386349 | L31: 9.251079916 | M31: =IF($A31>0,SUMPRODUCT('Age profile (years)'!$CT31:$GF31,'Asset data'!$CX31:$GJ31)/H31-0.5,0) -> 48.8494941 | N31: 1071931.881 | O31: =IF($A31>0,'Asset data'!G31,0) -> 58 | P31: 1272726.571 | Q31: 0.1577673431 | R31: 5.8 | S31: 11.6 | T31: 34.8 | U31: 46.4 | W31: =IF($A31>0,SUMIF('Age profile (years)'!$CT31:$GF31,"<" & R31+0.5,'Asset data'!$CX31:$GJ31),0) -> 0 | X31: =IF($A31>0,SUMIF('Age profile (years)'!$CT31:$GF31,"<" & S31+0.5,'Asset data'!$CX31:$GJ31)-W31,0) -> 0 | Y31: =IF($A31>0,SUMIF('Age profile (years)'!$CT31:$GF31,"<" & T31+0.5,'Asset data'!$CX31:$GJ31)-X31-W31,0) -> 0 | Z31: =IF($A31>0,SUMIF('Age profile (years)'!$CT31:$GF31,"<" & U31+0.5,'Asset data'!$CX31:$GJ31)-Y31-X31-W31,0) -> 6947.561017 | AA31: 14996.00054 | AB31: 0 | AC31: 0 | AD31: 0 | AE31: 0.3166104553 | AF31: 0.6833895447 | AI31: =IF($A31>0,'RRR hist-forc'!K31,0) -> 58 | AJ31: 1272726.571
A32: ='Asset data'!A32 -> 1 | B32: ='Asset data'!B32 -> 0 | C32: ='Asset data'!C32 -> 0 | D32: ='Asset data'!E32 -> > 1 kV & < = 11 kV; CONCRETE | E32: POLES | F32: =IF(A32>0,SUM('Asset data'!J32:CV32),0) -> 10809 | G32: =IF(A32>0,'Asset data'!F32,0) -> 12.04118718 | H32: =IF(A32>0,SUM('Asset data'!CX32:GJ32),0) -> 130153.1922 | I32: 0.01438470055 | J32: 19 | K32: 0.06247919033 | L32: 12.04118718 | M32: =IF($A32>0,SUMPRODUCT('Age profile (years)'!$CT32:$GF32,'Asset data'!$CX32:$GJ32)/H32-0.5,0) -> 51.90651309 | N32: 6755798.375 | O32: =IF($A32>0,'Asset data'!G32,0) -> 58 | P32: 7548885.148 | Q32: 0.1050601191 | R32: 5.8 | S32: 11.6 | T32: 34.8 | U32: 46.4 | W32: =IF($A32>0,SUMIF('Age profile (years)'!$CT32:$GF32,"<" & R32+0.5,'Asset data'!$CX32:$GJ32),0) -> 0 | X32: =IF($A32>0,SUMIF('Age profile (years)'!$CT32:$GF32,"<" & S32+0.5,'Asset data'!$CX32:$GJ32)-W32,0) -> 0 | Y32: =IF($A32>0,SUMIF('Age profile (years)'!$CT32:$GF32,"<" & T32+0.5,'Asset data'!$CX32:$GJ32)-X32-W32,0) -> 60.20593589 | Z32: =IF($A32>0,SUMIF('Age profile (years)'!$CT32:$GF32,"<" & U32+0.5,'Asset data'!$CX32:$GJ32)-Y32-X32-W32,0) -> 9801.526362 | AA32: 120291.4599 | AB32: 0 | AC32: 0 | AD32: 0.0004625774817 | AE32: 0.07530761403 | AF32: 0.9242298085 | AI32: =IF($A32>0,'RRR hist-forc'!K32,0) -> 58 | AJ32: 7548885.148
A33: ='Asset data'!A33 -> 1 | B33: ='Asset data'!B33 -> 0 | C33: ='Asset data'!C33 -> 0 | D33: ='Asset data'!E33 -> ˃ 11 kV & < = 22 kV; CONCRETE | E33: POLES | F33: =IF(A33>0,SUM('Asset data'!J33:CV33),0) -> 605 | G33: =IF(A33>0,'Asset data'!F33,0) -> 15.15990281 | H33: =IF(A33>0,SUM('Asset data'!CX33:GJ33),0) -> 9171.741202 | I33: 0.0010136728 | J33: 44 | K33: 0.004402834494 | L33: 15.15990281 | M33: =IF($A33>0,SUMPRODUCT('Age profile (years)'!$CT33:$GF33,'Asset data'!$CX33:$GJ33)/H33-0.5,0) -> 51.42561983 | N33: 471662.4763 | O33: =IF($A33>0,'Asset data'!G33,0) -> 58 | P33: 531960.9897 | Q33: 0.1133513822 | R33: 5.8 | S33: 11.6 | T33: 34.8 | U33: 46.4 | W33: =IF($A33>0,SUMIF('Age profile (years)'!$CT33:$GF33,"<" & R33+0.5,'Asset data'!$CX33:$GJ33),0) -> 0 | X33: =IF($A33>0,SUMIF('Age profile (years)'!$CT33:$GF33,"<" & S33+0.5,'Asset data'!$CX33:$GJ33)-W33,0) -> 0 | Y33: =IF($A33>0,SUMIF('Age profile (years)'!$CT33:$GF33,"<" & T33+0.5,'Asset data'!$CX33:$GJ33)-X33-W33,0) -> 0 | Z33: =IF($A33>0,SUMIF('Age profile (years)'!$CT33:$GF33,"<" & U33+0.5,'Asset data'!$CX33:$GJ33)-Y33-X33-W33,0) -> 1591.789795 | AA33: 7579.951406 | AB33: 0 | AC33: 0 | AD33: 0 | AE33: 0.173553719 | AF33: 0.826446281 | AI33: =IF($A33>0,'RRR hist-forc'!K33,0) -> 58 | AJ33: 531960.9897
A34: ='Asset data'!A34 -> 1 | B34: ='Asset data'!B34 -> 0 | C34: ='Asset data'!C34 -> 0 | D34: ='Asset data'!E34 -> 33kV Concrete | E34: POLES | F34: =IF(A34>0,SUM('Asset data'!J34:CV34),0) -> 1735 | G34: =IF(A34>0,'Asset data'!F34,0) -> 25.18051625 | H34: =IF(A34>0,SUM('Asset data'!CX34:GJ34),0) -> 43688.19569 | I34: 0.004828476366 | J34: 26 | K34: 0.02097223316 | L34: 25.18051625 | M34: =IF($A34>0,SUMPRODUCT('Age profile (years)'!$CT34:$GF34,'Asset data'!$CX34:$GJ34)/H34-0.5,0) -> 48.77319885 | N34: 2130813.056 | O34: =IF($A34>0,'Asset data'!G34,0) -> 58 | P34: 2533915.35 | Q34: 0.1590827785 | R34: 5.8 | S34: 11.6 | T34: 34.8 | U34: 46.4 | W34: =IF($A34>0,SUMIF('Age profile (years)'!$CT34:$GF34,"<" & R34+0.5,'Asset data'!$CX34:$GJ34),0) -> 0 | X34: =IF($A34>0,SUMIF('Age profile (years)'!$CT34:$GF34,"<" & S34+0.5,'Asset data'!$CX34:$GJ34)-W34,0) -> 50.3610325 | Y34: =IF($A34>0,SUMIF('Age profile (years)'!$CT34:$GF34,"<" & T34+0.5,'Asset data'!$CX34:$GJ34)-X34-W34,0) -> 553.9713575 | Z34: =IF($A34>0,SUMIF('Age profile (years)'!$CT34:$GF34,"<" & U34+0.5,'Asset data'!$CX34:$GJ34)-Y34-X34-W34,0) -> 13849.28394 | AA34: 29234.57936 | AB34: 0 | AC34: 0.001152737752 | AD34: 0.01268011527 | AE34: 0.3170028818 | AF34: 0.6691642651 | AI34: =IF($A34>0,'RRR hist-forc'!K34,0) -> 58 | AJ34: 2533915.35
A35: ='Asset data'!A35 -> 1 | B35: ='Asset data'!B35 -> 0 | C35: ='Asset data'!C35 -> 0 | D35: ='Asset data'!E35 -> 66kV Concrete | E35: POLES | F35: =IF(A35>0,SUM('Asset data'!J35:CV35),0) -> 1094 | G35: =IF(A35>0,'Asset data'!F35,0) -> 32.14841213 | H35: =IF(A35>0,SUM('Asset data'!CX35:GJ35),0) -> 35170.36287 | I35: 0.003887074374 | J35: 31 | K35: 0.01688330312 | L35: 32.14841213 | M35: =IF($A35>0,SUMPRODUCT('Age profile (years)'!$CT35:$GF35,'Asset data'!$CX35:$GJ35)/H35-0.5,0) -> 43.72303473 | N35: 1537754.997 | O35: =IF($A35>0,'Asset data'!G35,0) -> 58 | P35: 2039881.046 | Q35: 0.2461545735 | R35: 5.8 | S35: 11.6 | T35: 34.8 | U35: 46.4 | W35: =IF($A35>0,SUMIF('Age profile (years)'!$CT35:$GF35,"<" & R35+0.5,'Asset data'!$CX35:$GJ35),0) -> 0 | X35: =IF($A35>0,SUMIF('Age profile (years)'!$CT35:$GF35,"<" & S35+0.5,'Asset data'!$CX35:$GJ35)-W35,0) -> 0 | Y35: =IF($A35>0,SUMIF('Age profile (years)'!$CT35:$GF35,"<" & T35+0.5,'Asset data'!$CX35:$GJ35)-X35-W35,0) -> 128.5936485 | Z35: =IF($A35>0,SUMIF('Age profile (years)'!$CT35:$GF35,"<" & U35+0.5,'Asset data'!$CX35:$GJ35)-Y35-X35-W35,0) -> 25140.05828 | AA35: 9901.710935 | AB35: 0 | AC35: 0 | AD35: 0.00365630713 | AE35: 0.7148080439 | AF35: 0.281535649 | AI35: =IF($A35>0,'RRR hist-forc'!K35,0) -> 58 | AJ35: 2039881.046
A36: ='Asset data'!A36 -> 0 | B36: ='Asset data'!B36 -> 0 | C36: ='Asset data'!C36 -> 0 | D36: ='Asset data'!E36 -> > 22 kV & < = 66 kV; CONCRETE | E36: 0 | F36: =IF(A36>0,SUM('Asset data'!J36:CV36),0) -> 0 | G36: =IF(A36>0,'Asset data'!F36,0) -> 0 | H36: =IF(A36>0,SUM('Asset data'!CX36:GJ36),0) -> 0 | I36: 0 | J36: 0 | K36: 0 | L36: 0 | M36: =IF($A36>0,SUMPRODUCT('Age profile (years)'!$CT36:$GF36,'Asset data'!$CX36:$GJ36)/H36-0.5,0) -> 0 | N36: 0 | O36: =IF($A36>0,'Asset data'!G36,0) -> 0 | P36: 0 | Q36: 0 | R36: 0 | S36: 0 | T36: 0 | U36: 0 | W36: =IF($A36>0,SUMIF('Age profile (years)'!$CT36:$GF36,"<" & R36+0.5,'Asset data'!$CX36:$GJ36),0) -> 0 | X36: =IF($A36>0,SUMIF('Age profile (years)'!$CT36:$GF36,"<" & S36+0.5,'Asset data'!$CX36:$GJ36)-W36,0) -> 0 | Y36: =IF($A36>0,SUMIF('Age profile (years)'!$CT36:$GF36,"<" & T36+0.5,'Asset data'!$CX36:$GJ36)-X36-W36,0) -> 0 | Z36: =IF($A36>0,SUMIF('Age profile (years)'!$CT36:$GF36,"<" & U36+0.5,'Asset data'!$CX36:$GJ36)-Y36-X36-W36,0) -> 0 | AA36: 0 | AB36: 0 | AC36: 0 | AD36: 0 | AE36: 0 | AF36: 0 | AI36: =IF($A36>0,'RRR hist-forc'!K36,0) -> 0 | AJ36: 0
A37: ='Asset data'!A37 -> 1 | B37: ='Asset data'!B37 -> 0 | C37: ='Asset data'!C37 -> 0 | D37: ='Asset data'!E37 -> > 66 kV & < = 132 kV; CONCRETE | E37: POLES | F37: =IF(A37>0,SUM('Asset data'!J37:CV37),0) -> 2263 | G37: =IF(A37>0,'Asset data'!F37,0) -> 36.37118229 | H37: =IF(A37>0,SUM('Asset data'!CX37:GJ37),0) -> 82307.98552 | I37: 0.009096785907 | J37: 24 | K37: 0.03951141117 | L37: 36.37118229 | M37: =IF($A37>0,SUMPRODUCT('Age profile (years)'!$CT37:$GF37,'Asset data'!$CX37:$GJ37)/H37-0.5,0) -> 48.21939903 | N37: 3968841.597 | O37: =IF($A37>0,'Asset data'!G37,0) -> 58 | P37: 4773863.16 | Q37: 0.1686310512 | R37: =IF($A37>0,$O37-R$4*$O37,0) -> 5.8 | S37: 11.6 | T37: 34.8 | U37: 46.4 | W37: =IF($A37>0,SUMIF('Age profile (years)'!$CT37:$GF37,"<" & R37+0.5,'Asset data'!$CX37:$GJ37),0) -> 0 | X37: =IF($A37>0,SUMIF('Age profile (years)'!$CT37:$GF37,"<" & S37+0.5,'Asset data'!$CX37:$GJ37)-W37,0) -> 72.74236458 | Y37: =IF($A37>0,SUMIF('Age profile (years)'!$CT37:$GF37,"<" & T37+0.5,'Asset data'!$CX37:$GJ37)-X37-W37,0) -> 327.3406406 | Z37: =IF($A37>0,SUMIF('Age profile (years)'!$CT37:$GF37,"<" & U37+0.5,'Asset data'!$CX37:$GJ37)-Y37-X37-W37,0) -> 25532.56997 | AA37: 56375.33255 | AB37: 0 | AC37: 0.0008837825895 | AD37: 0.003977021653 | AE37: 0.3102076889 | AF37: 0.6849315068 | AI37: =IF($A37>0,'RRR hist-forc'!K37,0) -> 58 | AJ37: 4773863.16
A38: ='Asset data'!A38 -> 0 | B38: ='Asset data'!B38 -> 0 | C38: ='Asset data'!C38 -> 0 | D38: ='Asset data'!E38 -> > 132 kV; CONCRETE | E38: 0 | F38: =IF(A38>0,SUM('Asset data'!J38:CV38),0) -> 0 | G38: =IF(A38>0,'Asset data'!F38,0) -> 0 | H38: =IF(A38>0,SUM('Asset data'!CX38:GJ38),0) -> 0 | I38: 0 | J38: 0 | K38: 0 | L38: 0 | M38: =IF($A38>0,SUMPRODUCT('Age profile (years)'!$CT38:$GF38,'Asset data'!$CX38:$GJ38)/H38-0.5,0) -> 0 | N38: 0 | O38: =IF($A38>0,'Asset data'!G38,0) -> 0 | P38: 0 | Q38: 0 | R38: 0 | S38: 0 | T38: 0 | U38: 0 | W38: =IF($A38>0,SUMIF('Age profile (years)'!$CT38:$GF38,"<" & R38+0.5,'Asset data'!$CX38:$GJ38),0) -> 0 | X38: =IF($A38>0,SUMIF('Age profile (years)'!$CT38:$GF38,"<" & S38+0.5,'Asset data'!$CX38:$GJ38)-W38,0) -> 0 | Y38: =IF($A38>0,SUMIF('Age profile (years)'!$CT38:$GF38,"<" & T38+0.5,'Asset data'!$CX38:$GJ38)-X38-W38,0) -> 0 | Z38: =IF($A38>0,SUMIF('Age profile (years)'!$CT38:$GF38,"<" & U38+0.5,'Asset data'!$CX38:$GJ38)-Y38-X38-W38,0) -> 0 | AA38: 0 | AB38: 0 | AC38: 0 | AD38: 0 | AE38: 0 | AF38: 0 | AI38: =IF($A38>0,'RRR hist-forc'!K38,0) -> 0 | AJ38: 0
A39: ='Asset data'!A39 -> 1 | B39: ='Asset data'!B39 -> 0 | C39: ='Asset data'!C39 -> 0 | D39: ='Asset data'!E39 -> ˂ = 1 kV; STEEL | E39: POLES | F39: =IF(A39>0,SUM('Asset data'!J39:CV39),0) -> 817 | G39: =IF(A39>0,'Asset data'!F39,0) -> 9.22612049 | H39: =IF(A39>0,SUM('Asset data'!CX39:GJ39),0) -> 7537.740441 | I39: 0.0008330809043 | J39: 47 | K39: 0.003618443095 | L39: 9.22612049 | M39: =IF($A39>0,SUMPRODUCT('Age profile (years)'!$CT39:$GF39,'Asset data'!$CX39:$GJ39)/H39-0.5,0) -> 48.1878825 | N39: 363227.7506 | O39: =IF($A39>0,'Asset data'!G39,0) -> 58 | P39: 437188.9456 | Q39: 0.1691744397 | R39: 5.8 | S39: 11.6 | T39: 34.8 | U39: 46.4 | W39: =IF($A39>0,SUMIF('Age profile (years)'!$CT39:$GF39,"<" & R39+0.5,'Asset data'!$CX39:$GJ39),0) -> 0 | X39: =IF($A39>0,SUMIF('Age profile (years)'!$CT39:$GF39,"<" & S39+0.5,'Asset data'!$CX39:$GJ39)-W39,0) -> 0 | Y39: =IF($A39>0,SUMIF('Age profile (years)'!$CT39:$GF39,"<" & T39+0.5,'Asset data'!$CX39:$GJ39)-X39-W39,0) -> 55.35672294 | Z39: =IF($A39>0,SUMIF('Age profile (years)'!$CT39:$GF39,"<" & U39+0.5,'Asset data'!$CX39:$GJ39)-Y39-X39-W39,0) -> 1005.647133 | AA39: 6476.736584 | AB39: 0 | AC39: 0 | AD39: 0.007343941248 | AE39: 0.1334149327 | AF39: 0.8592411261 | AI39: =IF($A39>0,'RRR hist-forc'!K39,0) -> 58 | AJ39: 437188.9456
A40: ='Asset data'!A40 -> 1 | B40: ='Asset data'!B40 -> 0 | C40: ='Asset data'!C40 -> 0 | D40: ='Asset data'!E40 -> > 1 kV & < = 11 kV; STEEL | E40: POLES | F40: =IF(A40>0,SUM('Asset data'!J40:CV40),0) -> 285 | G40: =IF(A40>0,'Asset data'!F40,0) -> 11.06430212 | H40: =IF(A40>0,SUM('Asset data'!CX40:GJ40),0) -> 3153.326104 | I40: 0.0003485097137 | J40: 52 | K40: 0.001513733613 | L40: 11.06430212 | M40: =IF($A40>0,SUMPRODUCT('Age profile (years)'!$CT40:$GF40,'Asset data'!$CX40:$GJ40)/H40-0.5,0) -> 51.2122807 | N40: 161489.0216 | O40: =IF($A40>0,'Asset data'!G40,0) -> 58 | P40: 182892.9141 | Q40: 0.1170296431 | R40: 5.8 | S40: 11.6 | T40: 34.8 | U40: 46.4 | W40: =IF($A40>0,SUMIF('Age profile (years)'!$CT40:$GF40,"<" & R40+0.5,'Asset data'!$CX40:$GJ40),0) -> 0 | X40: =IF($A40>0,SUMIF('Age profile (years)'!$CT40:$GF40,"<" & S40+0.5,'Asset data'!$CX40:$GJ40)-W40,0) -> 0 | Y40: =IF($A40>0,SUMIF('Age profile (years)'!$CT40:$GF40,"<" & T40+0.5,'Asset data'!$CX40:$GJ40)-X40-W40,0) -> 22.12860424 | Z40: =IF($A40>0,SUMIF('Age profile (years)'!$CT40:$GF40,"<" & U40+0.5,'Asset data'!$CX40:$GJ40)-Y40-X40-W40,0) -> 143.8359276 | AA40: 2987.361573 | AB40: 0 | AC40: 0 | AD40: 0.00701754386 | AE40: 0.04561403509 | AF40: 0.9473684211 | AI40: =IF($A40>0,'RRR hist-forc'!K40,0) -> 58 | AJ40: 182892.9141
A41: ='Asset data'!A41 -> 1 | B41: ='Asset data'!B41 -> 0 | C41: ='Asset data'!C41 -> 0 | D41: ='Asset data'!E41 -> ˃ 11 kV & < = 22 kV; STEEL | E41: POLES | F41: =IF(A41>0,SUM('Asset data'!J41:CV41),0) -> 17 | G41: =IF(A41>0,'Asset data'!F41,0) -> 14.23487489 | H41: =IF(A41>0,SUM('Asset data'!CX41:GJ41),0) -> 241.9928731 | I41: 2.674536794e-05 | J41: 58 | K41: 0.0001161670991 | L41: 14.23487489 | M41: =IF($A41>0,SUMPRODUCT('Age profile (years)'!$CT41:$GF41,'Asset data'!$CX41:$GJ41)/H41-0.5,0) -> 54.5 | N41: 13188.61158 | O41: =IF($A41>0,'Asset data'!G41,0) -> 58 | P41: 14035.58664 | Q41: 0.06034482759 | R41: 5.8 | S41: 11.6 | T41: 34.8 | U41: 46.4 | W41: =IF($A41>0,SUMIF('Age profile (years)'!$CT41:$GF41,"<" & R41+0.5,'Asset data'!$CX41:$GJ41),0) -> 0 | X41: =IF($A41>0,SUMIF('Age profile (years)'!$CT41:$GF41,"<" & S41+0.5,'Asset data'!$CX41:$GJ41)-W41,0) -> 0 | Y41: =IF($A41>0,SUMIF('Age profile (years)'!$CT41:$GF41,"<" & T41+0.5,'Asset data'!$CX41:$GJ41)-X41-W41,0) -> 0 | Z41: =IF($A41>0,SUMIF('Age profile (years)'!$CT41:$GF41,"<" & U41+0.5,'Asset data'!$CX41:$GJ41)-Y41-X41-W41,0) -> 0 | AA41: 241.9928731 | AB41: 0 | AC41: 0 | AD41: 0 | AE41: 0 | AF41: 1 | AI41: =IF($A41>0,'RRR hist-forc'!K41,0) -> 58 | AJ41: 14035.58664
A42: ='Asset data'!A42 -> 1 | B42: ='Asset data'!B42 -> 0 | C42: ='Asset data'!C42 -> 0 | D42: ='Asset data'!E42 -> 33kV Steel | E42: POLES | F42: =IF(A42>0,SUM('Asset data'!J42:CV42),0) -> 167 | G42: =IF(A42>0,'Asset data'!F42,0) -> 26.86406546 | H42: =IF(A42>0,SUM('Asset data'!CX42:GJ42),0) -> 4486.298932 | I42: 0.000495831609 | J42: 51 | K42: 0.002153618517 | L42: 26.86406546 | M42: =IF($A42>0,SUMPRODUCT('Age profile (years)'!$CT42:$GF42,'Asset data'!$CX42:$GJ42)/H42-0.5,0) -> 53.86526946 | N42: 241655.7008 | O42: =IF($A42>0,'Asset data'!G42,0) -> 58 | P42: 260205.338 | Q42: 0.07128845757 | R42: 5.8 | S42: 11.6 | T42: 34.8 | U42: 46.4 | W42: =IF($A42>0,SUMIF('Age profile (years)'!$CT42:$GF42,"<" & R42+0.5,'Asset data'!$CX42:$GJ42),0) -> 0 | X42: =IF($A42>0,SUMIF('Age profile (years)'!$CT42:$GF42,"<" & S42+0.5,'Asset data'!$CX42:$GJ42)-W42,0) -> 0 | Y42: =IF($A42>0,SUMIF('Age profile (years)'!$CT42:$GF42,"<" & T42+0.5,'Asset data'!$CX42:$GJ42)-X42-W42,0) -> 0 | Z42: =IF($A42>0,SUMIF('Age profile (years)'!$CT42:$GF42,"<" & U42+0.5,'Asset data'!$CX42:$GJ42)-Y42-X42-W42,0) -> 0 | AA42: 4486.298932 | AB42: 0 | AC42: 0 | AD42: 0 | AE42: 0 | AF42: 1 | AI42: =IF($A42>0,'RRR hist-forc'!K42,0) -> 58 | AJ42: 260205.338
A43: ='Asset data'!A43 -> 0 | B43: ='Asset data'!B43 -> 0 | C43: ='Asset data'!C43 -> 0 | D43: ='Asset data'!E43 -> 66kV Steel | E43: 0 | F43: =IF(A43>0,SUM('Asset data'!J43:CV43),0) -> 0 | G43: =IF(A43>0,'Asset data'!F43,0) -> 0 | H43: =IF(A43>0,SUM('Asset data'!CX43:GJ43),0) -> 0 | I43: 0 | J43: 0 | K43: 0 | L43: 0 | M43: =IF($A43>0,SUMPRODUCT('Age profile (years)'!$CT43:$GF43,'Asset data'!$CX43:$GJ43)/H43-0.5,0) -> 0 | N43: 0 | O43: =IF($A43>0,'Asset data'!G43,0) -> 0 | P43: 0 | Q43: 0 | R43: 0 | S43: 0 | T43: 0 | U43: 0 | W43: =IF($A43>0,SUMIF('Age profile (years)'!$CT43:$GF43,"<" & R43+0.5,'Asset data'!$CX43:$GJ43),0) -> 0 | X43: =IF($A43>0,SUMIF('Age profile (years)'!$CT43:$GF43,"<" & S43+0.5,'Asset data'!$CX43:$GJ43)-W43,0) -> 0 | Y43: =IF($A43>0,SUMIF('Age profile (years)'!$CT43:$GF43,"<" & T43+0.5,'Asset data'!$CX43:$GJ43)-X43-W43,0) -> 0 | Z43: =IF($A43>0,SUMIF('Age profile (years)'!$CT43:$GF43,"<" & U43+0.5,'Asset data'!$CX43:$GJ43)-Y43-X43-W43,0) -> 0 | AA43: 0 | AB43: 0 | AC43: 0 | AD43: 0 | AE43: 0 | AF43: 0 | AI43: =IF($A43>0,'RRR hist-forc'!K43,0) -> 0 | AJ43: 0
A44: ='Asset data'!A44 -> 0 | B44: ='Asset data'!B44 -> 0 | C44: ='Asset data'!C44 -> 0 | D44: ='Asset data'!E44 -> > 22 kV & < = 66 kV; STEEL | E44: 0 | F44: =IF(A44>0,SUM('Asset data'!J44:CV44),0) -> 0 | G44: =IF(A44>0,'Asset data'!F44,0) -> 0 | H44: =IF(A44>0,SUM('Asset data'!CX44:GJ44),0) -> 0 | I44: 0 | J44: 0 | K44: 0 | L44: 0 | M44: =IF($A44>0,SUMPRODUCT('Age profile (years)'!$CT44:$GF44,'Asset data'!$CX44:$GJ44)/H44-0.5,0) -> 0 | N44: 0 | O44: =IF($A44>0,'Asset data'!G44,0) -> 0 | P44: 0 | Q44: 0 | R44: 0 | S44: 0 | T44: 0 | U44: 0 | W44: =IF($A44>0,SUMIF('Age profile (years)'!$CT44:$GF44,"<" & R44+0.5,'Asset data'!$CX44:$GJ44),0) -> 0 | X44: =IF($A44>0,SUMIF('Age profile (years)'!$CT44:$GF44,"<" & S44+0.5,'Asset data'!$CX44:$GJ44)-W44,0) -> 0 | Y44: =IF($A44>0,SUMIF('Age profile (years)'!$CT44:$GF44,"<" & T44+0.5,'Asset data'!$CX44:$GJ44)-X44-W44,0) -> 0 | Z44: =IF($A44>0,SUMIF('Age profile (years)'!$CT44:$GF44,"<" & U44+0.5,'Asset data'!$CX44:$GJ44)-Y44-X44-W44,0) -> 0 | AA44: 0 | AB44: 0 | AC44: 0 | AD44: 0 | AE44: 0 | AF44: 0 | AI44: =IF($A44>0,'RRR hist-forc'!K44,0) -> 0 | AJ44: 0
A45: ='Asset data'!A45 -> 1 | B45: ='Asset data'!B45 -> 0 | C45: ='Asset data'!C45 -> 0 | D45: ='Asset data'!E45 -> > 66 kV & < = 132 kV; STEEL | E45: POLES | F45: =IF(A45>0,SUM('Asset data'!J45:CV45),0) -> 143 | G45: =IF(A45>0,'Asset data'!F45,0) -> 42.273 | H45: =IF(A45>0,SUM('Asset data'!CX45:GJ45),0) -> 6045.039 | I45: 0.0006681055943 | J45: 48 | K45: 0.002901881512 | L45: 42.273 | M45: =IF($A45>0,SUMPRODUCT('Age profile (years)'!$CT45:$GF45,'Asset data'!$CX45:$GJ45)/H45-0.5,0) -> 51.91958042 | N45: 313855.8885 | O45: =IF($A45>0,'Asset data'!G45,0) -> 58 | P45: 350612.262 | Q45: 0.1048348204 | R45: 5.8 | S45: 11.6 | T45: 34.8 | U45: 46.4 | W45: =IF($A45>0,SUMIF('Age profile (years)'!$CT45:$GF45,"<" & R45+0.5,'Asset data'!$CX45:$GJ45),0) -> 0 | X45: =IF($A45>0,SUMIF('Age profile (years)'!$CT45:$GF45,"<" & S45+0.5,'Asset data'!$CX45:$GJ45)-W45,0) -> 0 | Y45: =IF($A45>0,SUMIF('Age profile (years)'!$CT45:$GF45,"<" & T45+0.5,'Asset data'!$CX45:$GJ45)-X45-W45,0) -> 0 | Z45: =IF($A45>0,SUMIF('Age profile (years)'!$CT45:$GF45,"<" & U45+0.5,'Asset data'!$CX45:$GJ45)-Y45-X45-W45,0) -> 0 | AA45: 6045.039 | AB45: 0 | AC45: 0 | AD45: 0 | AE45: 0 | AF45: 1 | AI45: =IF($A45>0,'RRR hist-forc'!K45,0) -> 58 | AJ45: 350612.262
A46: ='Asset data'!A46 -> 0 | B46: ='Asset data'!B46 -> 0 | C46: ='Asset data'!C46 -> 0 | D46: ='Asset data'!E46 -> > 132 kV; STEEL | E46: 0 | F46: =IF(A46>0,SUM('Asset data'!J46:CV46),0) -> 0 | G46: =IF(A46>0,'Asset data'!F46,0) -> 0 | H46: =IF(A46>0,SUM('Asset data'!CX46:GJ46),0) -> 0 | I46: 0 | J46: 0 | K46: 0 | L46: 0 | M46: =IF($A46>0,SUMPRODUCT('Age profile (years)'!$CT46:$GF46,'Asset data'!$CX46:$GJ46)/H46-0.5,0) -> 0 | N46: 0 | O46: =IF($A46>0,'Asset data'!G46,0) -> 0 | P46: 0 | Q46: 0 | R46: 0 | S46: 0 | T46: 0 | U46: 0 | W46: =IF($A46>0,SUMIF('Age profile (years)'!$CT46:$GF46,"<" & R46+0.5,'Asset data'!$CX46:$GJ46),0) -> 0 | X46: =IF($A46>0,SUMIF('Age profile (years)'!$CT46:$GF46,"<" & S46+0.5,'Asset data'!$CX46:$GJ46)-W46,0) -> 0 | Y46: =IF($A46>0,SUMIF('Age profile (years)'!$CT46:$GF46,"<" & T46+0.5,'Asset data'!$CX46:$GJ46)-X46-W46,0) -> 0 | Z46: =IF($A46>0,SUMIF('Age profile (years)'!$CT46:$GF46,"<" & U46+0.5,'Asset data'!$CX46:$GJ46)-Y46-X46-W46,0) -> 0 | AA46: 0 | AB46: 0 | AC46: 0 | AD46: 0 | AE46: 0 | AF46: 0 | AI46: =IF($A46>0,'RRR hist-forc'!K46,0) -> 0 | AJ46: 0
A47: ='Asset data'!A47 -> 1 | B47: ='Asset data'!B47 -> 0 | C47: ='Asset data'!C47 -> 0 | D47: ='Asset data'!E47 -> Towers | E47: POLES | F47: =IF(A47>0,SUM('Asset data'!J47:CV47),0) -> 896 | G47: =IF(A47>0,'Asset data'!F47,0) -> 1e-14 | H47: =IF(A47>0,SUM('Asset data'!CX47:GJ47),0) -> 8.96e-12 | I47: 9.902708857e-19 | J47: 67 | K47: 4.301189513e-18 | L47: 1e-14 | M47: =IF($A47>0,SUMPRODUCT('Age profile (years)'!$CT47:$GF47,'Asset data'!$CX47:$GJ47)/H47-0.5,0) -> 11.22991071 | N47: 1.0062e-10 | O47: =IF($A47>0,'Asset data'!G47,0) -> 60 | P47: 5.376e-10 | Q47: 0.8128348214 | R47: 6 | S47: 12 | T47: 36 | U47: 48 | W47: =IF($A47>0,SUMIF('Age profile (years)'!$CT47:$GF47,"<" & R47+0.5,'Asset data'!$CX47:$GJ47),0) -> 3.08e-12 | X47: =IF($A47>0,SUMIF('Age profile (years)'!$CT47:$GF47,"<" & S47+0.5,'Asset data'!$CX47:$GJ47)-W47,0) -> 1.15e-12 | Y47: =IF($A47>0,SUMIF('Age profile (years)'!$CT47:$GF47,"<" & T47+0.5,'Asset data'!$CX47:$GJ47)-X47-W47,0) -> 4.58e-12 | Z47: =IF($A47>0,SUMIF('Age profile (years)'!$CT47:$GF47,"<" & U47+0.5,'Asset data'!$CX47:$GJ47)-Y47-X47-W47,0) -> 7e-14 | AA47: 8e-14 | AB47: 0.34375 | AC47: 0.1283482143 | AD47: 0.5111607143 | AE47: 0.0078125 | AF47: 0.008928571429 | AI47: =IF($A47>0,'RRR hist-forc'!K47,0) -> 60 | AJ47: 5.376e-10
A48: ='Asset data'!A48 -> 2 | B48: ='Asset data'!B48 -> 0 | C48: ='Asset data'!C48 -> 0 | D48: ='Asset data'!E48 -> ˂ = 1 kV | E48: OVERHEAD CONDUCTORS | F48: =IF(A48>0,SUM('Asset data'!J48:CV48),0) -> 14068.89234 | G48: =IF(A48>0,'Asset data'!F48,0) -> 31.43712355 | H48: =IF(A48>0,SUM('Asset data'!CX48:GJ48),0) -> 442285.5065 | I48: 0.04888197101 | J48: 8 | K48: 0.1245370378 | L48: 31.43712355 | M48: =IF($A48>0,SUMPRODUCT('Age profile (years)'!$CT48:$GF48,'Asset data'!$CX48:$GJ48)/H48-0.5,0) -> 9.998473956 | N48: 4422180.118 | O48: =IF($A48>0,'Asset data'!G48,0) -> 50 | P48: 22114275.33 | Q48: 0.8000305209 | R48: 5 | S48: 10 | T48: 30 | U48: 40 | W48: =IF($A48>0,SUMIF('Age profile (years)'!$CT48:$GF48,"<" & R48+0.5,'Asset data'!$CX48:$GJ48),0) -> 272399.7108 | X48: =IF($A48>0,SUMIF('Age profile (years)'!$CT48:$GF48,"<" & S48+0.5,'Asset data'!$CX48:$GJ48)-W48,0) -> 21025.95746 | Y48: =IF($A48>0,SUMIF('Age profile (years)'!$CT48:$GF48,"<" & T48+0.5,'Asset data'!$CX48:$GJ48)-X48-W48,0) -> 57850.55803 | Z48: =IF($A48>0,SUMIF('Age profile (years)'!$CT48:$GF48,"<" & U48+0.5,'Asset data'!$CX48:$GJ48)-Y48-X48-W48,0) -> 30316.91548 | AA48: 60692.36471 | AB48: 0.6158911084 | AC48: 0.04753933185 | AD48: 0.1307991268 | AE48: 0.06854602972 | AF48: 0.1372244033 | AI48: =IF($A48>0,'RRR hist-forc'!K48,0) -> 50 | AJ48: 22114275.33
A49: ='Asset data'!A49 -> 2 | B49: ='Asset data'!B49 -> 0 | C49: ='Asset data'!C49 -> 0 | D49: ='Asset data'!E49 -> 11 & 22kV | E49: OVERHEAD CONDUCTORS | F49: =IF(A49>0,SUM('Asset data'!J49:CV49),0) -> 10723.49657 | G49: =IF(A49>0,'Asset data'!F49,0) -> 126.3931289 | H49: =IF(A49>0,SUM('Asset data'!CX49:GJ49),0) -> 1355376.285 | I49: 0.1497979547 | J49: 1 | K49: 0.3816415985 | L49: 126.3931289 | M49: =IF($A49>0,SUMPRODUCT('Age profile (years)'!$CT49:$GF49,'Asset data'!$CX49:$GJ49)/H49-0.5,0) -> 26.16949897 | N49: 35469518.29 | O49: =IF($A49>0,'Asset data'!G49,0) -> 50 | P49: 67768814.24 | Q49: 0.4766100206 | R49: 5 | S49: 10 | T49: 30 | U49: 40 | W49: =IF($A49>0,SUMIF('Age profile (years)'!$CT49:$GF49,"<" & R49+0.5,'Asset data'!$CX49:$GJ49),0) -> 66064.73073 | X49: =IF($A49>0,SUMIF('Age profile (years)'!$CT49:$GF49,"<" & S49+0.5,'Asset data'!$CX49:$GJ49)-W49,0) -> 97735.01238 | Y49: =IF($A49>0,SUMIF('Age profile (years)'!$CT49:$GF49,"<" & T49+0.5,'Asset data'!$CX49:$GJ49)-X49-W49,0) -> 674856.3315 | Z49: =IF($A49>0,SUMIF('Age profile (years)'!$CT49:$GF49,"<" & U49+0.5,'Asset data'!$CX49:$GJ49)-Y49-X49-W49,0) -> 248667.2297 | AA49: 268052.9805 | AB49: 0.04874272294 | AC49: 0.07210913565 | AD49: 0.4979106829 | AE49: 0.1834673017 | AF49: 0.1977701569 | AI49: =IF($A49>0,'RRR hist-forc'!K49,0) -> 50 | AJ49: 67768814.24
A50: ='Asset data'!A50 -> 0 | B50: ='Asset data'!B50 -> 0 | C50: ='Asset data'!C50 -> 0 | D50: ='Asset data'!E50 -> > 1 kV & < = 11 kV | E50: 0 | F50: =IF(A50>0,SUM('Asset data'!J50:CV50),0) -> 0 | G50: =IF(A50>0,'Asset data'!F50,0) -> 0 | H50: =IF(A50>0,SUM('Asset data'!CX50:GJ50),0) -> 0 | I50: 0 | J50: 0 | K50: 0 | L50: 0 | M50: =IF($A50>0,SUMPRODUCT('Age profile (years)'!$CT50:$GF50,'Asset data'!$CX50:$GJ50)/H50-0.5,0) -> 0 | N50: 0 | O50: =IF($A50>0,'Asset data'!G50,0) -> 0 | P50: 0 | Q50: 0 | R50: 0 | S50: 0 | T50: 0 | U50: 0 | W50: =IF($A50>0,SUMIF('Age profile (years)'!$CT50:$GF50,"<" & R50+0.5,'Asset data'!$CX50:$GJ50),0) -> 0 | X50: =IF($A50>0,SUMIF('Age profile (years)'!$CT50:$GF50,"<" & S50+0.5,'Asset data'!$CX50:$GJ50)-W50,0) -> 0 | Y50: =IF($A50>0,SUMIF('Age profile (years)'!$CT50:$GF50,"<" & T50+0.5,'Asset data'!$CX50:$GJ50)-X50-W50,0) -> 0 | Z50: =IF($A50>0,SUMIF('Age profile (years)'!$CT50:$GF50,"<" & U50+0.5,'Asset data'!$CX50:$GJ50)-Y50-X50-W50,0) -> 0 | AA50: 0 | AB50: 0 | AC50: 0 | AD50: 0 | AE50: 0 | AF50: 0 | AI50: =IF($A50>0,'RRR hist-forc'!K50,0) -> 0 | AJ50: 0
A51: ='Asset data'!A51 -> 2 | B51: ='Asset data'!B51 -> 0 | C51: ='Asset data'!C51 -> 0 | D51: ='Asset data'!E51 -> ˃ 11 kV & < = 22 kV ; SWER | E51: OVERHEAD CONDUCTORS | F51: =IF(A51>0,SUM('Asset data'!J51:CV51),0) -> 484.516 | G51: =IF(A51>0,'Asset data'!F51,0) -> 36.24075581 | H51: =IF(A51>0,SUM('Asset data'!CX51:GJ51),0) -> 17559.22604 | I51: 0.001940668563 | J51: 38 | K51: 0.004944258778 | L51: 36.24075581 | M51: =IF($A51>0,SUMPRODUCT('Age profile (years)'!$CT51:$GF51,'Asset data'!$CX51:$GJ51)/H51-0.5,0) -> 25.6262931 | N51: 449977.8732 | O51: =IF($A51>0,'Asset data'!G51,0) -> 50 | P51: 877961.3021 | Q51: 0.4874741379 | R51: 5 | S51: 10 | T51: 30 | U51: 40 | W51: =IF($A51>0,SUMIF('Age profile (years)'!$CT51:$GF51,"<" & R51+0.5,'Asset data'!$CX51:$GJ51),0) -> 619.6485574 | X51: =IF($A51>0,SUMIF('Age profile (years)'!$CT51:$GF51,"<" & S51+0.5,'Asset data'!$CX51:$GJ51)-W51,0) -> 352.3602756 | Y51: =IF($A51>0,SUMIF('Age profile (years)'!$CT51:$GF51,"<" & T51+0.5,'Asset data'!$CX51:$GJ51)-X51-W51,0) -> 10240.47051 | Z51: =IF($A51>0,SUMIF('Age profile (years)'!$CT51:$GF51,"<" & U51+0.5,'Asset data'!$CX51:$GJ51)-Y51-X51-W51,0) -> 5499.008051 | AA51: 847.7386487 | AB51: 0.03528905864 | AC51: 0.02006695937 | AD51: 0.5831960067 | AE51: 0.3131691589 | AF51: 0.04827881631 | AI51: =IF($A51>0,'RRR hist-forc'!K51,0) -> 50 | AJ51: 877961.3021
A52: ='Asset data'!A52 -> 0 | B52: ='Asset data'!B52 -> 0 | C52: ='Asset data'!C52 -> 0 | D52: ='Asset data'!E52 -> ˃ 11 kV & < = 22 kV ; SINGLE-PHASE | E52: 0 | F52: =IF(A52>0,SUM('Asset data'!J52:CV52),0) -> 0 | G52: =IF(A52>0,'Asset data'!F52,0) -> 0 | H52: =IF(A52>0,SUM('Asset data'!CX52:GJ52),0) -> 0 | I52: 0 | J52: 0 | K52: 0 | L52: 0 | M52: =IF($A52>0,SUMPRODUCT('Age profile (years)'!$CT52:$GF52,'Asset data'!$CX52:$GJ52)/H52-0.5,0) -> 0 | N52: 0 | O52: =IF($A52>0,'Asset data'!G52,0) -> 0 | P52: 0 | Q52: 0 | R52: 0 | S52: 0 | T52: 0 | U52: 0 | W52: =IF($A52>0,SUMIF('Age profile (years)'!$CT52:$GF52,"<" & R52+0.5,'Asset data'!$CX52:$GJ52),0) -> 0 | X52: =IF($A52>0,SUMIF('Age profile (years)'!$CT52:$GF52,"<" & S52+0.5,'Asset data'!$CX52:$GJ52)-W52,0) -> 0 | Y52: =IF($A52>0,SUMIF('Age profile (years)'!$CT52:$GF52,"<" & T52+0.5,'Asset data'!$CX52:$GJ52)-X52-W52,0) -> 0 | Z52: =IF($A52>0,SUMIF('Age profile (years)'!$CT52:$GF52,"<" & U52+0.5,'Asset data'!$CX52:$GJ52)-Y52-X52-W52,0) -> 0 | AA52: 0 | AB52: 0 | AC52: 0 | AD52: 0 | AE52: 0 | AF52: 0 | AI52: =IF($A52>0,'RRR hist-forc'!K52,0) -> 0 | AJ52: 0
A53: ='Asset data'!A53 -> 0 | B53: ='Asset data'!B53 -> 0 | C53: ='Asset data'!C53 -> 0 | D53: ='Asset data'!E53 -> ˃ 11 kV & < = 22 kV ; MULTIPLE-PHASE | E53: 0 | F53: =IF(A53>0,SUM('Asset data'!J53:CV53),0) -> 0 | G53: =IF(A53>0,'Asset data'!F53,0) -> 0 | H53: =IF(A53>0,SUM('Asset data'!CX53:GJ53),0) -> 0 | I53: 0 | J53: 0 | K53: 0 | L53: 0 | M53: =IF($A53>0,SUMPRODUCT('Age profile (years)'!$CT53:$GF53,'Asset data'!$CX53:$GJ53)/H53-0.5,0) -> 0 | N53: 0 | O53: =IF($A53>0,'Asset data'!G53,0) -> 0 | P53: 0 | Q53: 0 | R53: 0 | S53: 0 | T53: 0 | U53: 0 | W53: =IF($A53>0,SUMIF('Age profile (years)'!$CT53:$GF53,"<" & R53+0.5,'Asset data'!$CX53:$GJ53),0) -> 0 | X53: =IF($A53>0,SUMIF('Age profile (years)'!$CT53:$GF53,"<" & S53+0.5,'Asset data'!$CX53:$GJ53)-W53,0) -> 0 | Y53: =IF($A53>0,SUMIF('Age profile (years)'!$CT53:$GF53,"<" & T53+0.5,'Asset data'!$CX53:$GJ53)-X53-W53,0) -> 0 | Z53: =IF($A53>0,SUMIF('Age profile (years)'!$CT53:$GF53,"<" & U53+0.5,'Asset data'!$CX53:$GJ53)-Y53-X53-W53,0) -> 0 | AA53: 0 | AB53: 0 | AC53: 0 | AD53: 0 | AE53: 0 | AF53: 0 | AI53: =IF($A53>0,'RRR hist-forc'!K53,0) -> 0 | AJ53: 0
A54: ='Asset data'!A54 -> 2 | B54: ='Asset data'!B54 -> 0 | C54: ='Asset data'!C54 -> 0 | D54: ='Asset data'!E54 -> 33kV | E54: OVERHEAD CONDUCTORS | F54: =IF(A54>0,SUM('Asset data'!J54:CV54),0) -> 1451.073078 | G54: =IF(A54>0,'Asset data'!F54,0) -> 499.8341765 | H54: =IF(A54>0,SUM('Asset data'!CX54:GJ54),0) -> 725295.9168 | I54: 0.08016065067 | J54: 2 | K54: 0.2042260117 | L54: 499.8341765 | M54: =IF($A54>0,SUMPRODUCT('Age profile (years)'!$CT54:$GF54,'Asset data'!$CX54:$GJ54)/H54-0.5,0) -> 25.88474349 | N54: 18774098.76 | O54: =IF($A54>0,'Asset data'!G54,0) -> 55 | P54: 39891275.43 | Q54: 0.5293683002 | R54: 5.5 | S54: 11 | T54: 33 | U54: 44 | W54: =IF($A54>0,SUMIF('Age profile (years)'!$CT54:$GF54,"<" & R54+0.5,'Asset data'!$CX54:$GJ54),0) -> 0 | X54: =IF($A54>0,SUMIF('Age profile (years)'!$CT54:$GF54,"<" & S54+0.5,'Asset data'!$CX54:$GJ54)-W54,0) -> 107877.9523 | Y54: =IF($A54>0,SUMIF('Age profile (years)'!$CT54:$GF54,"<" & T54+0.5,'Asset data'!$CX54:$GJ54)-X54-W54,0) -> 405436.9152 | Z54: =IF($A54>0,SUMIF('Age profile (years)'!$CT54:$GF54,"<" & U54+0.5,'Asset data'!$CX54:$GJ54)-Y54-X54-W54,0) -> 100839.4379 | AA54: 111141.6114 | AB54: 0 | AC54: 0.1487364671 | AD54: 0.5589951713 | AE54: 0.1390321323 | AF54: 0.1532362293 | AI54: =IF($A54>0,'RRR hist-forc'!K54,0) -> 55 | AJ54: 39891275.43
A55: ='Asset data'!A55 -> 2 | B55: ='Asset data'!B55 -> 0 | C55: ='Asset data'!C55 -> 0 | D55: ='Asset data'!E55 -> 66kV | E55: OVERHEAD CONDUCTORS | F55: =IF(A55>0,SUM('Asset data'!J55:CV55),0) -> 538.9884808 | G55: =IF(A55>0,'Asset data'!F55,0) -> 566.0937603 | H55: =IF(A55>0,SUM('Asset data'!CX55:GJ55),0) -> 305118.0159 | I55: 0.03372204105 | J55: 13 | K55: 0.08591394773 | L55: 566.0937603 | M55: =IF($A55>0,SUMPRODUCT('Age profile (years)'!$CT55:$GF55,'Asset data'!$CX55:$GJ55)/H55-0.5,0) -> 24.41324193 | N55: 7448919.939 | O55: =IF($A55>0,'Asset data'!G55,0) -> 55 | P55: 16781490.87 | Q55: 0.5561228739 | R55: 5.5 | S55: 11 | T55: 33 | U55: 44 | W55: =IF($A55>0,SUMIF('Age profile (years)'!$CT55:$GF55,"<" & R55+0.5,'Asset data'!$CX55:$GJ55),0) -> 9573.244006 | X55: =IF($A55>0,SUMIF('Age profile (years)'!$CT55:$GF55,"<" & S55+0.5,'Asset data'!$CX55:$GJ55)-W55,0) -> 37946.81248 | Y55: =IF($A55>0,SUMIF('Age profile (years)'!$CT55:$GF55,"<" & T55+0.5,'Asset data'!$CX55:$GJ55)-X55-W55,0) -> 213450.8202 | Z55: =IF($A55>0,SUMIF('Age profile (years)'!$CT55:$GF55,"<" & U55+0.5,'Asset data'!$CX55:$GJ55)-Y55-X55-W55,0) -> 31622.34373 | AA55: 12524.79547 | AB55: 0.0313755449 | AC55: 0.1243676561 | AD55: 0.6995680657 | AE55: 0.1036397134 | AF55: 0.04104901978 | AI55: =IF($A55>0,'RRR hist-forc'!K55,0) -> 55 | AJ55: 16781490.87
A56: ='Asset data'!A56 -> 0 | B56: ='Asset data'!B56 -> 0 | C56: ='Asset data'!C56 -> 0 | D56: ='Asset data'!E56 -> > 22 kV & < = 66 kV | E56: 0 | F56: =IF(A56>0,SUM('Asset data'!J56:CV56),0) -> 0 | G56: =IF(A56>0,'Asset data'!F56,0) -> 0 | H56: =IF(A56>0,SUM('Asset data'!CX56:GJ56),0) -> 0 | I56: 0 | J56: 0 | K56: 0 | L56: 0 | M56: =IF($A56>0,SUMPRODUCT('Age profile (years)'!$CT56:$GF56,'Asset data'!$CX56:$GJ56)/H56-0.5,0) -> 0 | N56: 0 | O56: =IF($A56>0,'Asset data'!G56,0) -> 0 | P56: 0 | Q56: 0 | R56: 0 | S56: 0 | T56: 0 | U56: 0 | W56: =IF($A56>0,SUMIF('Age profile (years)'!$CT56:$GF56,"<" & R56+0.5,'Asset data'!$CX56:$GJ56),0) -> 0 | X56: =IF($A56>0,SUMIF('Age profile (years)'!$CT56:$GF56,"<" & S56+0.5,'Asset data'!$CX56:$GJ56)-W56,0) -> 0 | Y56: =IF($A56>0,SUMIF('Age profile (years)'!$CT56:$GF56,"<" & T56+0.5,'Asset data'!$CX56:$GJ56)-X56-W56,0) -> 0 | Z56: =IF($A56>0,SUMIF('Age profile (years)'!$CT56:$GF56,"<" & U56+0.5,'Asset data'!$CX56:$GJ56)-Y56-X56-W56,0) -> 0 | AA56: 0 | AB56: 0 | AC56: 0 | AD56: 0 | AE56: 0 | AF56: 0 | AI56: =IF($A56>0,'RRR hist-forc'!K56,0) -> 0 | AJ56: 0
A57: ='Asset data'!A57 -> 0 | B57: ='Asset data'!B57 -> 0 | C57: ='Asset data'!C57 -> 0 | D57: ='Asset data'!E57 -> > 66 kV & < = 132 kV | E57: 0 | F57: =IF(A57>0,SUM('Asset data'!J57:CV57),0) -> 0 | G57: =IF(A57>0,'Asset data'!F57,0) -> 0 | H57: =IF(A57>0,SUM('Asset data'!CX57:GJ57),0) -> 0 | I57: 0 | J57: 0 | K57: 0 | L57: 0 | M57: =IF($A57>0,SUMPRODUCT('Age profile (years)'!$CT57:$GF57,'Asset data'!$CX57:$GJ57)/H57-0.5,0) -> 0 | N57: 0 | O57: =IF($A57>0,'Asset data'!G57,0) -> 0 | P57: 0 | Q57: 0 | R57: 0 | S57: 0 | T57: 0 | U57: 0 | W57: =IF($A57>0,SUMIF('Age profile (years)'!$CT57:$GF57,"<" & R57+0.5,'Asset data'!$CX57:$GJ57),0) -> 0 | X57: =IF($A57>0,SUMIF('Age profile (years)'!$CT57:$GF57,"<" & S57+0.5,'Asset data'!$CX57:$GJ57)-W57,0) -> 0 | Y57: =IF($A57>0,SUMIF('Age profile (years)'!$CT57:$GF57,"<" & T57+0.5,'Asset data'!$CX57:$GJ57)-X57-W57,0) -> 0 | Z57: =IF($A57>0,SUMIF('Age profile (years)'!$CT57:$GF57,"<" & U57+0.5,'Asset data'!$CX57:$GJ57)-Y57-X57-W57,0) -> 0 | AA57: 0 | AB57: 0 | AC57: 0 | AD57: 0 | AE57: 0 | AF57: 0 | AI57: =IF($A57>0,'RRR hist-forc'!K57,0) -> 0 | AJ57: 0
A58: ='Asset data'!A58 -> 2 | B58: ='Asset data'!B58 -> 0 | C58: ='Asset data'!C58 -> 0 | D58: ='Asset data'!E58 -> 132kV Pole Line | E58: OVERHEAD CONDUCTORS | F58: =IF(A58>0,SUM('Asset data'!J58:CV58),0) -> 760.9994342 | G58: =IF(A58>0,'Asset data'!F58,0) -> 927.4679053 | H58: =IF(A58>0,SUM('Asset data'!CX58:GJ58),0) -> 705802.5512 | I58: 0.07800621847 | J58: 3 | K58: 0.1987371454 | L58: 927.4679053 | M58: =IF($A58>0,SUMPRODUCT('Age profile (years)'!$CT58:$GF58,'Asset data'!$CX58:$GJ58)/H58-0.5,0) -> 30.87158645 | N58: 21789244.48 | O58: =IF($A58>0,'Asset data'!G58,0) -> 55 | P58: 38819140.32 | Q58: 0.4386984282 | R58: 5.5 | S58: 11 | T58: 33 | U58: 44 | W58: =IF($A58>0,SUMIF('Age profile (years)'!$CT58:$GF58,"<" & R58+0.5,'Asset data'!$CX58:$GJ58),0) -> 0 | X58: =IF($A58>0,SUMIF('Age profile (years)'!$CT58:$GF58,"<" & S58+0.5,'Asset data'!$CX58:$GJ58)-W58,0) -> 147576.2605 | Y58: =IF($A58>0,SUMIF('Age profile (years)'!$CT58:$GF58,"<" & T58+0.5,'Asset data'!$CX58:$GJ58)-X58-W58,0) -> 233827.8567 | Z58: =IF($A58>0,SUMIF('Age profile (years)'!$CT58:$GF58,"<" & U58+0.5,'Asset data'!$CX58:$GJ58)-Y58-X58-W58,0) -> 90884.03488 | AA58: 233514.399 | AB58: 0 | AC58: 0.2090900072 | AD58: 0.3312935839 | AE58: 0.1287669402 | AF58: 0.3308494687 | AI58: =IF($A58>0,'RRR hist-forc'!K58,0) -> 55 | AJ58: 38819140.32
A59: ='Asset data'!A59 -> 2 | B59: ='Asset data'!B59 -> 0 | C59: ='Asset data'!C59 -> 0 | D59: ='Asset data'!E59 -> 132kV Tower Lines | E59: OVERHEAD CONDUCTORS | F59: =IF(A59>0,SUM('Asset data'!J59:CV59),0) -> 464.75 | G59: =IF(A59>0,'Asset data'!F59,0) -> 1e-14 | H59: =IF(A59>0,SUM('Asset data'!CX59:GJ59),0) -> 4.6475e-12 | I59: 5.136477613e-19 | J59: 68 | K59: 1.308625028e-18 | L59: 1e-14 | M59: =IF($A59>0,SUMPRODUCT('Age profile (years)'!$CT59:$GF59,'Asset data'!$CX59:$GJ59)/H59-0.5,0) -> 11.06772458 | N59: 5.143725e-11 | O59: =IF($A59>0,'Asset data'!G59,0) -> 60 | P59: 2.7885e-10 | Q59: 0.8155379236 | R59: 6 | S59: 12 | T59: 36 | U59: 48 | W59: =IF($A59>0,SUMIF('Age profile (years)'!$CT59:$GF59,"<" & R59+0.5,'Asset data'!$CX59:$GJ59),0) -> 1.366e-12 | X59: =IF($A59>0,SUMIF('Age profile (years)'!$CT59:$GF59,"<" & S59+0.5,'Asset data'!$CX59:$GJ59)-W59,0) -> 1.266e-12 | Y59: =IF($A59>0,SUMIF('Age profile (years)'!$CT59:$GF59,"<" & T59+0.5,'Asset data'!$CX59:$GJ59)-X59-W59,0) -> 1.782e-12 | Z59: =IF($A59>0,SUMIF('Age profile (years)'!$CT59:$GF59,"<" & U59+0.5,'Asset data'!$CX59:$GJ59)-Y59-X59-W59,0) -> 6.8e-14 | AA59: 1.655e-13 | AB59: 0.2939214632 | AC59: 0.2724045186 | AD59: 0.3834319527 | AE59: 0.01463152232 | AF59: 0.0356105433 | AI59: =IF($A59>0,'RRR hist-forc'!K59,0) -> 60 | AJ59: 2.7885e-10
A60: ='Asset data'!A60 -> 0 | B60: ='Asset data'!B60 -> 0 | C60: ='Asset data'!C60 -> 0 | D60: ='Asset data'!E60 -> > 132 kV | E60: 0 | F60: =IF(A60>0,SUM('Asset data'!J60:CV60),0) -> 0 | G60: =IF(A60>0,'Asset data'!F60,0) -> 0 | H60: =IF(A60>0,SUM('Asset data'!CX60:GJ60),0) -> 0 | I60: 0 | J60: 0 | K60: 0 | L60: 0 | M60: =IF($A60>0,SUMPRODUCT('Age profile (years)'!$CT60:$GF60,'Asset data'!$CX60:$GJ60)/H60-0.5,0) -> 0 | N60: 0 | O60: =IF($A60>0,'Asset data'!G60,0) -> 0 | P60: 0 | Q60: 0 | R60: 0 | S60: 0 | T60: 0 | U60: 0 | W60: =IF($A60>0,SUMIF('Age profile (years)'!$CT60:$GF60,"<" & R60+0.5,'Asset data'!$CX60:$GJ60),0) -> 0 | X60: =IF($A60>0,SUMIF('Age profile (years)'!$CT60:$GF60,"<" & S60+0.5,'Asset data'!$CX60:$GJ60)-W60,0) -> 0 | Y60: =IF($A60>0,SUMIF('Age profile (years)'!$CT60:$GF60,"<" & T60+0.5,'Asset data'!$CX60:$GJ60)-X60-W60,0) -> 0 | Z60: =IF($A60>0,SUMIF('Age profile (years)'!$CT60:$GF60,"<" & U60+0.5,'Asset data'!$CX60:$GJ60)-Y60-X60-W60,0) -> 0 | AA60: 0 | AB60: 0 | AC60: 0 | AD60: 0 | AE60: 0 | AF60: 0 | AI60: =IF($A60>0,'RRR hist-forc'!K60,0) -> 0 | AJ60: 0
A61: ='Asset data'!A61 -> 3 | B61: ='Asset data'!B61 -> 0 | C61: ='Asset data'!C61 -> 0 | D61: ='Asset data'!E61 -> ˂ = 1 kV | E61: UNDERGROUND CABLES | F61: =IF(A61>0,SUM('Asset data'!J61:CV61),0) -> 11455.718 | G61: =IF(A61>0,'Asset data'!F61,0) -> 32.27482284 | H61: =IF(A61>0,SUM('Asset data'!CX61:GJ61),0) -> 369731.2689 | I61: 0.04086318205 | J61: 9 | K61: 0.5277522778 | L61: 32.27482284 | M61: =IF($A61>0,SUMPRODUCT('Age profile (years)'!$CT61:$GF61,'Asset data'!$CX61:$GJ61)/H61-0.5,0) -> 39.44452031 | N61: 14583872.54 | O61: =IF($A61>0,'Asset data'!G61,0) -> 60 | P61: 22183876.13 | Q61: 0.3425913282 | R61: 6 | S61: 12 | T61: 36 | U61: 48 | W61: =IF($A61>0,SUMIF('Age profile (years)'!$CT61:$GF61,"<" & R61+0.5,'Asset data'!$CX61:$GJ61),0) -> 617.4695521 | X61: =IF($A61>0,SUMIF('Age profile (years)'!$CT61:$GF61,"<" & S61+0.5,'Asset data'!$CX61:$GJ61)-W61,0) -> 2455.132437 | Y61: =IF($A61>0,SUMIF('Age profile (years)'!$CT61:$GF61,"<" & T61+0.5,'Asset data'!$CX61:$GJ61)-X61-W61,0) -> 155247.2465 | Z61: =IF($A61>0,SUMIF('Age profile (years)'!$CT61:$GF61,"<" & U61+0.5,'Asset data'!$CX61:$GJ61)-Y61-X61-W61,0) -> 107753.0341 | AA61: 103658.3863 | AB61: 0.001670049585 | AC61: 0.006640315936 | AD61: 0.4198921204 | AE61: 0.2914360867 | AF61: 0.2803614274 | AI61: =IF($A61>0,'RRR hist-forc'!K61,0) -> 60 | AJ61: 22183876.13
A62: ='Asset data'!A62 -> 3 | B62: ='Asset data'!B62 -> 0 | C62: ='Asset data'!C62 -> 0 | D62: ='Asset data'!E62 -> > 1 kV & < = 11 kV | E62: UNDERGROUND CABLES | F62: =IF(A62>0,SUM('Asset data'!J62:CV62),0) -> 3719.834 | G62: =IF(A62>0,'Asset data'!F62,0) -> 53.11620425 | H62: =IF(A62>0,SUM('Asset data'!CX62:GJ62),0) -> 197583.4625 | I62: 0.02183718197 | J62: 15 | K62: 0.2820294932 | L62: 53.11620425 | M62: =IF($A62>0,SUMPRODUCT('Age profile (years)'!$CT62:$GF62,'Asset data'!$CX62:$GJ62)/H62-0.5,0) -> 42.67282107 | N62: 8431443.742 | O62: =IF($A62>0,'Asset data'!G62,0) -> 60 | P62: 11855007.75 | Q62: 0.2887863155 | R62: 6 | S62: 12 | T62: 36 | U62: 48 | W62: =IF($A62>0,SUMIF('Age profile (years)'!$CT62:$GF62,"<" & R62+0.5,'Asset data'!$CX62:$GJ62),0) -> 0 | X62: =IF($A62>0,SUMIF('Age profile (years)'!$CT62:$GF62,"<" & S62+0.5,'Asset data'!$CX62:$GJ62)-W62,0) -> 518.0766639 | Y62: =IF($A62>0,SUMIF('Age profile (years)'!$CT62:$GF62,"<" & T62+0.5,'Asset data'!$CX62:$GJ62)-X62-W62,0) -> 66140.05056 | Z62: =IF($A62>0,SUMIF('Age profile (years)'!$CT62:$GF62,"<" & U62+0.5,'Asset data'!$CX62:$GJ62)-Y62-X62-W62,0) -> 47250.72243 | AA62: 83674.61285 | AB62: 0 | AC62: 0.002622064911 | AD62: 0.3347448705 | AE62: 0.2391431035 | AF62: 0.4234899611 | AI62: =IF($A62>0,'RRR hist-forc'!K62,0) -> 60 | AJ62: 11855007.75
A63: ='Asset data'!A63 -> 3 | B63: ='Asset data'!B63 -> 0 | C63: ='Asset data'!C63 -> 0 | D63: ='Asset data'!E63 -> > 11 kV & < = 22 kV | E63: UNDERGROUND CABLES | F63: =IF(A63>0,SUM('Asset data'!J63:CV63),0) -> 335.35 | G63: =IF(A63>0,'Asset data'!F63,0) -> 56.31604157 | H63: =IF(A63>0,SUM('Asset data'!CX63:GJ63),0) -> 18885.58454 | I63: 0.002087259434 | J63: 37 | K63: 0.02695717429 | L63: 56.31604157 | M63: =IF($A63>0,SUMPRODUCT('Age profile (years)'!$CT63:$GF63,'Asset data'!$CX63:$GJ63)/H63-0.5,0) -> 51.66394939 | N63: 975703.8839 | O63: =IF($A63>0,'Asset data'!G63,0) -> 60 | P63: 1133135.072 | Q63: 0.1389341768 | R63: 6 | S63: 12 | T63: 36 | U63: 48 | W63: =IF($A63>0,SUMIF('Age profile (years)'!$CT63:$GF63,"<" & R63+0.5,'Asset data'!$CX63:$GJ63),0) -> 0 | X63: =IF($A63>0,SUMIF('Age profile (years)'!$CT63:$GF63,"<" & S63+0.5,'Asset data'!$CX63:$GJ63)-W63,0) -> 0 | Y63: =IF($A63>0,SUMIF('Age profile (years)'!$CT63:$GF63,"<" & T63+0.5,'Asset data'!$CX63:$GJ63)-X63-W63,0) -> 0 | Z63: =IF($A63>0,SUMIF('Age profile (years)'!$CT63:$GF63,"<" & U63+0.5,'Asset data'!$CX63:$GJ63)-Y63-X63-W63,0) -> 4240.929505 | AA63: 14644.65503 | AB63: 0 | AC63: 0 | AD63: 0 | AE63: 0.2245590808 | AF63: 0.7754409192 | AI63: =IF($A63>0,'RRR hist-forc'!K63,0) -> 60 | AJ63: 1133135.072
A64: ='Asset data'!A64 -> 3 | B64: ='Asset data'!B64 -> 0 | C64: ='Asset data'!C64 -> 0 | D64: ='Asset data'!E64 -> > 22 kV & < = 33 kV | E64: UNDERGROUND CABLES | F64: =IF(A64>0,SUM('Asset data'!J64:CV64),0) -> 161.489 | G64: =IF(A64>0,'Asset data'!F64,0) -> 389.4604096 | H64: =IF(A64>0,SUM('Asset data'!CX64:GJ64),0) -> 62893.57208 | I64: 0.006951079613 | J64: 25 | K64: 0.08977392153 | L64: 389.4604096 | M64: =IF($A64>0,SUMPRODUCT('Age profile (years)'!$CT64:$GF64,'Asset data'!$CX64:$GJ64)/H64-0.5,0) -> 22.80019316 | N64: 1433985.592 | O64: =IF($A64>0,'Asset data'!G64,0) -> 45 | P64: 2830210.744 | Q64: 0.4933290409 | R64: 4.5 | S64: 9 | T64: 27 | U64: 36 | W64: =IF($A64>0,SUMIF('Age profile (years)'!$CT64:$GF64,"<" & R64+0.5,'Asset data'!$CX64:$GJ64),0) -> 3355.423862 | X64: =IF($A64>0,SUMIF('Age profile (years)'!$CT64:$GF64,"<" & S64+0.5,'Asset data'!$CX64:$GJ64)-W64,0) -> 1749.494631 | Y64: =IF($A64>0,SUMIF('Age profile (years)'!$CT64:$GF64,"<" & T64+0.5,'Asset data'!$CX64:$GJ64)-X64-W64,0) -> 35060.67369 | Z64: =IF($A64>0,SUMIF('Age profile (years)'!$CT64:$GF64,"<" & U64+0.5,'Asset data'!$CX64:$GJ64)-Y64-X64-W64,0) -> 6809.03346 | AA64: 15918.94643 | AB64: 0.05335082348 | AC64: 0.02781674777 | AD64: 0.5574603657 | AE64: 0.108262788 | AF64: 0.253109275 | AI64: =IF($A64>0,'RRR hist-forc'!K64,0) -> 45 | AJ64: 2830210.744
A65: ='Asset data'!A65 -> 3 | B65: ='Asset data'!B65 -> 0 | C65: ='Asset data'!C65 -> 0 | D65: ='Asset data'!E65 -> > 33 kV & < = 66 kV | E65: UNDERGROUND CABLES | F65: =IF(A65>0,SUM('Asset data'!J65:CV65),0) -> 28.022 | G65: =IF(A65>0,'Asset data'!F65,0) -> 307.71227 | H65: =IF(A65>0,SUM('Asset data'!CX65:GJ65),0) -> 8622.713231 | I65: 0.0009529935121 | J65: 45 | K65: 0.01230801106 | L65: 307.71227 | M65: =IF($A65>0,SUMPRODUCT('Age profile (years)'!$CT65:$GF65,'Asset data'!$CX65:$GJ65)/H65-0.5,0) -> 32.19973344 | N65: 277649.0676 | O65: =IF($A65>0,'Asset data'!G65,0) -> 45 | P65: 388022.0954 | Q65: 0.2844503679 | R65: 4.5 | S65: 9 | T65: 27 | U65: 36 | W65: =IF($A65>0,SUMIF('Age profile (years)'!$CT65:$GF65,"<" & R65+0.5,'Asset data'!$CX65:$GJ65),0) -> 16.08054304 | X65: =IF($A65>0,SUMIF('Age profile (years)'!$CT65:$GF65,"<" & S65+0.5,'Asset data'!$CX65:$GJ65)-W65,0) -> 128.6443443 | Y65: =IF($A65>0,SUMIF('Age profile (years)'!$CT65:$GF65,"<" & T65+0.5,'Asset data'!$CX65:$GJ65)-X65-W65,0) -> 3774.103451 | Z65: =IF($A65>0,SUMIF('Age profile (years)'!$CT65:$GF65,"<" & U65+0.5,'Asset data'!$CX65:$GJ65)-Y65-X65-W65,0) -> 344.0020521 | AA65: 4359.88284 | AB65: 0.001864905234 | AC65: 0.01491924187 | AD65: 0.4376932585 | AE65: 0.03989487333 | AF65: 0.5056277211 | AI65: =IF($A65>0,'RRR hist-forc'!K65,0) -> 45 | AJ65: 388022.0954
A66: ='Asset data'!A66 -> 3 | B66: ='Asset data'!B66 -> 0 | C66: ='Asset data'!C66 -> 0 | D66: ='Asset data'!E66 -> > 66 kV & < = 132 kV | E66: UNDERGROUND CABLES | F66: =IF(A66>0,SUM('Asset data'!J66:CV66),0) -> 111.785959 | G66: =IF(A66>0,'Asset data'!F66,0) -> 383.4176041 | H66: =IF(A66>0,SUM('Asset data'!CX66:GJ66),0) -> 42860.70457 | I66: 0.004737020969 | J66: 27 | K66: 0.06117912215 | L66: 383.4176041 | M66: =IF($A66>0,SUMPRODUCT('Age profile (years)'!$CT66:$GF66,'Asset data'!$CX66:$GJ66)/H66-0.5,0) -> 26.92205102 | N66: 1153898.075 | O66: =IF($A66>0,'Asset data'!G66,0) -> 45 | P66: 1928731.706 | Q66: 0.4017321995 | R66: 4.5 | S66: 9 | T66: 27 | U66: 36 | W66: =IF($A66>0,SUMIF('Age profile (years)'!$CT66:$GF66,"<" & R66+0.5,'Asset data'!$CX66:$GJ66),0) -> 6455.188974 | X66: =IF($A66>0,SUMIF('Age profile (years)'!$CT66:$GF66,"<" & S66+0.5,'Asset data'!$CX66:$GJ66)-W66,0) -> 0 | Y66: =IF($A66>0,SUMIF('Age profile (years)'!$CT66:$GF66,"<" & T66+0.5,'Asset data'!$CX66:$GJ66)-X66-W66,0) -> 11405.78503 | Z66: =IF($A66>0,SUMIF('Age profile (years)'!$CT66:$GF66,"<" & U66+0.5,'Asset data'!$CX66:$GJ66)-Y66-X66-W66,0) -> 2463.812585 | AA66: 22535.91798 | AB66: 0.1506085595 | AC66: 0 | AD66: 0.2661128683 | AE66: 0.05748418301 | AF66: 0.5257943892 | AI66: =IF($A66>0,'RRR hist-forc'!K66,0) -> 45 | AJ66: 1928731.706
A67: ='Asset data'!A67 -> 0 | B67: ='Asset data'!B67 -> 0 | C67: ='Asset data'!C67 -> 0 | D67: ='Asset data'!E67 -> > 132 kV | E67: 0 | F67: =IF(A67>0,SUM('Asset data'!J67:CV67),0) -> 0 | G67: =IF(A67>0,'Asset data'!F67,0) -> 0 | H67: =IF(A67>0,SUM('Asset data'!CX67:GJ67),0) -> 0 | I67: 0 | J67: 0 | K67: 0 | L67: 0 | M67: =IF($A67>0,SUMPRODUCT('Age profile (years)'!$CT67:$GF67,'Asset data'!$CX67:$GJ67)/H67-0.5,0) -> 0 | N67: 0 | O67: =IF($A67>0,'Asset data'!G67,0) -> 0 | P67: 0 | Q67: 0 | R67: 0 | S67: 0 | T67: 0 | U67: 0 | W67: =IF($A67>0,SUMIF('Age profile (years)'!$CT67:$GF67,"<" & R67+0.5,'Asset data'!$CX67:$GJ67),0) -> 0 | X67: =IF($A67>0,SUMIF('Age profile (years)'!$CT67:$GF67,"<" & S67+0.5,'Asset data'!$CX67:$GJ67)-W67,0) -> 0 | Y67: =IF($A67>0,SUMIF('Age profile (years)'!$CT67:$GF67,"<" & T67+0.5,'Asset data'!$CX67:$GJ67)-X67-W67,0) -> 0 | Z67: =IF($A67>0,SUMIF('Age profile (years)'!$CT67:$GF67,"<" & U67+0.5,'Asset data'!$CX67:$GJ67)-Y67-X67-W67,0) -> 0 | AA67: 0 | AB67: 0 | AC67: 0 | AD67: 0 | AE67: 0 | AF67: 0 | AI67: =IF($A67>0,'RRR hist-forc'!K67,0) -> 0 | AJ67: 0
A68: ='Asset data'!A68 -> 0 | B68: ='Asset data'!B68 -> 0 | C68: ='Asset data'!C68 -> 0 | D68: ='Asset data'!E68 -> OTHER - PLEASE ADD A ROW IF NECESSARY AND NOMINATE THE CATEGORY | E68: 0 | F68: =IF(A68>0,SUM('Asset data'!J68:CV68),0) -> 0 | G68: =IF(A68>0,'Asset data'!F68,0) -> 0 | H68: =IF(A68>0,SUM('Asset data'!CX68:GJ68),0) -> 0 | I68: 0 | J68: 0 | K68: 0 | L68: 0 | M68: =IF($A68>0,SUMPRODUCT('Age profile (years)'!$CT68:$GF68,'Asset data'!$CX68:$GJ68)/H68-0.5,0) -> 0 | N68: 0 | O68: =IF($A68>0,'Asset data'!G68,0) -> 0 | P68: 0 | Q68: 0 | R68: 0 | S68: 0 | T68: 0 | U68: 0 | W68: =IF($A68>0,SUMIF('Age profile (years)'!$CT68:$GF68,"<" & R68+0.5,'Asset data'!$CX68:$GJ68),0) -> 0 | X68: =IF($A68>0,SUMIF('Age profile (years)'!$CT68:$GF68,"<" & S68+0.5,'Asset data'!$CX68:$GJ68)-W68,0) -> 0 | Y68: =IF($A68>0,SUMIF('Age profile (years)'!$CT68:$GF68,"<" & T68+0.5,'Asset data'!$CX68:$GJ68)-X68-W68,0) -> 0 | Z68: =IF($A68>0,SUMIF('Age profile (years)'!$CT68:$GF68,"<" & U68+0.5,'Asset data'!$CX68:$GJ68)-Y68-X68-W68,0) -> 0 | AA68: 0 | AB68: 0 | AC68: 0 | AD68: 0 | AE68: 0 | AF68: 0 | AI68: =IF($A68>0,'RRR hist-forc'!K68,0) -> 0 | AJ68: 0
A69: ='Asset data'!A69 -> 0 | B69: ='Asset data'!B69 -> 0 | C69: ='Asset data'!C69 -> 0 | D69: ='Asset data'!E69 -> ˂ = 11 kV ; RESIDENTIAL ; SIMPLE TYPE | E69: 0 | F69: =IF(A69>0,SUM('Asset data'!J69:CV69),0) -> 0 | G69: =IF(A69>0,'Asset data'!F69,0) -> 0 | H69: =IF(A69>0,SUM('Asset data'!CX69:GJ69),0) -> 0 | I69: 0 | J69: 0 | K69: 0 | L69: 0 | M69: =IF($A69>0,SUMPRODUCT('Age profile (years)'!$CT69:$GF69,'Asset data'!$CX69:$GJ69)/H69-0.5,0) -> 0 | N69: 0 | O69: =IF($A69>0,'Asset data'!G69,0) -> 0 | P69: 0 | Q69: 0 | R69: 0 | S69: 0 | T69: 0 | U69: 0 | W69: =IF($A69>0,SUMIF('Age profile (years)'!$CT69:$GF69,"<" & R69+0.5,'Asset data'!$CX69:$GJ69),0) -> 0 | X69: =IF($A69>0,SUMIF('Age profile (years)'!$CT69:$GF69,"<" & S69+0.5,'Asset data'!$CX69:$GJ69)-W69,0) -> 0 | Y69: =IF($A69>0,SUMIF('Age profile (years)'!$CT69:$GF69,"<" & T69+0.5,'Asset data'!$CX69:$GJ69)-X69-W69,0) -> 0 | Z69: =IF($A69>0,SUMIF('Age profile (years)'!$CT69:$GF69,"<" & U69+0.5,'Asset data'!$CX69:$GJ69)-Y69-X69-W69,0) -> 0 | AA69: 0 | AB69: 0 | AC69: 0 | AD69: 0 | AE69: 0 | AF69: 0 | AI69: =IF($A69>0,'RRR hist-forc'!K69,0) -> 0 | AJ69: 0
A70: ='Asset data'!A70 -> 0 | B70: ='Asset data'!B70 -> 0 | C70: ='Asset data'!C70 -> 0 | D70: ='Asset data'!E70 -> ˂ = 11 kV ; COMMERCIAL & INDUSTRIAL ; SIMPLE TYPE | E70: 0 | F70: =IF(A70>0,SUM('Asset data'!J70:CV70),0) -> 0 | G70: =IF(A70>0,'Asset data'!F70,0) -> 0 | H70: =IF(A70>0,SUM('Asset data'!CX70:GJ70),0) -> 0 | I70: 0 | J70: 0 | K70: 0 | L70: 0 | M70: =IF($A70>0,SUMPRODUCT('Age profile (years)'!$CT70:$GF70,'Asset data'!$CX70:$GJ70)/H70-0.5,0) -> 0 | N70: 0 | O70: =IF($A70>0,'Asset data'!G70,0) -> 0 | P70: 0 | Q70: 0 | R70: 0 | S70: 0 | T70: 0 | U70: 0 | W70: =IF($A70>0,SUMIF('Age profile (years)'!$CT70:$GF70,"<" & R70+0.5,'Asset data'!$CX70:$GJ70),0) -> 0 | X70: =IF($A70>0,SUMIF('Age profile (years)'!$CT70:$GF70,"<" & S70+0.5,'Asset data'!$CX70:$GJ70)-W70,0) -> 0 | Y70: =IF($A70>0,SUMIF('Age profile (years)'!$CT70:$GF70,"<" & T70+0.5,'Asset data'!$CX70:$GJ70)-X70-W70,0) -> 0 | Z70: =IF($A70>0,SUMIF('Age profile (years)'!$CT70:$GF70,"<" & U70+0.5,'Asset data'!$CX70:$GJ70)-Y70-X70-W70,0) -> 0 | AA70: 0 | AB70: 0 | AC70: 0 | AD70: 0 | AE70: 0 | AF70: 0 | AI70: =IF($A70>0,'RRR hist-forc'!K70,0) -> 0 | AJ70: 0
A71: ='Asset data'!A71 -> 0 | B71: ='Asset data'!B71 -> 0 | C71: ='Asset data'!C71 -> 0 | D71: ='Asset data'!E71 -> ˂ = 11 kV ; RESIDENTIAL ; COMPLEX TYPE | E71: 0 | F71: =IF(A71>0,SUM('Asset data'!J71:CV71),0) -> 0 | G71: =IF(A71>0,'Asset data'!F71,0) -> 0 | H71: =IF(A71>0,SUM('Asset data'!CX71:GJ71),0) -> 0 | I71: 0 | J71: 0 | K71: 0 | L71: 0 | M71: =IF($A71>0,SUMPRODUCT('Age profile (years)'!$CT71:$GF71,'Asset data'!$CX71:$GJ71)/H71-0.5,0) -> 0 | N71: 0 | O71: =IF($A71>0,'Asset data'!G71,0) -> 0 | P71: 0 | Q71: 0 | R71: 0 | S71: 0 | T71: 0 | U71: 0 | W71: =IF($A71>0,SUMIF('Age profile (years)'!$CT71:$GF71,"<" & R71+0.5,'Asset data'!$CX71:$GJ71),0) -> 0 | X71: =IF($A71>0,SUMIF('Age profile (years)'!$CT71:$GF71,"<" & S71+0.5,'Asset data'!$CX71:$GJ71)-W71,0) -> 0 | Y71: =IF($A71>0,SUMIF('Age profile (years)'!$CT71:$GF71,"<" & T71+0.5,'Asset data'!$CX71:$GJ71)-X71-W71,0) -> 0 | Z71: =IF($A71>0,SUMIF('Age profile (years)'!$CT71:$GF71,"<" & U71+0.5,'Asset data'!$CX71:$GJ71)-Y71-X71-W71,0) -> 0 | AA71: 0 | AB71: 0 | AC71: 0 | AD71: 0 | AE71: 0 | AF71: 0 | AI71: =IF($A71>0,'RRR hist-forc'!K71,0) -> 0 | AJ71: 0
A72: ='Asset data'!A72 -> 0 | B72: ='Asset data'!B72 -> 0 | C72: ='Asset data'!C72 -> 0 | D72: ='Asset data'!E72 -> ˂ = 11 kV ; COMMERCIAL & INDUSTRIAL ; COMPLEX TYPE | E72: 0 | F72: =IF(A72>0,SUM('Asset data'!J72:CV72),0) -> 0 | G72: =IF(A72>0,'Asset data'!F72,0) -> 0 | H72: =IF(A72>0,SUM('Asset data'!CX72:GJ72),0) -> 0 | I72: 0 | J72: 0 | K72: 0 | L72: 0 | M72: =IF($A72>0,SUMPRODUCT('Age profile (years)'!$CT72:$GF72,'Asset data'!$CX72:$GJ72)/H72-0.5,0) -> 0 | N72: 0 | O72: =IF($A72>0,'Asset data'!G72,0) -> 0 | P72: 0 | Q72: 0 | R72: 0 | S72: 0 | T72: 0 | U72: 0 | W72: =IF($A72>0,SUMIF('Age profile (years)'!$CT72:$GF72,"<" & R72+0.5,'Asset data'!$CX72:$GJ72),0) -> 0 | X72: =IF($A72>0,SUMIF('Age profile (years)'!$CT72:$GF72,"<" & S72+0.5,'Asset data'!$CX72:$GJ72)-W72,0) -> 0 | Y72: =IF($A72>0,SUMIF('Age profile (years)'!$CT72:$GF72,"<" & T72+0.5,'Asset data'!$CX72:$GJ72)-X72-W72,0) -> 0 | Z72: =IF($A72>0,SUMIF('Age profile (years)'!$CT72:$GF72,"<" & U72+0.5,'Asset data'!$CX72:$GJ72)-Y72-X72-W72,0) -> 0 | AA72: 0 | AB72: 0 | AC72: 0 | AD72: 0 | AE72: 0 | AF72: 0 | AI72: =IF($A72>0,'RRR hist-forc'!K72,0) -> 0 | AJ72: 0
A73: ='Asset data'!A73 -> 0 | B73: ='Asset data'!B73 -> 0 | C73: ='Asset data'!C73 -> 0 | D73: ='Asset data'!E73 -> ˂ = 11 kV ; SUBDIVISION ; COMPLEX TYPE | E73: 0 | F73: =IF(A73>0,SUM('Asset data'!J73:CV73),0) -> 0 | G73: =IF(A73>0,'Asset data'!F73,0) -> 0 | H73: =IF(A73>0,SUM('Asset data'!CX73:GJ73),0) -> 0 | I73: 0 | J73: 0 | K73: 0 | L73: 0 | M73: =IF($A73>0,SUMPRODUCT('Age profile (years)'!$CT73:$GF73,'Asset data'!$CX73:$GJ73)/H73-0.5,0) -> 0 | N73: 0 | O73: =IF($A73>0,'Asset data'!G73,0) -> 0 | P73: 0 | Q73: 0 | R73: 0 | S73: 0 | T73: 0 | U73: 0 | W73: =IF($A73>0,SUMIF('Age profile (years)'!$CT73:$GF73,"<" & R73+0.5,'Asset data'!$CX73:$GJ73),0) -> 0 | X73: =IF($A73>0,SUMIF('Age profile (years)'!$CT73:$GF73,"<" & S73+0.5,'Asset data'!$CX73:$GJ73)-W73,0) -> 0 | Y73: =IF($A73>0,SUMIF('Age profile (years)'!$CT73:$GF73,"<" & T73+0.5,'Asset data'!$CX73:$GJ73)-X73-W73,0) -> 0 | Z73: =IF($A73>0,SUMIF('Age profile (years)'!$CT73:$GF73,"<" & U73+0.5,'Asset data'!$CX73:$GJ73)-Y73-X73-W73,0) -> 0 | AA73: 0 | AB73: 0 | AC73: 0 | AD73: 0 | AE73: 0 | AF73: 0 | AI73: =IF($A73>0,'RRR hist-forc'!K73,0) -> 0 | AJ73: 0
A74: ='Asset data'!A74 -> 0 | B74: ='Asset data'!B74 -> 0 | C74: ='Asset data'!C74 -> 0 | D74: ='Asset data'!E74 -> > 11 kV & < = 22 kV ; COMMERCIAL & INDUSTRIAL | E74: 0 | F74: =IF(A74>0,SUM('Asset data'!J74:CV74),0) -> 0 | G74: =IF(A74>0,'Asset data'!F74,0) -> 0 | H74: =IF(A74>0,SUM('Asset data'!CX74:GJ74),0) -> 0 | I74: 0 | J74: 0 | K74: 0 | L74: 0 | M74: =IF($A74>0,SUMPRODUCT('Age profile (years)'!$CT74:$GF74,'Asset data'!$CX74:$GJ74)/H74-0.5,0) -> 0 | N74: 0 | O74: =IF($A74>0,'Asset data'!G74,0) -> 0 | P74: 0 | Q74: 0 | R74: 0 | S74: 0 | T74: 0 | U74: 0 | W74: =IF($A74>0,SUMIF('Age profile (years)'!$CT74:$GF74,"<" & R74+0.5,'Asset data'!$CX74:$GJ74),0) -> 0 | X74: =IF($A74>0,SUMIF('Age profile (years)'!$CT74:$GF74,"<" & S74+0.5,'Asset data'!$CX74:$GJ74)-W74,0) -> 0 | Y74: =IF($A74>0,SUMIF('Age profile (years)'!$CT74:$GF74,"<" & T74+0.5,'Asset data'!$CX74:$GJ74)-X74-W74,0) -> 0 | Z74: =IF($A74>0,SUMIF('Age profile (years)'!$CT74:$GF74,"<" & U74+0.5,'Asset data'!$CX74:$GJ74)-Y74-X74-W74,0) -> 0 | AA74: 0 | AB74: 0 | AC74: 0 | AD74: 0 | AE74: 0 | AF74: 0 | AI74: =IF($A74>0,'RRR hist-forc'!K74,0) -> 0 | AJ74: 0
A75: ='Asset data'!A75 -> 0 | B75: ='Asset data'!B75 -> 0 | C75: ='Asset data'!C75 -> 0 | D75: ='Asset data'!E75 -> > 11 kV & < = 22 kV ; SUBDIVISION | E75: 0 | F75: =IF(A75>0,SUM('Asset data'!J75:CV75),0) -> 0 | G75: =IF(A75>0,'Asset data'!F75,0) -> 0 | H75: =IF(A75>0,SUM('Asset data'!CX75:GJ75),0) -> 0 | I75: 0 | J75: 0 | K75: 0 | L75: 0 | M75: =IF($A75>0,SUMPRODUCT('Age profile (years)'!$CT75:$GF75,'Asset data'!$CX75:$GJ75)/H75-0.5,0) -> 0 | N75: 0 | O75: =IF($A75>0,'Asset data'!G75,0) -> 0 | P75: 0 | Q75: 0 | R75: 0 | S75: 0 | T75: 0 | U75: 0 | W75: =IF($A75>0,SUMIF('Age profile (years)'!$CT75:$GF75,"<" & R75+0.5,'Asset data'!$CX75:$GJ75),0) -> 0 | X75: =IF($A75>0,SUMIF('Age profile (years)'!$CT75:$GF75,"<" & S75+0.5,'Asset data'!$CX75:$GJ75)-W75,0) -> 0 | Y75: =IF($A75>0,SUMIF('Age profile (years)'!$CT75:$GF75,"<" & T75+0.5,'Asset data'!$CX75:$GJ75)-X75-W75,0) -> 0 | Z75: =IF($A75>0,SUMIF('Age profile (years)'!$CT75:$GF75,"<" & U75+0.5,'Asset data'!$CX75:$GJ75)-Y75-X75-W75,0) -> 0 | AA75: 0 | AB75: 0 | AC75: 0 | AD75: 0 | AE75: 0 | AF75: 0 | AI75: =IF($A75>0,'RRR hist-forc'!K75,0) -> 0 | AJ75: 0
A76: ='Asset data'!A76 -> 0 | B76: ='Asset data'!B76 -> 0 | C76: ='Asset data'!C76 -> 0 | D76: ='Asset data'!E76 -> > 22 kV & < = 33 kV ; COMMERCIAL & INDUSTRIAL | E76: 0 | F76: =IF(A76>0,SUM('Asset data'!J76:CV76),0) -> 0 | G76: =IF(A76>0,'Asset data'!F76,0) -> 0 | H76: =IF(A76>0,SUM('Asset data'!CX76:GJ76),0) -> 0 | I76: 0 | J76: 0 | K76: 0 | L76: 0 | M76: =IF($A76>0,SUMPRODUCT('Age profile (years)'!$CT76:$GF76,'Asset data'!$CX76:$GJ76)/H76-0.5,0) -> 0 | N76: 0 | O76: =IF($A76>0,'Asset data'!G76,0) -> 0 | P76: 0 | Q76: 0 | R76: 0 | S76: 0 | T76: 0 | U76: 0 | W76: =IF($A76>0,SUMIF('Age profile (years)'!$CT76:$GF76,"<" & R76+0.5,'Asset data'!$CX76:$GJ76),0) -> 0 | X76: =IF($A76>0,SUMIF('Age profile (years)'!$CT76:$GF76,"<" & S76+0.5,'Asset data'!$CX76:$GJ76)-W76,0) -> 0 | Y76: =IF($A76>0,SUMIF('Age profile (years)'!$CT76:$GF76,"<" & T76+0.5,'Asset data'!$CX76:$GJ76)-X76-W76,0) -> 0 | Z76: =IF($A76>0,SUMIF('Age profile (years)'!$CT76:$GF76,"<" & U76+0.5,'Asset data'!$CX76:$GJ76)-Y76-X76-W76,0) -> 0 | AA76: 0 | AB76: 0 | AC76: 0 | AD76: 0 | AE76: 0 | AF76: 0 | AI76: =IF($A76>0,'RRR hist-forc'!K76,0) -> 0 | AJ76: 0
A77: ='Asset data'!A77 -> 0 | B77: ='Asset data'!B77 -> 0 | C77: ='Asset data'!C77 -> 0 | D77: ='Asset data'!E77 -> > 22 kV & < = 33 kV ; SUBDIVISION | E77: 0 | F77: =IF(A77>0,SUM('Asset data'!J77:CV77),0) -> 0 | G77: =IF(A77>0,'Asset data'!F77,0) -> 0 | H77: =IF(A77>0,SUM('Asset data'!CX77:GJ77),0) -> 0 | I77: 0 | J77: 0 | K77: 0 | L77: 0 | M77: =IF($A77>0,SUMPRODUCT('Age profile (years)'!$CT77:$GF77,'Asset data'!$CX77:$GJ77)/H77-0.5,0) -> 0 | N77: 0 | O77: =IF($A77>0,'Asset data'!G77,0) -> 0 | P77: 0 | Q77: 0 | R77: 0 | S77: 0 | T77: 0 | U77: 0 | W77: =IF($A77>0,SUMIF('Age profile (years)'!$CT77:$GF77,"<" & R77+0.5,'Asset data'!$CX77:$GJ77),0) -> 0 | X77: =IF($A77>0,SUMIF('Age profile (years)'!$CT77:$GF77,"<" & S77+0.5,'Asset data'!$CX77:$GJ77)-W77,0) -> 0 | Y77: =IF($A77>0,SUMIF('Age profile (years)'!$CT77:$GF77,"<" & T77+0.5,'Asset data'!$CX77:$GJ77)-X77-W77,0) -> 0 | Z77: =IF($A77>0,SUMIF('Age profile (years)'!$CT77:$GF77,"<" & U77+0.5,'Asset data'!$CX77:$GJ77)-Y77-X77-W77,0) -> 0 | AA77: 0 | AB77: 0 | AC77: 0 | AD77: 0 | AE77: 0 | AF77: 0 | AI77: =IF($A77>0,'RRR hist-forc'!K77,0) -> 0 | AJ77: 0
A78: ='Asset data'!A78 -> 0 | B78: ='Asset data'!B78 -> 0 | C78: ='Asset data'!C78 -> 0 | D78: ='Asset data'!E78 -> > 33 kV & < = 66 kV ; COMMERCIAL & INDUSTRIAL | E78: 0 | F78: =IF(A78>0,SUM('Asset data'!J78:CV78),0) -> 0 | G78: =IF(A78>0,'Asset data'!F78,0) -> 0 | H78: =IF(A78>0,SUM('Asset data'!CX78:GJ78),0) -> 0 | I78: 0 | J78: 0 | K78: 0 | L78: 0 | M78: =IF($A78>0,SUMPRODUCT('Age profile (years)'!$CT78:$GF78,'Asset data'!$CX78:$GJ78)/H78-0.5,0) -> 0 | N78: 0 | O78: =IF($A78>0,'Asset data'!G78,0) -> 0 | P78: 0 | Q78: 0 | R78: 0 | S78: 0 | T78: 0 | U78: 0 | W78: =IF($A78>0,SUMIF('Age profile (years)'!$CT78:$GF78,"<" & R78+0.5,'Asset data'!$CX78:$GJ78),0) -> 0 | X78: =IF($A78>0,SUMIF('Age profile (years)'!$CT78:$GF78,"<" & S78+0.5,'Asset data'!$CX78:$GJ78)-W78,0) -> 0 | Y78: =IF($A78>0,SUMIF('Age profile (years)'!$CT78:$GF78,"<" & T78+0.5,'Asset data'!$CX78:$GJ78)-X78-W78,0) -> 0 | Z78: =IF($A78>0,SUMIF('Age profile (years)'!$CT78:$GF78,"<" & U78+0.5,'Asset data'!$CX78:$GJ78)-Y78-X78-W78,0) -> 0 | AA78: 0 | AB78: 0 | AC78: 0 | AD78: 0 | AE78: 0 | AF78: 0 | AI78: =IF($A78>0,'RRR hist-forc'!K78,0) -> 0 | AJ78: 0
A79: ='Asset data'!A79 -> 0 | B79: ='Asset data'!B79 -> 0 | C79: ='Asset data'!C79 -> 0 | D79: ='Asset data'!E79 -> > 33 kV & < = 66 kV ; SUBDIVISION | E79: 0 | F79: =IF(A79>0,SUM('Asset data'!J79:CV79),0) -> 0 | G79: =IF(A79>0,'Asset data'!F79,0) -> 0 | H79: =IF(A79>0,SUM('Asset data'!CX79:GJ79),0) -> 0 | I79: 0 | J79: 0 | K79: 0 | L79: 0 | M79: =IF($A79>0,SUMPRODUCT('Age profile (years)'!$CT79:$GF79,'Asset data'!$CX79:$GJ79)/H79-0.5,0) -> 0 | N79: 0 | O79: =IF($A79>0,'Asset data'!G79,0) -> 0 | P79: 0 | Q79: 0 | R79: 0 | S79: 0 | T79: 0 | U79: 0 | W79: =IF($A79>0,SUMIF('Age profile (years)'!$CT79:$GF79,"<" & R79+0.5,'Asset data'!$CX79:$GJ79),0) -> 0 | X79: =IF($A79>0,SUMIF('Age profile (years)'!$CT79:$GF79,"<" & S79+0.5,'Asset data'!$CX79:$GJ79)-W79,0) -> 0 | Y79: =IF($A79>0,SUMIF('Age profile (years)'!$CT79:$GF79,"<" & T79+0.5,'Asset data'!$CX79:$GJ79)-X79-W79,0) -> 0 | Z79: =IF($A79>0,SUMIF('Age profile (years)'!$CT79:$GF79,"<" & U79+0.5,'Asset data'!$CX79:$GJ79)-Y79-X79-W79,0) -> 0 | AA79: 0 | AB79: 0 | AC79: 0 | AD79: 0 | AE79: 0 | AF79: 0 | AI79: =IF($A79>0,'RRR hist-forc'!K79,0) -> 0 | AJ79: 0
A80: ='Asset data'!A80 -> 0 | B80: ='Asset data'!B80 -> 0 | C80: ='Asset data'!C80 -> 0 | D80: ='Asset data'!E80 -> > 66 kV & < = 132 kV ; COMMERCIAL & INDUSTRIAL | E80: 0 | F80: =IF(A80>0,SUM('Asset data'!J80:CV80),0) -> 0 | G80: =IF(A80>0,'Asset data'!F80,0) -> 0 | H80: =IF(A80>0,SUM('Asset data'!CX80:GJ80),0) -> 0 | I80: 0 | J80: 0 | K80: 0 | L80: 0 | M80: =IF($A80>0,SUMPRODUCT('Age profile (years)'!$CT80:$GF80,'Asset data'!$CX80:$GJ80)/H80-0.5,0) -> 0 | N80: 0 | O80: =IF($A80>0,'Asset data'!G80,0) -> 0 | P80: 0 | Q80: 0 | R80: 0 | S80: 0 | T80: 0 | U80: 0 | W80: =IF($A80>0,SUMIF('Age profile (years)'!$CT80:$GF80,"<" & R80+0.5,'Asset data'!$CX80:$GJ80),0) -> 0 | X80: =IF($A80>0,SUMIF('Age profile (years)'!$CT80:$GF80,"<" & S80+0.5,'Asset data'!$CX80:$GJ80)-W80,0) -> 0 | Y80: =IF($A80>0,SUMIF('Age profile (years)'!$CT80:$GF80,"<" & T80+0.5,'Asset data'!$CX80:$GJ80)-X80-W80,0) -> 0 | Z80: =IF($A80>0,SUMIF('Age profile (years)'!$CT80:$GF80,"<" & U80+0.5,'Asset data'!$CX80:$GJ80)-Y80-X80-W80,0) -> 0 | AA80: 0 | AB80: 0 | AC80: 0 | AD80: 0 | AE80: 0 | AF80: 0 | AI80: =IF($A80>0,'RRR hist-forc'!K80,0) -> 0 | AJ80: 0
A81: ='Asset data'!A81 -> 0 | B81: ='Asset data'!B81 -> 0 | C81: ='Asset data'!C81 -> 0 | D81: ='Asset data'!E81 -> > 66 kV & < = 132 kV ; SUBDIVISION | E81: 0 | F81: =IF(A81>0,SUM('Asset data'!J81:CV81),0) -> 0 | G81: =IF(A81>0,'Asset data'!F81,0) -> 0 | H81: =IF(A81>0,SUM('Asset data'!CX81:GJ81),0) -> 0 | I81: 0 | J81: 0 | K81: 0 | L81: 0 | M81: =IF($A81>0,SUMPRODUCT('Age profile (years)'!$CT81:$GF81,'Asset data'!$CX81:$GJ81)/H81-0.5,0) -> 0 | N81: 0 | O81: =IF($A81>0,'Asset data'!G81,0) -> 0 | P81: 0 | Q81: 0 | R81: 0 | S81: 0 | T81: 0 | U81: 0 | W81: =IF($A81>0,SUMIF('Age profile (years)'!$CT81:$GF81,"<" & R81+0.5,'Asset data'!$CX81:$GJ81),0) -> 0 | X81: =IF($A81>0,SUMIF('Age profile (years)'!$CT81:$GF81,"<" & S81+0.5,'Asset data'!$CX81:$GJ81)-W81,0) -> 0 | Y81: =IF($A81>0,SUMIF('Age profile (years)'!$CT81:$GF81,"<" & T81+0.5,'Asset data'!$CX81:$GJ81)-X81-W81,0) -> 0 | Z81: =IF($A81>0,SUMIF('Age profile (years)'!$CT81:$GF81,"<" & U81+0.5,'Asset data'!$CX81:$GJ81)-Y81-X81-W81,0) -> 0 | AA81: 0 | AB81: 0 | AC81: 0 | AD81: 0 | AE81: 0 | AF81: 0 | AI81: =IF($A81>0,'RRR hist-forc'!K81,0) -> 0 | AJ81: 0
A82: ='Asset data'!A82 -> 0 | B82: ='Asset data'!B82 -> 0 | C82: ='Asset data'!C82 -> 0 | D82: ='Asset data'!E82 -> > 132 kV ; COMMERCIAL & INDUSTRIAL | E82: 0 | F82: =IF(A82>0,SUM('Asset data'!J82:CV82),0) -> 0 | G82: =IF(A82>0,'Asset data'!F82,0) -> 0 | H82: =IF(A82>0,SUM('Asset data'!CX82:GJ82),0) -> 0 | I82: 0 | J82: 0 | K82: 0 | L82: 0 | M82: =IF($A82>0,SUMPRODUCT('Age profile (years)'!$CT82:$GF82,'Asset data'!$CX82:$GJ82)/H82-0.5,0) -> 0 | N82: 0 | O82: =IF($A82>0,'Asset data'!G82,0) -> 0 | P82: 0 | Q82: 0 | R82: 0 | S82: 0 | T82: 0 | U82: 0 | W82: =IF($A82>0,SUMIF('Age profile (years)'!$CT82:$GF82,"<" & R82+0.5,'Asset data'!$CX82:$GJ82),0) -> 0 | X82: =IF($A82>0,SUMIF('Age profile (years)'!$CT82:$GF82,"<" & S82+0.5,'Asset data'!$CX82:$GJ82)-W82,0) -> 0 | Y82: =IF($A82>0,SUMIF('Age profile (years)'!$CT82:$GF82,"<" & T82+0.5,'Asset data'!$CX82:$GJ82)-X82-W82,0) -> 0 | Z82: =IF($A82>0,SUMIF('Age profile (years)'!$CT82:$GF82,"<" & U82+0.5,'Asset data'!$CX82:$GJ82)-Y82-X82-W82,0) -> 0 | AA82: 0 | AB82: 0 | AC82: 0 | AD82: 0 | AE82: 0 | AF82: 0 | AI82: =IF($A82>0,'RRR hist-forc'!K82,0) -> 0 | AJ82: 0
A83: ='Asset data'!A83 -> 0 | B83: ='Asset data'!B83 -> 0 | C83: ='Asset data'!C83 -> 0 | D83: ='Asset data'!E83 -> > 132 kV ; SUBDIVISION | E83: 0 | F83: =IF(A83>0,SUM('Asset data'!J83:CV83),0) -> 0 | G83: =IF(A83>0,'Asset data'!F83,0) -> 0 | H83: =IF(A83>0,SUM('Asset data'!CX83:GJ83),0) -> 0 | I83: 0 | J83: 0 | K83: 0 | L83: 0 | M83: =IF($A83>0,SUMPRODUCT('Age profile (years)'!$CT83:$GF83,'Asset data'!$CX83:$GJ83)/H83-0.5,0) -> 0 | N83: 0 | O83: =IF($A83>0,'Asset data'!G83,0) -> 0 | P83: 0 | Q83: 0 | R83: 0 | S83: 0 | T83: 0 | U83: 0 | W83: =IF($A83>0,SUMIF('Age profile (years)'!$CT83:$GF83,"<" & R83+0.5,'Asset data'!$CX83:$GJ83),0) -> 0 | X83: =IF($A83>0,SUMIF('Age profile (years)'!$CT83:$GF83,"<" & S83+0.5,'Asset data'!$CX83:$GJ83)-W83,0) -> 0 | Y83: =IF($A83>0,SUMIF('Age profile (years)'!$CT83:$GF83,"<" & T83+0.5,'Asset data'!$CX83:$GJ83)-X83-W83,0) -> 0 | Z83: =IF($A83>0,SUMIF('Age profile (years)'!$CT83:$GF83,"<" & U83+0.5,'Asset data'!$CX83:$GJ83)-Y83-X83-W83,0) -> 0 | AA83: 0 | AB83: 0 | AC83: 0 | AD83: 0 | AE83: 0 | AF83: 0 | AI83: =IF($A83>0,'RRR hist-forc'!K83,0) -> 0 | AJ83: 0
A84: ='Asset data'!A84 -> 4 | B84: ='Asset data'!B84 -> 0 | C84: ='Asset data'!C84 -> 0 | D84: ='Asset data'!E84 -> LV OH | E84: SERVICE LINES | F84: =IF(A84>0,SUM('Asset data'!J84:CV84),0) -> 536505 | G84: =IF(A84>0,'Asset data'!F84,0) -> 0.8755226421 | H84: =IF(A84>0,SUM('Asset data'!CX84:GJ84),0) -> 469722.2751 | I84: 0.05191431846 | J84: 6 | K84: 1 | L84: 0.8755226421 | M84: =IF($A84>0,SUMPRODUCT('Age profile (years)'!$CT84:$GF84,'Asset data'!$CX84:$GJ84)/H84-0.5,0) -> 13.47311115 | N84: 6328620.424 | O84: =IF($A84>0,'Asset data'!G84,0) -> 35 | P84: 16440279.63 | Q84: 0.615053967 | R84: 3.5 | S84: 7 | T84: 21 | U84: 28 | W84: =IF($A84>0,SUMIF('Age profile (years)'!$CT84:$GF84,"<" & R84+0.5,'Asset data'!$CX84:$GJ84),0) -> 99350.80733 | X84: =IF($A84>0,SUMIF('Age profile (years)'!$CT84:$GF84,"<" & S84+0.5,'Asset data'!$CX84:$GJ84)-W84,0) -> 62311.82196 | Y84: =IF($A84>0,SUMIF('Age profile (years)'!$CT84:$GF84,"<" & T84+0.5,'Asset data'!$CX84:$GJ84)-X84-W84,0) -> 166084.8942 | Z84: =IF($A84>0,SUMIF('Age profile (years)'!$CT84:$GF84,"<" & U84+0.5,'Asset data'!$CX84:$GJ84)-Y84-X84-W84,0) -> 88126.60706 | AA84: 53848.14458 | AB84: 0.2115096784 | AC84: 0.132656732 | AD84: 0.3535810477 | AE84: 0.1876142813 | AF84: 0.1146382606 | AI84: =IF($A84>0,'RRR hist-forc'!K84,0) -> 35 | AJ84: 16440279.63
A85: ='Asset data'!A85 -> 4 | B85: ='Asset data'!B85 -> 0 | C85: ='Asset data'!C85 -> 0 | D85: ='Asset data'!E85 -> LV UG | E85: SERVICE LINES | F85: =IF(A85>0,SUM('Asset data'!J85:CV85),0) -> 167620 | G85: =IF(A85>0,'Asset data'!F85,0) -> 1e-14 | H85: =IF(A85>0,SUM('Asset data'!CX85:GJ85),0) -> 1.6762e-09 | I85: 1.852558101e-16 | J85: 66 | K85: 3.568491615e-15 | L85: 1e-14 | M85: =IF($A85>0,SUMPRODUCT('Age profile (years)'!$CT85:$GF85,'Asset data'!$CX85:$GJ85)/H85-0.5,0) -> 30.26545758 | N85: 5.073096e-08 | O85: =IF($A85>0,'Asset data'!G85,0) -> 60 | P85: 1.00572e-07 | Q85: 0.495575707 | R85: 6 | S85: 12 | T85: 36 | U85: 48 | W85: =IF($A85>0,SUMIF('Age profile (years)'!$CT85:$GF85,"<" & R85+0.5,'Asset data'!$CX85:$GJ85),0) -> 3.142e-11 | X85: =IF($A85>0,SUMIF('Age profile (years)'!$CT85:$GF85,"<" & S85+0.5,'Asset data'!$CX85:$GJ85)-W85,0) -> 1.1168e-10 | Y85: =IF($A85>0,SUMIF('Age profile (years)'!$CT85:$GF85,"<" & T85+0.5,'Asset data'!$CX85:$GJ85)-X85-W85,0) -> 1.01942e-09 | Z85: =IF($A85>0,SUMIF('Age profile (years)'!$CT85:$GF85,"<" & U85+0.5,'Asset data'!$CX85:$GJ85)-Y85-X85-W85,0) -> 2.894e-10 | AA85: 2.2428e-10 | AB85: 0.01874477986 | AC85: 0.06662689417 | AD85: 0.608173249 | AE85: 0.1726524281 | AF85: 0.1338026488 | AI85: =IF($A85>0,'RRR hist-forc'!K85,0) -> 60 | AJ85: 1.00572e-07
A86: ='Asset data'!A86 -> 5 | B86: ='Asset data'!B86 -> 0 | C86: ='Asset data'!C86 -> 0 | D86: ='Asset data'!E86 -> POLE MOUNTED ; < = 22kV ; < = 60 kVA ; SINGLE PHASE | E86: TRANSFORMERS | F86: =IF(A86>0,SUM('Asset data'!J86:CV86),0) -> 3019 | G86: =IF(A86>0,'Asset data'!F86,0) -> 4.509888411 | H86: =IF(A86>0,SUM('Asset data'!CX86:GJ86),0) -> 13615.35311 | I86: 0.001504786583 | J86: 41 | K86: 0.006891443082 | L86: 4.509888411 | M86: =IF($A86>0,SUMPRODUCT('Age profile (years)'!$CT86:$GF86,'Asset data'!$CX86:$GJ86)/H86-0.5,0) -> 28.08198079 | N86: 382346.0846 | O86: =IF($A86>0,'Asset data'!G86,0) -> 51 | P86: 694383.0088 | Q86: 0.4493729257 | R86: 5.1 | S86: 10.2 | T86: 30.6 | U86: 40.8 | W86: =IF($A86>0,SUMIF('Age profile (years)'!$CT86:$GF86,"<" & R86+0.5,'Asset data'!$CX86:$GJ86),0) -> 708.0524806 | X86: =IF($A86>0,SUMIF('Age profile (years)'!$CT86:$GF86,"<" & S86+0.5,'Asset data'!$CX86:$GJ86)-W86,0) -> 811.779914 | Y86: =IF($A86>0,SUMIF('Age profile (years)'!$CT86:$GF86,"<" & T86+0.5,'Asset data'!$CX86:$GJ86)-X86-W86,0) -> 6462.670093 | Z86: =IF($A86>0,SUMIF('Age profile (years)'!$CT86:$GF86,"<" & U86+0.5,'Asset data'!$CX86:$GJ86)-Y86-X86-W86,0) -> 2814.170369 | AA86: 2818.680257 | AB86: 0.05200397483 | AC86: 0.05962239152 | AD86: 0.4746604836 | AE86: 0.2066909573 | AF86: 0.2070221928 | AI86: =IF($A86>0,'RRR hist-forc'!K86,0) -> 51 | AJ86: 694383.0088
A87: ='Asset data'!A87 -> 5 | B87: ='Asset data'!B87 -> 0 | C87: ='Asset data'!C87 -> 0 | D87: ='Asset data'!E87 -> POLE MOUNTED ; < = 22kV ; > 60 kVA AND < = 600 kVA ; SINGLE PHASE | E87: =IF(A87>0,VLOOKUP(A87,IDtable,2),0) -> TRANSFORMERS | F87: =IF(A87>0,SUM('Asset data'!J87:CV87),0) -> 31 | G87: =IF(A87>0,'Asset data'!F87,0) -> 11.09258886 | H87: =IF(A87>0,SUM('Asset data'!CX87:GJ87),0) -> 343.8702545 | I87: =H87/$H$18/1000 -> 3.800498901e-05 | J87: =IF(RANK(0,I$21:I$205)=RANK(I87,I$21:I$205),0,RANK(I87,I$21:I$205)) -> 57 | K87: =IF(A87>0,H87/(VLOOKUP(A87,$A$6:$H$17,8)*1000),0) -> 0.0001740507402 | L87: =IF($A87>0,H87/F87,0) -> 11.09258886 | M87: =IF($A87>0,SUMPRODUCT('Age profile (years)'!$CT87:$GF87,'Asset data'!$CX87:$GJ87)/H87-0.5,0) -> 35.24193548 | N87: =IF($A87>0,M87*H87,0) -> 12118.65333 | O87: =IF($A87>0,'Asset data'!G87,0) -> 51 | P87: =IF($A87>0,H87*O87,0) -> 17537.38298 | Q87: =IF($A87>0,(O87-M87)/O87,0) -> 0.3089816572 | R87: 5.1 | S87: 10.2 | T87: 30.6 | U87: 40.8 | W87: =IF($A87>0,SUMIF('Age profile (years)'!$CT87:$GF87,"<" & R87+0.5,'Asset data'!$CX87:$GJ87),0) -> 0 | X87: =IF($A87>0,SUMIF('Age profile (years)'!$CT87:$GF87,"<" & S87+0.5,'Asset data'!$CX87:$GJ87)-W87,0) -> 0 | Y87: =IF($A87>0,SUMIF('Age profile (years)'!$CT87:$GF87,"<" & T87+0.5,'Asset data'!$CX87:$GJ87)-X87-W87,0) -> 55.46294428 | Z87: =IF($A87>0,SUMIF('Age profile (years)'!$CT87:$GF87,"<" & U87+0.5,'Asset data'!$CX87:$GJ87)-Y87-X87-W87,0) -> 232.944366 | AA87: =IF($A87>0,H87-Z87-Y87-X87-W87,0) -> 55.46294428 | AB87: =IF($A87>0,W87/$H87,0) -> 0 | AC87: =IF($A87>0,X87/$H87,0) -> 0 | AD87: =IF($A87>0,Y87/$H87,0) -> 0.1612903226 | AE87: =IF($A87>0,Z87/$H87,0) -> 0.6774193548 | AF87: =IF($A87>0,AA87/$H87,0) -> 0.1612903226 | AI87: =IF($A87>0,'RRR hist-forc'!K87,0) -> 51 | AJ87: =IF($A87>0,AI87*H87,0) -> 17537.38298
A88: ='Asset data'!A88 -> 5 | B88: ='Asset data'!B88 -> 0 | C88: ='Asset data'!C88 -> 0 | D88: ='Asset data'!E88 -> POLE MOUNTED ; < = 22kV ; > 600 kVA ; SINGLE PHASE | E88: TRANSFORMERS | F88: =IF(A88>0,SUM('Asset data'!J88:CV88),0) -> 1 | G88: =IF(A88>0,'Asset data'!F88,0) -> 73.14890012 | H88: =IF(A88>0,SUM('Asset data'!CX88:GJ88),0) -> 73.14890012 | I88: 8.084511843e-06 | J88: 62 | K88: 3.702448828e-05 | L88: 73.14890012 | M88: =IF($A88>0,SUMPRODUCT('Age profile (years)'!$CT88:$GF88,'Asset data'!$CX88:$GJ88)/H88-0.5,0) -> 40.5 | N88: 2962.530455 | O88: =IF($A88>0,'Asset data'!G88,0) -> 51 | P88: 3730.593906 | Q88: 0.2058823529 | R88: 5.1 | S88: 10.2 | T88: 30.6 | U88: 40.8 | W88: =IF($A88>0,SUMIF('Age profile (years)'!$CT88:$GF88,"<" & R88+0.5,'Asset data'!$CX88:$GJ88),0) -> 0 | X88: =IF($A88>0,SUMIF('Age profile (years)'!$CT88:$GF88,"<" & S88+0.5,'Asset data'!$CX88:$GJ88)-W88,0) -> 0 | Y88: =IF($A88>0,SUMIF('Age profile (years)'!$CT88:$GF88,"<" & T88+0.5,'Asset data'!$CX88:$GJ88)-X88-W88,0) -> 0 | Z88: =IF($A88>0,SUMIF('Age profile (years)'!$CT88:$GF88,"<" & U88+0.5,'Asset data'!$CX88:$GJ88)-Y88-X88-W88,0) -> 73.14890012 | AA88: 0 | AB88: 0 | AC88: 0 | AD88: 0 | AE88: 1 | AF88: 0 | AI88: =IF($A88>0,'RRR hist-forc'!K88,0) -> 51 | AJ88: 3730.593906
A89: ='Asset data'!A89 -> 5 | B89: ='Asset data'!B89 -> 0 | C89: ='Asset data'!C89 -> 0 | D89: ='Asset data'!E89 -> POLE MOUNTED ; < = 22kV ; < = 60 kVA ; MULTIPLE PHASE | E89: TRANSFORMERS | F89: =IF(A89>0,SUM('Asset data'!J89:CV89),0) -> 3290 | G89: =IF(A89>0,'Asset data'!F89,0) -> 7.103140325 | H89: =IF(A89>0,SUM('Asset data'!CX89:GJ89),0) -> 23369.33167 | I89: 0.002582809014 | J89: 34 | K89: 0.01182844233 | L89: 7.103140325 | M89: =IF($A89>0,SUMPRODUCT('Age profile (years)'!$CT89:$GF89,'Asset data'!$CX89:$GJ89)/H89-0.5,0) -> 25.21306991 | N89: 589212.5931 | O89: =IF($A89>0,'Asset data'!G89,0) -> 51 | P89: 1191835.915 | Q89: 0.5056260802 | R89: 5.1 | S89: 10.2 | T89: 30.6 | U89: 40.8 | W89: =IF($A89>0,SUMIF('Age profile (years)'!$CT89:$GF89,"<" & R89+0.5,'Asset data'!$CX89:$GJ89),0) -> 2450.583412 | X89: =IF($A89>0,SUMIF('Age profile (years)'!$CT89:$GF89,"<" & S89+0.5,'Asset data'!$CX89:$GJ89)-W89,0) -> 2003.085572 | Y89: =IF($A89>0,SUMIF('Age profile (years)'!$CT89:$GF89,"<" & T89+0.5,'Asset data'!$CX89:$GJ89)-X89-W89,0) -> 10150.38752 | Z89: =IF($A89>0,SUMIF('Age profile (years)'!$CT89:$GF89,"<" & U89+0.5,'Asset data'!$CX89:$GJ89)-Y89-X89-W89,0) -> 4126.924529 | AA89: 4638.350632 | AB89: 0.1048632219 | AC89: 0.08571428571 | AD89: 0.4343465046 | AE89: 0.1765957447 | AF89: 0.1984802432 | AI89: =IF($A89>0,'RRR hist-forc'!K89,0) -> 51 | AJ89: 1191835.915
A90: ='Asset data'!A90 -> 5 | B90: ='Asset data'!B90 -> 0 | C90: ='Asset data'!C90 -> 0 | D90: ='Asset data'!E90 -> POLE MOUNTED ; < = 22kV ; > 60 kVA AND < = 600 kVA ; MULTIPLE PHASE | E90: TRANSFORMERS | F90: =IF(A90>0,SUM('Asset data'!J90:CV90),0) -> 12795 | G90: =IF(A90>0,'Asset data'!F90,0) -> 16.44828004 | H90: =IF(A90>0,SUM('Asset data'!CX90:GJ90),0) -> 210455.7431 | I90: 0.0232598432 | J90: 14 | K90: 0.1065226706 | L90: 16.44828004 | M90: =IF($A90>0,SUMPRODUCT('Age profile (years)'!$CT90:$GF90,'Asset data'!$CX90:$GJ90)/H90-0.5,0) -> 28.88053927 | N90: 6078075.353 | O90: =IF($A90>0,'Asset data'!G90,0) -> 51 | P90: 10733242.9 | Q90: 0.4337149162 | R90: 5.1 | S90: 10.2 | T90: 30.6 | U90: 40.8 | W90: =IF($A90>0,SUMIF('Age profile (years)'!$CT90:$GF90,"<" & R90+0.5,'Asset data'!$CX90:$GJ90),0) -> 15938.38336 | X90: =IF($A90>0,SUMIF('Age profile (years)'!$CT90:$GF90,"<" & S90+0.5,'Asset data'!$CX90:$GJ90)-W90,0) -> 16185.10756 | Y90: =IF($A90>0,SUMIF('Age profile (years)'!$CT90:$GF90,"<" & T90+0.5,'Asset data'!$CX90:$GJ90)-X90-W90,0) -> 72520.46669 | Z90: =IF($A90>0,SUMIF('Age profile (years)'!$CT90:$GF90,"<" & U90+0.5,'Asset data'!$CX90:$GJ90)-Y90-X90-W90,0) -> 40972.66557 | AA90: 64839.11991 | AB90: 0.07573270809 | AC90: 0.07690504103 | AD90: 0.3445877296 | AE90: 0.194685424 | AF90: 0.3080890973 | AI90: =IF($A90>0,'RRR hist-forc'!K90,0) -> 51 | AJ90: 10733242.9
A91: ='Asset data'!A91 -> 5 | B91: ='Asset data'!B91 -> 0 | C91: ='Asset data'!C91 -> 0 | D91: ='Asset data'!E91 -> POLE MOUNTED ; < = 22kV ; > 600 kVA ; MULTIPLE PHASE | E91: TRANSFORMERS | F91: =IF(A91>0,SUM('Asset data'!J91:CV91),0) -> 9 | G91: =IF(A91>0,'Asset data'!F91,0) -> 73.14890012 | H91: =IF(A91>0,SUM('Asset data'!CX91:GJ91),0) -> 658.3401011 | I91: 7.276060659e-05 | J91: 56 | K91: 0.0003332203945 | L91: 73.14890012 | M91: =IF($A91>0,SUMPRODUCT('Age profile (years)'!$CT91:$GF91,'Asset data'!$CX91:$GJ91)/H91-0.5,0) -> 35.16666667 | N91: 23151.62689 | O91: =IF($A91>0,'Asset data'!G91,0) -> 51 | P91: 33575.34516 | Q91: 0.3104575163 | R91: 5.1 | S91: 10.2 | T91: 30.6 | U91: 40.8 | W91: =IF($A91>0,SUMIF('Age profile (years)'!$CT91:$GF91,"<" & R91+0.5,'Asset data'!$CX91:$GJ91),0) -> 0 | X91: =IF($A91>0,SUMIF('Age profile (years)'!$CT91:$GF91,"<" & S91+0.5,'Asset data'!$CX91:$GJ91)-W91,0) -> 0 | Y91: =IF($A91>0,SUMIF('Age profile (years)'!$CT91:$GF91,"<" & T91+0.5,'Asset data'!$CX91:$GJ91)-X91-W91,0) -> 146.2978002 | Z91: =IF($A91>0,SUMIF('Age profile (years)'!$CT91:$GF91,"<" & U91+0.5,'Asset data'!$CX91:$GJ91)-Y91-X91-W91,0) -> 365.7445006 | AA91: 146.2978002 | AB91: 0 | AC91: 0 | AD91: 0.2222222222 | AE91: 0.5555555556 | AF91: 0.2222222222 | AI91: =IF($A91>0,'RRR hist-forc'!K91,0) -> 51 | AJ91: 33575.34516
A92: ='Asset data'!A92 -> 5 | B92: ='Asset data'!B92 -> 0 | C92: ='Asset data'!C92 -> 0 | D92: ='Asset data'!E92 -> POLE MOUNTED ; > 22 kV ; < = 60 kVA | E92: TRANSFORMERS | F92: =IF(A92>0,SUM('Asset data'!J92:CV92),0) -> 1 | G92: =IF(A92>0,'Asset data'!F92,0) -> 10.36579849 | H92: =IF(A92>0,SUM('Asset data'!CX92:GJ92),0) -> 10.36579849 | I92: 1.145641569e-06 | J92: 65 | K92: 5.246673349e-06 | L92: 10.36579849 | M92: =IF($A92>0,SUMPRODUCT('Age profile (years)'!$CT92:$GF92,'Asset data'!$CX92:$GJ92)/H92-0.5,0) -> 44.5 | N92: 461.278033 | O92: =IF($A92>0,'Asset data'!G92,0) -> 51 | P92: 528.6557232 | Q92: 0.1274509804 | R92: 5.1 | S92: 10.2 | T92: 30.6 | U92: 40.8 | W92: =IF($A92>0,SUMIF('Age profile (years)'!$CT92:$GF92,"<" & R92+0.5,'Asset data'!$CX92:$GJ92),0) -> 0 | X92: =IF($A92>0,SUMIF('Age profile (years)'!$CT92:$GF92,"<" & S92+0.5,'Asset data'!$CX92:$GJ92)-W92,0) -> 0 | Y92: =IF($A92>0,SUMIF('Age profile (years)'!$CT92:$GF92,"<" & T92+0.5,'Asset data'!$CX92:$GJ92)-X92-W92,0) -> 0 | Z92: =IF($A92>0,SUMIF('Age profile (years)'!$CT92:$GF92,"<" & U92+0.5,'Asset data'!$CX92:$GJ92)-Y92-X92-W92,0) -> 0 | AA92: 10.36579849 | AB92: 0 | AC92: 0 | AD92: 0 | AE92: 0 | AF92: 1 | AI92: =IF($A92>0,'RRR hist-forc'!K92,0) -> 51 | AJ92: 528.6557232
A93: ='Asset data'!A93 -> 0 | B93: ='Asset data'!B93 -> 0 | C93: ='Asset data'!C93 -> 0 | D93: ='Asset data'!E93 -> POLE MOUNTED ; > 22 kV ; > 60 kVA AND < = 600 kVA | E93: 0 | F93: =IF(A93>0,SUM('Asset data'!J93:CV93),0) -> 0 | G93: =IF(A93>0,'Asset data'!F93,0) -> 0 | H93: =IF(A93>0,SUM('Asset data'!CX93:GJ93),0) -> 0 | I93: 0 | J93: 0 | K93: 0 | L93: 0 | M93: =IF($A93>0,SUMPRODUCT('Age profile (years)'!$CT93:$GF93,'Asset data'!$CX93:$GJ93)/H93-0.5,0) -> 0 | N93: 0 | O93: =IF($A93>0,'Asset data'!G93,0) -> 0 | P93: 0 | Q93: 0 | R93: 0 | S93: 0 | T93: 0 | U93: 0 | W93: =IF($A93>0,SUMIF('Age profile (years)'!$CT93:$GF93,"<" & R93+0.5,'Asset data'!$CX93:$GJ93),0) -> 0 | X93: =IF($A93>0,SUMIF('Age profile (years)'!$CT93:$GF93,"<" & S93+0.5,'Asset data'!$CX93:$GJ93)-W93,0) -> 0 | Y93: =IF($A93>0,SUMIF('Age profile (years)'!$CT93:$GF93,"<" & T93+0.5,'Asset data'!$CX93:$GJ93)-X93-W93,0) -> 0 | Z93: =IF($A93>0,SUMIF('Age profile (years)'!$CT93:$GF93,"<" & U93+0.5,'Asset data'!$CX93:$GJ93)-Y93-X93-W93,0) -> 0 | AA93: 0 | AB93: 0 | AC93: 0 | AD93: 0 | AE93: 0 | AF93: 0 | AI93: =IF($A93>0,'RRR hist-forc'!K93,0) -> 0 | AJ93: 0
A94: ='Asset data'!A94 -> 0 | B94: ='Asset data'!B94 -> 0 | C94: ='Asset data'!C94 -> 0 | D94: ='Asset data'!E94 -> POLE MOUNTED ; > 22 kV ; > 600 kVA | E94: 0 | F94: =IF(A94>0,SUM('Asset data'!J94:CV94),0) -> 0 | G94: =IF(A94>0,'Asset data'!F94,0) -> 0 | H94: =IF(A94>0,SUM('Asset data'!CX94:GJ94),0) -> 0 | I94: 0 | J94: 0 | K94: 0 | L94: 0 | M94: =IF($A94>0,SUMPRODUCT('Age profile (years)'!$CT94:$GF94,'Asset data'!$CX94:$GJ94)/H94-0.5,0) -> 0 | N94: 0 | O94: =IF($A94>0,'Asset data'!G94,0) -> 0 | P94: 0 | Q94: 0 | R94: 0 | S94: 0 | T94: 0 | U94: 0 | W94: =IF($A94>0,SUMIF('Age profile (years)'!$CT94:$GF94,"<" & R94+0.5,'Asset data'!$CX94:$GJ94),0) -> 0 | X94: =IF($A94>0,SUMIF('Age profile (years)'!$CT94:$GF94,"<" & S94+0.5,'Asset data'!$CX94:$GJ94)-W94,0) -> 0 | Y94: =IF($A94>0,SUMIF('Age profile (years)'!$CT94:$GF94,"<" & T94+0.5,'Asset data'!$CX94:$GJ94)-X94-W94,0) -> 0 | Z94: =IF($A94>0,SUMIF('Age profile (years)'!$CT94:$GF94,"<" & U94+0.5,'Asset data'!$CX94:$GJ94)-Y94-X94-W94,0) -> 0 | AA94: 0 | AB94: 0 | AC94: 0 | AD94: 0 | AE94: 0 | AF94: 0 | AI94: =IF($A94>0,'RRR hist-forc'!K94,0) -> 0 | AJ94: 0
A95: ='Asset data'!A95 -> 0 | B95: ='Asset data'!B95 -> 0 | C95: ='Asset data'!C95 -> 0 | D95: ='Asset data'!E95 -> POLE MOUNTED ; > 22 kV ; < = 60 kVA | E95: 0 | F95: =IF(A95>0,SUM('Asset data'!J95:CV95),0) -> 0 | G95: =IF(A95>0,'Asset data'!F95,0) -> 0 | H95: =IF(A95>0,SUM('Asset data'!CX95:GJ95),0) -> 0 | I95: 0 | J95: 0 | K95: 0 | L95: 0 | M95: =IF($A95>0,SUMPRODUCT('Age profile (years)'!$CT95:$GF95,'Asset data'!$CX95:$GJ95)/H95-0.5,0) -> 0 | N95: 0 | O95: =IF($A95>0,'Asset data'!G95,0) -> 0 | P95: 0 | Q95: 0 | R95: 0 | S95: 0 | T95: 0 | U95: 0 | W95: =IF($A95>0,SUMIF('Age profile (years)'!$CT95:$GF95,"<" & R95+0.5,'Asset data'!$CX95:$GJ95),0) -> 0 | X95: =IF($A95>0,SUMIF('Age profile (years)'!$CT95:$GF95,"<" & S95+0.5,'Asset data'!$CX95:$GJ95)-W95,0) -> 0 | Y95: =IF($A95>0,SUMIF('Age profile (years)'!$CT95:$GF95,"<" & T95+0.5,'Asset data'!$CX95:$GJ95)-X95-W95,0) -> 0 | Z95: =IF($A95>0,SUMIF('Age profile (years)'!$CT95:$GF95,"<" & U95+0.5,'Asset data'!$CX95:$GJ95)-Y95-X95-W95,0) -> 0 | AA95: 0 | AB95: 0 | AC95: 0 | AD95: 0 | AE95: 0 | AF95: 0 | AI95: =IF($A95>0,'RRR hist-forc'!K95,0) -> 0 | AJ95: 0
A96: ='Asset data'!A96 -> 5 | B96: ='Asset data'!B96 -> 0 | C96: ='Asset data'!C96 -> 0 | D96: ='Asset data'!E96 -> POLE MOUNTED ; > 22 kV ; > 60 kVA AND < = 600 kVA | E96: TRANSFORMERS | F96: =IF(A96>0,SUM('Asset data'!J96:CV96),0) -> 2 | G96: =IF(A96>0,'Asset data'!F96,0) -> 16.44828004 | H96: =IF(A96>0,SUM('Asset data'!CX96:GJ96),0) -> 32.89656008 | I96: 3.635770724e-06 | J96: 64 | K96: 1.665067145e-05 | L96: 16.44828004 | M96: =IF($A96>0,SUMPRODUCT('Age profile (years)'!$CT96:$GF96,'Asset data'!$CX96:$GJ96)/H96-0.5,0) -> 17.5 | N96: 575.6898013 | O96: =IF($A96>0,'Asset data'!G96,0) -> 51 | P96: 1677.724564 | Q96: 0.6568627451 | R96: 5.1 | S96: 10.2 | T96: 30.6 | U96: 40.8 | W96: =IF($A96>0,SUMIF('Age profile (years)'!$CT96:$GF96,"<" & R96+0.5,'Asset data'!$CX96:$GJ96),0) -> 16.44828004 | X96: =IF($A96>0,SUMIF('Age profile (years)'!$CT96:$GF96,"<" & S96+0.5,'Asset data'!$CX96:$GJ96)-W96,0) -> 0 | Y96: =IF($A96>0,SUMIF('Age profile (years)'!$CT96:$GF96,"<" & T96+0.5,'Asset data'!$CX96:$GJ96)-X96-W96,0) -> 0 | Z96: =IF($A96>0,SUMIF('Age profile (years)'!$CT96:$GF96,"<" & U96+0.5,'Asset data'!$CX96:$GJ96)-Y96-X96-W96,0) -> 16.44828004 | AA96: 0 | AB96: 0.5 | AC96: 0 | AD96: 0 | AE96: 0.5 | AF96: 0 | AI96: =IF($A96>0,'RRR hist-forc'!K96,0) -> 51 | AJ96: 1677.724564
A97: ='Asset data'!A97 -> 0 | B97: ='Asset data'!B97 -> 0 | C97: ='Asset data'!C97 -> 0 | D97: ='Asset data'!E97 -> POLE MOUNTED ; > 22 kV ; > 600 kVA | E97: 0 | F97: =IF(A97>0,SUM('Asset data'!J97:CV97),0) -> 0 | G97: =IF(A97>0,'Asset data'!F97,0) -> 0 | H97: =IF(A97>0,SUM('Asset data'!CX97:GJ97),0) -> 0 | I97: 0 | J97: 0 | K97: 0 | L97: 0 | M97: =IF($A97>0,SUMPRODUCT('Age profile (years)'!$CT97:$GF97,'Asset data'!$CX97:$GJ97)/H97-0.5,0) -> 0 | N97: 0 | O97: =IF($A97>0,'Asset data'!G97,0) -> 0 | P97: 0 | Q97: 0 | R97: 0 | S97: 0 | T97: 0 | U97: 0 | W97: =IF($A97>0,SUMIF('Age profile (years)'!$CT97:$GF97,"<" & R97+0.5,'Asset data'!$CX97:$GJ97),0) -> 0 | X97: =IF($A97>0,SUMIF('Age profile (years)'!$CT97:$GF97,"<" & S97+0.5,'Asset data'!$CX97:$GJ97)-W97,0) -> 0 | Y97: =IF($A97>0,SUMIF('Age profile (years)'!$CT97:$GF97,"<" & T97+0.5,'Asset data'!$CX97:$GJ97)-X97-W97,0) -> 0 | Z97: =IF($A97>0,SUMIF('Age profile (years)'!$CT97:$GF97,"<" & U97+0.5,'Asset data'!$CX97:$GJ97)-Y97-X97-W97,0) -> 0 | AA97: 0 | AB97: 0 | AC97: 0 | AD97: 0 | AE97: 0 | AF97: 0 | AI97: =IF($A97>0,'RRR hist-forc'!K97,0) -> 0 | AJ97: 0
A98: ='Asset data'!A98 -> 0 | B98: ='Asset data'!B98 -> 0 | C98: ='Asset data'!C98 -> 0 | D98: ='Asset data'!E98 -> KIOSK MOUNTED ; < = 22kV ; < = 60 kVA ; SINGLE PHASE | E98: 0 | F98: =IF(A98>0,SUM('Asset data'!J98:CV98),0) -> 0 | G98: =IF(A98>0,'Asset data'!F98,0) -> 0 | H98: =IF(A98>0,SUM('Asset data'!CX98:GJ98),0) -> 0 | I98: 0 | J98: 0 | K98: 0 | L98: 0 | M98: =IF($A98>0,SUMPRODUCT('Age profile (years)'!$CT98:$GF98,'Asset data'!$CX98:$GJ98)/H98-0.5,0) -> 0 | N98: 0 | O98: =IF($A98>0,'Asset data'!G98,0) -> 0 | P98: 0 | Q98: 0 | R98: 0 | S98: 0 | T98: 0 | U98: 0 | W98: =IF($A98>0,SUMIF('Age profile (years)'!$CT98:$GF98,"<" & R98+0.5,'Asset data'!$CX98:$GJ98),0) -> 0 | X98: =IF($A98>0,SUMIF('Age profile (years)'!$CT98:$GF98,"<" & S98+0.5,'Asset data'!$CX98:$GJ98)-W98,0) -> 0 | Y98: =IF($A98>0,SUMIF('Age profile (years)'!$CT98:$GF98,"<" & T98+0.5,'Asset data'!$CX98:$GJ98)-X98-W98,0) -> 0 | Z98: =IF($A98>0,SUMIF('Age profile (years)'!$CT98:$GF98,"<" & U98+0.5,'Asset data'!$CX98:$GJ98)-Y98-X98-W98,0) -> 0 | AA98: 0 | AB98: 0 | AC98: 0 | AD98: 0 | AE98: 0 | AF98: 0 | AI98: =IF($A98>0,'RRR hist-forc'!K98,0) -> 0 | AJ98: 0
A99: ='Asset data'!A99 -> 0 | B99: ='Asset data'!B99 -> 0 | C99: ='Asset data'!C99 -> 0 | D99: ='Asset data'!E99 -> KIOSK MOUNTED ; < = 22kV ; > 60 kVA AND < = 600 kVA ; SINGLE PHASE | E99: 0 | F99: =IF(A99>0,SUM('Asset data'!J99:CV99),0) -> 0 | G99: =IF(A99>0,'Asset data'!F99,0) -> 0 | H99: =IF(A99>0,SUM('Asset data'!CX99:GJ99),0) -> 0 | I99: 0 | J99: 0 | K99: 0 | L99: 0 | M99: =IF($A99>0,SUMPRODUCT('Age profile (years)'!$CT99:$GF99,'Asset data'!$CX99:$GJ99)/H99-0.5,0) -> 0 | N99: 0 | O99: =IF($A99>0,'Asset data'!G99,0) -> 0 | P99: 0 | Q99: 0 | R99: 0 | S99: 0 | T99: 0 | U99: 0 | W99: =IF($A99>0,SUMIF('Age profile (years)'!$CT99:$GF99,"<" & R99+0.5,'Asset data'!$CX99:$GJ99),0) -> 0 | X99: =IF($A99>0,SUMIF('Age profile (years)'!$CT99:$GF99,"<" & S99+0.5,'Asset data'!$CX99:$GJ99)-W99,0) -> 0 | Y99: =IF($A99>0,SUMIF('Age profile (years)'!$CT99:$GF99,"<" & T99+0.5,'Asset data'!$CX99:$GJ99)-X99-W99,0) -> 0 | Z99: =IF($A99>0,SUMIF('Age profile (years)'!$CT99:$GF99,"<" & U99+0.5,'Asset data'!$CX99:$GJ99)-Y99-X99-W99,0) -> 0 | AA99: 0 | AB99: 0 | AC99: 0 | AD99: 0 | AE99: 0 | AF99: 0 | AI99: =IF($A99>0,'RRR hist-forc'!K99,0) -> 0 | AJ99: 0
A100: ='Asset data'!A100 -> 0 | B100: ='Asset data'!B100 -> 0 | C100: ='Asset data'!C100 -> 0 | D100: ='Asset data'!E100 -> KIOSK MOUNTED ; < = 22kV ; > 600 kVA ; SINGLE PHASE | E100: 0 | F100: =IF(A100>0,SUM('Asset data'!J100:CV100),0) -> 0 | G100: =IF(A100>0,'Asset data'!F100,0) -> 0 | H100: =IF(A100>0,SUM('Asset data'!CX100:GJ100),0) -> 0 | I100: 0 | J100: 0 | K100: 0 | L100: 0 | M100: =IF($A100>0,SUMPRODUCT('Age profile (years)'!$CT100:$GF100,'Asset data'!$CX100:$GJ100)/H100-0.5,0) -> 0 | N100: 0 | O100: =IF($A100>0,'Asset data'!G100,0) -> 0 | P100: 0 | Q100: 0 | R100: 0 | S100: 0 | T100: 0 | U100: =IF($A100>0,$O100-U$4*$O100,0) -> 0 | W100: =IF($A100>0,SUMIF('Age profile (years)'!$CT100:$GF100,"<" & R100+0.5,'Asset data'!$CX100:$GJ100),0) -> 0 | X100: =IF($A100>0,SUMIF('Age profile (years)'!$CT100:$GF100,"<" & S100+0.5,'Asset data'!$CX100:$GJ100)-W100,0) -> 0 | Y100: =IF($A100>0,SUMIF('Age profile (years)'!$CT100:$GF100,"<" & T100+0.5,'Asset data'!$CX100:$GJ100)-X100-W100,0) -> 0 | Z100: =IF($A100>0,SUMIF('Age profile (years)'!$CT100:$GF100,"<" & U100+0.5,'Asset data'!$CX100:$GJ100)-Y100-X100-W100,0) -> 0 | AA100: 0 | AB100: 0 | AC100: 0 | AD100: 0 | AE100: 0 | AF100: 0 | AI100: =IF($A100>0,'RRR hist-forc'!K100,0) -> 0 | AJ100: 0
A101: ='Asset data'!A101 -> 5 | B101: ='Asset data'!B101 -> 0 | C101: ='Asset data'!C101 -> 0 | D101: ='Asset data'!E101 -> KIOSK MOUNTED ; < = 22kV ; < = 60 kVA ; MULTIPLE PHASE | E101: TRANSFORMERS | F101: =IF(A101>0,SUM('Asset data'!J101:CV101),0) -> 5 | G101: =IF(A101>0,'Asset data'!F101,0) -> 20.44971324 | H101: =IF(A101>0,SUM('Asset data'!CX101:GJ101),0) -> 102.2485662 | I101: 1.130064489e-05 | J101: 59 | K101: 5.175335287e-05 | L101: 20.44971324 | M101: =IF($A101>0,SUMPRODUCT('Age profile (years)'!$CT101:$GF101,'Asset data'!$CX101:$GJ101)/H101-0.5,0) -> 21.9 | N101: 2239.2436 | O101: =IF($A101>0,'Asset data'!G101,0) -> 51 | P101: 5214.676876 | Q101: 0.5705882353 | R101: 5.1 | S101: 10.2 | T101: 30.6 | U101: 40.8 | W101: =IF($A101>0,SUMIF('Age profile (years)'!$CT101:$GF101,"<" & R101+0.5,'Asset data'!$CX101:$GJ101),0) -> 0 | X101: =IF($A101>0,SUMIF('Age profile (years)'!$CT101:$GF101,"<" & S101+0.5,'Asset data'!$CX101:$GJ101)-W101,0) -> 20.44971324 | Y101: =IF($A101>0,SUMIF('Age profile (years)'!$CT101:$GF101,"<" & T101+0.5,'Asset data'!$CX101:$GJ101)-X101-W101,0) -> 40.89942648 | Z101: =IF($A101>0,SUMIF('Age profile (years)'!$CT101:$GF101,"<" & U101+0.5,'Asset data'!$CX101:$GJ101)-Y101-X101-W101,0) -> 40.89942648 | AA101: -3.552713679e-15 | AB101: 0 | AC101: 0.2 | AD101: 0.4 | AE101: 0.4 | AF101: -3.474585328e-17 | AI101: =IF($A101>0,'RRR hist-forc'!K101,0) -> 51 | AJ101: 5214.676876
A102: ='Asset data'!A102 -> 5 | B102: ='Asset data'!B102 -> 0 | C102: ='Asset data'!C102 -> 0 | D102: ='Asset data'!E102 -> KIOSK MOUNTED ; < = 22kV ; > 60 kVA AND < = 600 kVA ; MULTIPLE PHASE | E102: TRANSFORMERS | F102: =IF(A102>0,SUM('Asset data'!J102:CV102),0) -> 7815 | G102: =IF(A102>0,'Asset data'!F102,0) -> 57.45003336 | H102: =IF(A102>0,SUM('Asset data'!CX102:GJ102),0) -> 448972.0107 | I102: 0.04962097218 | J102: 7 | K102: 0.2272482418 | L102: 57.45003336 | M102: =IF($A102>0,SUMPRODUCT('Age profile (years)'!$CT102:$GF102,'Asset data'!$CX102:$GJ102)/H102-0.5,0) -> 35.1 | N102: 15758917.58 | O102: =IF($A102>0,'Asset data'!G102,0) -> 51 | P102: 22897572.55 | Q102: 0.3117647059 | R102: 5.1 | S102: 10.2 | T102: 30.6 | U102: 40.8 | W102: =IF($A102>0,SUMIF('Age profile (years)'!$CT102:$GF102,"<" & R102+0.5,'Asset data'!$CX102:$GJ102),0) -> 1378.800801 | X102: =IF($A102>0,SUMIF('Age profile (years)'!$CT102:$GF102,"<" & S102+0.5,'Asset data'!$CX102:$GJ102)-W102,0) -> 4883.252835 | Y102: =IF($A102>0,SUMIF('Age profile (years)'!$CT102:$GF102,"<" & T102+0.5,'Asset data'!$CX102:$GJ102)-X102-W102,0) -> 143625.0834 | Z102: =IF($A102>0,SUMIF('Age profile (years)'!$CT102:$GF102,"<" & U102+0.5,'Asset data'!$CX102:$GJ102)-Y102-X102-W102,0) -> 100709.9085 | AA102: 198374.9652 | AB102: 0.003071017274 | AC102: 0.01087651951 | AD102: 0.3198976328 | AE102: 0.2243122201 | AF102: 0.4418426104 | AI102: =IF($A102>0,'RRR hist-forc'!K102,0) -> 51 | AJ102: 22897572.55
A103: ='Asset data'!A103 -> 5 | B103: ='Asset data'!B103 -> 0 | C103: ='Asset data'!C103 -> 0 | D103: ='Asset data'!E103 -> KIOSK MOUNTED ; < = 22kV ; > 600 kVA ; MULTIPLE PHASE | E103: TRANSFORMERS | F103: =IF(A103>0,SUM('Asset data'!J103:CV103),0) -> 1887 | G103: =IF(A103>0,'Asset data'!F103,0) -> 90.36750246 | H103: =IF(A103>0,SUM('Asset data'!CX103:GJ103),0) -> 170523.4771 | I103: 0.01884647709 | J103: 16 | K103: 0.08631086004 | L103: 90.36750246 | M103: =IF($A103>0,SUMPRODUCT('Age profile (years)'!$CT103:$GF103,'Asset data'!$CX103:$GJ103)/H103-0.5,0) -> 39.03948066 | N103: 6657147.988 | O103: =IF($A103>0,'Asset data'!G103,0) -> 51 | P103: 8696697.334 | Q103: 0.2345199871 | R103: 5.1 | S103: 10.2 | T103: 30.6 | U103: 40.8 | W103: =IF($A103>0,SUMIF('Age profile (years)'!$CT103:$GF103,"<" & R103+0.5,'Asset data'!$CX103:$GJ103),0) -> 0 | X103: =IF($A103>0,SUMIF('Age profile (years)'!$CT103:$GF103,"<" & S103+0.5,'Asset data'!$CX103:$GJ103)-W103,0) -> 451.8375123 | Y103: =IF($A103>0,SUMIF('Age profile (years)'!$CT103:$GF103,"<" & T103+0.5,'Asset data'!$CX103:$GJ103)-X103-W103,0) -> 25122.16568 | Z103: =IF($A103>0,SUMIF('Age profile (years)'!$CT103:$GF103,"<" & U103+0.5,'Asset data'!$CX103:$GJ103)-Y103-X103-W103,0) -> 59461.81662 | AA103: 85487.65733 | AB103: 0 | AC103: 0.002649708532 | AD103: 0.1473237944 | AE103: 0.3487016428 | AF103: 0.5013248543 | AI103: =IF($A103>0,'RRR hist-forc'!K103,0) -> 51 | AJ103: 8696697.334
A104: ='Asset data'!A104 -> 0 | B104: ='Asset data'!B104 -> 0 | C104: ='Asset data'!C104 -> 0 | D104: ='Asset data'!E104 -> KIOSK MOUNTED ; > 22 kV ; < = 60 kVA | E104: 0 | F104: =IF(A104>0,SUM('Asset data'!J104:CV104),0) -> 0 | G104: =IF(A104>0,'Asset data'!F104,0) -> 0 | H104: =IF(A104>0,SUM('Asset data'!CX104:GJ104),0) -> 0 | I104: 0 | J104: 0 | K104: 0 | L104: 0 | M104: =IF($A104>0,SUMPRODUCT('Age profile (years)'!$CT104:$GF104,'Asset data'!$CX104:$GJ104)/H104-0.5,0) -> 0 | N104: 0 | O104: =IF($A104>0,'Asset data'!G104,0) -> 0 | P104: 0 | Q104: 0 | R104: 0 | S104: 0 | T104: 0 | U104: 0 | W104: =IF($A104>0,SUMIF('Age profile (years)'!$CT104:$GF104,"<" & R104+0.5,'Asset data'!$CX104:$GJ104),0) -> 0 | X104: =IF($A104>0,SUMIF('Age profile (years)'!$CT104:$GF104,"<" & S104+0.5,'Asset data'!$CX104:$GJ104)-W104,0) -> 0 | Y104: =IF($A104>0,SUMIF('Age profile (years)'!$CT104:$GF104,"<" & T104+0.5,'Asset data'!$CX104:$GJ104)-X104-W104,0) -> 0 | Z104: =IF($A104>0,SUMIF('Age profile (years)'!$CT104:$GF104,"<" & U104+0.5,'Asset data'!$CX104:$GJ104)-Y104-X104-W104,0) -> 0 | AA104: 0 | AB104: 0 | AC104: 0 | AD104: 0 | AE104: 0 | AF104: 0 | AI104: =IF($A104>0,'RRR hist-forc'!K104,0) -> 0 | AJ104: 0
A105: ='Asset data'!A105 -> 0 | B105: ='Asset data'!B105 -> 0 | C105: ='Asset data'!C105 -> 0 | D105: ='Asset data'!E105 -> KIOSK MOUNTED ; > 22 kV ; > 60 kVA AND < = 600 kVA | E105: 0 | F105: =IF(A105>0,SUM('Asset data'!J105:CV105),0) -> 0 | G105: =IF(A105>0,'Asset data'!F105,0) -> 0 | H105: =IF(A105>0,SUM('Asset data'!CX105:GJ105),0) -> 0 | I105: 0 | J105: 0 | K105: 0 | L105: 0 | M105: =IF($A105>0,SUMPRODUCT('Age profile (years)'!$CT105:$GF105,'Asset data'!$CX105:$GJ105)/H105-0.5,0) -> 0 | N105: 0 | O105: =IF($A105>0,'Asset data'!G105,0) -> 0 | P105: 0 | Q105: 0 | R105: 0 | S105: 0 | T105: 0 | U105: 0 | W105: =IF($A105>0,SUMIF('Age profile (years)'!$CT105:$GF105,"<" & R105+0.5,'Asset data'!$CX105:$GJ105),0) -> 0 | X105: =IF($A105>0,SUMIF('Age profile (years)'!$CT105:$GF105,"<" & S105+0.5,'Asset data'!$CX105:$GJ105)-W105,0) -> 0 | Y105: =IF($A105>0,SUMIF('Age profile (years)'!$CT105:$GF105,"<" & T105+0.5,'Asset data'!$CX105:$GJ105)-X105-W105,0) -> 0 | Z105: =IF($A105>0,SUMIF('Age profile (years)'!$CT105:$GF105,"<" & U105+0.5,'Asset data'!$CX105:$GJ105)-Y105-X105-W105,0) -> 0 | AA105: 0 | AB105: 0 | AC105: 0 | AD105: 0 | AE105: 0 | AF105: 0 | AI105: =IF($A105>0,'RRR hist-forc'!K105,0) -> 0 | AJ105: 0
A106: ='Asset data'!A106 -> 0 | B106: ='Asset data'!B106 -> 0 | C106: ='Asset data'!C106 -> 0 | D106: ='Asset data'!E106 -> KIOSK MOUNTED ; > 22 kV ; > 600 kVA | E106: 0 | F106: =IF(A106>0,SUM('Asset data'!J106:CV106),0) -> 0 | G106: =IF(A106>0,'Asset data'!F106,0) -> 0 | H106: =IF(A106>0,SUM('Asset data'!CX106:GJ106),0) -> 0 | I106: 0 | J106: 0 | K106: 0 | L106: 0 | M106: =IF($A106>0,SUMPRODUCT('Age profile (years)'!$CT106:$GF106,'Asset data'!$CX106:$GJ106)/H106-0.5,0) -> 0 | N106: 0 | O106: =IF($A106>0,'Asset data'!G106,0) -> 0 | P106: 0 | Q106: 0 | R106: 0 | S106: 0 | T106: 0 | U106: 0 | W106: =IF($A106>0,SUMIF('Age profile (years)'!$CT106:$GF106,"<" & R106+0.5,'Asset data'!$CX106:$GJ106),0) -> 0 | X106: =IF($A106>0,SUMIF('Age profile (years)'!$CT106:$GF106,"<" & S106+0.5,'Asset data'!$CX106:$GJ106)-W106,0) -> 0 | Y106: =IF($A106>0,SUMIF('Age profile (years)'!$CT106:$GF106,"<" & T106+0.5,'Asset data'!$CX106:$GJ106)-X106-W106,0) -> 0 | Z106: =IF($A106>0,SUMIF('Age profile (years)'!$CT106:$GF106,"<" & U106+0.5,'Asset data'!$CX106:$GJ106)-Y106-X106-W106,0) -> 0 | AA106: 0 | AB106: 0 | AC106: 0 | AD106: 0 | AE106: 0 | AF106: 0 | AI106: =IF($A106>0,'RRR hist-forc'!K106,0) -> 0 | AJ106: 0
A107: ='Asset data'!A107 -> 0 | B107: ='Asset data'!B107 -> 0 | C107: ='Asset data'!C107 -> 0 | D107: ='Asset data'!E107 -> KIOSK MOUNTED ; > 22 kV ; < = 60 kVA | E107: 0 | F107: =IF(A107>0,SUM('Asset data'!J107:CV107),0) -> 0 | G107: =IF(A107>0,'Asset data'!F107,0) -> 0 | H107: =IF(A107>0,SUM('Asset data'!CX107:GJ107),0) -> 0 | I107: 0 | J107: 0 | K107: 0 | L107: 0 | M107: =IF($A107>0,SUMPRODUCT('Age profile (years)'!$CT107:$GF107,'Asset data'!$CX107:$GJ107)/H107-0.5,0) -> 0 | N107: 0 | O107: =IF($A107>0,'Asset data'!G107,0) -> 0 | P107: 0 | Q107: 0 | R107: 0 | S107: 0 | T107: 0 | U107: 0 | W107: =IF($A107>0,SUMIF('Age profile (years)'!$CT107:$GF107,"<" & R107+0.5,'Asset data'!$CX107:$GJ107),0) -> 0 | X107: =IF($A107>0,SUMIF('Age profile (years)'!$CT107:$GF107,"<" & S107+0.5,'Asset data'!$CX107:$GJ107)-W107,0) -> 0 | Y107: =IF($A107>0,SUMIF('Age profile (years)'!$CT107:$GF107,"<" & T107+0.5,'Asset data'!$CX107:$GJ107)-X107-W107,0) -> 0 | Z107: =IF($A107>0,SUMIF('Age profile (years)'!$CT107:$GF107,"<" & U107+0.5,'Asset data'!$CX107:$GJ107)-Y107-X107-W107,0) -> 0 | AA107: 0 | AB107: 0 | AC107: 0 | AD107: 0 | AE107: 0 | AF107: 0 | AI107: =IF($A107>0,'RRR hist-forc'!K107,0) -> 0 | AJ107: 0
A108: ='Asset data'!A108 -> 0 | B108: ='Asset data'!B108 -> 0 | C108: ='Asset data'!C108 -> 0 | D108: ='Asset data'!E108 -> KIOSK MOUNTED ; > 22 kV ; > 60 kVA AND < = 600 kVA | E108: 0 | F108: =IF(A108>0,SUM('Asset data'!J108:CV108),0) -> 0 | G108: =IF(A108>0,'Asset data'!F108,0) -> 0 | H108: =IF(A108>0,SUM('Asset data'!CX108:GJ108),0) -> 0 | I108: 0 | J108: 0 | K108: 0 | L108: 0 | M108: =IF($A108>0,SUMPRODUCT('Age profile (years)'!$CT108:$GF108,'Asset data'!$CX108:$GJ108)/H108-0.5,0) -> 0 | N108: 0 | O108: =IF($A108>0,'Asset data'!G108,0) -> 0 | P108: 0 | Q108: 0 | R108: 0 | S108: 0 | T108: 0 | U108: 0 | W108: =IF($A108>0,SUMIF('Age profile (years)'!$CT108:$GF108,"<" & R108+0.5,'Asset data'!$CX108:$GJ108),0) -> 0 | X108: =IF($A108>0,SUMIF('Age profile (years)'!$CT108:$GF108,"<" & S108+0.5,'Asset data'!$CX108:$GJ108)-W108,0) -> 0 | Y108: =IF($A108>0,SUMIF('Age profile (years)'!$CT108:$GF108,"<" & T108+0.5,'Asset data'!$CX108:$GJ108)-X108-W108,0) -> 0 | Z108: =IF($A108>0,SUMIF('Age profile (years)'!$CT108:$GF108,"<" & U108+0.5,'Asset data'!$CX108:$GJ108)-Y108-X108-W108,0) -> 0 | AA108: 0 | AB108: 0 | AC108: 0 | AD108: 0 | AE108: 0 | AF108: 0 | AI108: =IF($A108>0,'RRR hist-forc'!K108,0) -> 0 | AJ108: 0
A109: ='Asset data'!A109 -> 5 | B109: ='Asset data'!B109 -> 0 | C109: ='Asset data'!C109 -> 0 | D109: ='Asset data'!E109 -> KIOSK MOUNTED ; > 22 kV ; > 600 kVA | E109: TRANSFORMERS | F109: =IF(A109>0,SUM('Asset data'!J109:CV109),0) -> 1 | G109: =IF(A109>0,'Asset data'!F109,0) -> 90.36750246 | H109: =IF(A109>0,SUM('Asset data'!CX109:GJ109),0) -> 90.36750246 | I109: 9.98753423e-06 | J109: 60 | K109: 4.573972445e-05 | L109: 90.36750246 | M109: =IF($A109>0,SUMPRODUCT('Age profile (years)'!$CT109:$GF109,'Asset data'!$CX109:$GJ109)/H109-0.5,0) -> 37.5 | N109: 3388.781342 | O109: =IF($A109>0,'Asset data'!G109,0) -> 51 | P109: 4608.742626 | Q109: 0.2647058824 | R109: 5.1 | S109: 10.2 | T109: 30.6 | U109: 40.8 | W109: =IF($A109>0,SUMIF('Age profile (years)'!$CT109:$GF109,"<" & R109+0.5,'Asset data'!$CX109:$GJ109),0) -> 0 | X109: =IF($A109>0,SUMIF('Age profile (years)'!$CT109:$GF109,"<" & S109+0.5,'Asset data'!$CX109:$GJ109)-W109,0) -> 0 | Y109: =IF($A109>0,SUMIF('Age profile (years)'!$CT109:$GF109,"<" & T109+0.5,'Asset data'!$CX109:$GJ109)-X109-W109,0) -> 0 | Z109: =IF($A109>0,SUMIF('Age profile (years)'!$CT109:$GF109,"<" & U109+0.5,'Asset data'!$CX109:$GJ109)-Y109-X109-W109,0) -> 90.36750246 | AA109: 0 | AB109: 0 | AC109: 0 | AD109: 0 | AE109: 1 | AF109: 0 | AI109: =IF($A109>0,'RRR hist-forc'!K109,0) -> 51 | AJ109: 4608.742626
A110: ='Asset data'!A110 -> 0 | B110: ='Asset data'!B110 -> 0 | C110: ='Asset data'!C110 -> 0 | D110: ='Asset data'!E110 -> GROUND OUTDOOR / INDOOR CHAMBER MOUNTED ; ˂ 22 kV ; < = 60 kVA ; SINGLE PHASE | E110: 0 | F110: =IF(A110>0,SUM('Asset data'!J110:CV110),0) -> 0 | G110: =IF(A110>0,'Asset data'!F110,0) -> 0 | H110: =IF(A110>0,SUM('Asset data'!CX110:GJ110),0) -> 0 | I110: 0 | J110: 0 | K110: 0 | L110: 0 | M110: =IF($A110>0,SUMPRODUCT('Age profile (years)'!$CT110:$GF110,'Asset data'!$CX110:$GJ110)/H110-0.5,0) -> 0 | N110: 0 | O110: =IF($A110>0,'Asset data'!G110,0) -> 0 | P110: 0 | Q110: 0 | R110: 0 | S110: 0 | T110: 0 | U110: 0 | W110: =IF($A110>0,SUMIF('Age profile (years)'!$CT110:$GF110,"<" & R110+0.5,'Asset data'!$CX110:$GJ110),0) -> 0 | X110: =IF($A110>0,SUMIF('Age profile (years)'!$CT110:$GF110,"<" & S110+0.5,'Asset data'!$CX110:$GJ110)-W110,0) -> 0 | Y110: =IF($A110>0,SUMIF('Age profile (years)'!$CT110:$GF110,"<" & T110+0.5,'Asset data'!$CX110:$GJ110)-X110-W110,0) -> 0 | Z110: =IF($A110>0,SUMIF('Age profile (years)'!$CT110:$GF110,"<" & U110+0.5,'Asset data'!$CX110:$GJ110)-Y110-X110-W110,0) -> 0 | AA110: 0 | AB110: 0 | AC110: 0 | AD110: 0 | AE110: 0 | AF110: 0 | AI110: =IF($A110>0,'RRR hist-forc'!K110,0) -> 0 | AJ110: 0
A111: ='Asset data'!A111 -> 0 | B111: ='Asset data'!B111 -> 0 | C111: ='Asset data'!C111 -> 0 | D111: ='Asset data'!E111 -> GROUND OUTDOOR / INDOOR CHAMBER MOUNTED ; ˂ 22 kV ; > 60 kVA AND < = 600 kVA ; SINGLE PHASE | E111: 0 | F111: =IF(A111>0,SUM('Asset data'!J111:CV111),0) -> 0 | G111: =IF(A111>0,'Asset data'!F111,0) -> 0 | H111: =IF(A111>0,SUM('Asset data'!CX111:GJ111),0) -> 0 | I111: 0 | J111: 0 | K111: 0 | L111: 0 | M111: =IF($A111>0,SUMPRODUCT('Age profile (years)'!$CT111:$GF111,'Asset data'!$CX111:$GJ111)/H111-0.5,0) -> 0 | N111: 0 | O111: =IF($A111>0,'Asset data'!G111,0) -> 0 | P111: 0 | Q111: 0 | R111: 0 | S111: 0 | T111: 0 | U111: 0 | W111: =IF($A111>0,SUMIF('Age profile (years)'!$CT111:$GF111,"<" & R111+0.5,'Asset data'!$CX111:$GJ111),0) -> 0 | X111: =IF($A111>0,SUMIF('Age profile (years)'!$CT111:$GF111,"<" & S111+0.5,'Asset data'!$CX111:$GJ111)-W111,0) -> 0 | Y111: =IF($A111>0,SUMIF('Age profile (years)'!$CT111:$GF111,"<" & T111+0.5,'Asset data'!$CX111:$GJ111)-X111-W111,0) -> 0 | Z111: =IF($A111>0,SUMIF('Age profile (years)'!$CT111:$GF111,"<" & U111+0.5,'Asset data'!$CX111:$GJ111)-Y111-X111-W111,0) -> 0 | AA111: 0 | AB111: 0 | AC111: 0 | AD111: 0 | AE111: 0 | AF111: 0 | AI111: =IF($A111>0,'RRR hist-forc'!K111,0) -> 0 | AJ111: 0
A112: ='Asset data'!A112 -> 0 | B112: ='Asset data'!B112 -> 0 | C112: ='Asset data'!C112 -> 0 | D112: ='Asset data'!E112 -> GROUND OUTDOOR / INDOOR CHAMBER MOUNTED ; ˂ 22 kV ; > 600 kVA ; SINGLE PHASE | E112: 0 | F112: =IF(A112>0,SUM('Asset data'!J112:CV112),0) -> 0 | G112: =IF(A112>0,'Asset data'!F112,0) -> 0 | H112: =IF(A112>0,SUM('Asset data'!CX112:GJ112),0) -> 0 | I112: 0 | J112: 0 | K112: 0 | L112: 0 | M112: =IF($A112>0,SUMPRODUCT('Age profile (years)'!$CT112:$GF112,'Asset data'!$CX112:$GJ112)/H112-0.5,0) -> 0 | N112: 0 | O112: =IF($A112>0,'Asset data'!G112,0) -> 0 | P112: 0 | Q112: 0 | R112: 0 | S112: 0 | T112: 0 | U112: 0 | W112: =IF($A112>0,SUMIF('Age profile (years)'!$CT112:$GF112,"<" & R112+0.5,'Asset data'!$CX112:$GJ112),0) -> 0 | X112: =IF($A112>0,SUMIF('Age profile (years)'!$CT112:$GF112,"<" & S112+0.5,'Asset data'!$CX112:$GJ112)-W112,0) -> 0 | Y112: =IF($A112>0,SUMIF('Age profile (years)'!$CT112:$GF112,"<" & T112+0.5,'Asset data'!$CX112:$GJ112)-X112-W112,0) -> 0 | Z112: =IF($A112>0,SUMIF('Age profile (years)'!$CT112:$GF112,"<" & U112+0.5,'Asset data'!$CX112:$GJ112)-Y112-X112-W112,0) -> 0 | AA112: 0 | AB112: 0 | AC112: 0 | AD112: 0 | AE112: 0 | AF112: 0 | AI112: =IF($A112>0,'RRR hist-forc'!K112,0) -> 0 | AJ112: 0
A113: ='Asset data'!A113 -> 5 | B113: ='Asset data'!B113 -> 0 | C113: ='Asset data'!C113 -> 0 | D113: ='Asset data'!E113 -> GROUND OUTDOOR / INDOOR CHAMBER MOUNTED ; ˂ 22 kV ; < = 60 kVA ; MULTIPLE PHASE | E113: TRANSFORMERS | F113: =IF(A113>0,SUM('Asset data'!J113:CV113),0) -> 1 | G113: =IF(A113>0,'Asset data'!F113,0) -> 40.5416812 | H113: =IF(A113>0,SUM('Asset data'!CX113:GJ113),0) -> 40.5416812 | I113: 4.480719481e-06 | J113: 63 | K113: 2.052026753e-05 | L113: 40.5416812 | M113: =IF($A113>0,SUMPRODUCT('Age profile (years)'!$CT113:$GF113,'Asset data'!$CX113:$GJ113)/H113-0.5,0) -> 0.5 | N113: 20.2708406 | O113: =IF($A113>0,'Asset data'!G113,0) -> 51 | P113: 2067.625741 | Q113: 0.9901960784 | R113: 5.1 | S113: 10.2 | T113: 30.6 | U113: 40.8 | W113: =IF($A113>0,SUMIF('Age profile (years)'!$CT113:$GF113,"<" & R113+0.5,'Asset data'!$CX113:$GJ113),0) -> 40.5416812 | X113: =IF($A113>0,SUMIF('Age profile (years)'!$CT113:$GF113,"<" & S113+0.5,'Asset data'!$CX113:$GJ113)-W113,0) -> 0 | Y113: =IF($A113>0,SUMIF('Age profile (years)'!$CT113:$GF113,"<" & T113+0.5,'Asset data'!$CX113:$GJ113)-X113-W113,0) -> 0 | Z113: =IF($A113>0,SUMIF('Age profile (years)'!$CT113:$GF113,"<" & U113+0.5,'Asset data'!$CX113:$GJ113)-Y113-X113-W113,0) -> 0 | AA113: 0 | AB113: 1 | AC113: 0 | AD113: 0 | AE113: 0 | AF113: 0 | AI113: =IF($A113>0,'RRR hist-forc'!K113,0) -> 51 | AJ113: 2067.625741
A114: ='Asset data'!A114 -> 5 | B114: ='Asset data'!B114 -> 0 | C114: ='Asset data'!C114 -> 0 | D114: ='Asset data'!E114 -> GROUND OUTDOOR / INDOOR CHAMBER MOUNTED ; ˂ 22 kV ; > 60 kVA AND < = 600 kVA ; MULTIPLE PHASE | E114: TRANSFORMERS | F114: =IF(A114>0,SUM('Asset data'!J114:CV114),0) -> 197 | G114: =IF(A114>0,'Asset data'!F114,0) -> 40.5416812 | H114: =IF(A114>0,SUM('Asset data'!CX114:GJ114),0) -> 7986.711197 | I114: 0.0008827017378 | J114: 46 | K114: 0.004042492704 | L114: 40.5416812 | M114: =IF($A114>0,SUMPRODUCT('Age profile (years)'!$CT114:$GF114,'Asset data'!$CX114:$GJ114)/H114-0.5,0) -> 26.98730964 | N114: 215539.8481 | O114: =IF($A114>0,'Asset data'!G114,0) -> 51 | P114: 407322.271 | Q114: 0.4708370658 | R114: 5.1 | S114: 10.2 | T114: 30.6 | U114: 40.8 | W114: =IF($A114>0,SUMIF('Age profile (years)'!$CT114:$GF114,"<" & R114+0.5,'Asset data'!$CX114:$GJ114),0) -> 1013.54203 | X114: =IF($A114>0,SUMIF('Age profile (years)'!$CT114:$GF114,"<" & S114+0.5,'Asset data'!$CX114:$GJ114)-W114,0) -> 405.416812 | Y114: =IF($A114>0,SUMIF('Age profile (years)'!$CT114:$GF114,"<" & T114+0.5,'Asset data'!$CX114:$GJ114)-X114-W114,0) -> 3405.501221 | Z114: =IF($A114>0,SUMIF('Age profile (years)'!$CT114:$GF114,"<" & U114+0.5,'Asset data'!$CX114:$GJ114)-Y114-X114-W114,0) -> 364.8751308 | AA114: 2797.376003 | AB114: 0.1269035533 | AC114: 0.05076142132 | AD114: 0.4263959391 | AE114: 0.04568527919 | AF114: 0.3502538071 | AI114: =IF($A114>0,'RRR hist-forc'!K114,0) -> 51 | AJ114: 407322.271
A115: ='Asset data'!A115 -> 5 | B115: ='Asset data'!B115 -> 0 | C115: ='Asset data'!C115 -> 0 | D115: ='Asset data'!E115 -> GROUND OUTDOOR / INDOOR CHAMBER MOUNTED ; ˂ 22 kV ; > 600 kVA ; MULTIPLE PHASE | E115: TRANSFORMERS | F115: =IF(A115>0,SUM('Asset data'!J115:CV115),0) -> 667 | G115: =IF(A115>0,'Asset data'!F115,0) -> 49.51980109 | H115: =IF(A115>0,SUM('Asset data'!CX115:GJ115),0) -> 33029.70733 | I115: 0.003650486331 | J115: 32 | K115: 0.01671806424 | L115: 49.51980109 | M115: =IF($A115>0,SUMPRODUCT('Age profile (years)'!$CT115:$GF115,'Asset data'!$CX115:$GJ115)/H115-0.5,0) -> 32.12668666 | N115: 1061135.058 | O115: =IF($A115>0,'Asset data'!G115,0) -> 51 | P115: 1684515.074 | Q115: 0.3700649675 | R115: 5.1 | S115: 10.2 | T115: 30.6 | U115: 40.8 | W115: =IF($A115>0,SUMIF('Age profile (years)'!$CT115:$GF115,"<" & R115+0.5,'Asset data'!$CX115:$GJ115),0) -> 495.1980109 | X115: =IF($A115>0,SUMIF('Age profile (years)'!$CT115:$GF115,"<" & S115+0.5,'Asset data'!$CX115:$GJ115)-W115,0) -> 1138.955425 | Y115: =IF($A115>0,SUMIF('Age profile (years)'!$CT115:$GF115,"<" & T115+0.5,'Asset data'!$CX115:$GJ115)-X115-W115,0) -> 11983.79186 | Z115: =IF($A115>0,SUMIF('Age profile (years)'!$CT115:$GF115,"<" & U115+0.5,'Asset data'!$CX115:$GJ115)-Y115-X115-W115,0) -> 8368.846384 | AA115: 11042.91564 | AB115: 0.01499250375 | AC115: 0.03448275862 | AD115: 0.3628185907 | AE115: 0.2533733133 | AF115: 0.3343328336 | AI115: =IF($A115>0,'RRR hist-forc'!K115,0) -> 51 | AJ115: 1684515.074
A116: ='Asset data'!A116 -> 5 | B116: ='Asset data'!B116 -> 0 | C116: ='Asset data'!C116 -> 0 | D116: ='Asset data'!E116 -> GROUND OUTDOOR / INDOOR CHAMBER MOUNTED ; > = 22 kV & < = 33 kV ; < = 15 MVA | E116: TRANSFORMERS | F116: =IF(A116>0,SUM('Asset data'!J116:CV116),0) -> 83 | G116: =IF(A116>0,'Asset data'!F116,0) -> 1732.673353 | H116: =IF(A116>0,SUM('Asset data'!CX116:GJ116),0) -> 143811.8883 | I116: 0.01589427746 | J116: 18 | K116: 0.07279072636 | L116: 1732.673353 | M116: =IF($A116>0,SUMPRODUCT('Age profile (years)'!$CT116:$GF116,'Asset data'!$CX116:$GJ116)/H116-0.5,0) -> 20.92168675 | N116: 3008787.278 | O116: =IF($A116>0,'Asset data'!G116,0) -> 55 | P116: 7909653.857 | Q116: 0.6196056955 | R116: 5.5 | S116: 11 | T116: 33 | U116: 44 | W116: =IF($A116>0,SUMIF('Age profile (years)'!$CT116:$GF116,"<" & R116+0.5,'Asset data'!$CX116:$GJ116),0) -> 46782.18053 | X116: =IF($A116>0,SUMIF('Age profile (years)'!$CT116:$GF116,"<" & S116+0.5,'Asset data'!$CX116:$GJ116)-W116,0) -> 17326.73353 | Y116: =IF($A116>0,SUMIF('Age profile (years)'!$CT116:$GF116,"<" & T116+0.5,'Asset data'!$CX116:$GJ116)-X116-W116,0) -> 36386.14041 | Z116: =IF($A116>0,SUMIF('Age profile (years)'!$CT116:$GF116,"<" & U116+0.5,'Asset data'!$CX116:$GJ116)-Y116-X116-W116,0) -> 15594.06018 | AA116: 27722.77365 | AB116: 0.3253012048 | AC116: 0.1204819277 | AD116: 0.2530120482 | AE116: 0.1084337349 | AF116: 0.1927710843 | AI116: =IF($A116>0,'RRR hist-forc'!K116,0) -> 55 | AJ116: 7909653.857
A117: ='Asset data'!A117 -> 5 | B117: ='Asset data'!B117 -> 0 | C117: ='Asset data'!C117 -> 0 | D117: ='Asset data'!E117 -> GROUND OUTDOOR / INDOOR CHAMBER MOUNTED ; > = 22 kV & < = 33 kV ; > 15 MVA AND < = 40 MVA | E117: TRANSFORMERS | F117: =IF(A117>0,SUM('Asset data'!J117:CV117),0) -> 182 | G117: =IF(A117>0,'Asset data'!F117,0) -> 1767.56083 | H117: =IF(A117>0,SUM('Asset data'!CX117:GJ117),0) -> 321696.0711 | I117: 0.03555426933 | J117: 12 | K117: 0.1628272249 | L117: 1767.56083 | M117: =IF($A117>0,SUMPRODUCT('Age profile (years)'!$CT117:$GF117,'Asset data'!$CX117:$GJ117)/H117-0.5,0) -> 30.99450549 | N117: 9970810.642 | O117: =IF($A117>0,'Asset data'!G117,0) -> 55 | P117: 17693283.91 | Q117: 0.4364635365 | R117: 5.5 | S117: 11 | T117: 33 | U117: 44 | W117: =IF($A117>0,SUMIF('Age profile (years)'!$CT117:$GF117,"<" & R117+0.5,'Asset data'!$CX117:$GJ117),0) -> 5302.68249 | X117: =IF($A117>0,SUMIF('Age profile (years)'!$CT117:$GF117,"<" & S117+0.5,'Asset data'!$CX117:$GJ117)-W117,0) -> 37118.77743 | Y117: =IF($A117>0,SUMIF('Age profile (years)'!$CT117:$GF117,"<" & T117+0.5,'Asset data'!$CX117:$GJ117)-X117-W117,0) -> 123729.2581 | Z117: =IF($A117>0,SUMIF('Age profile (years)'!$CT117:$GF117,"<" & U117+0.5,'Asset data'!$CX117:$GJ117)-Y117-X117-W117,0) -> 30048.53411 | AA117: 125496.8189 | AB117: 0.01648351648 | AC117: 0.1153846154 | AD117: 0.3846153846 | AE117: 0.09340659341 | AF117: 0.3901098901 | AI117: =IF($A117>0,'RRR hist-forc'!K117,0) -> 55 | AJ117: 17693283.91
A118: ='Asset data'!A118 -> 0 | B118: ='Asset data'!B118 -> 0 | C118: ='Asset data'!C118 -> 0 | D118: ='Asset data'!E118 -> GROUND OUTDOOR / INDOOR CHAMBER MOUNTED ; > = 22 kV & < = 33 kV ; > 40 MVA | E118: 0 | F118: =IF(A118>0,SUM('Asset data'!J118:CV118),0) -> 0 | G118: =IF(A118>0,'Asset data'!F118,0) -> 0 | H118: =IF(A118>0,SUM('Asset data'!CX118:GJ118),0) -> 0 | I118: 0 | J118: 0 | K118: 0 | L118: 0 | M118: =IF($A118>0,SUMPRODUCT('Age profile (years)'!$CT118:$GF118,'Asset data'!$CX118:$GJ118)/H118-0.5,0) -> 0 | N118: 0 | O118: =IF($A118>0,'Asset data'!G118,0) -> 0 | P118: 0 | Q118: 0 | R118: 0 | S118: 0 | T118: 0 | U118: 0 | W118: =IF($A118>0,SUMIF('Age profile (years)'!$CT118:$GF118,"<" & R118+0.5,'Asset data'!$CX118:$GJ118),0) -> 0 | X118: =IF($A118>0,SUMIF('Age profile (years)'!$CT118:$GF118,"<" & S118+0.5,'Asset data'!$CX118:$GJ118)-W118,0) -> 0 | Y118: =IF($A118>0,SUMIF('Age profile (years)'!$CT118:$GF118,"<" & T118+0.5,'Asset data'!$CX118:$GJ118)-X118-W118,0) -> 0 | Z118: =IF($A118>0,SUMIF('Age profile (years)'!$CT118:$GF118,"<" & U118+0.5,'Asset data'!$CX118:$GJ118)-Y118-X118-W118,0) -> 0 | AA118: 0 | AB118: 0 | AC118: 0 | AD118: 0 | AE118: 0 | AF118: 0 | AI118: =IF($A118>0,'RRR hist-forc'!K118,0) -> 0 | AJ118: 0
A119: ='Asset data'!A119 -> 5 | B119: ='Asset data'!B119 -> 0 | C119: ='Asset data'!C119 -> 0 | D119: ='Asset data'!E119 -> GROUND OUTDOOR / INDOOR CHAMBER MOUNTED ; > 33 kV & < = 66 kV ; < = 15 MVA | E119: TRANSFORMERS | F119: =IF(A119>0,SUM('Asset data'!J119:CV119),0) -> 14 | G119: =IF(A119>0,'Asset data'!F119,0) -> 1041.561122 | H119: =IF(A119>0,SUM('Asset data'!CX119:GJ119),0) -> 14581.85571 | I119: 0.001611605711 | J119: 40 | K119: 0.007380640653 | L119: 1041.561122 | M119: =IF($A119>0,SUMPRODUCT('Age profile (years)'!$CT119:$GF119,'Asset data'!$CX119:$GJ119)/H119-0.5,0) -> 6 | N119: 87491.13429 | O119: =IF($A119>0,'Asset data'!G119,0) -> 55 | P119: 802002.0643 | Q119: 0.8909090909 | R119: 5.5 | S119: 11 | T119: 33 | U119: 44 | W119: =IF($A119>0,SUMIF('Age profile (years)'!$CT119:$GF119,"<" & R119+0.5,'Asset data'!$CX119:$GJ119),0) -> 6249.366735 | X119: =IF($A119>0,SUMIF('Age profile (years)'!$CT119:$GF119,"<" & S119+0.5,'Asset data'!$CX119:$GJ119)-W119,0) -> 3124.683367 | Y119: =IF($A119>0,SUMIF('Age profile (years)'!$CT119:$GF119,"<" & T119+0.5,'Asset data'!$CX119:$GJ119)-X119-W119,0) -> 5207.805612 | Z119: =IF($A119>0,SUMIF('Age profile (years)'!$CT119:$GF119,"<" & U119+0.5,'Asset data'!$CX119:$GJ119)-Y119-X119-W119,0) -> 0 | AA119: 0 | AB119: 0.4285714286 | AC119: 0.2142857143 | AD119: 0.3571428571 | AE119: 0 | AF119: 0 | AI119: =IF($A119>0,'RRR hist-forc'!K119,0) -> 55 | AJ119: 802002.0643
A120: ='Asset data'!A120 -> 5 | B120: ='Asset data'!B120 -> 0 | C120: ='Asset data'!C120 -> 0 | D120: ='Asset data'!E120 -> GROUND OUTDOOR / INDOOR CHAMBER MOUNTED ; > 33 kV & < = 66 kV ; > 15 MVA AND < = 40 MVA | E120: TRANSFORMERS | F120: =IF(A120>0,SUM('Asset data'!J120:CV120),0) -> 52 | G120: =IF(A120>0,'Asset data'!F120,0) -> 2797.777344 | H120: =IF(A120>0,SUM('Asset data'!CX120:GJ120),0) -> 145484.4219 | I120: 0.01607912805 | J120: 17 | K120: 0.07363728317 | L120: 2797.777344 | M120: =IF($A120>0,SUMPRODUCT('Age profile (years)'!$CT120:$GF120,'Asset data'!$CX120:$GJ120)/H120-0.5,0) -> 30.84615385 | N120: 4487634.859 | O120: =IF($A120>0,'Asset data'!G120,0) -> 55 | P120: 8001643.203 | Q120: 0.4391608392 | R120: 5.5 | S120: 11 | T120: 33 | U120: 44 | W120: =IF($A120>0,SUMIF('Age profile (years)'!$CT120:$GF120,"<" & R120+0.5,'Asset data'!$CX120:$GJ120),0) -> 2797.777344 | X120: =IF($A120>0,SUMIF('Age profile (years)'!$CT120:$GF120,"<" & S120+0.5,'Asset data'!$CX120:$GJ120)-W120,0) -> 11191.10937 | Y120: =IF($A120>0,SUMIF('Age profile (years)'!$CT120:$GF120,"<" & T120+0.5,'Asset data'!$CX120:$GJ120)-X120-W120,0) -> 72742.21093 | Z120: =IF($A120>0,SUMIF('Age profile (years)'!$CT120:$GF120,"<" & U120+0.5,'Asset data'!$CX120:$GJ120)-Y120-X120-W120,0) -> 13988.88672 | AA120: 44764.4375 | AB120: 0.01923076923 | AC120: 0.07692307692 | AD120: 0.5 | AE120: 0.09615384615 | AF120: 0.3076923077 | AI120: =IF($A120>0,'RRR hist-forc'!K120,0) -> 55 | AJ120: 8001643.203
A121: ='Asset data'!A121 -> 0 | B121: ='Asset data'!B121 -> 0 | C121: ='Asset data'!C121 -> 0 | D121: ='Asset data'!E121 -> GROUND OUTDOOR / INDOOR CHAMBER MOUNTED ; > 33 kV & < = 66 kV ; > 40 MVA | E121: 0 | F121: =IF(A121>0,SUM('Asset data'!J121:CV121),0) -> 0 | G121: =IF(A121>0,'Asset data'!F121,0) -> 0 | H121: =IF(A121>0,SUM('Asset data'!CX121:GJ121),0) -> 0 | I121: 0 | J121: 0 | K121: 0 | L121: 0 | M121: =IF($A121>0,SUMPRODUCT('Age profile (years)'!$CT121:$GF121,'Asset data'!$CX121:$GJ121)/H121-0.5,0) -> 0 | N121: 0 | O121: =IF($A121>0,'Asset data'!G121,0) -> 0 | P121: 0 | Q121: 0 | R121: 0 | S121: 0 | T121: 0 | U121: 0 | W121: =IF($A121>0,SUMIF('Age profile (years)'!$CT121:$GF121,"<" & R121+0.5,'Asset data'!$CX121:$GJ121),0) -> 0 | X121: =IF($A121>0,SUMIF('Age profile (years)'!$CT121:$GF121,"<" & S121+0.5,'Asset data'!$CX121:$GJ121)-W121,0) -> 0 | Y121: =IF($A121>0,SUMIF('Age profile (years)'!$CT121:$GF121,"<" & T121+0.5,'Asset data'!$CX121:$GJ121)-X121-W121,0) -> 0 | Z121: =IF($A121>0,SUMIF('Age profile (years)'!$CT121:$GF121,"<" & U121+0.5,'Asset data'!$CX121:$GJ121)-Y121-X121-W121,0) -> 0 | AA121: 0 | AB121: 0 | AC121: 0 | AD121: 0 | AE121: 0 | AF121: 0 | AI121: =IF($A121>0,'RRR hist-forc'!K121,0) -> 0 | AJ121: 0
A122: ='Asset data'!A122 -> 5 | B122: ='Asset data'!B122 -> 0 | C122: ='Asset data'!C122 -> 0 | D122: ='Asset data'!E122 -> GROUND OUTDOOR / INDOOR CHAMBER MOUNTED ; > 66 kV & < = 132 kV ; < = 100 MVA | E122: TRANSFORMERS | F122: =IF(A122>0,SUM('Asset data'!J122:CV122),0) -> 93 | G122: =IF(A122>0,'Asset data'!F122,0) -> 3554.930235 | H122: =IF(A122>0,SUM('Asset data'!CX122:GJ122),0) -> 330608.5118 | I122: 0.03653928391 | J122: 11 | K122: 0.1673382778 | L122: 3554.930235 | M122: =IF($A122>0,SUMPRODUCT('Age profile (years)'!$CT122:$GF122,'Asset data'!$CX122:$GJ122)/H122-0.5,0) -> 37.22043011 | N122: 12305391.01 | O122: =IF($A122>0,'Asset data'!G122,0) -> 55 | P122: 18183468.15 | Q122: 0.3232649071 | R122: 5.5 | S122: 11 | T122: 33 | U122: 44 | W122: =IF($A122>0,SUMIF('Age profile (years)'!$CT122:$GF122,"<" & R122+0.5,'Asset data'!$CX122:$GJ122),0) -> 24884.51164 | X122: =IF($A122>0,SUMIF('Age profile (years)'!$CT122:$GF122,"<" & S122+0.5,'Asset data'!$CX122:$GJ122)-W122,0) -> 17774.65117 | Y122: =IF($A122>0,SUMIF('Age profile (years)'!$CT122:$GF122,"<" & T122+0.5,'Asset data'!$CX122:$GJ122)-X122-W122,0) -> 56878.88376 | Z122: =IF($A122>0,SUMIF('Age profile (years)'!$CT122:$GF122,"<" & U122+0.5,'Asset data'!$CX122:$GJ122)-Y122-X122-W122,0) -> 53323.95352 | AA122: 177746.5117 | AB122: 0.0752688172 | AC122: 0.05376344086 | AD122: 0.1720430108 | AE122: 0.1612903226 | AF122: 0.5376344086 | AI122: =IF($A122>0,'RRR hist-forc'!K122,0) -> 55 | AJ122: 18183468.15
A123: ='Asset data'!A123 -> 5 | B123: ='Asset data'!B123 -> 0 | C123: ='Asset data'!C123 -> 0 | D123: ='Asset data'!E123 -> GROUND OUTDOOR / INDOOR CHAMBER MOUNTED ; > 66 kV & < = 132 kV ; > 100 MVA | E123: TRANSFORMERS | F123: =IF(A123>0,SUM('Asset data'!J123:CV123),0) -> 31 | G123: =IF(A123>0,'Asset data'!F123,0) -> 3554.930235 | H123: =IF(A123>0,SUM('Asset data'!CX123:GJ123),0) -> 110202.8373 | I123: 0.0121797613 | J123: 21 | K123: 0.05577942594 | L123: 3554.930235 | M123: =IF($A123>0,SUMPRODUCT('Age profile (years)'!$CT123:$GF123,'Asset data'!$CX123:$GJ123)/H123-0.5,0) -> 25.66129032 | N123: 2827947.002 | O123: =IF($A123>0,'Asset data'!G123,0) -> 55 | P123: 6061156.051 | Q123: 0.533431085 | R123: 5.5 | S123: 11 | T123: 33 | U123: 44 | W123: =IF($A123>0,SUMIF('Age profile (years)'!$CT123:$GF123,"<" & R123+0.5,'Asset data'!$CX123:$GJ123),0) -> 3554.930235 | X123: =IF($A123>0,SUMIF('Age profile (years)'!$CT123:$GF123,"<" & S123+0.5,'Asset data'!$CX123:$GJ123)-W123,0) -> 39104.23258 | Y123: =IF($A123>0,SUMIF('Age profile (years)'!$CT123:$GF123,"<" & T123+0.5,'Asset data'!$CX123:$GJ123)-X123-W123,0) -> 24884.51164 | Z123: =IF($A123>0,SUMIF('Age profile (years)'!$CT123:$GF123,"<" & U123+0.5,'Asset data'!$CX123:$GJ123)-Y123-X123-W123,0) -> -5.00222086e-12 | AA123: 42659.16282 | AB123: 0.03225806452 | AC123: 0.3548387097 | AD123: 0.2258064516 | AE123: -4.539103514e-17 | AF123: 0.3870967742 | AI123: =IF($A123>0,'RRR hist-forc'!K123,0) -> 55 | AJ123: 6061156.051
A124: ='Asset data'!A124 -> 0 | B124: ='Asset data'!B124 -> 0 | C124: ='Asset data'!C124 -> 0 | D124: ='Asset data'!E124 -> GROUND OUTDOOR / INDOOR CHAMBER MOUNTED ; > 132 kV ; < = 100 MVA | E124: 0 | F124: =IF(A124>0,SUM('Asset data'!J124:CV124),0) -> 0 | G124: =IF(A124>0,'Asset data'!F124,0) -> 0 | H124: =IF(A124>0,SUM('Asset data'!CX124:GJ124),0) -> 0 | I124: 0 | J124: 0 | K124: 0 | L124: 0 | M124: =IF($A124>0,SUMPRODUCT('Age profile (years)'!$CT124:$GF124,'Asset data'!$CX124:$GJ124)/H124-0.5,0) -> 0 | N124: 0 | O124: =IF($A124>0,'Asset data'!G124,0) -> 0 | P124: 0 | Q124: 0 | R124: 0 | S124: 0 | T124: 0 | U124: 0 | W124: =IF($A124>0,SUMIF('Age profile (years)'!$CT124:$GF124,"<" & R124+0.5,'Asset data'!$CX124:$GJ124),0) -> 0 | X124: =IF($A124>0,SUMIF('Age profile (years)'!$CT124:$GF124,"<" & S124+0.5,'Asset data'!$CX124:$GJ124)-W124,0) -> 0 | Y124: =IF($A124>0,SUMIF('Age profile (years)'!$CT124:$GF124,"<" & T124+0.5,'Asset data'!$CX124:$GJ124)-X124-W124,0) -> 0 | Z124: =IF($A124>0,SUMIF('Age profile (years)'!$CT124:$GF124,"<" & U124+0.5,'Asset data'!$CX124:$GJ124)-Y124-X124-W124,0) -> 0 | AA124: 0 | AB124: 0 | AC124: 0 | AD124: 0 | AE124: 0 | AF124: 0 | AI124: =IF($A124>0,'RRR hist-forc'!K124,0) -> 0 | AJ124: 0
A125: ='Asset data'!A125 -> 0 | B125: ='Asset data'!B125 -> 0 | C125: ='Asset data'!C125 -> 0 | D125: ='Asset data'!E125 -> GROUND OUTDOOR / INDOOR CHAMBER MOUNTED ; > 132 kV ; > 100 MVA | E125: 0 | F125: =IF(A125>0,SUM('Asset data'!J125:CV125),0) -> 0 | G125: =IF(A125>0,'Asset data'!F125,0) -> 0 | H125: =IF(A125>0,SUM('Asset data'!CX125:GJ125),0) -> 0 | I125: 0 | J125: 0 | K125: 0 | L125: 0 | M125: =IF($A125>0,SUMPRODUCT('Age profile (years)'!$CT125:$GF125,'Asset data'!$CX125:$GJ125)/H125-0.5,0) -> 0 | N125: 0 | O125: =IF($A125>0,'Asset data'!G125,0) -> 0 | P125: 0 | Q125: 0 | R125: 0 | S125: 0 | T125: 0 | U125: 0 | W125: =IF($A125>0,SUMIF('Age profile (years)'!$CT125:$GF125,"<" & R125+0.5,'Asset data'!$CX125:$GJ125),0) -> 0 | X125: =IF($A125>0,SUMIF('Age profile (years)'!$CT125:$GF125,"<" & S125+0.5,'Asset data'!$CX125:$GJ125)-W125,0) -> 0 | Y125: =IF($A125>0,SUMIF('Age profile (years)'!$CT125:$GF125,"<" & T125+0.5,'Asset data'!$CX125:$GJ125)-X125-W125,0) -> 0 | Z125: =IF($A125>0,SUMIF('Age profile (years)'!$CT125:$GF125,"<" & U125+0.5,'Asset data'!$CX125:$GJ125)-Y125-X125-W125,0) -> 0 | AA125: 0 | AB125: 0 | AC125: 0 | AD125: 0 | AE125: 0 | AF125: 0 | AI125: =IF($A125>0,'RRR hist-forc'!K125,0) -> 0 | AJ125: 0
A126: ='Asset data'!A126 -> 0 | B126: ='Asset data'!B126 -> 0 | C126: ='Asset data'!C126 -> 0 | D126: ='Asset data'!E126 -> OTHER - PLEASE ADD A ROW IF NECESSARY AND NOMINATE THE CATEGORY | E126: 0 | F126: =IF(A126>0,SUM('Asset data'!J126:CV126),0) -> 0 | G126: =IF(A126>0,'Asset data'!F126,0) -> 0 | H126: =IF(A126>0,SUM('Asset data'!CX126:GJ126),0) -> 0 | I126: 0 | J126: 0 | K126: 0 | L126: 0 | M126: =IF($A126>0,SUMPRODUCT('Age profile (years)'!$CT126:$GF126,'Asset data'!$CX126:$GJ126)/H126-0.5,0) -> 0 | N126: 0 | O126: =IF($A126>0,'Asset data'!G126,0) -> 0 | P126: 0 | Q126: 0 | R126: 0 | S126: 0 | T126: 0 | U126: 0 | W126: =IF($A126>0,SUMIF('Age profile (years)'!$CT126:$GF126,"<" & R126+0.5,'Asset data'!$CX126:$GJ126),0) -> 0 | X126: =IF($A126>0,SUMIF('Age profile (years)'!$CT126:$GF126,"<" & S126+0.5,'Asset data'!$CX126:$GJ126)-W126,0) -> 0 | Y126: =IF($A126>0,SUMIF('Age profile (years)'!$CT126:$GF126,"<" & T126+0.5,'Asset data'!$CX126:$GJ126)-X126-W126,0) -> 0 | Z126: =IF($A126>0,SUMIF('Age profile (years)'!$CT126:$GF126,"<" & U126+0.5,'Asset data'!$CX126:$GJ126)-Y126-X126-W126,0) -> 0 | AA126: 0 | AB126: 0 | AC126: 0 | AD126: 0 | AE126: 0 | AF126: 0 | AI126: =IF($A126>0,'RRR hist-forc'!K126,0) -> 0 | AJ126: 0
A127: ='Asset data'!A127 -> 6 | B127: ='Asset data'!B127 -> 0 | C127: ='Asset data'!C127 -> 0 | D127: ='Asset data'!E127 -> ˂ = 11 kV ; FUSE | E127: SWITCHGEAR | F127: =IF(A127>0,SUM('Asset data'!J127:CV127),0) -> 1605 | G127: =IF(A127>0,'Asset data'!F127,0) -> 0.8134200072 | H127: =IF(A127>0,SUM('Asset data'!CX127:GJ127),0) -> 1305.539111 | I127: 0.0001442898853 | J127: 54 | K127: 0.004881288988 | L127: 0.8134200072 | M127: =IF($A127>0,SUMPRODUCT('Age profile (years)'!$CT127:$GF127,'Asset data'!$CX127:$GJ127)/H127-0.5,0) -> 19.60903427 | N127: 25600.36118 | O127: =IF($A127>0,'Asset data'!G127,0) -> 35 | P127: 45693.8689 | Q127: 0.4397418781 | R127: 3.5 | S127: 7 | T127: 21 | U127: 28 | W127: =IF($A127>0,SUMIF('Age profile (years)'!$CT127:$GF127,"<" & R127+0.5,'Asset data'!$CX127:$GJ127),0) -> 183.8329216 | X127: =IF($A127>0,SUMIF('Age profile (years)'!$CT127:$GF127,"<" & S127+0.5,'Asset data'!$CX127:$GJ127)-W127,0) -> 82.15542072 | Y127: =IF($A127>0,SUMIF('Age profile (years)'!$CT127:$GF127,"<" & T127+0.5,'Asset data'!$CX127:$GJ127)-X127-W127,0) -> 312.3532827 | Z127: =IF($A127>0,SUMIF('Age profile (years)'!$CT127:$GF127,"<" & U127+0.5,'Asset data'!$CX127:$GJ127)-Y127-X127-W127,0) -> 300.9654026 | AA127: 426.2320838 | AB127: 0.1408099688 | AC127: 0.06292834891 | AD127: 0.2392523364 | AE127: 0.230529595 | AF127: 0.3264797508 | AI127: =IF($A127>0,'RRR hist-forc'!K127,0) -> 35 | AJ127: 45693.8689
A128: ='Asset data'!A128 -> 0 | B128: ='Asset data'!B128 -> 0 | C128: ='Asset data'!C128 -> 0 | D128: ='Asset data'!E128 -> ˂ = 11 kV ; SWITCH | E128: 0 | F128: =IF(A128>0,SUM('Asset data'!J128:CV128),0) -> 0 | G128: =IF(A128>0,'Asset data'!F128,0) -> 0 | H128: =IF(A128>0,SUM('Asset data'!CX128:GJ128),0) -> 0 | I128: 0 | J128: 0 | K128: 0 | L128: 0 | M128: =IF($A128>0,SUMPRODUCT('Age profile (years)'!$CT128:$GF128,'Asset data'!$CX128:$GJ128)/H128-0.5,0) -> 0 | N128: 0 | O128: =IF($A128>0,'Asset data'!G128,0) -> 0 | P128: 0 | Q128: 0 | R128: 0 | S128: 0 | T128: 0 | U128: 0 | W128: =IF($A128>0,SUMIF('Age profile (years)'!$CT128:$GF128,"<" & R128+0.5,'Asset data'!$CX128:$GJ128),0) -> 0 | X128: =IF($A128>0,SUMIF('Age profile (years)'!$CT128:$GF128,"<" & S128+0.5,'Asset data'!$CX128:$GJ128)-W128,0) -> 0 | Y128: =IF($A128>0,SUMIF('Age profile (years)'!$CT128:$GF128,"<" & T128+0.5,'Asset data'!$CX128:$GJ128)-X128-W128,0) -> 0 | Z128: =IF($A128>0,SUMIF('Age profile (years)'!$CT128:$GF128,"<" & U128+0.5,'Asset data'!$CX128:$GJ128)-Y128-X128-W128,0) -> 0 | AA128: 0 | AB128: 0 | AC128: 0 | AD128: 0 | AE128: 0 | AF128: 0 | AI128: =IF($A128>0,'RRR hist-forc'!K128,0) -> 0 | AJ128: 0
A129: ='Asset data'!A129 -> 6 | B129: ='Asset data'!B129 -> 0 | C129: ='Asset data'!C129 -> 0 | D129: ='Asset data'!E129 -> ˂ = 11 kV ; CIRCUIT BREAKER | E129: SWITCHGEAR | F129: =IF(A129>0,SUM('Asset data'!J129:CV129),0) -> 2539 | G129: =IF(A129>0,'Asset data'!F129,0) -> 41.08725618 | H129: =IF(A129>0,SUM('Asset data'!CX129:GJ129),0) -> 104320.5434 | I129: 0.01152964252 | J129: 22 | K129: 0.3900447834 | L129: 41.08725618 | M129: =IF($A129>0,SUMPRODUCT('Age profile (years)'!$CT129:$GF129,'Asset data'!$CX129:$GJ129)/H129-0.5,0) -> 31.4767625 | N129: 3283672.971 | O129: =IF($A129>0,'Asset data'!G129,0) -> 51 | P129: 5320347.716 | Q129: 0.3828085783 | R129: 5.1 | S129: 10.2 | T129: 30.6 | U129: 40.8 | W129: =IF($A129>0,SUMIF('Age profile (years)'!$CT129:$GF129,"<" & R129+0.5,'Asset data'!$CX129:$GJ129),0) -> 11052.47191 | X129: =IF($A129>0,SUMIF('Age profile (years)'!$CT129:$GF129,"<" & S129+0.5,'Asset data'!$CX129:$GJ129)-W129,0) -> 7847.665931 | Y129: =IF($A129>0,SUMIF('Age profile (years)'!$CT129:$GF129,"<" & T129+0.5,'Asset data'!$CX129:$GJ129)-X129-W129,0) -> 26788.89103 | Z129: =IF($A129>0,SUMIF('Age profile (years)'!$CT129:$GF129,"<" & U129+0.5,'Asset data'!$CX129:$GJ129)-Y129-X129-W129,0) -> 10929.21014 | AA129: 47702.30443 | AB129: 0.1059472233 | AC129: 0.07522646711 | AD129: 0.2567940134 | AE129: 0.1047656558 | AF129: 0.4572666404 | AI129: =IF($A129>0,'RRR hist-forc'!K129,0) -> 51 | AJ129: 5320347.716
A130: ='Asset data'!A130 -> 0 | B130: ='Asset data'!B130 -> 0 | C130: ='Asset data'!C130 -> 0 | D130: ='Asset data'!E130 -> > 11 kV & < = 22 kV ; SWITCH | E130: 0 | F130: =IF(A130>0,SUM('Asset data'!J130:CV130),0) -> 0 | G130: =IF(A130>0,'Asset data'!F130,0) -> 0 | H130: =IF(A130>0,SUM('Asset data'!CX130:GJ130),0) -> 0 | I130: 0 | J130: 0 | K130: 0 | L130: 0 | M130: =IF($A130>0,SUMPRODUCT('Age profile (years)'!$CT130:$GF130,'Asset data'!$CX130:$GJ130)/H130-0.5,0) -> 0 | N130: 0 | O130: =IF($A130>0,'Asset data'!G130,0) -> 0 | P130: 0 | Q130: 0 | R130: 0 | S130: 0 | T130: 0 | U130: 0 | W130: =IF($A130>0,SUMIF('Age profile (years)'!$CT130:$GF130,"<" & R130+0.5,'Asset data'!$CX130:$GJ130),0) -> 0 | X130: =IF($A130>0,SUMIF('Age profile (years)'!$CT130:$GF130,"<" & S130+0.5,'Asset data'!$CX130:$GJ130)-W130,0) -> 0 | Y130: =IF($A130>0,SUMIF('Age profile (years)'!$CT130:$GF130,"<" & T130+0.5,'Asset data'!$CX130:$GJ130)-X130-W130,0) -> 0 | Z130: =IF($A130>0,SUMIF('Age profile (years)'!$CT130:$GF130,"<" & U130+0.5,'Asset data'!$CX130:$GJ130)-Y130-X130-W130,0) -> 0 | AA130: 0 | AB130: 0 | AC130: 0 | AD130: 0 | AE130: 0 | AF130: 0 | AI130: =IF($A130>0,'RRR hist-forc'!K130,0) -> 0 | AJ130: 0
A131: ='Asset data'!A131 -> 6 | B131: ='Asset data'!B131 -> 0 | C131: ='Asset data'!C131 -> 0 | D131: ='Asset data'!E131 -> > 11 kV & < = 22 kV ; CIRCUIT BREAKER | E131: SWITCHGEAR | F131: =IF(A131>0,SUM('Asset data'!J131:CV131),0) -> 46 | G131: =IF(A131>0,'Asset data'!F131,0) -> 29.08711034 | H131: =IF(A131>0,SUM('Asset data'!CX131:GJ131),0) -> 1338.007075 | I131: 0.000147878287 | J131: 53 | K131: 0.005002683677 | L131: 29.08711034 | M131: =IF($A131>0,SUMPRODUCT('Age profile (years)'!$CT131:$GF131,'Asset data'!$CX131:$GJ131)/H131-0.5,0) -> 43.23913043 | N131: 57854.26246 | O131: =IF($A131>0,'Asset data'!G131,0) -> 51 | P131: 68238.36085 | Q131: 0.152173913 | R131: 5.1 | S131: 10.2 | T131: 30.6 | U131: 40.8 | W131: =IF($A131>0,SUMIF('Age profile (years)'!$CT131:$GF131,"<" & R131+0.5,'Asset data'!$CX131:$GJ131),0) -> 0 | X131: =IF($A131>0,SUMIF('Age profile (years)'!$CT131:$GF131,"<" & S131+0.5,'Asset data'!$CX131:$GJ131)-W131,0) -> 0 | Y131: =IF($A131>0,SUMIF('Age profile (years)'!$CT131:$GF131,"<" & T131+0.5,'Asset data'!$CX131:$GJ131)-X131-W131,0) -> 0 | Z131: =IF($A131>0,SUMIF('Age profile (years)'!$CT131:$GF131,"<" & U131+0.5,'Asset data'!$CX131:$GJ131)-Y131-X131-W131,0) -> 465.3937654 | AA131: 872.6133101 | AB131: 0 | AC131: 0 | AD131: 0 | AE131: 0.347826087 | AF131: 0.652173913 | AI131: =IF($A131>0,'RRR hist-forc'!K131,0) -> 51 | AJ131: 68238.36085
A132: ='Asset data'!A132 -> 0 | B132: ='Asset data'!B132 -> 0 | C132: ='Asset data'!C132 -> 0 | D132: ='Asset data'!E132 -> > 22 kV & < = 33 kV ; SWITCH | E132: 0 | F132: =IF(A132>0,SUM('Asset data'!J132:CV132),0) -> 0 | G132: =IF(A132>0,'Asset data'!F132,0) -> 0 | H132: =IF(A132>0,SUM('Asset data'!CX132:GJ132),0) -> 0 | I132: 0 | J132: 0 | K132: 0 | L132: 0 | M132: =IF($A132>0,SUMPRODUCT('Age profile (years)'!$CT132:$GF132,'Asset data'!$CX132:$GJ132)/H132-0.5,0) -> 0 | N132: 0 | O132: =IF($A132>0,'Asset data'!G132,0) -> 0 | P132: 0 | Q132: 0 | R132: 0 | S132: 0 | T132: 0 | U132: 0 | W132: =IF($A132>0,SUMIF('Age profile (years)'!$CT132:$GF132,"<" & R132+0.5,'Asset data'!$CX132:$GJ132),0) -> 0 | X132: =IF($A132>0,SUMIF('Age profile (years)'!$CT132:$GF132,"<" & S132+0.5,'Asset data'!$CX132:$GJ132)-W132,0) -> 0 | Y132: =IF($A132>0,SUMIF('Age profile (years)'!$CT132:$GF132,"<" & T132+0.5,'Asset data'!$CX132:$GJ132)-X132-W132,0) -> 0 | Z132: =IF($A132>0,SUMIF('Age profile (years)'!$CT132:$GF132,"<" & U132+0.5,'Asset data'!$CX132:$GJ132)-Y132-X132-W132,0) -> 0 | AA132: 0 | AB132: 0 | AC132: 0 | AD132: 0 | AE132: 0 | AF132: 0 | AI132: =IF($A132>0,'RRR hist-forc'!K132,0) -> 0 | AJ132: 0
A133: ='Asset data'!A133 -> 6 | B133: ='Asset data'!B133 -> 0 | C133: ='Asset data'!C133 -> 0 | D133: ='Asset data'!E133 -> > 22 kV & < = 33 kV ; CIRCUIT BREAKER | E133: SWITCHGEAR | F133: =IF(A133>0,SUM('Asset data'!J133:CV133),0) -> 900 | G133: =IF(A133>0,'Asset data'!F133,0) -> 41.94112383 | H133: =IF(A133>0,SUM('Asset data'!CX133:GJ133),0) -> 37747.01145 | I133: 0.004171848936 | J133: 29 | K133: 0.1411325557 | L133: 41.94112383 | M133: =IF($A133>0,SUMPRODUCT('Age profile (years)'!$CT133:$GF133,'Asset data'!$CX133:$GJ133)/H133-0.5,0) -> 31.20555556 | N133: 1177916.463 | O133: =IF($A133>0,'Asset data'!G133,0) -> 51 | P133: 1925097.584 | Q133: 0.3881263617 | R133: 5.1 | S133: 10.2 | T133: 30.6 | U133: 40.8 | W133: =IF($A133>0,SUMIF('Age profile (years)'!$CT133:$GF133,"<" & R133+0.5,'Asset data'!$CX133:$GJ133),0) -> 4361.876879 | X133: =IF($A133>0,SUMIF('Age profile (years)'!$CT133:$GF133,"<" & S133+0.5,'Asset data'!$CX133:$GJ133)-W133,0) -> 4236.053507 | Y133: =IF($A133>0,SUMIF('Age profile (years)'!$CT133:$GF133,"<" & T133+0.5,'Asset data'!$CX133:$GJ133)-X133-W133,0) -> 6668.63869 | Z133: =IF($A133>0,SUMIF('Age profile (years)'!$CT133:$GF133,"<" & U133+0.5,'Asset data'!$CX133:$GJ133)-Y133-X133-W133,0) -> 4236.053507 | AA133: 18244.38887 | AB133: 0.1155555556 | AC133: 0.1122222222 | AD133: 0.1766666667 | AE133: 0.1122222222 | AF133: 0.4833333333 | AI133: =IF($A133>0,'RRR hist-forc'!K133,0) -> 51 | AJ133: 1925097.584
A134: ='Asset data'!A134 -> 0 | B134: ='Asset data'!B134 -> 0 | C134: ='Asset data'!C134 -> 0 | D134: ='Asset data'!E134 -> > 33 kV & < = 66 kV ; SWITCH | E134: 0 | F134: =IF(A134>0,SUM('Asset data'!J134:CV134),0) -> 0 | G134: =IF(A134>0,'Asset data'!F134,0) -> 0 | H134: =IF(A134>0,SUM('Asset data'!CX134:GJ134),0) -> 0 | I134: 0 | J134: 0 | K134: 0 | L134: 0 | M134: =IF($A134>0,SUMPRODUCT('Age profile (years)'!$CT134:$GF134,'Asset data'!$CX134:$GJ134)/H134-0.5,0) -> 0 | N134: 0 | O134: =IF($A134>0,'Asset data'!G134,0) -> 0 | P134: 0 | Q134: 0 | R134: 0 | S134: 0 | T134: 0 | U134: 0 | W134: =IF($A134>0,SUMIF('Age profile (years)'!$CT134:$GF134,"<" & R134+0.5,'Asset data'!$CX134:$GJ134),0) -> 0 | X134: =IF($A134>0,SUMIF('Age profile (years)'!$CT134:$GF134,"<" & S134+0.5,'Asset data'!$CX134:$GJ134)-W134,0) -> 0 | Y134: =IF($A134>0,SUMIF('Age profile (years)'!$CT134:$GF134,"<" & T134+0.5,'Asset data'!$CX134:$GJ134)-X134-W134,0) -> 0 | Z134: =IF($A134>0,SUMIF('Age profile (years)'!$CT134:$GF134,"<" & U134+0.5,'Asset data'!$CX134:$GJ134)-Y134-X134-W134,0) -> 0 | AA134: 0 | AB134: 0 | AC134: 0 | AD134: 0 | AE134: 0 | AF134: 0 | AI134: =IF($A134>0,'RRR hist-forc'!K134,0) -> 0 | AJ134: 0
A135: ='Asset data'!A135 -> 6 | B135: ='Asset data'!B135 -> 0 | C135: ='Asset data'!C135 -> 0 | D135: ='Asset data'!E135 -> > 33 kV & < = 66 kV ; CIRCUIT BREAKER | E135: SWITCHGEAR | F135: =IF(A135>0,SUM('Asset data'!J135:CV135),0) -> 189 | G135: =IF(A135>0,'Asset data'!F135,0) -> 56.73179885 | H135: =IF(A135>0,SUM('Asset data'!CX135:GJ135),0) -> 10722.30998 | I135: 0.001185043683 | J135: 42 | K135: 0.0400897171 | L135: 56.73179885 | M135: =IF($A135>0,SUMPRODUCT('Age profile (years)'!$CT135:$GF135,'Asset data'!$CX135:$GJ135)/H135-0.5,0) -> 38.57936508 | N135: 413659.9113 | O135: =IF($A135>0,'Asset data'!G135,0) -> 51 | P135: 546837.8091 | Q135: 0.2435418612 | R135: 5.1 | S135: 10.2 | T135: 30.6 | U135: 40.8 | W135: =IF($A135>0,SUMIF('Age profile (years)'!$CT135:$GF135,"<" & R135+0.5,'Asset data'!$CX135:$GJ135),0) -> 340.3907931 | X135: =IF($A135>0,SUMIF('Age profile (years)'!$CT135:$GF135,"<" & S135+0.5,'Asset data'!$CX135:$GJ135)-W135,0) -> 0 | Y135: =IF($A135>0,SUMIF('Age profile (years)'!$CT135:$GF135,"<" & T135+0.5,'Asset data'!$CX135:$GJ135)-X135-W135,0) -> 2382.735552 | Z135: =IF($A135>0,SUMIF('Age profile (years)'!$CT135:$GF135,"<" & U135+0.5,'Asset data'!$CX135:$GJ135)-Y135-X135-W135,0) -> 1077.904178 | AA135: 6921.27946 | AB135: 0.03174603175 | AC135: 0 | AD135: 0.2222222222 | AE135: 0.1005291005 | AF135: 0.6455026455 | AI135: =IF($A135>0,'RRR hist-forc'!K135,0) -> 51 | AJ135: 546837.8091
A136: ='Asset data'!A136 -> 0 | B136: ='Asset data'!B136 -> 0 | C136: ='Asset data'!C136 -> 0 | D136: ='Asset data'!E136 -> > 66 kV & < = 132 kV ; SWITCH | E136: 0 | F136: =IF(A136>0,SUM('Asset data'!J136:CV136),0) -> 0 | G136: =IF(A136>0,'Asset data'!F136,0) -> 0 | H136: =IF(A136>0,SUM('Asset data'!CX136:GJ136),0) -> 0 | I136: 0 | J136: 0 | K136: 0 | L136: 0 | M136: =IF($A136>0,SUMPRODUCT('Age profile (years)'!$CT136:$GF136,'Asset data'!$CX136:$GJ136)/H136-0.5,0) -> 0 | N136: 0 | O136: =IF($A136>0,'Asset data'!G136,0) -> 0 | P136: 0 | Q136: 0 | R136: 0 | S136: 0 | T136: 0 | U136: 0 | W136: =IF($A136>0,SUMIF('Age profile (years)'!$CT136:$GF136,"<" & R136+0.5,'Asset data'!$CX136:$GJ136),0) -> 0 | X136: =IF($A136>0,SUMIF('Age profile (years)'!$CT136:$GF136,"<" & S136+0.5,'Asset data'!$CX136:$GJ136)-W136,0) -> 0 | Y136: =IF($A136>0,SUMIF('Age profile (years)'!$CT136:$GF136,"<" & T136+0.5,'Asset data'!$CX136:$GJ136)-X136-W136,0) -> 0 | Z136: =IF($A136>0,SUMIF('Age profile (years)'!$CT136:$GF136,"<" & U136+0.5,'Asset data'!$CX136:$GJ136)-Y136-X136-W136,0) -> 0 | AA136: 0 | AB136: 0 | AC136: 0 | AD136: 0 | AE136: 0 | AF136: 0 | AI136: =IF($A136>0,'RRR hist-forc'!K136,0) -> 0 | AJ136: 0
A137: ='Asset data'!A137 -> 6 | B137: ='Asset data'!B137 -> 0 | C137: ='Asset data'!C137 -> 0 | D137: ='Asset data'!E137 -> > 66 kV & < = 132 kV ; CIRCUIT BREAKER | E137: SWITCHGEAR | F137: =IF(A137>0,SUM('Asset data'!J137:CV137),0) -> 355 | G137: =IF(A137>0,'Asset data'!F137,0) -> 56.06481715 | H137: =IF(A137>0,SUM('Asset data'!CX137:GJ137),0) -> 19903.01009 | I137: 0.002199706633 | J137: 36 | K137: 0.07441549863 | L137: 56.06481715 | M137: =IF($A137>0,SUMPRODUCT('Age profile (years)'!$CT137:$GF137,'Asset data'!$CX137:$GJ137)/H137-0.5,0) -> 41.4943662 | N137: 825862.789 | O137: =IF($A137>0,'Asset data'!G137,0) -> 51 | P137: 1015053.514 | Q137: 0.1863849765 | R137: 5.1 | S137: 10.2 | T137: 30.6 | U137: 40.8 | W137: =IF($A137>0,SUMIF('Age profile (years)'!$CT137:$GF137,"<" & R137+0.5,'Asset data'!$CX137:$GJ137),0) -> 448.5185372 | X137: =IF($A137>0,SUMIF('Age profile (years)'!$CT137:$GF137,"<" & S137+0.5,'Asset data'!$CX137:$GJ137)-W137,0) -> 56.06481715 | Y137: =IF($A137>0,SUMIF('Age profile (years)'!$CT137:$GF137,"<" & T137+0.5,'Asset data'!$CX137:$GJ137)-X137-W137,0) -> 2018.333417 | Z137: =IF($A137>0,SUMIF('Age profile (years)'!$CT137:$GF137,"<" & U137+0.5,'Asset data'!$CX137:$GJ137)-Y137-X137-W137,0) -> 3083.564943 | AA137: 14296.52837 | AB137: 0.02253521127 | AC137: 0.002816901408 | AD137: 0.1014084507 | AE137: 0.1549295775 | AF137: 0.7183098592 | AI137: =IF($A137>0,'RRR hist-forc'!K137,0) -> 51 | AJ137: 1015053.514
A138: ='Asset data'!A138 -> 0 | B138: ='Asset data'!B138 -> 0 | C138: ='Asset data'!C138 -> 0 | D138: ='Asset data'!E138 -> > 132 kV ; SWITCH | E138: 0 | F138: =IF(A138>0,SUM('Asset data'!J138:CV138),0) -> 0 | G138: =IF(A138>0,'Asset data'!F138,0) -> 0 | H138: =IF(A138>0,SUM('Asset data'!CX138:GJ138),0) -> 0 | I138: 0 | J138: 0 | K138: 0 | L138: 0 | M138: =IF($A138>0,SUMPRODUCT('Age profile (years)'!$CT138:$GF138,'Asset data'!$CX138:$GJ138)/H138-0.5,0) -> 0 | N138: 0 | O138: =IF($A138>0,'Asset data'!G138,0) -> 0 | P138: 0 | Q138: 0 | R138: 0 | S138: 0 | T138: 0 | U138: 0 | W138: =IF($A138>0,SUMIF('Age profile (years)'!$CT138:$GF138,"<" & R138+0.5,'Asset data'!$CX138:$GJ138),0) -> 0 | X138: =IF($A138>0,SUMIF('Age profile (years)'!$CT138:$GF138,"<" & S138+0.5,'Asset data'!$CX138:$GJ138)-W138,0) -> 0 | Y138: =IF($A138>0,SUMIF('Age profile (years)'!$CT138:$GF138,"<" & T138+0.5,'Asset data'!$CX138:$GJ138)-X138-W138,0) -> 0 | Z138: =IF($A138>0,SUMIF('Age profile (years)'!$CT138:$GF138,"<" & U138+0.5,'Asset data'!$CX138:$GJ138)-Y138-X138-W138,0) -> 0 | AA138: 0 | AB138: 0 | AC138: 0 | AD138: 0 | AE138: 0 | AF138: 0 | AI138: =IF($A138>0,'RRR hist-forc'!K138,0) -> 0 | AJ138: 0
A139: ='Asset data'!A139 -> 0 | B139: ='Asset data'!B139 -> 0 | C139: ='Asset data'!C139 -> 0 | D139: ='Asset data'!E139 -> > 132 kV ; CIRCUIT BREAKER | E139: 0 | F139: =IF(A139>0,SUM('Asset data'!J139:CV139),0) -> 0 | G139: =IF(A139>0,'Asset data'!F139,0) -> 0 | H139: =IF(A139>0,SUM('Asset data'!CX139:GJ139),0) -> 0 | I139: 0 | J139: 0 | K139: 0 | L139: 0 | M139: =IF($A139>0,SUMPRODUCT('Age profile (years)'!$CT139:$GF139,'Asset data'!$CX139:$GJ139)/H139-0.5,0) -> 0 | N139: 0 | O139: =IF($A139>0,'Asset data'!G139,0) -> 0 | P139: 0 | Q139: 0 | R139: 0 | S139: 0 | T139: 0 | U139: 0 | W139: =IF($A139>0,SUMIF('Age profile (years)'!$CT139:$GF139,"<" & R139+0.5,'Asset data'!$CX139:$GJ139),0) -> 0 | X139: =IF($A139>0,SUMIF('Age profile (years)'!$CT139:$GF139,"<" & S139+0.5,'Asset data'!$CX139:$GJ139)-W139,0) -> 0 | Y139: =IF($A139>0,SUMIF('Age profile (years)'!$CT139:$GF139,"<" & T139+0.5,'Asset data'!$CX139:$GJ139)-X139-W139,0) -> 0 | Z139: =IF($A139>0,SUMIF('Age profile (years)'!$CT139:$GF139,"<" & U139+0.5,'Asset data'!$CX139:$GJ139)-Y139-X139-W139,0) -> 0 | AA139: 0 | AB139: 0 | AC139: 0 | AD139: 0 | AE139: 0 | AF139: 0 | AI139: =IF($A139>0,'RRR hist-forc'!K139,0) -> 0 | AJ139: 0
A140: ='Asset data'!A140 -> 6 | B140: ='Asset data'!B140 -> 0 | C140: ='Asset data'!C140 -> 0 | D140: ='Asset data'!E140 -> Dist USL | E140: SWITCHGEAR | F140: =IF(A140>0,SUM('Asset data'!J140:CV140),0) -> 8816 | G140: =IF(A140>0,'Asset data'!F140,0) -> 0.6531745077 | H140: =IF(A140>0,SUM('Asset data'!CX140:GJ140),0) -> 5758.38646 | I140: 0.0006364243817 | J140: 49 | K140: 0.02153006997 | L140: 0.6531745077 | M140: =IF($A140>0,SUMPRODUCT('Age profile (years)'!$CT140:$GF140,'Asset data'!$CX140:$GJ140)/H140-0.5,0) -> 13.68784029 | N140: 78819.8742 | O140: =IF($A140>0,'Asset data'!G140,0) -> 35 | P140: 201543.5261 | Q140: 0.6089188488 | R140: 3.5 | S140: 7 | T140: 21 | U140: 28 | W140: =IF($A140>0,SUMIF('Age profile (years)'!$CT140:$GF140,"<" & R140+0.5,'Asset data'!$CX140:$GJ140),0) -> 1613.994209 | X140: =IF($A140>0,SUMIF('Age profile (years)'!$CT140:$GF140,"<" & S140+0.5,'Asset data'!$CX140:$GJ140)-W140,0) -> 381.4539125 | Y140: =IF($A140>0,SUMIF('Age profile (years)'!$CT140:$GF140,"<" & T140+0.5,'Asset data'!$CX140:$GJ140)-X140-W140,0) -> 1384.729956 | Z140: =IF($A140>0,SUMIF('Age profile (years)'!$CT140:$GF140,"<" & U140+0.5,'Asset data'!$CX140:$GJ140)-Y140-X140-W140,0) -> 1236.459343 | AA140: 1141.74904 | AB140: 0.2802858439 | AC140: 0.06624319419 | AD140: 0.2404718693 | AE140: 0.2147232305 | AF140: 0.1982758621 | AI140: =IF($A140>0,'RRR hist-forc'!K140,0) -> 35 | AJ140: 201543.5261
A141: ='Asset data'!A141 -> 6 | B141: ='Asset data'!B141 -> 0 | C141: ='Asset data'!C141 -> 0 | D141: ='Asset data'!E141 -> Dist ABS | E141: SWITCHGEAR | F141: =IF(A141>0,SUM('Asset data'!J141:CV141),0) -> 10560 | G141: =IF(A141>0,'Asset data'!F141,0) -> 3.988462568 | H141: =IF(A141>0,SUM('Asset data'!CX141:GJ141),0) -> 42118.16472 | I141: 0.004654954496 | J141: 28 | K141: 0.1574758901 | L141: 3.988462568 | M141: =IF($A141>0,SUMPRODUCT('Age profile (years)'!$CT141:$GF141,'Asset data'!$CX141:$GJ141)/H141-0.5,0) -> 18.33106061 | N141: 772070.6302 | O141: =IF($A141>0,'Asset data'!G141,0) -> 35 | P141: 1474135.765 | Q141: 0.4762554113 | R141: 3.5 | S141: 7 | T141: 21 | U141: 28 | W141: =IF($A141>0,SUMIF('Age profile (years)'!$CT141:$GF141,"<" & R141+0.5,'Asset data'!$CX141:$GJ141),0) -> 7115.417222 | X141: =IF($A141>0,SUMIF('Age profile (years)'!$CT141:$GF141,"<" & S141+0.5,'Asset data'!$CX141:$GJ141)-W141,0) -> 2823.831498 | Y141: =IF($A141>0,SUMIF('Age profile (years)'!$CT141:$GF141,"<" & T141+0.5,'Asset data'!$CX141:$GJ141)-X141-W141,0) -> 7949.005899 | Z141: =IF($A141>0,SUMIF('Age profile (years)'!$CT141:$GF141,"<" & U141+0.5,'Asset data'!$CX141:$GJ141)-Y141-X141-W141,0) -> 11299.31446 | AA141: 12930.59565 | AB141: 0.1689393939 | AC141: 0.06704545455 | AD141: 0.1887310606 | AE141: 0.2682765152 | AF141: 0.3070075758 | AI141: =IF($A141>0,'RRR hist-forc'!K141,0) -> 35 | AJ141: 1474135.765
A142: ='Asset data'!A142 -> 6 | B142: ='Asset data'!B142 -> 0 | C142: ='Asset data'!C142 -> 0 | D142: ='Asset data'!E142 -> Dist LBS | E142: SWITCHGEAR | F142: =IF(A142>0,SUM('Asset data'!J142:CV142),0) -> 1494 | G142: =IF(A142>0,'Asset data'!F142,0) -> 15.86917773 | H142: =IF(A142>0,SUM('Asset data'!CX142:GJ142),0) -> 23708.55153 | I142: 0.002620300036 | J142: 33 | K142: 0.08864406319 | L142: 15.86917773 | M142: =IF($A142>0,SUMPRODUCT('Age profile (years)'!$CT142:$GF142,'Asset data'!$CX142:$GJ142)/H142-0.5,0) -> 32.08701473 | N142: 760736.6421 | O142: =IF($A142>0,'Asset data'!G142,0) -> 35 | P142: 829799.3036 | Q142: 0.0832281507 | R142: 3.5 | S142: 7 | T142: 21 | U142: 28 | W142: =IF($A142>0,SUMIF('Age profile (years)'!$CT142:$GF142,"<" & R142+0.5,'Asset data'!$CX142:$GJ142),0) -> 285.6451992 | X142: =IF($A142>0,SUMIF('Age profile (years)'!$CT142:$GF142,"<" & S142+0.5,'Asset data'!$CX142:$GJ142)-W142,0) -> 31.73835546 | Y142: =IF($A142>0,SUMIF('Age profile (years)'!$CT142:$GF142,"<" & T142+0.5,'Asset data'!$CX142:$GJ142)-X142-W142,0) -> 47.60753319 | Z142: =IF($A142>0,SUMIF('Age profile (years)'!$CT142:$GF142,"<" & U142+0.5,'Asset data'!$CX142:$GJ142)-Y142-X142-W142,0) -> 317.3835546 | AA142: 23026.17689 | AB142: 0.01204819277 | AC142: 0.001338688086 | AD142: 0.002008032129 | AE142: 0.01338688086 | AF142: 0.9712182062 | AI142: =IF($A142>0,'RRR hist-forc'!K142,0) -> 35 | AJ142: 829799.3036
A143: ='Asset data'!A143 -> 6 | B143: ='Asset data'!B143 -> 0 | C143: ='Asset data'!C143 -> 0 | D143: ='Asset data'!E143 -> Dist SEC | E143: SWITCHGEAR | F143: =IF(A143>0,SUM('Asset data'!J143:CV143),0) -> 27 | G143: =IF(A143>0,'Asset data'!F143,0) -> 3.29099951 | H143: =IF(A143>0,SUM('Asset data'!CX143:GJ143),0) -> 88.85698677 | I143: 9.820590067e-06 | J143: 61 | K143: 0.0003322279871 | L143: 3.29099951 | M143: =IF($A143>0,SUMPRODUCT('Age profile (years)'!$CT143:$GF143,'Asset data'!$CX143:$GJ143)/H143-0.5,0) -> 31.75925926 | N143: 2822.03208 | O143: =IF($A143>0,'Asset data'!G143,0) -> 35 | P143: 3109.994537 | Q143: 0.09259259259 | R143: 3.5 | S143: 7 | T143: 21 | U143: 28 | W143: =IF($A143>0,SUMIF('Age profile (years)'!$CT143:$GF143,"<" & R143+0.5,'Asset data'!$CX143:$GJ143),0) -> 0 | X143: =IF($A143>0,SUMIF('Age profile (years)'!$CT143:$GF143,"<" & S143+0.5,'Asset data'!$CX143:$GJ143)-W143,0) -> 0 | Y143: =IF($A143>0,SUMIF('Age profile (years)'!$CT143:$GF143,"<" & T143+0.5,'Asset data'!$CX143:$GJ143)-X143-W143,0) -> 0 | Z143: =IF($A143>0,SUMIF('Age profile (years)'!$CT143:$GF143,"<" & U143+0.5,'Asset data'!$CX143:$GJ143)-Y143-X143-W143,0) -> 0 | AA143: 88.85698677 | AB143: 0 | AC143: 0 | AD143: 0 | AE143: 0 | AF143: 1 | AI143: =IF($A143>0,'RRR hist-forc'!K143,0) -> 35 | AJ143: 3109.994537
A144: ='Asset data'!A144 -> 6 | B144: ='Asset data'!B144 -> 0 | C144: ='Asset data'!C144 -> 0 | D144: ='Asset data'!E144 -> Dist REC | E144: SWITCHGEAR | F144: =IF(A144>0,SUM('Asset data'!J144:CV144),0) -> 339 | G144: =IF(A144>0,'Asset data'!F144,0) -> 14.65024899 | H144: =IF(A144>0,SUM('Asset data'!CX144:GJ144),0) -> 4966.434408 | I144: 0.0005488968081 | J144: 50 | K144: 0.0185690351 | L144: 14.65024899 | M144: =IF($A144>0,SUMPRODUCT('Age profile (years)'!$CT144:$GF144,'Asset data'!$CX144:$GJ144)/H144-0.5,0) -> 27.60324484 | N144: 137089.7049 | O144: =IF($A144>0,'Asset data'!G144,0) -> 35 | P144: 173825.2043 | Q144: 0.2113358618 | R144: 3.5 | S144: 7 | T144: 21 | U144: 28 | W144: =IF($A144>0,SUMIF('Age profile (years)'!$CT144:$GF144,"<" & R144+0.5,'Asset data'!$CX144:$GJ144),0) -> 0 | X144: =IF($A144>0,SUMIF('Age profile (years)'!$CT144:$GF144,"<" & S144+0.5,'Asset data'!$CX144:$GJ144)-W144,0) -> 0 | Y144: =IF($A144>0,SUMIF('Age profile (years)'!$CT144:$GF144,"<" & T144+0.5,'Asset data'!$CX144:$GJ144)-X144-W144,0) -> 131.8522409 | Z144: =IF($A144>0,SUMIF('Age profile (years)'!$CT144:$GF144,"<" & U144+0.5,'Asset data'!$CX144:$GJ144)-Y144-X144-W144,0) -> 2680.995565 | AA144: 2153.586602 | AB144: 0 | AC144: 0 | AD144: 0.02654867257 | AE144: 0.5398230088 | AF144: 0.4336283186 | AI144: =IF($A144>0,'RRR hist-forc'!K144,0) -> 35 | AJ144: 173825.2043
A145: ='Asset data'!A145 -> 6 | B145: ='Asset data'!B145 -> 0 | C145: ='Asset data'!C145 -> 0 | D145: ='Asset data'!E145 -> Transmission ABS | E145: SWITCHGEAR | F145: =IF(A145>0,SUM('Asset data'!J145:CV145),0) -> 142 | G145: =IF(A145>0,'Asset data'!F145,0) -> 5.823902104 | H145: =IF(A145>0,SUM('Asset data'!CX145:GJ145),0) -> 826.9940987 | I145: 9.140046637e-05 | J145: 55 | K145: 0.003092053812 | L145: 5.823902104 | M145: =IF($A145>0,SUMPRODUCT('Age profile (years)'!$CT145:$GF145,'Asset data'!$CX145:$GJ145)/H145-0.5,0) -> 25.8943662 | N145: 21414.48803 | O145: =IF($A145>0,'Asset data'!G145,0) -> 35 | P145: 28944.79345 | Q145: 0.2601609658 | R145: 3.5 | S145: 7 | T145: 21 | U145: 28 | W145: =IF($A145>0,SUMIF('Age profile (years)'!$CT145:$GF145,"<" & R145+0.5,'Asset data'!$CX145:$GJ145),0) -> 23.29560841 | X145: =IF($A145>0,SUMIF('Age profile (years)'!$CT145:$GF145,"<" & S145+0.5,'Asset data'!$CX145:$GJ145)-W145,0) -> 34.94341262 | Y145: =IF($A145>0,SUMIF('Age profile (years)'!$CT145:$GF145,"<" & T145+0.5,'Asset data'!$CX145:$GJ145)-X145-W145,0) -> 46.59121683 | Z145: =IF($A145>0,SUMIF('Age profile (years)'!$CT145:$GF145,"<" & U145+0.5,'Asset data'!$CX145:$GJ145)-Y145-X145-W145,0) -> 279.547301 | AA145: 442.6165599 | AB145: 0.02816901408 | AC145: 0.04225352113 | AD145: 0.05633802817 | AE145: 0.338028169 | AF145: 0.5352112676 | AI145: =IF($A145>0,'RRR hist-forc'!K145,0) -> 35 | AJ145: 28944.79345
A146: ='Asset data'!A146 -> 6 | B146: ='Asset data'!B146 -> 0 | C146: ='Asset data'!C146 -> 0 | D146: ='Asset data'!E146 -> Transmission USL | E146: SWITCHGEAR | F146: =IF(A146>0,SUM('Asset data'!J146:CV146),0) -> 34 | G146: =IF(A146>0,'Asset data'!F146,0) -> 1e-14 | H146: =IF(A146>0,SUM('Asset data'!CX146:GJ146),0) -> 3.4e-13 | I146: 3.757724343e-20 | J146: 69 | K146: 1.271228293e-18 | L146: 1e-14 | M146: =IF($A146>0,SUMPRODUCT('Age profile (years)'!$CT146:$GF146,'Asset data'!$CX146:$GJ146)/H146-0.5,0) -> 26.32352941 | N146: 8.95e-12 | O146: =IF($A146>0,'Asset data'!G146,0) -> 35 | P146: 1.19e-11 | Q146: 0.2478991597 | R146: 3.5 | S146: 7 | T146: 21 | U146: 28 | W146: =IF($A146>0,SUMIF('Age profile (years)'!$CT146:$GF146,"<" & R146+0.5,'Asset data'!$CX146:$GJ146),0) -> 0 | X146: =IF($A146>0,SUMIF('Age profile (years)'!$CT146:$GF146,"<" & S146+0.5,'Asset data'!$CX146:$GJ146)-W146,0) -> 0 | Y146: =IF($A146>0,SUMIF('Age profile (years)'!$CT146:$GF146,"<" & T146+0.5,'Asset data'!$CX146:$GJ146)-X146-W146,0) -> 0 | Z146: =IF($A146>0,SUMIF('Age profile (years)'!$CT146:$GF146,"<" & U146+0.5,'Asset data'!$CX146:$GJ146)-Y146-X146-W146,0) -> 3e-13 | AA146: 4e-14 | AB146: 0 | AC146: 0 | AD146: 0 | AE146: 0.8823529412 | AF146: 0.1176470588 | AI146: =IF($A146>0,'RRR hist-forc'!K146,0) -> 35 | AJ146: 1.19e-11
A147: ='Asset data'!A147 -> 6 | B147: ='Asset data'!B147 -> 0 | C147: ='Asset data'!C147 -> 0 | D147: ='Asset data'!E147 -> Transmission DOF | E147: SWITCHGEAR | F147: =IF(A147>0,SUM('Asset data'!J147:CV147),0) -> 3 | G147: =IF(A147>0,'Asset data'!F147,0) -> 1e-14 | H147: =IF(A147>0,SUM('Asset data'!CX147:GJ147),0) -> 3e-14 | I147: 3.315639126e-21 | J147: 70 | K147: 1.121672023e-19 | L147: 1e-14 | M147: =IF($A147>0,SUMPRODUCT('Age profile (years)'!$CT147:$GF147,'Asset data'!$CX147:$GJ147)/H147-0.5,0) -> 24.83333333 | N147: 7.45e-13 | O147: =IF($A147>0,'Asset data'!G147,0) -> 35 | P147: 1.05e-12 | Q147: 0.2904761905 | R147: 3.5 | S147: 7 | T147: 21 | U147: 28 | W147: =IF($A147>0,SUMIF('Age profile (years)'!$CT147:$GF147,"<" & R147+0.5,'Asset data'!$CX147:$GJ147),0) -> 0 | X147: =IF($A147>0,SUMIF('Age profile (years)'!$CT147:$GF147,"<" & S147+0.5,'Asset data'!$CX147:$GJ147)-W147,0) -> 0 | Y147: =IF($A147>0,SUMIF('Age profile (years)'!$CT147:$GF147,"<" & T147+0.5,'Asset data'!$CX147:$GJ147)-X147-W147,0) -> 1e-14 | Z147: =IF($A147>0,SUMIF('Age profile (years)'!$CT147:$GF147,"<" & U147+0.5,'Asset data'!$CX147:$GJ147)-Y147-X147-W147,0) -> 1e-14 | AA147: 1e-14 | AB147: 0 | AC147: 0 | AD147: 0.3333333333 | AE147: 0.3333333333 | AF147: 0.3333333333 | AI147: =IF($A147>0,'RRR hist-forc'!K147,0) -> 35 | AJ147: 1.05e-12
A148: ='Asset data'!A148 -> 6 | B148: ='Asset data'!B148 -> 0 | C148: ='Asset data'!C148 -> 0 | D148: ='Asset data'!E148 -> LV Links | E148: SWITCHGEAR | F148: =IF(A148>0,SUM('Asset data'!J148:CV148),0) -> 43399 | G148: =IF(A148>0,'Asset data'!F148,0) -> 0.3376587391 | H148: =IF(A148>0,SUM('Asset data'!CX148:GJ148),0) -> 14654.05162 | I148: 0.001619584897 | J148: 39 | K148: 0.05479013242 | L148: 0.3376587391 | M148: =IF($A148>0,SUMPRODUCT('Age profile (years)'!$CT148:$GF148,'Asset data'!$CX148:$GJ148)/H148-0.5,0) -> 8.271930229 | N148: 121217.2926 | O148: =IF($A148>0,'Asset data'!G148,0) -> 35 | P148: 512891.8067 | Q148: 0.7636591363 | R148: 3.5 | S148: 7 | T148: 21 | U148: 28 | W148: =IF($A148>0,SUMIF('Age profile (years)'!$CT148:$GF148,"<" & R148+0.5,'Asset data'!$CX148:$GJ148),0) -> 6489.125648 | X148: =IF($A148>0,SUMIF('Age profile (years)'!$CT148:$GF148,"<" & S148+0.5,'Asset data'!$CX148:$GJ148)-W148,0) -> 1583.281828 | Y148: =IF($A148>0,SUMIF('Age profile (years)'!$CT148:$GF148,"<" & T148+0.5,'Asset data'!$CX148:$GJ148)-X148-W148,0) -> 3088.564487 | Z148: =IF($A148>0,SUMIF('Age profile (years)'!$CT148:$GF148,"<" & U148+0.5,'Asset data'!$CX148:$GJ148)-Y148-X148-W148,0) -> 1579.229923 | AA148: 1913.849733 | AB148: 0.4428212632 | AC148: 0.1080439641 | AD148: 0.210765225 | AE148: 0.1077674601 | AF148: 0.1306020876 | AI148: =IF($A148>0,'RRR hist-forc'!K148,0) -> 35 | AJ148: 512891.8067
A149: ='Asset data'!A149 -> 0 | B149: ='Asset data'!B149 -> 0 | C149: ='Asset data'!C149 -> 0 | D149: ='Asset data'!E149 -> 0 | E149: 0 | F149: =IF(A149>0,SUM('Asset data'!J149:CV149),0) -> 0 | G149: =IF(A149>0,'Asset data'!F149,0) -> 0 | H149: =IF(A149>0,SUM('Asset data'!CX149:GJ149),0) -> 0 | I149: 0 | J149: 0 | K149: 0 | L149: 0 | M149: =IF($A149>0,SUMPRODUCT('Age profile (years)'!$CT149:$GF149,'Asset data'!$CX149:$GJ149)/H149-0.5,0) -> 0 | N149: 0 | O149: =IF($A149>0,'Asset data'!G149,0) -> 0 | P149: 0 | Q149: 0 | R149: 0 | S149: 0 | T149: 0 | U149: 0 | W149: =IF($A149>0,SUMIF('Age profile (years)'!$CT149:$GF149,"<" & R149+0.5,'Asset data'!$CX149:$GJ149),0) -> 0 | X149: =IF($A149>0,SUMIF('Age profile (years)'!$CT149:$GF149,"<" & S149+0.5,'Asset data'!$CX149:$GJ149)-W149,0) -> 0 | Y149: =IF($A149>0,SUMIF('Age profile (years)'!$CT149:$GF149,"<" & T149+0.5,'Asset data'!$CX149:$GJ149)-X149-W149,0) -> 0 | Z149: =IF($A149>0,SUMIF('Age profile (years)'!$CT149:$GF149,"<" & U149+0.5,'Asset data'!$CX149:$GJ149)-Y149-X149-W149,0) -> 0 | AA149: 0 | AB149: 0 | AC149: 0 | AD149: 0 | AE149: 0 | AF149: 0 | AI149: =IF($A149>0,'RRR hist-forc'!K149,0) -> 0 | AJ149: 0
A150: ='Asset data'!A150 -> 0 | B150: ='Asset data'!B150 -> 0 | C150: ='Asset data'!C150 -> 0 | D150: ='Asset data'!E150 -> 0 | E150: 0 | F150: =IF(A150>0,SUM('Asset data'!J150:CV150),0) -> 0 | G150: =IF(A150>0,'Asset data'!F150,0) -> 0 | H150: =IF(A150>0,SUM('Asset data'!CX150:GJ150),0) -> 0 | I150: 0 | J150: 0 | K150: 0 | L150: 0 | M150: =IF($A150>0,SUMPRODUCT('Age profile (years)'!$CT150:$GF150,'Asset data'!$CX150:$GJ150)/H150-0.5,0) -> 0 | N150: 0 | O150: =IF($A150>0,'Asset data'!G150,0) -> 0 | P150: 0 | Q150: 0 | R150: 0 | S150: 0 | T150: 0 | U150: 0 | W150: =IF($A150>0,SUMIF('Age profile (years)'!$CT150:$GF150,"<" & R150+0.5,'Asset data'!$CX150:$GJ150),0) -> 0 | X150: =IF($A150>0,SUMIF('Age profile (years)'!$CT150:$GF150,"<" & S150+0.5,'Asset data'!$CX150:$GJ150)-W150,0) -> 0 | Y150: =IF($A150>0,SUMIF('Age profile (years)'!$CT150:$GF150,"<" & T150+0.5,'Asset data'!$CX150:$GJ150)-X150-W150,0) -> 0 | Z150: =IF($A150>0,SUMIF('Age profile (years)'!$CT150:$GF150,"<" & U150+0.5,'Asset data'!$CX150:$GJ150)-Y150-X150-W150,0) -> 0 | AA150: 0 | AB150: 0 | AC150: 0 | AD150: 0 | AE150: 0 | AF150: 0 | AI150: =IF($A150>0,'RRR hist-forc'!K150,0) -> 0 | AJ150: 0
A151: ='Asset data'!A151 -> 0 | B151: ='Asset data'!B151 -> 0 | C151: ='Asset data'!C151 -> 0 | D151: ='Asset data'!E151 -> 0 | E151: =IF(A151>0,VLOOKUP(A151,IDtable,2),0) -> 0 | F151: =IF(A151>0,SUM('Asset data'!J151:CV151),0) -> 0 | G151: =IF(A151>0,'Asset data'!F151,0) -> 0 | H151: =IF(A151>0,SUM('Asset data'!CX151:GJ151),0) -> 0 | I151: =H151/$H$18/1000 -> 0 | J151: =IF(RANK(0,I$21:I$205)=RANK(I151,I$21:I$205),0,RANK(I151,I$21:I$205)) -> 0 | K151: =IF(A151>0,H151/(VLOOKUP(A151,$A$6:$H$17,8)*1000),0) -> 0 | L151: =IF($A151>0,H151/F151,0) -> 0 | M151: =IF($A151>0,SUMPRODUCT('Age profile (years)'!$CT151:$GF151,'Asset data'!$CX151:$GJ151)/H151-0.5,0) -> 0 | N151: =IF($A151>0,M151*H151,0) -> 0 | O151: =IF($A151>0,'Asset data'!G151,0) -> 0 | P151: =IF($A151>0,H151*O151,0) -> 0 | Q151: =IF($A151>0,(O151-M151)/O151,0) -> 0 | R151: 0 | S151: 0 | T151: 0 | U151: 0 | W151: =IF($A151>0,SUMIF('Age profile (years)'!$CT151:$GF151,"<" & R151+0.5,'Asset data'!$CX151:$GJ151),0) -> 0 | X151: =IF($A151>0,SUMIF('Age profile (years)'!$CT151:$GF151,"<" & S151+0.5,'Asset data'!$CX151:$GJ151)-W151,0) -> 0 | Y151: =IF($A151>0,SUMIF('Age profile (years)'!$CT151:$GF151,"<" & T151+0.5,'Asset data'!$CX151:$GJ151)-X151-W151,0) -> 0 | Z151: =IF($A151>0,SUMIF('Age profile (years)'!$CT151:$GF151,"<" & U151+0.5,'Asset data'!$CX151:$GJ151)-Y151-X151-W151,0) -> 0 | AA151: =IF($A151>0,H151-Z151-Y151-X151-W151,0) -> 0 | AB151: =IF($A151>0,W151/$H151,0) -> 0 | AC151: =IF($A151>0,X151/$H151,0) -> 0 | AD151: =IF($A151>0,Y151/$H151,0) -> 0 | AE151: =IF($A151>0,Z151/$H151,0) -> 0 | AF151: =IF($A151>0,AA151/$H151,0) -> 0 | AI151: =IF($A151>0,'RRR hist-forc'!K151,0) -> 0 | AJ151: =IF($A151>0,AI151*H151,0) -> 0
A152: ='Asset data'!A152 -> 0 | B152: ='Asset data'!B152 -> 0 | C152: ='Asset data'!C152 -> 0 | D152: ='Asset data'!E152 -> 0 | E152: 0 | F152: =IF(A152>0,SUM('Asset data'!J152:CV152),0) -> 0 | G152: =IF(A152>0,'Asset data'!F152,0) -> 0 | H152: =IF(A152>0,SUM('Asset data'!CX152:GJ152),0) -> 0 | I152: 0 | J152: 0 | K152: 0 | L152: 0 | M152: =IF($A152>0,SUMPRODUCT('Age profile (years)'!$CT152:$GF152,'Asset data'!$CX152:$GJ152)/H152-0.5,0) -> 0 | N152: 0 | O152: =IF($A152>0,'Asset data'!G152,0) -> 0 | P152: 0 | Q152: 0 | R152: 0 | S152: 0 | T152: 0 | U152: 0 | W152: =IF($A152>0,SUMIF('Age profile (years)'!$CT152:$GF152,"<" & R152+0.5,'Asset data'!$CX152:$GJ152),0) -> 0 | X152: =IF($A152>0,SUMIF('Age profile (years)'!$CT152:$GF152,"<" & S152+0.5,'Asset data'!$CX152:$GJ152)-W152,0) -> 0 | Y152: =IF($A152>0,SUMIF('Age profile (years)'!$CT152:$GF152,"<" & T152+0.5,'Asset data'!$CX152:$GJ152)-X152-W152,0) -> 0 | Z152: =IF($A152>0,SUMIF('Age profile (years)'!$CT152:$GF152,"<" & U152+0.5,'Asset data'!$CX152:$GJ152)-Y152-X152-W152,0) -> 0 | AA152: 0 | AB152: 0 | AC152: 0 | AD152: 0 | AE152: 0 | AF152: 0 | AI152: =IF($A152>0,'RRR hist-forc'!K152,0) -> 0 | AJ152: 0
A153: ='Asset data'!A153 -> 0 | B153: ='Asset data'!B153 -> 0 | C153: ='Asset data'!C153 -> 0 | D153: ='Asset data'!E153 -> 0 | E153: 0 | F153: =IF(A153>0,SUM('Asset data'!J153:CV153),0) -> 0 | G153: =IF(A153>0,'Asset data'!F153,0) -> 0 | H153: =IF(A153>0,SUM('Asset data'!CX153:GJ153),0) -> 0 | I153: 0 | J153: 0 | K153: 0 | L153: 0 | M153: =IF($A153>0,SUMPRODUCT('Age profile (years)'!$CT153:$GF153,'Asset data'!$CX153:$GJ153)/H153-0.5,0) -> 0 | N153: 0 | O153: =IF($A153>0,'Asset data'!G153,0) -> 0 | P153: 0 | Q153: 0 | R153: 0 | S153: 0 | T153: 0 | U153: 0 | W153: =IF($A153>0,SUMIF('Age profile (years)'!$CT153:$GF153,"<" & R153+0.5,'Asset data'!$CX153:$GJ153),0) -> 0 | X153: =IF($A153>0,SUMIF('Age profile (years)'!$CT153:$GF153,"<" & S153+0.5,'Asset data'!$CX153:$GJ153)-W153,0) -> 0 | Y153: =IF($A153>0,SUMIF('Age profile (years)'!$CT153:$GF153,"<" & T153+0.5,'Asset data'!$CX153:$GJ153)-X153-W153,0) -> 0 | Z153: =IF($A153>0,SUMIF('Age profile (years)'!$CT153:$GF153,"<" & U153+0.5,'Asset data'!$CX153:$GJ153)-Y153-X153-W153,0) -> 0 | AA153: 0 | AB153: 0 | AC153: 0 | AD153: 0 | AE153: 0 | AF153: 0 | AI153: =IF($A153>0,'RRR hist-forc'!K153,0) -> 0 | AJ153: 0
A154: ='Asset data'!A154 -> 0 | B154: ='Asset data'!B154 -> 0 | C154: ='Asset data'!C154 -> 0 | D154: ='Asset data'!E154 -> 0 | E154: 0 | F154: =IF(A154>0,SUM('Asset data'!J154:CV154),0) -> 0 | G154: =IF(A154>0,'Asset data'!F154,0) -> 0 | H154: =IF(A154>0,SUM('Asset data'!CX154:GJ154),0) -> 0 | I154: 0 | J154: 0 | K154: 0 | L154: 0 | M154: =IF($A154>0,SUMPRODUCT('Age profile (years)'!$CT154:$GF154,'Asset data'!$CX154:$GJ154)/H154-0.5,0) -> 0 | N154: 0 | O154: =IF($A154>0,'Asset data'!G154,0) -> 0 | P154: 0 | Q154: 0 | R154: 0 | S154: 0 | T154: 0 | U154: 0 | W154: =IF($A154>0,SUMIF('Age profile (years)'!$CT154:$GF154,"<" & R154+0.5,'Asset data'!$CX154:$GJ154),0) -> 0 | X154: =IF($A154>0,SUMIF('Age profile (years)'!$CT154:$GF154,"<" & S154+0.5,'Asset data'!$CX154:$GJ154)-W154,0) -> 0 | Y154: =IF($A154>0,SUMIF('Age profile (years)'!$CT154:$GF154,"<" & T154+0.5,'Asset data'!$CX154:$GJ154)-X154-W154,0) -> 0 | Z154: =IF($A154>0,SUMIF('Age profile (years)'!$CT154:$GF154,"<" & U154+0.5,'Asset data'!$CX154:$GJ154)-Y154-X154-W154,0) -> 0 | AA154: 0 | AB154: 0 | AC154: 0 | AD154: 0 | AE154: 0 | AF154: 0 | AI154: =IF($A154>0,'RRR hist-forc'!K154,0) -> 0 | AJ154: 0
A155: ='Asset data'!A155 -> 0 | B155: ='Asset data'!B155 -> 0 | C155: ='Asset data'!C155 -> 0 | D155: ='Asset data'!E155 -> 0 | E155: 0 | F155: =IF(A155>0,SUM('Asset data'!J155:CV155),0) -> 0 | G155: =IF(A155>0,'Asset data'!F155,0) -> 0 | H155: =IF(A155>0,SUM('Asset data'!CX155:GJ155),0) -> 0 | I155: 0 | J155: 0 | K155: 0 | L155: 0 | M155: =IF($A155>0,SUMPRODUCT('Age profile (years)'!$CT155:$GF155,'Asset data'!$CX155:$GJ155)/H155-0.5,0) -> 0 | N155: 0 | O155: =IF($A155>0,'Asset data'!G155,0) -> 0 | P155: 0 | Q155: 0 | R155: 0 | S155: 0 | T155: 0 | U155: 0 | W155: =IF($A155>0,SUMIF('Age profile (years)'!$CT155:$GF155,"<" & R155+0.5,'Asset data'!$CX155:$GJ155),0) -> 0 | X155: =IF($A155>0,SUMIF('Age profile (years)'!$CT155:$GF155,"<" & S155+0.5,'Asset data'!$CX155:$GJ155)-W155,0) -> 0 | Y155: =IF($A155>0,SUMIF('Age profile (years)'!$CT155:$GF155,"<" & T155+0.5,'Asset data'!$CX155:$GJ155)-X155-W155,0) -> 0 | Z155: =IF($A155>0,SUMIF('Age profile (years)'!$CT155:$GF155,"<" & U155+0.5,'Asset data'!$CX155:$GJ155)-Y155-X155-W155,0) -> 0 | AA155: 0 | AB155: 0 | AC155: 0 | AD155: 0 | AE155: 0 | AF155: 0 | AI155: =IF($A155>0,'RRR hist-forc'!K155,0) -> 0 | AJ155: 0
A156: ='Asset data'!A156 -> 0 | B156: ='Asset data'!B156 -> 0 | C156: ='Asset data'!C156 -> 0 | D156: ='Asset data'!E156 -> 0 | E156: 0 | F156: =IF(A156>0,SUM('Asset data'!J156:CV156),0) -> 0 | G156: =IF(A156>0,'Asset data'!F156,0) -> 0 | H156: =IF(A156>0,SUM('Asset data'!CX156:GJ156),0) -> 0 | I156: 0 | J156: 0 | K156: 0 | L156: 0 | M156: =IF($A156>0,SUMPRODUCT('Age profile (years)'!$CT156:$GF156,'Asset data'!$CX156:$GJ156)/H156-0.5,0) -> 0 | N156: 0 | O156: =IF($A156>0,'Asset data'!G156,0) -> 0 | P156: 0 | Q156: 0 | R156: 0 | S156: 0 | T156: 0 | U156: 0 | W156: =IF($A156>0,SUMIF('Age profile (years)'!$CT156:$GF156,"<" & R156+0.5,'Asset data'!$CX156:$GJ156),0) -> 0 | X156: =IF($A156>0,SUMIF('Age profile (years)'!$CT156:$GF156,"<" & S156+0.5,'Asset data'!$CX156:$GJ156)-W156,0) -> 0 | Y156: =IF($A156>0,SUMIF('Age profile (years)'!$CT156:$GF156,"<" & T156+0.5,'Asset data'!$CX156:$GJ156)-X156-W156,0) -> 0 | Z156: =IF($A156>0,SUMIF('Age profile (years)'!$CT156:$GF156,"<" & U156+0.5,'Asset data'!$CX156:$GJ156)-Y156-X156-W156,0) -> 0 | AA156: 0 | AB156: 0 | AC156: 0 | AD156: 0 | AE156: 0 | AF156: 0 | AI156: =IF($A156>0,'RRR hist-forc'!K156,0) -> 0 | AJ156: 0
A157: ='Asset data'!A157 -> 0 | B157: ='Asset data'!B157 -> 0 | C157: ='Asset data'!C157 -> 0 | D157: ='Asset data'!E157 -> 0 | E157: 0 | F157: =IF(A157>0,SUM('Asset data'!J157:CV157),0) -> 0 | G157: =IF(A157>0,'Asset data'!F157,0) -> 0 | H157: =IF(A157>0,SUM('Asset data'!CX157:GJ157),0) -> 0 | I157: 0 | J157: 0 | K157: 0 | L157: 0 | M157: =IF($A157>0,SUMPRODUCT('Age profile (years)'!$CT157:$GF157,'Asset data'!$CX157:$GJ157)/H157-0.5,0) -> 0 | N157: 0 | O157: =IF($A157>0,'Asset data'!G157,0) -> 0 | P157: 0 | Q157: 0 | R157: 0 | S157: 0 | T157: 0 | U157: 0 | W157: =IF($A157>0,SUMIF('Age profile (years)'!$CT157:$GF157,"<" & R157+0.5,'Asset data'!$CX157:$GJ157),0) -> 0 | X157: =IF($A157>0,SUMIF('Age profile (years)'!$CT157:$GF157,"<" & S157+0.5,'Asset data'!$CX157:$GJ157)-W157,0) -> 0 | Y157: =IF($A157>0,SUMIF('Age profile (years)'!$CT157:$GF157,"<" & T157+0.5,'Asset data'!$CX157:$GJ157)-X157-W157,0) -> 0 | Z157: =IF($A157>0,SUMIF('Age profile (years)'!$CT157:$GF157,"<" & U157+0.5,'Asset data'!$CX157:$GJ157)-Y157-X157-W157,0) -> 0 | AA157: 0 | AB157: 0 | AC157: 0 | AD157: 0 | AE157: 0 | AF157: 0 | AI157: =IF($A157>0,'RRR hist-forc'!K157,0) -> 0 | AJ157: 0
A158: ='Asset data'!A158 -> 0 | B158: ='Asset data'!B158 -> 0 | C158: ='Asset data'!C158 -> 0 | D158: ='Asset data'!E158 -> 0 | E158: 0 | F158: =IF(A158>0,SUM('Asset data'!J158:CV158),0) -> 0 | G158: =IF(A158>0,'Asset data'!F158,0) -> 0 | H158: =IF(A158>0,SUM('Asset data'!CX158:GJ158),0) -> 0 | I158: 0 | J158: 0 | K158: 0 | L158: 0 | M158: =IF($A158>0,SUMPRODUCT('Age profile (years)'!$CT158:$GF158,'Asset data'!$CX158:$GJ158)/H158-0.5,0) -> 0 | N158: 0 | O158: =IF($A158>0,'Asset data'!G158,0) -> 0 | P158: 0 | Q158: 0 | R158: 0 | S158: 0 | T158: 0 | U158: 0 | W158: =IF($A158>0,SUMIF('Age profile (years)'!$CT158:$GF158,"<" & R158+0.5,'Asset data'!$CX158:$GJ158),0) -> 0 | X158: =IF($A158>0,SUMIF('Age profile (years)'!$CT158:$GF158,"<" & S158+0.5,'Asset data'!$CX158:$GJ158)-W158,0) -> 0 | Y158: =IF($A158>0,SUMIF('Age profile (years)'!$CT158:$GF158,"<" & T158+0.5,'Asset data'!$CX158:$GJ158)-X158-W158,0) -> 0 | Z158: =IF($A158>0,SUMIF('Age profile (years)'!$CT158:$GF158,"<" & U158+0.5,'Asset data'!$CX158:$GJ158)-Y158-X158-W158,0) -> 0 | AA158: 0 | AB158: 0 | AC158: 0 | AD158: 0 | AE158: 0 | AF158: 0 | AI158: =IF($A158>0,'RRR hist-forc'!K158,0) -> 0 | AJ158: 0
A159: ='Asset data'!A159 -> 0 | B159: ='Asset data'!B159 -> 0 | C159: ='Asset data'!C159 -> 0 | D159: ='Asset data'!E159 -> 0 | E159: 0 | F159: =IF(A159>0,SUM('Asset data'!J159:CV159),0) -> 0 | G159: =IF(A159>0,'Asset data'!F159,0) -> 0 | H159: =IF(A159>0,SUM('Asset data'!CX159:GJ159),0) -> 0 | I159: 0 | J159: 0 | K159: 0 | L159: 0 | M159: =IF($A159>0,SUMPRODUCT('Age profile (years)'!$CT159:$GF159,'Asset data'!$CX159:$GJ159)/H159-0.5,0) -> 0 | N159: 0 | O159: =IF($A159>0,'Asset data'!G159,0) -> 0 | P159: 0 | Q159: 0 | R159: 0 | S159: 0 | T159: 0 | U159: 0 | W159: =IF($A159>0,SUMIF('Age profile (years)'!$CT159:$GF159,"<" & R159+0.5,'Asset data'!$CX159:$GJ159),0) -> 0 | X159: =IF($A159>0,SUMIF('Age profile (years)'!$CT159:$GF159,"<" & S159+0.5,'Asset data'!$CX159:$GJ159)-W159,0) -> 0 | Y159: =IF($A159>0,SUMIF('Age profile (years)'!$CT159:$GF159,"<" & T159+0.5,'Asset data'!$CX159:$GJ159)-X159-W159,0) -> 0 | Z159: =IF($A159>0,SUMIF('Age profile (years)'!$CT159:$GF159,"<" & U159+0.5,'Asset data'!$CX159:$GJ159)-Y159-X159-W159,0) -> 0 | AA159: 0 | AB159: 0 | AC159: 0 | AD159: 0 | AE159: 0 | AF159: 0 | AI159: =IF($A159>0,'RRR hist-forc'!K159,0) -> 0 | AJ159: 0
A160: ='Asset data'!A160 -> 0 | B160: ='Asset data'!B160 -> 0 | C160: ='Asset data'!C160 -> 0 | D160: ='Asset data'!E160 -> 0 | E160: 0 | F160: =IF(A160>0,SUM('Asset data'!J160:CV160),0) -> 0 | G160: =IF(A160>0,'Asset data'!F160,0) -> 0 | H160: =IF(A160>0,SUM('Asset data'!CX160:GJ160),0) -> 0 | I160: 0 | J160: 0 | K160: 0 | L160: 0 | M160: =IF($A160>0,SUMPRODUCT('Age profile (years)'!$CT160:$GF160,'Asset data'!$CX160:$GJ160)/H160-0.5,0) -> 0 | N160: 0 | O160: =IF($A160>0,'Asset data'!G160,0) -> 0 | P160: 0 | Q160: 0 | R160: 0 | S160: 0 | T160: 0 | U160: 0 | W160: =IF($A160>0,SUMIF('Age profile (years)'!$CT160:$GF160,"<" & R160+0.5,'Asset data'!$CX160:$GJ160),0) -> 0 | X160: =IF($A160>0,SUMIF('Age profile (years)'!$CT160:$GF160,"<" & S160+0.5,'Asset data'!$CX160:$GJ160)-W160,0) -> 0 | Y160: =IF($A160>0,SUMIF('Age profile (years)'!$CT160:$GF160,"<" & T160+0.5,'Asset data'!$CX160:$GJ160)-X160-W160,0) -> 0 | Z160: =IF($A160>0,SUMIF('Age profile (years)'!$CT160:$GF160,"<" & U160+0.5,'Asset data'!$CX160:$GJ160)-Y160-X160-W160,0) -> 0 | AA160: 0 | AB160: 0 | AC160: 0 | AD160: 0 | AE160: 0 | AF160: 0 | AI160: =IF($A160>0,'RRR hist-forc'!K160,0) -> 0 | AJ160: 0
A161: ='Asset data'!A161 -> 0 | B161: ='Asset data'!B161 -> 0 | C161: ='Asset data'!C161 -> 0 | D161: ='Asset data'!E161 -> 0 | E161: 0 | F161: =IF(A161>0,SUM('Asset data'!J161:CV161),0) -> 0 | G161: =IF(A161>0,'Asset data'!F161,0) -> 0 | H161: =IF(A161>0,SUM('Asset data'!CX161:GJ161),0) -> 0 | I161: 0 | J161: 0 | K161: 0 | L161: 0 | M161: =IF($A161>0,SUMPRODUCT('Age profile (years)'!$CT161:$GF161,'Asset data'!$CX161:$GJ161)/H161-0.5,0) -> 0 | N161: 0 | O161: =IF($A161>0,'Asset data'!G161,0) -> 0 | P161: 0 | Q161: 0 | R161: 0 | S161: 0 | T161: 0 | U161: 0 | W161: =IF($A161>0,SUMIF('Age profile (years)'!$CT161:$GF161,"<" & R161+0.5,'Asset data'!$CX161:$GJ161),0) -> 0 | X161: =IF($A161>0,SUMIF('Age profile (years)'!$CT161:$GF161,"<" & S161+0.5,'Asset data'!$CX161:$GJ161)-W161,0) -> 0 | Y161: =IF($A161>0,SUMIF('Age profile (years)'!$CT161:$GF161,"<" & T161+0.5,'Asset data'!$CX161:$GJ161)-X161-W161,0) -> 0 | Z161: =IF($A161>0,SUMIF('Age profile (years)'!$CT161:$GF161,"<" & U161+0.5,'Asset data'!$CX161:$GJ161)-Y161-X161-W161,0) -> 0 | AA161: 0 | AB161: 0 | AC161: 0 | AD161: 0 | AE161: 0 | AF161: 0 | AI161: =IF($A161>0,'RRR hist-forc'!K161,0) -> 0 | AJ161: 0
A162: ='Asset data'!A162 -> 0 | B162: ='Asset data'!B162 -> 0 | C162: ='Asset data'!C162 -> 0 | D162: ='Asset data'!E162 -> 0 | E162: 0 | F162: =IF(A162>0,SUM('Asset data'!J162:CV162),0) -> 0 | G162: =IF(A162>0,'Asset data'!F162,0) -> 0 | H162: =IF(A162>0,SUM('Asset data'!CX162:GJ162),0) -> 0 | I162: 0 | J162: 0 | K162: 0 | L162: 0 | M162: =IF($A162>0,SUMPRODUCT('Age profile (years)'!$CT162:$GF162,'Asset data'!$CX162:$GJ162)/H162-0.5,0) -> 0 | N162: 0 | O162: =IF($A162>0,'Asset data'!G162,0) -> 0 | P162: 0 | Q162: 0 | R162: 0 | S162: 0 | T162: 0 | U162: 0 | W162: =IF($A162>0,SUMIF('Age profile (years)'!$CT162:$GF162,"<" & R162+0.5,'Asset data'!$CX162:$GJ162),0) -> 0 | X162: =IF($A162>0,SUMIF('Age profile (years)'!$CT162:$GF162,"<" & S162+0.5,'Asset data'!$CX162:$GJ162)-W162,0) -> 0 | Y162: =IF($A162>0,SUMIF('Age profile (years)'!$CT162:$GF162,"<" & T162+0.5,'Asset data'!$CX162:$GJ162)-X162-W162,0) -> 0 | Z162: =IF($A162>0,SUMIF('Age profile (years)'!$CT162:$GF162,"<" & U162+0.5,'Asset data'!$CX162:$GJ162)-Y162-X162-W162,0) -> 0 | AA162: 0 | AB162: 0 | AC162: 0 | AD162: 0 | AE162: 0 | AF162: 0 | AI162: =IF($A162>0,'RRR hist-forc'!K162,0) -> 0 | AJ162: 0
A163: ='Asset data'!A163 -> 0 | B163: ='Asset data'!B163 -> 0 | C163: ='Asset data'!C163 -> 0 | D163: ='Asset data'!E163 -> 0 | E163: 0 | F163: =IF(A163>0,SUM('Asset data'!J163:CV163),0) -> 0 | G163: =IF(A163>0,'Asset data'!F163,0) -> 0 | H163: =IF(A163>0,SUM('Asset data'!CX163:GJ163),0) -> 0 | I163: 0 | J163: 0 | K163: 0 | L163: 0 | M163: =IF($A163>0,SUMPRODUCT('Age profile (years)'!$CT163:$GF163,'Asset data'!$CX163:$GJ163)/H163-0.5,0) -> 0 | N163: 0 | O163: =IF($A163>0,'Asset data'!G163,0) -> 0 | P163: 0 | Q163: 0 | R163: 0 | S163: 0 | T163: 0 | U163: 0 | W163: =IF($A163>0,SUMIF('Age profile (years)'!$CT163:$GF163,"<" & R163+0.5,'Asset data'!$CX163:$GJ163),0) -> 0 | X163: =IF($A163>0,SUMIF('Age profile (years)'!$CT163:$GF163,"<" & S163+0.5,'Asset data'!$CX163:$GJ163)-W163,0) -> 0 | Y163: =IF($A163>0,SUMIF('Age profile (years)'!$CT163:$GF163,"<" & T163+0.5,'Asset data'!$CX163:$GJ163)-X163-W163,0) -> 0 | Z163: =IF($A163>0,SUMIF('Age profile (years)'!$CT163:$GF163,"<" & U163+0.5,'Asset data'!$CX163:$GJ163)-Y163-X163-W163,0) -> 0 | AA163: 0 | AB163: 0 | AC163: 0 | AD163: 0 | AE163: 0 | AF163: 0 | AI163: =IF($A163>0,'RRR hist-forc'!K163,0) -> 0 | AJ163: 0
A164: ='Asset data'!A164 -> 0 | B164: ='Asset data'!B164 -> 0 | C164: ='Asset data'!C164 -> 0 | D164: ='Asset data'!E164 -> 0 | E164: 0 | F164: =IF(A164>0,SUM('Asset data'!J164:CV164),0) -> 0 | G164: =IF(A164>0,'Asset data'!F164,0) -> 0 | H164: =IF(A164>0,SUM('Asset data'!CX164:GJ164),0) -> 0 | I164: 0 | J164: 0 | K164: 0 | L164: 0 | M164: =IF($A164>0,SUMPRODUCT('Age profile (years)'!$CT164:$GF164,'Asset data'!$CX164:$GJ164)/H164-0.5,0) -> 0 | N164: 0 | O164: =IF($A164>0,'Asset data'!G164,0) -> 0 | P164: 0 | Q164: 0 | R164: =IF($A164>0,$O164-R$4*$O164,0) -> 0 | S164: 0 | T164: 0 | U164: 0 | W164: =IF($A164>0,SUMIF('Age profile (years)'!$CT164:$GF164,"<" & R164+0.5,'Asset data'!$CX164:$GJ164),0) -> 0 | X164: =IF($A164>0,SUMIF('Age profile (years)'!$CT164:$GF164,"<" & S164+0.5,'Asset data'!$CX164:$GJ164)-W164,0) -> 0 | Y164: =IF($A164>0,SUMIF('Age profile (years)'!$CT164:$GF164,"<" & T164+0.5,'Asset data'!$CX164:$GJ164)-X164-W164,0) -> 0 | Z164: =IF($A164>0,SUMIF('Age profile (years)'!$CT164:$GF164,"<" & U164+0.5,'Asset data'!$CX164:$GJ164)-Y164-X164-W164,0) -> 0 | AA164: 0 | AB164: 0 | AC164: 0 | AD164: 0 | AE164: 0 | AF164: 0 | AI164: =IF($A164>0,'RRR hist-forc'!K164,0) -> 0 | AJ164: 0
A165: ='Asset data'!A165 -> 0 | B165: ='Asset data'!B165 -> 0 | C165: ='Asset data'!C165 -> 0 | D165: ='Asset data'!E165 -> 0 | E165: 0 | F165: =IF(A165>0,SUM('Asset data'!J165:CV165),0) -> 0 | G165: =IF(A165>0,'Asset data'!F165,0) -> 0 | H165: =IF(A165>0,SUM('Asset data'!CX165:GJ165),0) -> 0 | I165: 0 | J165: 0 | K165: 0 | L165: 0 | M165: =IF($A165>0,SUMPRODUCT('Age profile (years)'!$CT165:$GF165,'Asset data'!$CX165:$GJ165)/H165-0.5,0) -> 0 | N165: 0 | O165: =IF($A165>0,'Asset data'!G165,0) -> 0 | P165: 0 | Q165: 0 | R165: 0 | S165: 0 | T165: 0 | U165: 0 | W165: =IF($A165>0,SUMIF('Age profile (years)'!$CT165:$GF165,"<" & R165+0.5,'Asset data'!$CX165:$GJ165),0) -> 0 | X165: =IF($A165>0,SUMIF('Age profile (years)'!$CT165:$GF165,"<" & S165+0.5,'Asset data'!$CX165:$GJ165)-W165,0) -> 0 | Y165: =IF($A165>0,SUMIF('Age profile (years)'!$CT165:$GF165,"<" & T165+0.5,'Asset data'!$CX165:$GJ165)-X165-W165,0) -> 0 | Z165: =IF($A165>0,SUMIF('Age profile (years)'!$CT165:$GF165,"<" & U165+0.5,'Asset data'!$CX165:$GJ165)-Y165-X165-W165,0) -> 0 | AA165: 0 | AB165: 0 | AC165: 0 | AD165: 0 | AE165: 0 | AF165: 0 | AI165: =IF($A165>0,'RRR hist-forc'!K165,0) -> 0 | AJ165: 0
A166: ='Asset data'!A166 -> 0 | B166: ='Asset data'!B166 -> 0 | C166: ='Asset data'!C166 -> 0 | D166: ='Asset data'!E166 -> 0 | E166: 0 | F166: =IF(A166>0,SUM('Asset data'!J166:CV166),0) -> 0 | G166: =IF(A166>0,'Asset data'!F166,0) -> 0 | H166: =IF(A166>0,SUM('Asset data'!CX166:GJ166),0) -> 0 | I166: 0 | J166: 0 | K166: 0 | L166: 0 | M166: =IF($A166>0,SUMPRODUCT('Age profile (years)'!$CT166:$GF166,'Asset data'!$CX166:$GJ166)/H166-0.5,0) -> 0 | N166: 0 | O166: =IF($A166>0,'Asset data'!G166,0) -> 0 | P166: 0 | Q166: 0 | R166: 0 | S166: 0 | T166: 0 | U166: 0 | W166: =IF($A166>0,SUMIF('Age profile (years)'!$CT166:$GF166,"<" & R166+0.5,'Asset data'!$CX166:$GJ166),0) -> 0 | X166: =IF($A166>0,SUMIF('Age profile (years)'!$CT166:$GF166,"<" & S166+0.5,'Asset data'!$CX166:$GJ166)-W166,0) -> 0 | Y166: =IF($A166>0,SUMIF('Age profile (years)'!$CT166:$GF166,"<" & T166+0.5,'Asset data'!$CX166:$GJ166)-X166-W166,0) -> 0 | Z166: =IF($A166>0,SUMIF('Age profile (years)'!$CT166:$GF166,"<" & U166+0.5,'Asset data'!$CX166:$GJ166)-Y166-X166-W166,0) -> 0 | AA166: 0 | AB166: 0 | AC166: 0 | AD166: 0 | AE166: 0 | AF166: 0 | AI166: =IF($A166>0,'RRR hist-forc'!K166,0) -> 0 | AJ166: 0
A167: ='Asset data'!A167 -> 0 | B167: ='Asset data'!B167 -> 0 | C167: ='Asset data'!C167 -> 0 | D167: ='Asset data'!E167 -> 0 | E167: 0 | F167: =IF(A167>0,SUM('Asset data'!J167:CV167),0) -> 0 | G167: =IF(A167>0,'Asset data'!F167,0) -> 0 | H167: =IF(A167>0,SUM('Asset data'!CX167:GJ167),0) -> 0 | I167: 0 | J167: 0 | K167: 0 | L167: 0 | M167: =IF($A167>0,SUMPRODUCT('Age profile (years)'!$CT167:$GF167,'Asset data'!$CX167:$GJ167)/H167-0.5,0) -> 0 | N167: 0 | O167: =IF($A167>0,'Asset data'!G167,0) -> 0 | P167: 0 | Q167: 0 | R167: 0 | S167: 0 | T167: 0 | U167: 0 | W167: =IF($A167>0,SUMIF('Age profile (years)'!$CT167:$GF167,"<" & R167+0.5,'Asset data'!$CX167:$GJ167),0) -> 0 | X167: =IF($A167>0,SUMIF('Age profile (years)'!$CT167:$GF167,"<" & S167+0.5,'Asset data'!$CX167:$GJ167)-W167,0) -> 0 | Y167: =IF($A167>0,SUMIF('Age profile (years)'!$CT167:$GF167,"<" & T167+0.5,'Asset data'!$CX167:$GJ167)-X167-W167,0) -> 0 | Z167: =IF($A167>0,SUMIF('Age profile (years)'!$CT167:$GF167,"<" & U167+0.5,'Asset data'!$CX167:$GJ167)-Y167-X167-W167,0) -> 0 | AA167: 0 | AB167: 0 | AC167: 0 | AD167: 0 | AE167: 0 | AF167: 0 | AI167: =IF($A167>0,'RRR hist-forc'!K167,0) -> 0 | AJ167: 0
A168: ='Asset data'!A168 -> 0 | B168: ='Asset data'!B168 -> 0 | C168: ='Asset data'!C168 -> 0 | D168: ='Asset data'!E168 -> 0 | E168: 0 | F168: =IF(A168>0,SUM('Asset data'!J168:CV168),0) -> 0 | G168: =IF(A168>0,'Asset data'!F168,0) -> 0 | H168: =IF(A168>0,SUM('Asset data'!CX168:GJ168),0) -> 0 | I168: 0 | J168: 0 | K168: 0 | L168: 0 | M168: =IF($A168>0,SUMPRODUCT('Age profile (years)'!$CT168:$GF168,'Asset data'!$CX168:$GJ168)/H168-0.5,0) -> 0 | N168: 0 | O168: =IF($A168>0,'Asset data'!G168,0) -> 0 | P168: 0 | Q168: 0 | R168: 0 | S168: 0 | T168: 0 | U168: 0 | W168: =IF($A168>0,SUMIF('Age profile (years)'!$CT168:$GF168,"<" & R168+0.5,'Asset data'!$CX168:$GJ168),0) -> 0 | X168: =IF($A168>0,SUMIF('Age profile (years)'!$CT168:$GF168,"<" & S168+0.5,'Asset data'!$CX168:$GJ168)-W168,0) -> 0 | Y168: =IF($A168>0,SUMIF('Age profile (years)'!$CT168:$GF168,"<" & T168+0.5,'Asset data'!$CX168:$GJ168)-X168-W168,0) -> 0 | Z168: =IF($A168>0,SUMIF('Age profile (years)'!$CT168:$GF168,"<" & U168+0.5,'Asset data'!$CX168:$GJ168)-Y168-X168-W168,0) -> 0 | AA168: 0 | AB168: 0 | AC168: 0 | AD168: 0 | AE168: 0 | AF168: 0 | AI168: =IF($A168>0,'RRR hist-forc'!K168,0) -> 0 | AJ168: 0
A169: ='Asset data'!A169 -> 0 | B169: ='Asset data'!B169 -> 0 | C169: ='Asset data'!C169 -> 0 | D169: ='Asset data'!E169 -> 0 | E169: 0 | F169: =IF(A169>0,SUM('Asset data'!J169:CV169),0) -> 0 | G169: =IF(A169>0,'Asset data'!F169,0) -> 0 | H169: =IF(A169>0,SUM('Asset data'!CX169:GJ169),0) -> 0 | I169: 0 | J169: 0 | K169: 0 | L169: 0 | M169: =IF($A169>0,SUMPRODUCT('Age profile (years)'!$CT169:$GF169,'Asset data'!$CX169:$GJ169)/H169-0.5,0) -> 0 | N169: 0 | O169: =IF($A169>0,'Asset data'!G169,0) -> 0 | P169: 0 | Q169: 0 | R169: 0 | S169: 0 | T169: 0 | U169: 0 | W169: =IF($A169>0,SUMIF('Age profile (years)'!$CT169:$GF169,"<" & R169+0.5,'Asset data'!$CX169:$GJ169),0) -> 0 | X169: =IF($A169>0,SUMIF('Age profile (years)'!$CT169:$GF169,"<" & S169+0.5,'Asset data'!$CX169:$GJ169)-W169,0) -> 0 | Y169: =IF($A169>0,SUMIF('Age profile (years)'!$CT169:$GF169,"<" & T169+0.5,'Asset data'!$CX169:$GJ169)-X169-W169,0) -> 0 | Z169: =IF($A169>0,SUMIF('Age profile (years)'!$CT169:$GF169,"<" & U169+0.5,'Asset data'!$CX169:$GJ169)-Y169-X169-W169,0) -> 0 | AA169: 0 | AB169: 0 | AC169: 0 | AD169: 0 | AE169: 0 | AF169: 0 | AI169: =IF($A169>0,'RRR hist-forc'!K169,0) -> 0 | AJ169: 0
A170: ='Asset data'!A170 -> 0 | B170: ='Asset data'!B170 -> 0 | C170: ='Asset data'!C170 -> 0 | D170: ='Asset data'!E170 -> 0 | E170: 0 | F170: =IF(A170>0,SUM('Asset data'!J170:CV170),0) -> 0 | G170: =IF(A170>0,'Asset data'!F170,0) -> 0 | H170: =IF(A170>0,SUM('Asset data'!CX170:GJ170),0) -> 0 | I170: 0 | J170: 0 | K170: 0 | L170: 0 | M170: =IF($A170>0,SUMPRODUCT('Age profile (years)'!$CT170:$GF170,'Asset data'!$CX170:$GJ170)/H170-0.5,0) -> 0 | N170: 0 | O170: =IF($A170>0,'Asset data'!G170,0) -> 0 | P170: 0 | Q170: 0 | R170: 0 | S170: 0 | T170: 0 | U170: 0 | W170: =IF($A170>0,SUMIF('Age profile (years)'!$CT170:$GF170,"<" & R170+0.5,'Asset data'!$CX170:$GJ170),0) -> 0 | X170: =IF($A170>0,SUMIF('Age profile (years)'!$CT170:$GF170,"<" & S170+0.5,'Asset data'!$CX170:$GJ170)-W170,0) -> 0 | Y170: =IF($A170>0,SUMIF('Age profile (years)'!$CT170:$GF170,"<" & T170+0.5,'Asset data'!$CX170:$GJ170)-X170-W170,0) -> 0 | Z170: =IF($A170>0,SUMIF('Age profile (years)'!$CT170:$GF170,"<" & U170+0.5,'Asset data'!$CX170:$GJ170)-Y170-X170-W170,0) -> 0 | AA170: 0 | AB170: 0 | AC170: 0 | AD170: 0 | AE170: 0 | AF170: 0 | AI170: =IF($A170>0,'RRR hist-forc'!K170,0) -> 0 | AJ170: 0
A171: ='Asset data'!A171 -> 0 | B171: ='Asset data'!B171 -> 0 | C171: ='Asset data'!C171 -> 0 | D171: ='Asset data'!E171 -> 0 | E171: 0 | F171: =IF(A171>0,SUM('Asset data'!J171:CV171),0) -> 0 | G171: =IF(A171>0,'Asset data'!F171,0) -> 0 | H171: =IF(A171>0,SUM('Asset data'!CX171:GJ171),0) -> 0 | I171: 0 | J171: 0 | K171: 0 | L171: 0 | M171: =IF($A171>0,SUMPRODUCT('Age profile (years)'!$CT171:$GF171,'Asset data'!$CX171:$GJ171)/H171-0.5,0) -> 0 | N171: 0 | O171: =IF($A171>0,'Asset data'!G171,0) -> 0 | P171: 0 | Q171: 0 | R171: 0 | S171: 0 | T171: 0 | U171: 0 | W171: =IF($A171>0,SUMIF('Age profile (years)'!$CT171:$GF171,"<" & R171+0.5,'Asset data'!$CX171:$GJ171),0) -> 0 | X171: =IF($A171>0,SUMIF('Age profile (years)'!$CT171:$GF171,"<" & S171+0.5,'Asset data'!$CX171:$GJ171)-W171,0) -> 0 | Y171: =IF($A171>0,SUMIF('Age profile (years)'!$CT171:$GF171,"<" & T171+0.5,'Asset data'!$CX171:$GJ171)-X171-W171,0) -> 0 | Z171: =IF($A171>0,SUMIF('Age profile (years)'!$CT171:$GF171,"<" & U171+0.5,'Asset data'!$CX171:$GJ171)-Y171-X171-W171,0) -> 0 | AA171: 0 | AB171: 0 | AC171: 0 | AD171: 0 | AE171: 0 | AF171: 0 | AI171: =IF($A171>0,'RRR hist-forc'!K171,0) -> 0 | AJ171: 0
A172: ='Asset data'!A172 -> 0 | B172: ='Asset data'!B172 -> 0 | C172: ='Asset data'!C172 -> 0 | D172: ='Asset data'!E172 -> 0 | E172: 0 | F172: =IF(A172>0,SUM('Asset data'!J172:CV172),0) -> 0 | G172: =IF(A172>0,'Asset data'!F172,0) -> 0 | H172: =IF(A172>0,SUM('Asset data'!CX172:GJ172),0) -> 0 | I172: 0 | J172: 0 | K172: 0 | L172: 0 | M172: =IF($A172>0,SUMPRODUCT('Age profile (years)'!$CT172:$GF172,'Asset data'!$CX172:$GJ172)/H172-0.5,0) -> 0 | N172: 0 | O172: =IF($A172>0,'Asset data'!G172,0) -> 0 | P172: 0 | Q172: 0 | R172: 0 | S172: 0 | T172: 0 | U172: 0 | W172: =IF($A172>0,SUMIF('Age profile (years)'!$CT172:$GF172,"<" & R172+0.5,'Asset data'!$CX172:$GJ172),0) -> 0 | X172: =IF($A172>0,SUMIF('Age profile (years)'!$CT172:$GF172,"<" & S172+0.5,'Asset data'!$CX172:$GJ172)-W172,0) -> 0 | Y172: =IF($A172>0,SUMIF('Age profile (years)'!$CT172:$GF172,"<" & T172+0.5,'Asset data'!$CX172:$GJ172)-X172-W172,0) -> 0 | Z172: =IF($A172>0,SUMIF('Age profile (years)'!$CT172:$GF172,"<" & U172+0.5,'Asset data'!$CX172:$GJ172)-Y172-X172-W172,0) -> 0 | AA172: 0 | AB172: 0 | AC172: 0 | AD172: 0 | AE172: 0 | AF172: 0 | AI172: =IF($A172>0,'RRR hist-forc'!K172,0) -> 0 | AJ172: 0
A173: ='Asset data'!A173 -> 0 | B173: ='Asset data'!B173 -> 0 | C173: ='Asset data'!C173 -> 0 | D173: ='Asset data'!E173 -> 0 | E173: 0 | F173: =IF(A173>0,SUM('Asset data'!J173:CV173),0) -> 0 | G173: =IF(A173>0,'Asset data'!F173,0) -> 0 | H173: =IF(A173>0,SUM('Asset data'!CX173:GJ173),0) -> 0 | I173: 0 | J173: 0 | K173: 0 | L173: 0 | M173: =IF($A173>0,SUMPRODUCT('Age profile (years)'!$CT173:$GF173,'Asset data'!$CX173:$GJ173)/H173-0.5,0) -> 0 | N173: 0 | O173: =IF($A173>0,'Asset data'!G173,0) -> 0 | P173: 0 | Q173: 0 | R173: 0 | S173: 0 | T173: 0 | U173: 0 | W173: =IF($A173>0,SUMIF('Age profile (years)'!$CT173:$GF173,"<" & R173+0.5,'Asset data'!$CX173:$GJ173),0) -> 0 | X173: =IF($A173>0,SUMIF('Age profile (years)'!$CT173:$GF173,"<" & S173+0.5,'Asset data'!$CX173:$GJ173)-W173,0) -> 0 | Y173: =IF($A173>0,SUMIF('Age profile (years)'!$CT173:$GF173,"<" & T173+0.5,'Asset data'!$CX173:$GJ173)-X173-W173,0) -> 0 | Z173: =IF($A173>0,SUMIF('Age profile (years)'!$CT173:$GF173,"<" & U173+0.5,'Asset data'!$CX173:$GJ173)-Y173-X173-W173,0) -> 0 | AA173: 0 | AB173: 0 | AC173: 0 | AD173: 0 | AE173: 0 | AF173: 0 | AI173: =IF($A173>0,'RRR hist-forc'!K173,0) -> 0 | AJ173: 0
A174: ='Asset data'!A174 -> 0 | B174: ='Asset data'!B174 -> 0 | C174: ='Asset data'!C174 -> 0 | D174: ='Asset data'!E174 -> 0 | E174: 0 | F174: =IF(A174>0,SUM('Asset data'!J174:CV174),0) -> 0 | G174: =IF(A174>0,'Asset data'!F174,0) -> 0 | H174: =IF(A174>0,SUM('Asset data'!CX174:GJ174),0) -> 0 | I174: 0 | J174: 0 | K174: 0 | L174: 0 | M174: =IF($A174>0,SUMPRODUCT('Age profile (years)'!$CT174:$GF174,'Asset data'!$CX174:$GJ174)/H174-0.5,0) -> 0 | N174: 0 | O174: =IF($A174>0,'Asset data'!G174,0) -> 0 | P174: 0 | Q174: 0 | R174: 0 | S174: 0 | T174: 0 | U174: 0 | W174: =IF($A174>0,SUMIF('Age profile (years)'!$CT174:$GF174,"<" & R174+0.5,'Asset data'!$CX174:$GJ174),0) -> 0 | X174: =IF($A174>0,SUMIF('Age profile (years)'!$CT174:$GF174,"<" & S174+0.5,'Asset data'!$CX174:$GJ174)-W174,0) -> 0 | Y174: =IF($A174>0,SUMIF('Age profile (years)'!$CT174:$GF174,"<" & T174+0.5,'Asset data'!$CX174:$GJ174)-X174-W174,0) -> 0 | Z174: =IF($A174>0,SUMIF('Age profile (years)'!$CT174:$GF174,"<" & U174+0.5,'Asset data'!$CX174:$GJ174)-Y174-X174-W174,0) -> 0 | AA174: 0 | AB174: 0 | AC174: 0 | AD174: 0 | AE174: 0 | AF174: 0 | AI174: =IF($A174>0,'RRR hist-forc'!K174,0) -> 0 | AJ174: 0
A175: ='Asset data'!A175 -> 0 | B175: ='Asset data'!B175 -> 0 | C175: ='Asset data'!C175 -> 0 | D175: ='Asset data'!E175 -> 0 | E175: 0 | F175: =IF(A175>0,SUM('Asset data'!J175:CV175),0) -> 0 | G175: =IF(A175>0,'Asset data'!F175,0) -> 0 | H175: =IF(A175>0,SUM('Asset data'!CX175:GJ175),0) -> 0 | I175: 0 | J175: 0 | K175: 0 | L175: 0 | M175: =IF($A175>0,SUMPRODUCT('Age profile (years)'!$CT175:$GF175,'Asset data'!$CX175:$GJ175)/H175-0.5,0) -> 0 | N175: 0 | O175: =IF($A175>0,'Asset data'!G175,0) -> 0 | P175: 0 | Q175: 0 | R175: 0 | S175: 0 | T175: 0 | U175: 0 | W175: =IF($A175>0,SUMIF('Age profile (years)'!$CT175:$GF175,"<" & R175+0.5,'Asset data'!$CX175:$GJ175),0) -> 0 | X175: =IF($A175>0,SUMIF('Age profile (years)'!$CT175:$GF175,"<" & S175+0.5,'Asset data'!$CX175:$GJ175)-W175,0) -> 0 | Y175: =IF($A175>0,SUMIF('Age profile (years)'!$CT175:$GF175,"<" & T175+0.5,'Asset data'!$CX175:$GJ175)-X175-W175,0) -> 0 | Z175: =IF($A175>0,SUMIF('Age profile (years)'!$CT175:$GF175,"<" & U175+0.5,'Asset data'!$CX175:$GJ175)-Y175-X175-W175,0) -> 0 | AA175: 0 | AB175: 0 | AC175: 0 | AD175: 0 | AE175: 0 | AF175: 0 | AI175: =IF($A175>0,'RRR hist-forc'!K175,0) -> 0 | AJ175: 0
A176: ='Asset data'!A176 -> 0 | B176: ='Asset data'!B176 -> 0 | C176: ='Asset data'!C176 -> 0 | D176: ='Asset data'!E176 -> 0 | E176: 0 | F176: =IF(A176>0,SUM('Asset data'!J176:CV176),0) -> 0 | G176: =IF(A176>0,'Asset data'!F176,0) -> 0 | H176: =IF(A176>0,SUM('Asset data'!CX176:GJ176),0) -> 0 | I176: 0 | J176: 0 | K176: 0 | L176: 0 | M176: =IF($A176>0,SUMPRODUCT('Age profile (years)'!$CT176:$GF176,'Asset data'!$CX176:$GJ176)/H176-0.5,0) -> 0 | N176: 0 | O176: =IF($A176>0,'Asset data'!G176,0) -> 0 | P176: 0 | Q176: 0 | R176: 0 | S176: 0 | T176: 0 | U176: 0 | W176: =IF($A176>0,SUMIF('Age profile (years)'!$CT176:$GF176,"<" & R176+0.5,'Asset data'!$CX176:$GJ176),0) -> 0 | X176: =IF($A176>0,SUMIF('Age profile (years)'!$CT176:$GF176,"<" & S176+0.5,'Asset data'!$CX176:$GJ176)-W176,0) -> 0 | Y176: =IF($A176>0,SUMIF('Age profile (years)'!$CT176:$GF176,"<" & T176+0.5,'Asset data'!$CX176:$GJ176)-X176-W176,0) -> 0 | Z176: =IF($A176>0,SUMIF('Age profile (years)'!$CT176:$GF176,"<" & U176+0.5,'Asset data'!$CX176:$GJ176)-Y176-X176-W176,0) -> 0 | AA176: 0 | AB176: 0 | AC176: 0 | AD176: 0 | AE176: 0 | AF176: 0 | AI176: =IF($A176>0,'RRR hist-forc'!K176,0) -> 0 | AJ176: 0
A177: ='Asset data'!A177 -> 0 | B177: ='Asset data'!B177 -> 0 | C177: ='Asset data'!C177 -> 0 | D177: ='Asset data'!E177 -> 0 | E177: 0 | F177: =IF(A177>0,SUM('Asset data'!J177:CV177),0) -> 0 | G177: =IF(A177>0,'Asset data'!F177,0) -> 0 | H177: =IF(A177>0,SUM('Asset data'!CX177:GJ177),0) -> 0 | I177: 0 | J177: 0 | K177: 0 | L177: 0 | M177: =IF($A177>0,SUMPRODUCT('Age profile (years)'!$CT177:$GF177,'Asset data'!$CX177:$GJ177)/H177-0.5,0) -> 0 | N177: 0 | O177: =IF($A177>0,'Asset data'!G177,0) -> 0 | P177: 0 | Q177: 0 | R177: 0 | S177: 0 | T177: 0 | U177: 0 | W177: =IF($A177>0,SUMIF('Age profile (years)'!$CT177:$GF177,"<" & R177+0.5,'Asset data'!$CX177:$GJ177),0) -> 0 | X177: =IF($A177>0,SUMIF('Age profile (years)'!$CT177:$GF177,"<" & S177+0.5,'Asset data'!$CX177:$GJ177)-W177,0) -> 0 | Y177: =IF($A177>0,SUMIF('Age profile (years)'!$CT177:$GF177,"<" & T177+0.5,'Asset data'!$CX177:$GJ177)-X177-W177,0) -> 0 | Z177: =IF($A177>0,SUMIF('Age profile (years)'!$CT177:$GF177,"<" & U177+0.5,'Asset data'!$CX177:$GJ177)-Y177-X177-W177,0) -> 0 | AA177: 0 | AB177: 0 | AC177: 0 | AD177: 0 | AE177: 0 | AF177: 0 | AI177: =IF($A177>0,'RRR hist-forc'!K177,0) -> 0 | AJ177: 0
A178: ='Asset data'!A178 -> 0 | B178: ='Asset data'!B178 -> 0 | C178: ='Asset data'!C178 -> 0 | D178: ='Asset data'!E178 -> 0 | E178: 0 | F178: =IF(A178>0,SUM('Asset data'!J178:CV178),0) -> 0 | G178: =IF(A178>0,'Asset data'!F178,0) -> 0 | H178: =IF(A178>0,SUM('Asset data'!CX178:GJ178),0) -> 0 | I178: 0 | J178: 0 | K178: 0 | L178: 0 | M178: =IF($A178>0,SUMPRODUCT('Age profile (years)'!$CT178:$GF178,'Asset data'!$CX178:$GJ178)/H178-0.5,0) -> 0 | N178: 0 | O178: =IF($A178>0,'Asset data'!G178,0) -> 0 | P178: 0 | Q178: 0 | R178: 0 | S178: 0 | T178: 0 | U178: 0 | W178: =IF($A178>0,SUMIF('Age profile (years)'!$CT178:$GF178,"<" & R178+0.5,'Asset data'!$CX178:$GJ178),0) -> 0 | X178: =IF($A178>0,SUMIF('Age profile (years)'!$CT178:$GF178,"<" & S178+0.5,'Asset data'!$CX178:$GJ178)-W178,0) -> 0 | Y178: =IF($A178>0,SUMIF('Age profile (years)'!$CT178:$GF178,"<" & T178+0.5,'Asset data'!$CX178:$GJ178)-X178-W178,0) -> 0 | Z178: =IF($A178>0,SUMIF('Age profile (years)'!$CT178:$GF178,"<" & U178+0.5,'Asset data'!$CX178:$GJ178)-Y178-X178-W178,0) -> 0 | AA178: 0 | AB178: 0 | AC178: 0 | AD178: 0 | AE178: 0 | AF178: 0 | AI178: =IF($A178>0,'RRR hist-forc'!K178,0) -> 0 | AJ178: 0
A179: ='Asset data'!A179 -> 0 | B179: ='Asset data'!B179 -> 0 | C179: ='Asset data'!C179 -> 0 | D179: ='Asset data'!E179 -> 0 | E179: 0 | F179: =IF(A179>0,SUM('Asset data'!J179:CV179),0) -> 0 | G179: =IF(A179>0,'Asset data'!F179,0) -> 0 | H179: =IF(A179>0,SUM('Asset data'!CX179:GJ179),0) -> 0 | I179: 0 | J179: 0 | K179: 0 | L179: 0 | M179: =IF($A179>0,SUMPRODUCT('Age profile (years)'!$CT179:$GF179,'Asset data'!$CX179:$GJ179)/H179-0.5,0) -> 0 | N179: 0 | O179: =IF($A179>0,'Asset data'!G179,0) -> 0 | P179: 0 | Q179: 0 | R179: 0 | S179: 0 | T179: 0 | U179: 0 | W179: =IF($A179>0,SUMIF('Age profile (years)'!$CT179:$GF179,"<" & R179+0.5,'Asset data'!$CX179:$GJ179),0) -> 0 | X179: =IF($A179>0,SUMIF('Age profile (years)'!$CT179:$GF179,"<" & S179+0.5,'Asset data'!$CX179:$GJ179)-W179,0) -> 0 | Y179: =IF($A179>0,SUMIF('Age profile (years)'!$CT179:$GF179,"<" & T179+0.5,'Asset data'!$CX179:$GJ179)-X179-W179,0) -> 0 | Z179: =IF($A179>0,SUMIF('Age profile (years)'!$CT179:$GF179,"<" & U179+0.5,'Asset data'!$CX179:$GJ179)-Y179-X179-W179,0) -> 0 | AA179: 0 | AB179: 0 | AC179: 0 | AD179: 0 | AE179: 0 | AF179: 0 | AI179: =IF($A179>0,'RRR hist-forc'!K179,0) -> 0 | AJ179: 0
A180: ='Asset data'!A180 -> 0 | B180: ='Asset data'!B180 -> 0 | C180: ='Asset data'!C180 -> 0 | D180: ='Asset data'!E180 -> 0 | E180: 0 | F180: =IF(A180>0,SUM('Asset data'!J180:CV180),0) -> 0 | G180: =IF(A180>0,'Asset data'!F180,0) -> 0 | H180: =IF(A180>0,SUM('Asset data'!CX180:GJ180),0) -> 0 | I180: 0 | J180: 0 | K180: 0 | L180: 0 | M180: =IF($A180>0,SUMPRODUCT('Age profile (years)'!$CT180:$GF180,'Asset data'!$CX180:$GJ180)/H180-0.5,0) -> 0 | N180: 0 | O180: =IF($A180>0,'Asset data'!G180,0) -> 0 | P180: 0 | Q180: 0 | R180: 0 | S180: 0 | T180: 0 | U180: 0 | W180: =IF($A180>0,SUMIF('Age profile (years)'!$CT180:$GF180,"<" & R180+0.5,'Asset data'!$CX180:$GJ180),0) -> 0 | X180: =IF($A180>0,SUMIF('Age profile (years)'!$CT180:$GF180,"<" & S180+0.5,'Asset data'!$CX180:$GJ180)-W180,0) -> 0 | Y180: =IF($A180>0,SUMIF('Age profile (years)'!$CT180:$GF180,"<" & T180+0.5,'Asset data'!$CX180:$GJ180)-X180-W180,0) -> 0 | Z180: =IF($A180>0,SUMIF('Age profile (years)'!$CT180:$GF180,"<" & U180+0.5,'Asset data'!$CX180:$GJ180)-Y180-X180-W180,0) -> 0 | AA180: 0 | AB180: 0 | AC180: 0 | AD180: 0 | AE180: 0 | AF180: 0 | AI180: =IF($A180>0,'RRR hist-forc'!K180,0) -> 0 | AJ180: 0
A181: ='Asset data'!A181 -> 0 | B181: ='Asset data'!B181 -> 0 | C181: ='Asset data'!C181 -> 0 | D181: ='Asset data'!E181 -> 0 | E181: 0 | F181: =IF(A181>0,SUM('Asset data'!J181:CV181),0) -> 0 | G181: =IF(A181>0,'Asset data'!F181,0) -> 0 | H181: =IF(A181>0,SUM('Asset data'!CX181:GJ181),0) -> 0 | I181: 0 | J181: 0 | K181: 0 | L181: 0 | M181: =IF($A181>0,SUMPRODUCT('Age profile (years)'!$CT181:$GF181,'Asset data'!$CX181:$GJ181)/H181-0.5,0) -> 0 | N181: 0 | O181: =IF($A181>0,'Asset data'!G181,0) -> 0 | P181: 0 | Q181: 0 | R181: 0 | S181: 0 | T181: 0 | U181: 0 | W181: =IF($A181>0,SUMIF('Age profile (years)'!$CT181:$GF181,"<" & R181+0.5,'Asset data'!$CX181:$GJ181),0) -> 0 | X181: =IF($A181>0,SUMIF('Age profile (years)'!$CT181:$GF181,"<" & S181+0.5,'Asset data'!$CX181:$GJ181)-W181,0) -> 0 | Y181: =IF($A181>0,SUMIF('Age profile (years)'!$CT181:$GF181,"<" & T181+0.5,'Asset data'!$CX181:$GJ181)-X181-W181,0) -> 0 | Z181: =IF($A181>0,SUMIF('Age profile (years)'!$CT181:$GF181,"<" & U181+0.5,'Asset data'!$CX181:$GJ181)-Y181-X181-W181,0) -> 0 | AA181: 0 | AB181: 0 | AC181: 0 | AD181: 0 | AE181: 0 | AF181: 0 | AI181: =IF($A181>0,'RRR hist-forc'!K181,0) -> 0 | AJ181: 0
A182: ='Asset data'!A182 -> 0 | B182: ='Asset data'!B182 -> 0 | C182: ='Asset data'!C182 -> 0 | D182: ='Asset data'!E182 -> 0 | E182: 0 | F182: =IF(A182>0,SUM('Asset data'!J182:CV182),0) -> 0 | G182: =IF(A182>0,'Asset data'!F182,0) -> 0 | H182: =IF(A182>0,SUM('Asset data'!CX182:GJ182),0) -> 0 | I182: 0 | J182: 0 | K182: 0 | L182: 0 | M182: =IF($A182>0,SUMPRODUCT('Age profile (years)'!$CT182:$GF182,'Asset data'!$CX182:$GJ182)/H182-0.5,0) -> 0 | N182: 0 | O182: =IF($A182>0,'Asset data'!G182,0) -> 0 | P182: 0 | Q182: 0 | R182: 0 | S182: 0 | T182: 0 | U182: 0 | W182: =IF($A182>0,SUMIF('Age profile (years)'!$CT182:$GF182,"<" & R182+0.5,'Asset data'!$CX182:$GJ182),0) -> 0 | X182: =IF($A182>0,SUMIF('Age profile (years)'!$CT182:$GF182,"<" & S182+0.5,'Asset data'!$CX182:$GJ182)-W182,0) -> 0 | Y182: =IF($A182>0,SUMIF('Age profile (years)'!$CT182:$GF182,"<" & T182+0.5,'Asset data'!$CX182:$GJ182)-X182-W182,0) -> 0 | Z182: =IF($A182>0,SUMIF('Age profile (years)'!$CT182:$GF182,"<" & U182+0.5,'Asset data'!$CX182:$GJ182)-Y182-X182-W182,0) -> 0 | AA182: 0 | AB182: 0 | AC182: 0 | AD182: 0 | AE182: 0 | AF182: 0 | AI182: =IF($A182>0,'RRR hist-forc'!K182,0) -> 0 | AJ182: 0
A183: ='Asset data'!A183 -> 0 | B183: ='Asset data'!B183 -> 0 | C183: ='Asset data'!C183 -> 0 | D183: ='Asset data'!E183 -> 0 | E183: 0 | F183: =IF(A183>0,SUM('Asset data'!J183:CV183),0) -> 0 | G183: =IF(A183>0,'Asset data'!F183,0) -> 0 | H183: =IF(A183>0,SUM('Asset data'!CX183:GJ183),0) -> 0 | I183: 0 | J183: 0 | K183: 0 | L183: 0 | M183: =IF($A183>0,SUMPRODUCT('Age profile (years)'!$CT183:$GF183,'Asset data'!$CX183:$GJ183)/H183-0.5,0) -> 0 | N183: 0 | O183: =IF($A183>0,'Asset data'!G183,0) -> 0 | P183: 0 | Q183: 0 | R183: 0 | S183: 0 | T183: 0 | U183: 0 | W183: =IF($A183>0,SUMIF('Age profile (years)'!$CT183:$GF183,"<" & R183+0.5,'Asset data'!$CX183:$GJ183),0) -> 0 | X183: =IF($A183>0,SUMIF('Age profile (years)'!$CT183:$GF183,"<" & S183+0.5,'Asset data'!$CX183:$GJ183)-W183,0) -> 0 | Y183: =IF($A183>0,SUMIF('Age profile (years)'!$CT183:$GF183,"<" & T183+0.5,'Asset data'!$CX183:$GJ183)-X183-W183,0) -> 0 | Z183: =IF($A183>0,SUMIF('Age profile (years)'!$CT183:$GF183,"<" & U183+0.5,'Asset data'!$CX183:$GJ183)-Y183-X183-W183,0) -> 0 | AA183: 0 | AB183: 0 | AC183: 0 | AD183: 0 | AE183: 0 | AF183: 0 | AI183: =IF($A183>0,'RRR hist-forc'!K183,0) -> 0 | AJ183: 0
A184: ='Asset data'!A184 -> 0 | B184: ='Asset data'!B184 -> 0 | C184: ='Asset data'!C184 -> 0 | D184: ='Asset data'!E184 -> 0 | E184: 0 | F184: =IF(A184>0,SUM('Asset data'!J184:CV184),0) -> 0 | G184: =IF(A184>0,'Asset data'!F184,0) -> 0 | H184: =IF(A184>0,SUM('Asset data'!CX184:GJ184),0) -> 0 | I184: 0 | J184: 0 | K184: 0 | L184: 0 | M184: =IF($A184>0,SUMPRODUCT('Age profile (years)'!$CT184:$GF184,'Asset data'!$CX184:$GJ184)/H184-0.5,0) -> 0 | N184: 0 | O184: =IF($A184>0,'Asset data'!G184,0) -> 0 | P184: 0 | Q184: 0 | R184: 0 | S184: 0 | T184: 0 | U184: 0 | W184: =IF($A184>0,SUMIF('Age profile (years)'!$CT184:$GF184,"<" & R184+0.5,'Asset data'!$CX184:$GJ184),0) -> 0 | X184: =IF($A184>0,SUMIF('Age profile (years)'!$CT184:$GF184,"<" & S184+0.5,'Asset data'!$CX184:$GJ184)-W184,0) -> 0 | Y184: =IF($A184>0,SUMIF('Age profile (years)'!$CT184:$GF184,"<" & T184+0.5,'Asset data'!$CX184:$GJ184)-X184-W184,0) -> 0 | Z184: =IF($A184>0,SUMIF('Age profile (years)'!$CT184:$GF184,"<" & U184+0.5,'Asset data'!$CX184:$GJ184)-Y184-X184-W184,0) -> 0 | AA184: 0 | AB184: 0 | AC184: 0 | AD184: 0 | AE184: 0 | AF184: 0 | AI184: =IF($A184>0,'RRR hist-forc'!K184,0) -> 0 | AJ184: 0
A185: ='Asset data'!A185 -> 0 | B185: ='Asset data'!B185 -> 0 | C185: ='Asset data'!C185 -> 0 | D185: ='Asset data'!E185 -> 0 | E185: 0 | F185: =IF(A185>0,SUM('Asset data'!J185:CV185),0) -> 0 | G185: =IF(A185>0,'Asset data'!F185,0) -> 0 | H185: =IF(A185>0,SUM('Asset data'!CX185:GJ185),0) -> 0 | I185: 0 | J185: 0 | K185: 0 | L185: 0 | M185: =IF($A185>0,SUMPRODUCT('Age profile (years)'!$CT185:$GF185,'Asset data'!$CX185:$GJ185)/H185-0.5,0) -> 0 | N185: 0 | O185: =IF($A185>0,'Asset data'!G185,0) -> 0 | P185: 0 | Q185: 0 | R185: 0 | S185: 0 | T185: 0 | U185: 0 | W185: =IF($A185>0,SUMIF('Age profile (years)'!$CT185:$GF185,"<" & R185+0.5,'Asset data'!$CX185:$GJ185),0) -> 0 | X185: =IF($A185>0,SUMIF('Age profile (years)'!$CT185:$GF185,"<" & S185+0.5,'Asset data'!$CX185:$GJ185)-W185,0) -> 0 | Y185: =IF($A185>0,SUMIF('Age profile (years)'!$CT185:$GF185,"<" & T185+0.5,'Asset data'!$CX185:$GJ185)-X185-W185,0) -> 0 | Z185: =IF($A185>0,SUMIF('Age profile (years)'!$CT185:$GF185,"<" & U185+0.5,'Asset data'!$CX185:$GJ185)-Y185-X185-W185,0) -> 0 | AA185: 0 | AB185: 0 | AC185: 0 | AD185: 0 | AE185: 0 | AF185: 0 | AI185: =IF($A185>0,'RRR hist-forc'!K185,0) -> 0 | AJ185: 0
A186: ='Asset data'!A186 -> 0 | B186: ='Asset data'!B186 -> 0 | C186: ='Asset data'!C186 -> 0 | D186: ='Asset data'!E186 -> 0 | E186: 0 | F186: =IF(A186>0,SUM('Asset data'!J186:CV186),0) -> 0 | G186: =IF(A186>0,'Asset data'!F186,0) -> 0 | H186: =IF(A186>0,SUM('Asset data'!CX186:GJ186),0) -> 0 | I186: 0 | J186: 0 | K186: 0 | L186: 0 | M186: =IF($A186>0,SUMPRODUCT('Age profile (years)'!$CT186:$GF186,'Asset data'!$CX186:$GJ186)/H186-0.5,0) -> 0 | N186: 0 | O186: =IF($A186>0,'Asset data'!G186,0) -> 0 | P186: 0 | Q186: 0 | R186: 0 | S186: 0 | T186: 0 | U186: 0 | W186: =IF($A186>0,SUMIF('Age profile (years)'!$CT186:$GF186,"<" & R186+0.5,'Asset data'!$CX186:$GJ186),0) -> 0 | X186: =IF($A186>0,SUMIF('Age profile (years)'!$CT186:$GF186,"<" & S186+0.5,'Asset data'!$CX186:$GJ186)-W186,0) -> 0 | Y186: =IF($A186>0,SUMIF('Age profile (years)'!$CT186:$GF186,"<" & T186+0.5,'Asset data'!$CX186:$GJ186)-X186-W186,0) -> 0 | Z186: =IF($A186>0,SUMIF('Age profile (years)'!$CT186:$GF186,"<" & U186+0.5,'Asset data'!$CX186:$GJ186)-Y186-X186-W186,0) -> 0 | AA186: 0 | AB186: 0 | AC186: 0 | AD186: 0 | AE186: 0 | AF186: 0 | AI186: =IF($A186>0,'RRR hist-forc'!K186,0) -> 0 | AJ186: 0
A187: ='Asset data'!A187 -> 0 | B187: ='Asset data'!B187 -> 0 | C187: ='Asset data'!C187 -> 0 | D187: ='Asset data'!E187 -> 0 | E187: 0 | F187: =IF(A187>0,SUM('Asset data'!J187:CV187),0) -> 0 | G187: =IF(A187>0,'Asset data'!F187,0) -> 0 | H187: =IF(A187>0,SUM('Asset data'!CX187:GJ187),0) -> 0 | I187: 0 | J187: 0 | K187: 0 | L187: 0 | M187: =IF($A187>0,SUMPRODUCT('Age profile (years)'!$CT187:$GF187,'Asset data'!$CX187:$GJ187)/H187-0.5,0) -> 0 | N187: 0 | O187: =IF($A187>0,'Asset data'!G187,0) -> 0 | P187: 0 | Q187: 0 | R187: 0 | S187: 0 | T187: 0 | U187: 0 | W187: =IF($A187>0,SUMIF('Age profile (years)'!$CT187:$GF187,"<" & R187+0.5,'Asset data'!$CX187:$GJ187),0) -> 0 | X187: =IF($A187>0,SUMIF('Age profile (years)'!$CT187:$GF187,"<" & S187+0.5,'Asset data'!$CX187:$GJ187)-W187,0) -> 0 | Y187: =IF($A187>0,SUMIF('Age profile (years)'!$CT187:$GF187,"<" & T187+0.5,'Asset data'!$CX187:$GJ187)-X187-W187,0) -> 0 | Z187: =IF($A187>0,SUMIF('Age profile (years)'!$CT187:$GF187,"<" & U187+0.5,'Asset data'!$CX187:$GJ187)-Y187-X187-W187,0) -> 0 | AA187: 0 | AB187: 0 | AC187: 0 | AD187: 0 | AE187: 0 | AF187: 0 | AI187: =IF($A187>0,'RRR hist-forc'!K187,0) -> 0 | AJ187: 0
A188: ='Asset data'!A188 -> 0 | B188: ='Asset data'!B188 -> 0 | C188: ='Asset data'!C188 -> 0 | D188: ='Asset data'!E188 -> 0 | E188: 0 | F188: =IF(A188>0,SUM('Asset data'!J188:CV188),0) -> 0 | G188: =IF(A188>0,'Asset data'!F188,0) -> 0 | H188: =IF(A188>0,SUM('Asset data'!CX188:GJ188),0) -> 0 | I188: 0 | J188: 0 | K188: 0 | L188: 0 | M188: =IF($A188>0,SUMPRODUCT('Age profile (years)'!$CT188:$GF188,'Asset data'!$CX188:$GJ188)/H188-0.5,0) -> 0 | N188: 0 | O188: =IF($A188>0,'Asset data'!G188,0) -> 0 | P188: 0 | Q188: 0 | R188: 0 | S188: 0 | T188: 0 | U188: 0 | W188: =IF($A188>0,SUMIF('Age profile (years)'!$CT188:$GF188,"<" & R188+0.5,'Asset data'!$CX188:$GJ188),0) -> 0 | X188: =IF($A188>0,SUMIF('Age profile (years)'!$CT188:$GF188,"<" & S188+0.5,'Asset data'!$CX188:$GJ188)-W188,0) -> 0 | Y188: =IF($A188>0,SUMIF('Age profile (years)'!$CT188:$GF188,"<" & T188+0.5,'Asset data'!$CX188:$GJ188)-X188-W188,0) -> 0 | Z188: =IF($A188>0,SUMIF('Age profile (years)'!$CT188:$GF188,"<" & U188+0.5,'Asset data'!$CX188:$GJ188)-Y188-X188-W188,0) -> 0 | AA188: 0 | AB188: 0 | AC188: 0 | AD188: 0 | AE188: 0 | AF188: 0 | AI188: =IF($A188>0,'RRR hist-forc'!K188,0) -> 0 | AJ188: 0
A189: ='Asset data'!A189 -> 0 | B189: ='Asset data'!B189 -> 0 | C189: ='Asset data'!C189 -> 0 | D189: ='Asset data'!E189 -> 0 | E189: 0 | F189: =IF(A189>0,SUM('Asset data'!J189:CV189),0) -> 0 | G189: =IF(A189>0,'Asset data'!F189,0) -> 0 | H189: =IF(A189>0,SUM('Asset data'!CX189:GJ189),0) -> 0 | I189: 0 | J189: 0 | K189: 0 | L189: 0 | M189: =IF($A189>0,SUMPRODUCT('Age profile (years)'!$CT189:$GF189,'Asset data'!$CX189:$GJ189)/H189-0.5,0) -> 0 | N189: 0 | O189: =IF($A189>0,'Asset data'!G189,0) -> 0 | P189: 0 | Q189: 0 | R189: 0 | S189: 0 | T189: 0 | U189: 0 | W189: =IF($A189>0,SUMIF('Age profile (years)'!$CT189:$GF189,"<" & R189+0.5,'Asset data'!$CX189:$GJ189),0) -> 0 | X189: =IF($A189>0,SUMIF('Age profile (years)'!$CT189:$GF189,"<" & S189+0.5,'Asset data'!$CX189:$GJ189)-W189,0) -> 0 | Y189: =IF($A189>0,SUMIF('Age profile (years)'!$CT189:$GF189,"<" & T189+0.5,'Asset data'!$CX189:$GJ189)-X189-W189,0) -> 0 | Z189: =IF($A189>0,SUMIF('Age profile (years)'!$CT189:$GF189,"<" & U189+0.5,'Asset data'!$CX189:$GJ189)-Y189-X189-W189,0) -> 0 | AA189: 0 | AB189: 0 | AC189: 0 | AD189: 0 | AE189: 0 | AF189: 0 | AI189: =IF($A189>0,'RRR hist-forc'!K189,0) -> 0 | AJ189: 0
A190: ='Asset data'!A190 -> 0 | B190: ='Asset data'!B190 -> 0 | C190: ='Asset data'!C190 -> 0 | D190: ='Asset data'!E190 -> 0 | E190: 0 | F190: =IF(A190>0,SUM('Asset data'!J190:CV190),0) -> 0 | G190: =IF(A190>0,'Asset data'!F190,0) -> 0 | H190: =IF(A190>0,SUM('Asset data'!CX190:GJ190),0) -> 0 | I190: 0 | J190: 0 | K190: 0 | L190: 0 | M190: =IF($A190>0,SUMPRODUCT('Age profile (years)'!$CT190:$GF190,'Asset data'!$CX190:$GJ190)/H190-0.5,0) -> 0 | N190: 0 | O190: =IF($A190>0,'Asset data'!G190,0) -> 0 | P190: 0 | Q190: 0 | R190: 0 | S190: 0 | T190: 0 | U190: 0 | W190: =IF($A190>0,SUMIF('Age profile (years)'!$CT190:$GF190,"<" & R190+0.5,'Asset data'!$CX190:$GJ190),0) -> 0 | X190: =IF($A190>0,SUMIF('Age profile (years)'!$CT190:$GF190,"<" & S190+0.5,'Asset data'!$CX190:$GJ190)-W190,0) -> 0 | Y190: =IF($A190>0,SUMIF('Age profile (years)'!$CT190:$GF190,"<" & T190+0.5,'Asset data'!$CX190:$GJ190)-X190-W190,0) -> 0 | Z190: =IF($A190>0,SUMIF('Age profile (years)'!$CT190:$GF190,"<" & U190+0.5,'Asset data'!$CX190:$GJ190)-Y190-X190-W190,0) -> 0 | AA190: 0 | AB190: 0 | AC190: 0 | AD190: 0 | AE190: 0 | AF190: 0 | AI190: =IF($A190>0,'RRR hist-forc'!K190,0) -> 0 | AJ190: 0
A191: ='Asset data'!A191 -> 0 | B191: ='Asset data'!B191 -> 0 | C191: ='Asset data'!C191 -> 0 | D191: ='Asset data'!E191 -> 0 | E191: 0 | F191: =IF(A191>0,SUM('Asset data'!J191:CV191),0) -> 0 | G191: =IF(A191>0,'Asset data'!F191,0) -> 0 | H191: =IF(A191>0,SUM('Asset data'!CX191:GJ191),0) -> 0 | I191: 0 | J191: 0 | K191: 0 | L191: 0 | M191: =IF($A191>0,SUMPRODUCT('Age profile (years)'!$CT191:$GF191,'Asset data'!$CX191:$GJ191)/H191-0.5,0) -> 0 | N191: 0 | O191: =IF($A191>0,'Asset data'!G191,0) -> 0 | P191: 0 | Q191: 0 | R191: 0 | S191: 0 | T191: 0 | U191: 0 | W191: =IF($A191>0,SUMIF('Age profile (years)'!$CT191:$GF191,"<" & R191+0.5,'Asset data'!$CX191:$GJ191),0) -> 0 | X191: =IF($A191>0,SUMIF('Age profile (years)'!$CT191:$GF191,"<" & S191+0.5,'Asset data'!$CX191:$GJ191)-W191,0) -> 0 | Y191: =IF($A191>0,SUMIF('Age profile (years)'!$CT191:$GF191,"<" & T191+0.5,'Asset data'!$CX191:$GJ191)-X191-W191,0) -> 0 | Z191: =IF($A191>0,SUMIF('Age profile (years)'!$CT191:$GF191,"<" & U191+0.5,'Asset data'!$CX191:$GJ191)-Y191-X191-W191,0) -> 0 | AA191: 0 | AB191: 0 | AC191: 0 | AD191: 0 | AE191: 0 | AF191: 0 | AI191: =IF($A191>0,'RRR hist-forc'!K191,0) -> 0 | AJ191: 0
A192: ='Asset data'!A192 -> 0 | B192: ='Asset data'!B192 -> 0 | C192: ='Asset data'!C192 -> 0 | D192: ='Asset data'!E192 -> 0 | E192: 0 | F192: =IF(A192>0,SUM('Asset data'!J192:CV192),0) -> 0 | G192: =IF(A192>0,'Asset data'!F192,0) -> 0 | H192: =IF(A192>0,SUM('Asset data'!CX192:GJ192),0) -> 0 | I192: 0 | J192: 0 | K192: 0 | L192: 0 | M192: =IF($A192>0,SUMPRODUCT('Age profile (years)'!$CT192:$GF192,'Asset data'!$CX192:$GJ192)/H192-0.5,0) -> 0 | N192: 0 | O192: =IF($A192>0,'Asset data'!G192,0) -> 0 | P192: 0 | Q192: 0 | R192: 0 | S192: 0 | T192: 0 | U192: 0 | W192: =IF($A192>0,SUMIF('Age profile (years)'!$CT192:$GF192,"<" & R192+0.5,'Asset data'!$CX192:$GJ192),0) -> 0 | X192: =IF($A192>0,SUMIF('Age profile (years)'!$CT192:$GF192,"<" & S192+0.5,'Asset data'!$CX192:$GJ192)-W192,0) -> 0 | Y192: =IF($A192>0,SUMIF('Age profile (years)'!$CT192:$GF192,"<" & T192+0.5,'Asset data'!$CX192:$GJ192)-X192-W192,0) -> 0 | Z192: =IF($A192>0,SUMIF('Age profile (years)'!$CT192:$GF192,"<" & U192+0.5,'Asset data'!$CX192:$GJ192)-Y192-X192-W192,0) -> 0 | AA192: 0 | AB192: 0 | AC192: 0 | AD192: 0 | AE192: 0 | AF192: 0 | AI192: =IF($A192>0,'RRR hist-forc'!K192,0) -> 0 | AJ192: 0
A193: ='Asset data'!A193 -> 0 | B193: ='Asset data'!B193 -> 0 | C193: ='Asset data'!C193 -> 0 | D193: ='Asset data'!E193 -> 0 | E193: 0 | F193: =IF(A193>0,SUM('Asset data'!J193:CV193),0) -> 0 | G193: =IF(A193>0,'Asset data'!F193,0) -> 0 | H193: =IF(A193>0,SUM('Asset data'!CX193:GJ193),0) -> 0 | I193: 0 | J193: 0 | K193: 0 | L193: 0 | M193: =IF($A193>0,SUMPRODUCT('Age profile (years)'!$CT193:$GF193,'Asset data'!$CX193:$GJ193)/H193-0.5,0) -> 0 | N193: 0 | O193: =IF($A193>0,'Asset data'!G193,0) -> 0 | P193: 0 | Q193: 0 | R193: 0 | S193: 0 | T193: 0 | U193: 0 | W193: =IF($A193>0,SUMIF('Age profile (years)'!$CT193:$GF193,"<" & R193+0.5,'Asset data'!$CX193:$GJ193),0) -> 0 | X193: =IF($A193>0,SUMIF('Age profile (years)'!$CT193:$GF193,"<" & S193+0.5,'Asset data'!$CX193:$GJ193)-W193,0) -> 0 | Y193: =IF($A193>0,SUMIF('Age profile (years)'!$CT193:$GF193,"<" & T193+0.5,'Asset data'!$CX193:$GJ193)-X193-W193,0) -> 0 | Z193: =IF($A193>0,SUMIF('Age profile (years)'!$CT193:$GF193,"<" & U193+0.5,'Asset data'!$CX193:$GJ193)-Y193-X193-W193,0) -> 0 | AA193: 0 | AB193: 0 | AC193: 0 | AD193: 0 | AE193: 0 | AF193: 0 | AI193: =IF($A193>0,'RRR hist-forc'!K193,0) -> 0 | AJ193: 0
A194: ='Asset data'!A194 -> 0 | B194: ='Asset data'!B194 -> 0 | C194: ='Asset data'!C194 -> 0 | D194: ='Asset data'!E194 -> 0 | E194: 0 | F194: =IF(A194>0,SUM('Asset data'!J194:CV194),0) -> 0 | G194: =IF(A194>0,'Asset data'!F194,0) -> 0 | H194: =IF(A194>0,SUM('Asset data'!CX194:GJ194),0) -> 0 | I194: 0 | J194: 0 | K194: 0 | L194: 0 | M194: =IF($A194>0,SUMPRODUCT('Age profile (years)'!$CT194:$GF194,'Asset data'!$CX194:$GJ194)/H194-0.5,0) -> 0 | N194: 0 | O194: =IF($A194>0,'Asset data'!G194,0) -> 0 | P194: 0 | Q194: 0 | R194: 0 | S194: 0 | T194: 0 | U194: 0 | W194: =IF($A194>0,SUMIF('Age profile (years)'!$CT194:$GF194,"<" & R194+0.5,'Asset data'!$CX194:$GJ194),0) -> 0 | X194: =IF($A194>0,SUMIF('Age profile (years)'!$CT194:$GF194,"<" & S194+0.5,'Asset data'!$CX194:$GJ194)-W194,0) -> 0 | Y194: =IF($A194>0,SUMIF('Age profile (years)'!$CT194:$GF194,"<" & T194+0.5,'Asset data'!$CX194:$GJ194)-X194-W194,0) -> 0 | Z194: =IF($A194>0,SUMIF('Age profile (years)'!$CT194:$GF194,"<" & U194+0.5,'Asset data'!$CX194:$GJ194)-Y194-X194-W194,0) -> 0 | AA194: 0 | AB194: 0 | AC194: 0 | AD194: 0 | AE194: 0 | AF194: 0 | AI194: =IF($A194>0,'RRR hist-forc'!K194,0) -> 0 | AJ194: 0
A195: ='Asset data'!A195 -> 0 | B195: ='Asset data'!B195 -> 0 | C195: ='Asset data'!C195 -> 0 | D195: ='Asset data'!E195 -> 0 | E195: 0 | F195: =IF(A195>0,SUM('Asset data'!J195:CV195),0) -> 0 | G195: =IF(A195>0,'Asset data'!F195,0) -> 0 | H195: =IF(A195>0,SUM('Asset data'!CX195:GJ195),0) -> 0 | I195: 0 | J195: 0 | K195: 0 | L195: 0 | M195: =IF($A195>0,SUMPRODUCT('Age profile (years)'!$CT195:$GF195,'Asset data'!$CX195:$GJ195)/H195-0.5,0) -> 0 | N195: 0 | O195: =IF($A195>0,'Asset data'!G195,0) -> 0 | P195: 0 | Q195: 0 | R195: 0 | S195: 0 | T195: 0 | U195: 0 | W195: =IF($A195>0,SUMIF('Age profile (years)'!$CT195:$GF195,"<" & R195+0.5,'Asset data'!$CX195:$GJ195),0) -> 0 | X195: =IF($A195>0,SUMIF('Age profile (years)'!$CT195:$GF195,"<" & S195+0.5,'Asset data'!$CX195:$GJ195)-W195,0) -> 0 | Y195: =IF($A195>0,SUMIF('Age profile (years)'!$CT195:$GF195,"<" & T195+0.5,'Asset data'!$CX195:$GJ195)-X195-W195,0) -> 0 | Z195: =IF($A195>0,SUMIF('Age profile (years)'!$CT195:$GF195,"<" & U195+0.5,'Asset data'!$CX195:$GJ195)-Y195-X195-W195,0) -> 0 | AA195: 0 | AB195: 0 | AC195: 0 | AD195: 0 | AE195: 0 | AF195: 0 | AI195: =IF($A195>0,'RRR hist-forc'!K195,0) -> 0 | AJ195: 0
A196: ='Asset data'!A196 -> 0 | B196: ='Asset data'!B196 -> 0 | C196: ='Asset data'!C196 -> 0 | D196: ='Asset data'!E196 -> 0 | E196: 0 | F196: =IF(A196>0,SUM('Asset data'!J196:CV196),0) -> 0 | G196: =IF(A196>0,'Asset data'!F196,0) -> 0 | H196: =IF(A196>0,SUM('Asset data'!CX196:GJ196),0) -> 0 | I196: 0 | J196: 0 | K196: 0 | L196: 0 | M196: =IF($A196>0,SUMPRODUCT('Age profile (years)'!$CT196:$GF196,'Asset data'!$CX196:$GJ196)/H196-0.5,0) -> 0 | N196: 0 | O196: =IF($A196>0,'Asset data'!G196,0) -> 0 | P196: 0 | Q196: 0 | R196: 0 | S196: 0 | T196: 0 | U196: 0 | W196: =IF($A196>0,SUMIF('Age profile (years)'!$CT196:$GF196,"<" & R196+0.5,'Asset data'!$CX196:$GJ196),0) -> 0 | X196: =IF($A196>0,SUMIF('Age profile (years)'!$CT196:$GF196,"<" & S196+0.5,'Asset data'!$CX196:$GJ196)-W196,0) -> 0 | Y196: =IF($A196>0,SUMIF('Age profile (years)'!$CT196:$GF196,"<" & T196+0.5,'Asset data'!$CX196:$GJ196)-X196-W196,0) -> 0 | Z196: =IF($A196>0,SUMIF('Age profile (years)'!$CT196:$GF196,"<" & U196+0.5,'Asset data'!$CX196:$GJ196)-Y196-X196-W196,0) -> 0 | AA196: 0 | AB196: 0 | AC196: 0 | AD196: 0 | AE196: 0 | AF196: 0 | AI196: =IF($A196>0,'RRR hist-forc'!K196,0) -> 0 | AJ196: 0
A197: ='Asset data'!A197 -> 0 | B197: ='Asset data'!B197 -> 0 | C197: ='Asset data'!C197 -> 0 | D197: ='Asset data'!E197 -> 0 | E197: 0 | F197: =IF(A197>0,SUM('Asset data'!J197:CV197),0) -> 0 | G197: =IF(A197>0,'Asset data'!F197,0) -> 0 | H197: =IF(A197>0,SUM('Asset data'!CX197:GJ197),0) -> 0 | I197: 0 | J197: 0 | K197: 0 | L197: 0 | M197: =IF($A197>0,SUMPRODUCT('Age profile (years)'!$CT197:$GF197,'Asset data'!$CX197:$GJ197)/H197-0.5,0) -> 0 | N197: 0 | O197: =IF($A197>0,'Asset data'!G197,0) -> 0 | P197: 0 | Q197: 0 | R197: 0 | S197: 0 | T197: 0 | U197: 0 | W197: =IF($A197>0,SUMIF('Age profile (years)'!$CT197:$GF197,"<" & R197+0.5,'Asset data'!$CX197:$GJ197),0) -> 0 | X197: =IF($A197>0,SUMIF('Age profile (years)'!$CT197:$GF197,"<" & S197+0.5,'Asset data'!$CX197:$GJ197)-W197,0) -> 0 | Y197: =IF($A197>0,SUMIF('Age profile (years)'!$CT197:$GF197,"<" & T197+0.5,'Asset data'!$CX197:$GJ197)-X197-W197,0) -> 0 | Z197: =IF($A197>0,SUMIF('Age profile (years)'!$CT197:$GF197,"<" & U197+0.5,'Asset data'!$CX197:$GJ197)-Y197-X197-W197,0) -> 0 | AA197: 0 | AB197: 0 | AC197: 0 | AD197: 0 | AE197: 0 | AF197: 0 | AI197: =IF($A197>0,'RRR hist-forc'!K197,0) -> 0 | AJ197: 0
A198: ='Asset data'!A198 -> 0 | B198: ='Asset data'!B198 -> 0 | C198: ='Asset data'!C198 -> 0 | D198: ='Asset data'!E198 -> 0 | E198: 0 | F198: =IF(A198>0,SUM('Asset data'!J198:CV198),0) -> 0 | G198: =IF(A198>0,'Asset data'!F198,0) -> 0 | H198: =IF(A198>0,SUM('Asset data'!CX198:GJ198),0) -> 0 | I198: 0 | J198: 0 | K198: 0 | L198: 0 | M198: =IF($A198>0,SUMPRODUCT('Age profile (years)'!$CT198:$GF198,'Asset data'!$CX198:$GJ198)/H198-0.5,0) -> 0 | N198: 0 | O198: =IF($A198>0,'Asset data'!G198,0) -> 0 | P198: 0 | Q198: 0 | R198: 0 | S198: 0 | T198: 0 | U198: 0 | W198: =IF($A198>0,SUMIF('Age profile (years)'!$CT198:$GF198,"<" & R198+0.5,'Asset data'!$CX198:$GJ198),0) -> 0 | X198: =IF($A198>0,SUMIF('Age profile (years)'!$CT198:$GF198,"<" & S198+0.5,'Asset data'!$CX198:$GJ198)-W198,0) -> 0 | Y198: =IF($A198>0,SUMIF('Age profile (years)'!$CT198:$GF198,"<" & T198+0.5,'Asset data'!$CX198:$GJ198)-X198-W198,0) -> 0 | Z198: =IF($A198>0,SUMIF('Age profile (years)'!$CT198:$GF198,"<" & U198+0.5,'Asset data'!$CX198:$GJ198)-Y198-X198-W198,0) -> 0 | AA198: 0 | AB198: 0 | AC198: 0 | AD198: 0 | AE198: 0 | AF198: 0 | AI198: =IF($A198>0,'RRR hist-forc'!K198,0) -> 0 | AJ198: 0
A199: ='Asset data'!A199 -> 0 | B199: ='Asset data'!B199 -> 0 | C199: ='Asset data'!C199 -> 0 | D199: ='Asset data'!E199 -> 0 | E199: 0 | F199: =IF(A199>0,SUM('Asset data'!J199:CV199),0) -> 0 | G199: =IF(A199>0,'Asset data'!F199,0) -> 0 | H199: =IF(A199>0,SUM('Asset data'!CX199:GJ199),0) -> 0 | I199: 0 | J199: 0 | K199: 0 | L199: 0 | M199: =IF($A199>0,SUMPRODUCT('Age profile (years)'!$CT199:$GF199,'Asset data'!$CX199:$GJ199)/H199-0.5,0) -> 0 | N199: 0 | O199: =IF($A199>0,'Asset data'!G199,0) -> 0 | P199: 0 | Q199: 0 | R199: 0 | S199: 0 | T199: 0 | U199: 0 | W199: =IF($A199>0,SUMIF('Age profile (years)'!$CT199:$GF199,"<" & R199+0.5,'Asset data'!$CX199:$GJ199),0) -> 0 | X199: =IF($A199>0,SUMIF('Age profile (years)'!$CT199:$GF199,"<" & S199+0.5,'Asset data'!$CX199:$GJ199)-W199,0) -> 0 | Y199: =IF($A199>0,SUMIF('Age profile (years)'!$CT199:$GF199,"<" & T199+0.5,'Asset data'!$CX199:$GJ199)-X199-W199,0) -> 0 | Z199: =IF($A199>0,SUMIF('Age profile (years)'!$CT199:$GF199,"<" & U199+0.5,'Asset data'!$CX199:$GJ199)-Y199-X199-W199,0) -> 0 | AA199: 0 | AB199: 0 | AC199: 0 | AD199: 0 | AE199: 0 | AF199: 0 | AI199: =IF($A199>0,'RRR hist-forc'!K199,0) -> 0 | AJ199: 0
A200: ='Asset data'!A200 -> 0 | B200: ='Asset data'!B200 -> 0 | C200: ='Asset data'!C200 -> 0 | D200: ='Asset data'!E200 -> 0 | E200: 0 | F200: =IF(A200>0,SUM('Asset data'!J200:CV200),0) -> 0 | G200: =IF(A200>0,'Asset data'!F200,0) -> 0 | H200: =IF(A200>0,SUM('Asset data'!CX200:GJ200),0) -> 0 | I200: 0 | J200: 0 | K200: 0 | L200: 0 | M200: =IF($A200>0,SUMPRODUCT('Age profile (years)'!$CT200:$GF200,'Asset data'!$CX200:$GJ200)/H200-0.5,0) -> 0 | N200: 0 | O200: =IF($A200>0,'Asset data'!G200,0) -> 0 | P200: 0 | Q200: 0 | R200: 0 | S200: 0 | T200: 0 | U200: 0 | W200: =IF($A200>0,SUMIF('Age profile (years)'!$CT200:$GF200,"<" & R200+0.5,'Asset data'!$CX200:$GJ200),0) -> 0 | X200: =IF($A200>0,SUMIF('Age profile (years)'!$CT200:$GF200,"<" & S200+0.5,'Asset data'!$CX200:$GJ200)-W200,0) -> 0 | Y200: =IF($A200>0,SUMIF('Age profile (years)'!$CT200:$GF200,"<" & T200+0.5,'Asset data'!$CX200:$GJ200)-X200-W200,0) -> 0 | Z200: =IF($A200>0,SUMIF('Age profile (years)'!$CT200:$GF200,"<" & U200+0.5,'Asset data'!$CX200:$GJ200)-Y200-X200-W200,0) -> 0 | AA200: 0 | AB200: 0 | AC200: 0 | AD200: 0 | AE200: 0 | AF200: 0 | AI200: =IF($A200>0,'RRR hist-forc'!K200,0) -> 0 | AJ200: 0
AI206: =IF($A206>0,'RRR hist-forc'!K206,0) -> 0 | AJ206: =IF($A206>0,AI206*H206,0) -> 0

Sheet Asset data
A1: Meth all | D1: 3 | E1: =IF(D1=2,"all normal",IF(D1=1,"all deterministic","individual")) -> individual | L1: Profile type: | M1: 3 | N1: =VLOOKUP(APtype,IDtable,4) -> Installation date
F3: Unit | J3: Quantities | CX3: Replacement Cost (NOT depreciated)
F4: Cost | G4: Replacement life | I4: Rep | J4: =VLOOKUP(APtype,IDtable,4) -> Installation date | CX4: =VLOOKUP(APtype,IDtable,4) -> Installation date
A5: ID | B5: ID | C5: ID | D5: Asset category | E5: Asset ID | F5: $ ('000) | G5: mean | H5: SD | I5: Meth | J5: =IF(OR(APtype=1,APtype=2),0,IF(APtype=3,Now,9999)) -> 2013 | K5: =IF(OR(APtype=1,APtype=2),J5+1,IF(APtype=3,J5-1,9999)) -> 2012 | L5: 2011 | M5: 2010 | N5: 2009 | O5: 2008 | P5: 2007 | Q5: 2006 | R5: 2005 | S5: 2004 | T5: 2003 | U5: 2002 | V5: 2001 | W5: 2000 | X5: 1999 | Y5: 1998 | Z5: 1997 | AA5: 1996 | AB5: 1995 | AC5: 1994 | AD5: 1993 | AE5: 1992 | AF5: 1991 | AG5: 1990 | AH5: 1989 | AI5: 1988 | AJ5: 1987 | AK5: 1986 | AL5: 1985 | AM5: 1984 | AN5: 1983 | AO5: 1982 | AP5: 1981 | AQ5: =IF(OR(APtype=1,APtype=2),AP5+1,IF(APtype=3,AP5-1,9999)) -> 1980 | AR5: 1979 | AS5: 1978 | AT5: 1977 | AU5: 1976 | AV5: 1975 | AW5: 1974 | AX5: 1973 | AY5: 1972 | AZ5: 1971 | BA5: 1970 | BB5: 1969 | BC5: 1968 | BD5: 1967 | BE5: 1966 | BF5: 1965 | BG5: 1964 | BH5: 1963 | BI5: 1962 | BJ5: 1961 | BK5: 1960 | BL5: 1959 | BM5: 1958 | BN5: 1957 | BO5: 1956 | BP5: 1955 | BQ5: 1954 | BR5: 1953 | BS5: 1952 | BT5: 1951 | BU5: 1950 | BV5: 1949 | BW5: =IF(OR(APtype=1,APtype=2),BV5+1,IF(APtype=3,BV5-1,9999)) -> 1948 | BX5: 1947 | BY5: 1946 | BZ5: 1945 | CA5: 1944 | CB5: 1943 | CC5: 1942 | CD5: 1941 | CE5: 1940 | CF5: 1939 | CG5: 1938 | CH5: 1937 | CI5: 1936 | CJ5: 1935 | CK5: 1934 | CL5: 1933 | CM5: 1932 | CN5: 1931 | CO5: 1930 | CP5: 1929 | CQ5: 1928 | CR5: 1927 | CS5: 1926 | CT5: 1925 | CU5: 1924 | CV5: 1923 | CX5: =J5 -> 2013 | CY5: =K5 -> 2012 | CZ5: 2011 | DA5: 2010 | DB5: 2009 | DC5: 2008 | DD5: 2007 | DE5: 2006 | DF5: 2005 | DG5: 2004 | DH5: 2003 | DI5: 2002 | DJ5: 2001 | DK5: 2000 | DL5: 1999 | DM5: 1998 | DN5: 1997 | DO5: 1996 | DP5: 1995 | DQ5: 1994 | DR5: 1993 | DS5: 1992 | DT5: 1991 | DU5: 1990 | DV5: 1989 | DW5: 1988 | DX5: 1987 | DY5: 1986 | DZ5: 1985 | EA5: 1984 | EB5: 1983 | EC5: 1982 | ED5: 1981 | EE5: 1980 | EF5: 1979 | EG5: 1978 | EH5: 1977 | EI5: 1976 | EJ5: 1975 | EK5: 1974 | EL5: 1973 | EM5: 1972 | EN5: 1971 | EO5: 1970 | EP5: 1969 | EQ5: 1968 | ER5: 1967 | ES5: 1966 | ET5: 1965 | EU5: 1964 | EV5: 1963 | EW5: 1962 | EX5: 1961 | EY5: 1960 | EZ5: 1959 | FA5: 1958 | FB5: 1957 | FC5: 1956 | FD5: 1955 | FE5: 1954 | FF5: 1953 | FG5: 1952 | FH5: 1951 | FI5: 1950 | FJ5: 1949 | FK5: =BW5 -> 1948 | FL5: 1947 | FM5: 1946 | FN5: 1945 | FO5: 1944 | FP5: 1943 | FQ5: 1942 | FR5: 1941 | FS5: 1940 | FT5: 1939 | FU5: 1938 | FV5: 1937 | FW5: 1936 | FX5: 1935 | FY5: 1934 | FZ5: 1933 | GA5: 1932 | GB5: 1931 | GC5: 1930 | GD5: 1929 | GE5: 1928 | GF5: 1927 | GG5: 1926 | GH5: 1925 | GI5: 1924 | GJ5: 1923
D21: =IF(A21>0,VLOOKUP(A21,IDtable,2),"") ->  | CX21: =$F21*J21 -> 0 | CY21: =$F21*K21 -> 0 | CZ21: 0 | DA21: 0 | DB21: 0 | DC21: 0 | DD21: 0 | DE21: 0 | DF21: 0 | DG21: 0 | DH21: 0 | DI21: 0 | DJ21: 0 | DK21: 0 | DL21: 0 | DM21: 0 | DN21: 0 | DO21: 0 | DP21: 0 | DQ21: 0 | DR21: 0 | DS21: 0 | DT21: 0 | DU21: 0 | DV21: 0 | DW21: 0 | DX21: 0 | DY21: 0 | DZ21: 0 | EA21: 0 | EB21: 0 | EC21: 0 | ED21: 0 | EE21: 0 | EF21: 0 | EG21: 0 | EH21: 0 | EI21: 0 | EJ21: 0 | EK21: 0 | EL21: 0 | EM21: 0 | EN21: 0 | EO21: 0 | EP21: 0 | EQ21: 0 | ER21: 0 | ES21: 0 | ET21: 0 | EU21: 0 | EV21: 0 | EW21: 0 | EX21: 0 | EY21: 0 | EZ21: 0 | FA21: 0 | FB21: 0 | FC21: 0 | FD21: 0 | FE21: 0 | FF21: 0 | FG21: 0 | FH21: 0 | FI21: 0 | FJ21: 0 | FK21: =$F21*BW21 -> 0 | FL21: 0 | FM21: 0 | FN21: 0 | FO21: 0 | FP21: 0 | FQ21: 0 | FR21: 0 | FS21: 0 | FT21: 0 | FU21: 0 | FV21: 0 | FW21: 0 | FX21: 0 | FY21: 0 | FZ21: 0 | GA21: 0 | GB21: 0 | GC21: 0 | GD21: 0 | GE21: 0 | GF21: 0 | GG21: 0 | GH21: 0 | GI21: 0 | GJ21: 0
A22: 1 | D22: POLES | E22: STAKING OF A WOODEN POLE | F22: 8.297713677 | G22: 15 | H22: 3.9 | I22: 2 | J22: 275 | K22: 368 | L22: 492 | M22: 279 | N22: 397 | O22: 300 | P22: 300 | Q22: 300 | R22: 300 | S22: 300 | T22: 300 | U22: 300 | V22: 300 | W22: 300 | X22: 0 | Y22: 0 | Z22: 0 | AA22: 0 | AB22: 0 | AC22: 0 | AD22: 0 | AE22: 0 | AF22: 0 | AG22: 0 | AH22: 0 | AI22: 0 | AJ22: 0 | AK22: 0 | AL22: 0 | AM22: 0 | AN22: 0 | AO22: 0 | AP22: 0 | AQ22: 0 | AR22: 0 | AS22: 0 | AT22: 0 | AU22: 0 | AV22: 0 | AW22: 0 | AX22: 0 | AY22: 0 | AZ22: 0 | BA22: 0 | BB22: 0 | BC22: 0 | BD22: 0 | BE22: 0 | BF22: 0 | BG22: 0 | BH22: 0 | BI22: 0 | BJ22: 0 | BK22: 0 | BL22: 0 | BM22: 0 | BN22: 0 | BO22: 0 | BP22: 0 | BQ22: 0 | BR22: 0 | BS22: 0 | BT22: 0 | BU22: 0 | BV22: 0 | BW22: 0 | BX22: 0 | BY22: 0 | BZ22: 0 | CA22: 0 | CB22: 0 | CC22: 0 | CD22: 0 | CE22: 0 | CF22: 0 | CG22: 0 | CH22: 0 | CI22: 0 | CJ22: 0 | CK22: 0 | CL22: 0 | CM22: 0 | CN22: 0 | CO22: 0 | CP22: 0 | CQ22: 0 | CR22: 0 | CS22: 0 | CT22: 0 | CU22: 0 | CV22: 0 | CX22: =$F22*J22 -> 2281.871261 | CY22: =$F22*K22 -> 3053.558633 | CZ22: =$F22*L22 -> 4082.475129 | DA22: =$F22*M22 -> 2315.062116 | DB22: =$F22*N22 -> 3294.19233 | DC22: =$F22*O22 -> 2489.314103 | DD22: =$F22*P22 -> 2489.314103 | DE22: =$F22*Q22 -> 2489.314103 | DF22: =$F22*R22 -> 2489.314103 | DG22: =$F22*S22 -> 2489.314103 | DH22: =$F22*T22 -> 2489.314103 | DI22: =$F22*U22 -> 2489.314103 | DJ22: =$F22*V22 -> 2489.314103 | DK22: =$F22*W22 -> 2489.314103 | DL22: =$F22*X22 -> 0 | DM22: =$F22*Y22 -> 0 | DN22: =$F22*Z22 -> 0 | DO22: =$F22*AA22 -> 0 | DP22: =$F22*AB22 -> 0 | DQ22: =$F22*AC22 -> 0 | DR22: =$F22*AD22 -> 0 | DS22: =$F22*AE22 -> 0 | DT22: =$F22*AF22 -> 0 | DU22: =$F22*AG22 -> 0 | DV22: =$F22*AH22 -> 0 | DW22: =$F22*AI22 -> 0 | DX22: =$F22*AJ22 -> 0 | DY22: =$F22*AK22 -> 0 | DZ22: =$F22*AL22 -> 0 | EA22: =$F22*AM22 -> 0 | EB22: =$F22*AN22 -> 0 | EC22: =$F22*AO22 -> 0 | ED22: =$F22*AP22 -> 0 | EE22: =$F22*AQ22 -> 0 | EF22: =$F22*AR22 -> 0 | EG22: =$F22*AS22 -> 0 | EH22: =$F22*AT22 -> 0 | EI22: =$F22*AU22 -> 0 | EJ22: =$F22*AV22 -> 0 | EK22: =$F22*AW22 -> 0 | EL22: =$F22*AX22 -> 0 | EM22: =$F22*AY22 -> 0 | EN22: =$F22*AZ22 -> 0 | EO22: =$F22*BA22 -> 0 | EP22: =$F22*BB22 -> 0 | EQ22: =$F22*BC22 -> 0 | ER22: =$F22*BD22 -> 0 | ES22: =$F22*BE22 -> 0 | ET22: =$F22*BF22 -> 0 | EU22: =$F22*BG22 -> 0 | EV22: =$F22*BH22 -> 0 | EW22: =$F22*BI22 -> 0 | EX22: =$F22*BJ22 -> 0 | EY22: =$F22*BK22 -> 0 | EZ22: =$F22*BL22 -> 0 | FA22: =$F22*BM22 -> 0 | FB22: =$F22*BN22 -> 0 | FC22: =$F22*BO22 -> 0 | FD22: =$F22*BP22 -> 0 | FE22: =$F22*BQ22 -> 0 | FF22: =$F22*BR22 -> 0 | FG22: =$F22*BS22 -> 0 | FH22: =$F22*BT22 -> 0 | FI22: =$F22*BU22 -> 0 | FJ22: =$F22*BV22 -> 0 | FK22: =$F22*BW22 -> 0 | FL22: =$F22*BX22 -> 0 | FM22: =$F22*BY22 -> 0 | FN22: =$F22*BZ22 -> 0 | FO22: =$F22*CA22 -> 0 | FP22: =$F22*CB22 -> 0 | FQ22: =$F22*CC22 -> 0 | FR22: =$F22*CD22 -> 0 | FS22: =$F22*CE22 -> 0 | FT22: =$F22*CF22 -> 0 | FU22: =$F22*CG22 -> 0 | FV22: =$F22*CH22 -> 0 | FW22: =$F22*CI22 -> 0 | FX22: =$F22*CJ22 -> 0 | FY22: =$F22*CK22 -> 0 | FZ22: =$F22*CL22 -> 0 | GA22: =$F22*CM22 -> 0 | GB22: =$F22*CN22 -> 0 | GC22: =$F22*CO22 -> 0 | GD22: =$F22*CP22 -> 0 | GE22: =$F22*CQ22 -> 0 | GF22: =$F22*CR22 -> 0 | GG22: =$F22*CS22 -> 0 | GH22: =$F22*CT22 -> 0 | GI22: =$F22*CU22 -> 0 | GJ22: =$F22*CV22 -> 0
A23: 1 | D23: POLES | E23: ˂ = 1 kV; WOOD | F23: 3.750405237 | G23: 58 | H23: 7.615773106 | I23: 2 | J23: 889 | K23: 674 | L23: 540 | M23: 526 | N23: 571 | O23: 2969 | P23: 3425 | Q23: 2913 | R23: 1998 | S23: 3254 | T23: 2196 | U23: 2340 | V23: 3310 | W23: 3596 | X23: 3480 | Y23: 3625 | Z23: 4394 | AA23: 4537 | AB23: 4280 | AC23: 4166 | AD23: 4453 | AE23: 3652 | AF23: 4280 | AG23: 3027 | AH23: 2969 | AI23: 4166 | AJ23: 4453 | AK23: 4280 | AL23: 3596 | AM23: 3480 | AN23: 3368 | AO23: 3310 | AP23: 3455 | AQ23: 3289 | AR23: 2807 | AS23: 2515 | AT23: 2106 | AU23: 1829 | AV23: 1565 | AW23: 1322 | AX23: 1121 | AY23: 1007 | AZ23: 775 | BA23: 818 | BB23: 944 | BC23: 1078 | BD23: 1211 | BE23: 1334 | BF23: 1421 | BG23: 1454 | BH23: 1408 | BI23: 1310 | BJ23: 1238 | BK23: 1185 | BL23: 1049 | BM23: 898 | BN23: 693 | BO23: 525 | BP23: 392 | BQ23: 291 | BR23: 215 | BS23: 155 | BT23: 112 | BU23: 0 | BV23: 0 | BW23: 0 | BX23: 0 | BY23: 0 | BZ23: 0 | CA23: 0 | CB23: 0 | CC23: 0 | CD23: 0 | CE23: 0 | CF23: 0 | CG23: 0 | CH23: 0 | CI23: 0 | CJ23: 0 | CK23: 0 | CL23: 0 | CM23: 0 | CN23: 0 | CO23: 0 | CP23: 0 | CQ23: 0 | CR23: 0 | CS23: 0 | CT23: 0 | CU23: 0 | CV23: 0 | CX23: =$F23*J23 -> 3334.110256 | CY23: 2527.77313 | CZ23: 2025.218828 | DA23: 1972.713155 | DB23: 2141.48139 | DC23: 11134.95315 | DD23: 12845.13794 | DE23: 10924.93046 | DF23: 7493.309664 | DG23: 12203.81864 | DH23: 8235.889901 | DI23: 8775.948255 | DJ23: 12413.84133 | DK23: 13486.45723 | DL23: 13051.41023 | DM23: 13595.21898 | DN23: 16479.28061 | DO23: 17015.58856 | DP23: 16051.73441 | DQ23: 15624.18822 | DR23: 16700.55452 | DS23: 13696.47993 | DT23: 16051.73441 | DU23: 11352.47665 | DV23: 11134.95315 | DW23: 15624.18822 | DX23: 16700.55452 | DY23: 16051.73441 | DZ23: 13486.45723 | EA23: 13051.41023 | EB23: 12631.36484 | EC23: 12413.84133 | ED23: 12957.65009 | EE23: 12335.08282 | EF23: 10527.3875 | EG23: 9432.269171 | EH23: 7898.353429 | EI23: 6859.491179 | EJ23: 5869.384196 | EK23: 4958.035723 | EL23: 4204.204271 | EM23: 3776.658074 | EN23: 2906.564059 | EO23: 3067.831484 | EP23: 3540.382544 | EQ23: 4042.936846 | ER23: 4541.740742 | ES23: 5003.040586 | ET23: 5329.325842 | EU23: 5453.089215 | EV23: 5280.570574 | EW23: 4913.030861 | EX23: 4643.001683 | EY23: 4444.230206 | EZ23: 3934.175094 | FA23: 3367.863903 | FB23: 2599.030829 | FC23: 1968.962749 | FD23: 1470.158853 | FE23: 1091.367924 | FF23: 806.337126 | FG23: 581.3128117 | FH23: 420.0453866 | FI23: 0 | FJ23: 0 | FK23: 0 | FL23: 0 | FM23: 0 | FN23: 0 | FO23: 0 | FP23: 0 | FQ23: 0 | FR23: 0 | FS23: 0 | FT23: 0 | FU23: 0 | FV23: 0 | FW23: 0 | FX23: 0 | FY23: 0 | FZ23: 0 | GA23: 0 | GB23: 0 | GC23: 0 | GD23: 0 | GE23: 0 | GF23: 0 | GG23: 0 | GH23: 0 | GI23: 0 | GJ23: 0
A24: 1 | D24: POLES | E24: > 1 kV & < = 11 kV; WOOD | F24: 5.070124975 | G24: 58 | H24: 7.615773106 | I24: 2 | J24: 1892 | K24: 1602 | L24: 1573 | M24: 1225 | N24: 1145 | O24: 2551 | P24: 2943 | Q24: 2503 | R24: 1717 | S24: 2796 | T24: 1887 | U24: 2010 | V24: 2844 | W24: 3090 | X24: 2991 | Y24: 3115 | Z24: 3776 | AA24: 3899 | AB24: 3678 | AC24: 3580 | AD24: 3826 | AE24: 3139 | AF24: 3678 | AG24: 2601 | AH24: 2551 | AI24: 3580 | AJ24: 3826 | AK24: 3678 | AL24: 3090 | AM24: 2991 | AN24: 2894 | AO24: 2844 | AP24: 2969 | AQ24: 2826 | AR24: 2412 | AS24: 2161 | AT24: 1810 | AU24: 1572 | AV24: 1345 | AW24: 1136 | AX24: 963 | AY24: 865 | AZ24: 666 | BA24: 703 | BB24: 811 | BC24: 926 | BD24: 1041 | BE24: 1147 | BF24: 1221 | BG24: 1249 | BH24: 1210 | BI24: 1126 | BJ24: 1064 | BK24: 1018 | BL24: 901 | BM24: 771 | BN24: 596 | BO24: 451 | BP24: 337 | BQ24: 250 | BR24: 185 | BS24: 133 | BT24: 97 | BU24: 0 | BV24: 0 | BW24: 0 | BX24: 0 | BY24: 0 | BZ24: 0 | CA24: 0 | CB24: 0 | CC24: 0 | CD24: 0 | CE24: 0 | CF24: 0 | CG24: 0 | CH24: 0 | CI24: 0 | CJ24: 0 | CK24: 0 | CL24: 0 | CM24: 0 | CN24: 0 | CO24: 0 | CP24: 0 | CQ24: 0 | CR24: 0 | CS24: 0 | CT24: 0 | CU24: 0 | CV24: 0 | CX24: 9592.676452 | CY24: 8122.34021 | CZ24: 7975.306585 | DA24: 6210.903094 | DB24: 5805.293096 | DC24: 12933.88881 | DD24: 14921.3778 | DE24: 12690.52281 | DF24: 8705.404582 | DG24: 14176.06943 | DH24: 9567.325827 | DI24: 10190.9512 | DJ24: 14419.43543 | DK24: 15666.68617 | DL24: 15164.7438 | DM24: 15793.4393 | DN24: 19144.7919 | DO24: 19768.41728 | DP24: 18647.91966 | DQ24: 18151.04741 | DR24: 19398.29815 | DS24: 15915.1223 | DT24: 18647.91966 | DU24: 13187.39506 | DV24: 12933.88881 | DW24: 18151.04741 | DX24: 19398.29815 | DY24: 18647.91966 | DZ24: 15666.68617 | EA24: 15164.7438 | EB24: 14672.94168 | EC24: 14419.43543 | ED24: 15053.20105 | EE24: 14328.17318 | EF24: 12229.14144 | EG24: 10956.54007 | EH24: 9176.926204 | EI24: 7970.23646 | EJ24: 6819.318091 | EK24: 5759.661971 | EL24: 4882.530351 | EM24: 4385.658103 | EN24: 3376.703233 | EO24: 3564.297857 | EP24: 4111.871355 | EQ24: 4694.935727 | ER24: 5278.000099 | ES24: 5815.433346 | ET24: 6190.622594 | EU24: 6332.586093 | EV24: 6134.851219 | EW24: 5708.960722 | EX24: 5394.612973 | EY24: 5161.387224 | EZ24: 4568.182602 | FA24: 3909.066356 | FB24: 3021.794485 | FC24: 2286.626364 | FD24: 1708.632116 | FE24: 1267.531244 | FF24: 937.9731203 | FG24: 674.3266216 | FH24: 491.8021226 | FI24: 0 | FJ24: 0 | FK24: 0 | FL24: 0 | FM24: 0 | FN24: 0 | FO24: 0 | FP24: 0 | FQ24: 0 | FR24: 0 | FS24: 0 | FT24: 0 | FU24: 0 | FV24: 0 | FW24: 0 | FX24: 0 | FY24: 0 | FZ24: 0 | GA24: 0 | GB24: 0 | GC24: 0 | GD24: 0 | GE24: 0 | GF24: 0 | GG24: 0 | GH24: 0 | GI24: 0 | GJ24: 0
A25: 1 | D25: POLES | E25: ˃ 11 kV & < = 22 kV; WOOD | F25: 6.071477093 | G25: 58 | H25: 7.615773106 | I25: 2 | J25: 25 | K25: 9 | L25: 16 | M25: 17 | N25: 33 | O25: 33 | P25: 38 | Q25: 32 | R25: 22 | S25: 36 | T25: 24 | U25: 26 | V25: 37 | W25: 40 | X25: 38 | Y25: 40 | Z25: 49 | AA25: 50 | AB25: 47 | AC25: 46 | AD25: 49 | AE25: 40 | AF25: 47 | AG25: 33 | AH25: 33 | AI25: 46 | AJ25: 49 | AK25: 47 | AL25: 40 | AM25: 38 | AN25: 37 | AO25: 37 | AP25: 38 | AQ25: 36 | AR25: 31 | AS25: 28 | AT25: 23 | AU25: 20 | AV25: 17 | AW25: 15 | AX25: 12 | AY25: 11 | AZ25: 9 | BA25: 9 | BB25: 10 | BC25: 12 | BD25: 13 | BE25: 15 | BF25: 16 | BG25: 16 | BH25: 16 | BI25: 14 | BJ25: 14 | BK25: 13 | BL25: 12 | BM25: 10 | BN25: 8 | BO25: 6 | BP25: 4 | BQ25: 3 | BR25: 2 | BS25: 2 | BT25: 1 | BU25: 0 | BV25: 0 | BW25: 0 | BX25: 0 | BY25: 0 | BZ25: 0 | CA25: 0 | CB25: 0 | CC25: 0 | CD25: 0 | CE25: 0 | CF25: 0 | CG25: 0 | CH25: 0 | CI25: 0 | CJ25: 0 | CK25: 0 | CL25: 0 | CM25: 0 | CN25: 0 | CO25: 0 | CP25: 0 | CQ25: 0 | CR25: 0 | CS25: 0 | CT25: 0 | CU25: 0 | CV25: 0 | CX25: 151.7869273 | CY25: 54.64329383 | CZ25: 97.14363348 | DA25: 103.2151106 | DB25: 200.3587441 | DC25: 200.3587441 | DD25: 230.7161295 | DE25: 194.287267 | DF25: 133.572496 | DG25: 218.5731753 | DH25: 145.7154502 | DI25: 157.8584044 | DJ25: 224.6446524 | DK25: 242.8590837 | DL25: 230.7161295 | DM25: 242.8590837 | DN25: 297.5023775 | DO25: 303.5738546 | DP25: 285.3594234 | DQ25: 279.2879463 | DR25: 297.5023775 | DS25: 242.8590837 | DT25: 285.3594234 | DU25: 200.3587441 | DV25: 200.3587441 | DW25: 279.2879463 | DX25: 297.5023775 | DY25: 285.3594234 | DZ25: 242.8590837 | EA25: 230.7161295 | EB25: 224.6446524 | EC25: 224.6446524 | ED25: 230.7161295 | EE25: 218.5731753 | EF25: 188.2157899 | EG25: 170.0013586 | EH25: 139.6439731 | EI25: 121.4295419 | EJ25: 103.2151106 | EK25: 91.07215639 | EL25: 72.85772511 | EM25: 66.78624802 | EN25: 54.64329383 | EO25: 54.64329383 | EP25: 60.71477093 | EQ25: 72.85772511 | ER25: 78.9292022 | ES25: 91.07215639 | ET25: 97.14363348 | EU25: 97.14363348 | EV25: 97.14363348 | EW25: 85.0006793 | EX25: 85.0006793 | EY25: 78.9292022 | EZ25: 72.85772511 | FA25: 60.71477093 | FB25: 48.57181674 | FC25: 36.42886256 | FD25: 24.28590837 | FE25: 18.21443128 | FF25: 12.14295419 | FG25: 12.14295419 | FH25: 6.071477093 | FI25: 0 | FJ25: 0 | FK25: 0 | FL25: 0 | FM25: 0 | FN25: 0 | FO25: 0 | FP25: 0 | FQ25: 0 | FR25: 0 | FS25: 0 | FT25: 0 | FU25: 0 | FV25: 0 | FW25: 0 | FX25: 0 | FY25: 0 | FZ25: 0 | GA25: 0 | GB25: 0 | GC25: 0 | GD25: 0 | GE25: 0 | GF25: 0 | GG25: 0 | GH25: 0 | GI25: 0 | GJ25: 0
A26: 1 | D26: POLES | E26: 33kV Wood | F26: 22.26773319 | G26: 58 | H26: 7.615773106 | I26: 2 | J26: 137 | K26: 93 | L26: 230 | M26: 98 | N26: 170 | O26: 311 | P26: 359 | Q26: 305 | R26: 209 | S26: 341 | T26: 230 | U26: 245 | V26: 347 | W26: 377 | X26: 365 | Y26: 380 | Z26: 460 | AA26: 475 | AB26: 448 | AC26: 437 | AD26: 467 | AE26: 383 | AF26: 448 | AG26: 317 | AH26: 311 | AI26: 437 | AJ26: 467 | AK26: 448 | AL26: 377 | AM26: 365 | AN26: 353 | AO26: 347 | AP26: 362 | AQ26: 345 | AR26: 294 | AS26: 263 | AT26: 221 | AU26: 192 | AV26: 164 | AW26: 138 | AX26: 117 | AY26: 106 | AZ26: 81 | BA26: 86 | BB26: 99 | BC26: 113 | BD26: 127 | BE26: 140 | BF26: 149 | BG26: 152 | BH26: 148 | BI26: 137 | BJ26: 130 | BK26: 124 | BL26: 110 | BM26: 94 | BN26: 73 | BO26: 55 | BP26: 41 | BQ26: 30 | BR26: 23 | BS26: 16 | BT26: 12 | BU26: 0 | BV26: 0 | BW26: 0 | BX26: 0 | BY26: 0 | BZ26: 0 | CA26: 0 | CB26: 0 | CC26: 0 | CD26: 0 | CE26: 0 | CF26: 0 | CG26: 0 | CH26: 0 | CI26: 0 | CJ26: 0 | CK26: 0 | CL26: 0 | CM26: 0 | CN26: 0 | CO26: 0 | CP26: 0 | CQ26: 0 | CR26: 0 | CS26: 0 | CT26: 0 | CU26: 0 | CV26: 0 | CX26: 3050.679446 | CY26: 2070.899186 | CZ26: 5121.578633 | DA26: 2182.237852 | DB26: 3785.514642 | DC26: 6925.265021 | DD26: 7994.116214 | DE26: 6791.658622 | DF26: 4653.956236 | DG26: 7593.297016 | DH26: 5121.578633 | DI26: 5455.594631 | DJ26: 7726.903416 | DK26: 8394.935411 | DL26: 8127.722613 | DM26: 8461.738611 | DN26: 10243.15727 | DO26: 10577.17326 | DP26: 9975.944467 | DQ26: 9730.999402 | DR26: 10399.0314 | DS26: 8528.54181 | DT26: 9975.944467 | DU26: 7058.87142 | DV26: 6925.265021 | DW26: 9730.999402 | DX26: 10399.0314 | DY26: 9975.944467 | DZ26: 8394.935411 | EA26: 8127.722613 | EB26: 7860.509815 | EC26: 7726.903416 | ED26: 8060.919413 | EE26: 7682.367949 | EF26: 6546.713557 | EG26: 5856.413828 | EH26: 4921.169034 | EI26: 4275.404772 | EJ26: 3651.908242 | EK26: 3072.94718 | EL26: 2605.324783 | EM26: 2360.379718 | EN26: 1803.686388 | EO26: 1915.025054 | EP26: 2204.505585 | EQ26: 2516.25385 | ER26: 2828.002115 | ES26: 3117.482646 | ET26: 3317.892245 | EU26: 3384.695444 | EV26: 3295.624512 | EW26: 3050.679446 | EX26: 2894.805314 | EY26: 2761.198915 | EZ26: 2449.45065 | FA26: 2093.166919 | FB26: 1625.544523 | FC26: 1224.725325 | FD26: 912.9770606 | FE26: 668.0319956 | FF26: 512.1578633 | FG26: 356.283731 | FH26: 267.2127982 | FI26: 0 | FJ26: 0 | FK26: 0 | FL26: 0 | FM26: 0 | FN26: 0 | FO26: 0 | FP26: 0 | FQ26: 0 | FR26: 0 | FS26: 0 | FT26: 0 | FU26: 0 | FV26: 0 | FW26: 0 | FX26: 0 | FY26: 0 | FZ26: 0 | GA26: 0 | GB26: 0 | GC26: 0 | GD26: 0 | GE26: 0 | GF26: 0 | GG26: 0 | GH26: 0 | GI26: 0 | GJ26: 0
A27: 1 | D27: POLES | E27: 66kV Wood | F27: 24.885709 | G27: 58 | H27: 7.615773106 | I27: 2 | J27: 4 | K27: 0 | L27: 12 | M27: 6 | N27: 5 | O27: 91 | P27: 105 | Q27: 89 | R27: 61 | S27: 100 | T27: 67 | U27: 72 | V27: 102 | W27: 110 | X27: 107 | Y27: 111 | Z27: 135 | AA27: 139 | AB27: 131 | AC27: 128 | AD27: 137 | AE27: 112 | AF27: 131 | AG27: 93 | AH27: 91 | AI27: 128 | AJ27: 137 | AK27: 131 | AL27: 110 | AM27: 107 | AN27: 103 | AO27: 102 | AP27: 106 | AQ27: 101 | AR27: 86 | AS27: 77 | AT27: 65 | AU27: 56 | AV27: 48 | AW27: 41 | AX27: 34 | AY27: 31 | AZ27: 24 | BA27: 25 | BB27: 29 | BC27: 33 | BD27: 37 | BE27: 41 | BF27: 44 | BG27: 45 | BH27: 43 | BI27: 40 | BJ27: 38 | BK27: 36 | BL27: 32 | BM27: 28 | BN27: 21 | BO27: 16 | BP27: 12 | BQ27: 9 | BR27: 7 | BS27: 5 | BT27: 3 | BU27: 0 | BV27: 0 | BW27: 0 | BX27: 0 | BY27: 0 | BZ27: 0 | CA27: 0 | CB27: 0 | CC27: 0 | CD27: 0 | CE27: 0 | CF27: 0 | CG27: 0 | CH27: 0 | CI27: 0 | CJ27: 0 | CK27: 0 | CL27: 0 | CM27: 0 | CN27: 0 | CO27: 0 | CP27: 0 | CQ27: 0 | CR27: 0 | CS27: 0 | CT27: 0 | CU27: 0 | CV27: 0 | CX27: 99.54283601 | CY27: 0 | CZ27: 298.628508 | DA27: 149.314254 | DB27: 124.428545 | DC27: 2264.599519 | DD27: 2612.999445 | DE27: 2214.828101 | DF27: 1518.028249 | DG27: 2488.5709 | DH27: 1667.342503 | DI27: 1791.771048 | DJ27: 2538.342318 | DK27: 2737.42799 | DL27: 2662.770863 | DM27: 2762.313699 | DN27: 3359.570715 | DO27: 3459.113551 | DP27: 3260.027879 | DQ27: 3185.370752 | DR27: 3409.342133 | DS27: 2787.199408 | DT27: 3260.027879 | DU27: 2314.370937 | DV27: 2264.599519 | DW27: 3185.370752 | DX27: 3409.342133 | DY27: 3260.027879 | DZ27: 2737.42799 | EA27: 2662.770863 | EB27: 2563.228027 | EC27: 2538.342318 | ED27: 2637.885154 | EE27: 2513.456609 | EF27: 2140.170974 | EG27: 1916.199593 | EH27: 1617.571085 | EI27: 1393.599704 | EJ27: 1194.514032 | EK27: 1020.314069 | EL27: 846.1141061 | EM27: 771.4569791 | EN27: 597.257016 | EO27: 622.142725 | EP27: 721.6855611 | EQ27: 821.2283971 | ER27: 920.7712331 | ES27: 1020.314069 | ET27: 1094.971196 | EU27: 1119.856905 | EV27: 1070.085487 | EW27: 995.4283601 | EX27: 945.6569421 | EY27: 895.8855241 | EZ27: 796.3426881 | FA27: 696.799852 | FB27: 522.599889 | FC27: 398.171344 | FD27: 298.628508 | FE27: 223.971381 | FF27: 174.199963 | FG27: 124.428545 | FH27: 74.65712701 | FI27: 0 | FJ27: 0 | FK27: 0 | FL27: 0 | FM27: 0 | FN27: 0 | FO27: 0 | FP27: 0 | FQ27: 0 | FR27: 0 | FS27: 0 | FT27: 0 | FU27: 0 | FV27: 0 | FW27: 0 | FX27: 0 | FY27: 0 | FZ27: 0 | GA27: 0 | GB27: 0 | GC27: 0 | GD27: 0 | GE27: 0 | GF27: 0 | GG27: 0 | GH27: 0 | GI27: 0 | GJ27: 0
D28: =IF(A28>0,VLOOKUP(A28,IDtable,2),"") ->  | E28: > 22 kV & < = 66 kV; WOOD | F28: 0 | G28: 58 | H28: 7.615773106 | I28: 2 | J28: 141 | K28: 93 | L28: 242 | M28: 104 | N28: 175 | O28: 402 | P28: 464 | Q28: 394 | R28: 270 | S28: 441 | T28: 297 | U28: 317 | V28: 449 | W28: 487 | X28: 472 | Y28: 491 | Z28: 595 | AA28: 614 | AB28: 579 | AC28: 565 | AD28: 604 | AE28: 495 | AF28: 579 | AG28: 410 | AH28: 402 | AI28: 565 | AJ28: 604 | AK28: 579 | AL28: 487 | AM28: 472 | AN28: 456 | AO28: 449 | AP28: 468 | AQ28: 446 | AR28: 380 | AS28: 340 | AT28: 286 | AU28: 248 | AV28: 212 | AW28: 179 | AX28: 151 | AY28: 137 | AZ28: 105 | BA28: 111 | BB28: 128 | BC28: 146 | BD28: 164 | BE28: 181 | BF28: 193 | BG28: 197 | BH28: 191 | BI28: 177 | BJ28: 168 | BK28: 160 | BL28: 142 | BM28: 122 | BN28: 94 | BO28: 71 | BP28: 53 | BQ28: 39 | BR28: 30 | BS28: 21 | BT28: 15 | BU28: 0 | BV28: 0 | BW28: 0 | BX28: 0 | BY28: 0 | BZ28: 0 | CA28: 0 | CB28: 0 | CC28: 0 | CD28: 0 | CE28: 0 | CF28: 0 | CG28: 0 | CH28: 0 | CI28: 0 | CJ28: 0 | CK28: 0 | CL28: 0 | CM28: 0 | CN28: 0 | CO28: 0 | CP28: 0 | CQ28: 0 | CR28: 0 | CS28: 0 | CT28: 0 | CU28: 0 | CV28: 0 | CX28: 0 | CY28: 0 | CZ28: 0 | DA28: 0 | DB28: 0 | DC28: 0 | DD28: 0 | DE28: 0 | DF28: 0 | DG28: 0 | DH28: 0 | DI28: 0 | DJ28: 0 | DK28: 0 | DL28: 0 | DM28: 0 | DN28: 0 | DO28: 0 | DP28: 0 | DQ28: 0 | DR28: 0 | DS28: 0 | DT28: 0 | DU28: 0 | DV28: 0 | DW28: 0 | DX28: 0 | DY28: 0 | DZ28: 0 | EA28: 0 | EB28: 0 | EC28: 0 | ED28: 0 | EE28: 0 | EF28: 0 | EG28: 0 | EH28: 0 | EI28: 0 | EJ28: 0 | EK28: 0 | EL28: 0 | EM28: 0 | EN28: 0 | EO28: 0 | EP28: 0 | EQ28: 0 | ER28: 0 | ES28: 0 | ET28: 0 | EU28: 0 | EV28: 0 | EW28: 0 | EX28: 0 | EY28: 0 | EZ28: 0 | FA28: 0 | FB28: 0 | FC28: 0 | FD28: 0 | FE28: 0 | FF28: 0 | FG28: 0 | FH28: 0 | FI28: 0 | FJ28: 0 | FK28: 0 | FL28: 0 | FM28: 0 | FN28: 0 | FO28: 0 | FP28: 0 | FQ28: 0 | FR28: 0 | FS28: 0 | FT28: 0 | FU28: 0 | FV28: 0 | FW28: 0 | FX28: 0 | FY28: 0 | FZ28: 0 | GA28: 0 | GB28: 0 | GC28: 0 | GD28: 0 | GE28: 0 | GF28: 0 | GG28: 0 | GH28: 0 | GI28: 0 | GJ28: 0
A29: 1 | D29: POLES | E29: > 66 kV & < = 132 kV; WOOD | F29: 35.62325859 | G29: 58 | H29: 7.615773106 | I29: 2 | J29: 3 | K29: 40 | L29: 33 | M29: 15 | N29: 6 | O29: 67 | P29: 78 | Q29: 66 | R29: 45 | S29: 74 | T29: 50 | U29: 53 | V29: 75 | W29: 82 | X29: 79 | Y29: 82 | Z29: 100 | AA29: 103 | AB29: 97 | AC29: 94 | AD29: 101 | AE29: 83 | AF29: 97 | AG29: 69 | AH29: 67 | AI29: 94 | AJ29: 101 | AK29: 97 | AL29: 82 | AM29: 79 | AN29: 76 | AO29: 75 | AP29: 78 | AQ29: 75 | AR29: 64 | AS29: 57 | AT29: 48 | AU29: 41 | AV29: 35 | AW29: 30 | AX29: 25 | AY29: 23 | AZ29: 18 | BA29: 19 | BB29: 21 | BC29: 24 | BD29: 27 | BE29: 30 | BF29: 32 | BG29: 33 | BH29: 32 | BI29: 30 | BJ29: 28 | BK29: 27 | BL29: 24 | BM29: 20 | BN29: 16 | BO29: 12 | BP29: 9 | BQ29: 7 | BR29: 5 | BS29: 4 | BT29: 3 | BU29: 0 | BV29: 0 | BW29: 0 | BX29: 0 | BY29: 0 | BZ29: 0 | CA29: 0 | CB29: 0 | CC29: 0 | CD29: 0 | CE29: 0 | CF29: 0 | CG29: 0 | CH29: 0 | CI29: 0 | CJ29: 0 | CK29: 0 | CL29: 0 | CM29: 0 | CN29: 0 | CO29: 0 | CP29: 0 | CQ29: 0 | CR29: 0 | CS29: 0 | CT29: 0 | CU29: 0 | CV29: 0 | CX29: 106.8697758 | CY29: 1424.930344 | CZ29: 1175.567533 | DA29: 534.3488788 | DB29: 213.7395515 | DC29: 2386.758325 | DD29: 2778.61417 | DE29: 2351.135067 | DF29: 1603.046636 | DG29: 2636.121136 | DH29: 1781.162929 | DI29: 1888.032705 | DJ29: 2671.744394 | DK29: 2921.107204 | DL29: 2814.237428 | DM29: 2921.107204 | DN29: 3562.325859 | DO29: 3669.195635 | DP29: 3455.456083 | DQ29: 3348.586307 | DR29: 3597.949117 | DS29: 2956.730463 | DT29: 3455.456083 | DU29: 2458.004843 | DV29: 2386.758325 | DW29: 3348.586307 | DX29: 3597.949117 | DY29: 3455.456083 | DZ29: 2921.107204 | EA29: 2814.237428 | EB29: 2707.367653 | EC29: 2671.744394 | ED29: 2778.61417 | EE29: 2671.744394 | EF29: 2279.88855 | EG29: 2030.52574 | EH29: 1709.916412 | EI29: 1460.553602 | EJ29: 1246.814051 | EK29: 1068.697758 | EL29: 890.5814647 | EM29: 819.3349475 | EN29: 641.2186546 | EO29: 676.8419132 | EP29: 748.0884304 | EQ29: 854.9582061 | ER29: 961.8279819 | ES29: 1068.697758 | ET29: 1139.944275 | EU29: 1175.567533 | EV29: 1139.944275 | EW29: 1068.697758 | EX29: 997.4512405 | EY29: 961.8279819 | EZ29: 854.9582061 | FA29: 712.4651718 | FB29: 569.9721374 | FC29: 427.4791031 | FD29: 320.6093273 | FE29: 249.3628101 | FF29: 178.1162929 | FG29: 142.4930344 | FH29: 106.8697758 | FI29: 0 | FJ29: 0 | FK29: 0 | FL29: 0 | FM29: 0 | FN29: 0 | FO29: 0 | FP29: 0 | FQ29: 0 | FR29: 0 | FS29: 0 | FT29: 0 | FU29: 0 | FV29: 0 | FW29: 0 | FX29: 0 | FY29: 0 | FZ29: 0 | GA29: 0 | GB29: 0 | GC29: 0 | GD29: 0 | GE29: 0 | GF29: 0 | GG29: 0 | GH29: 0 | GI29: 0 | GJ29: 0
E30: > 132 kV; WOOD | F30: 0 | G30: 58 | H30: 7.615773106 | I30: 2 | J30: 0 | K30: 0 | L30: 0 | M30: 0 | N30: 0 | O30: 0 | P30: 0 | Q30: 0 | R30: 0 | S30: 0 | T30: 0 | U30: 0 | V30: 0 | W30: 0 | X30: 0 | Y30: 0 | Z30: 0 | AA30: 0 | AB30: 0 | AC30: 0 | AD30: 0 | AE30: 0 | AF30: 0 | AG30: 0 | AH30: 0 | AI30: 0 | AJ30: 0 | AK30: 0 | AL30: 0 | AM30: 0 | AN30: 0 | AO30: 0 | AP30: 0 | AQ30: 0 | AR30: 0 | AS30: 0 | AT30: 0 | AU30: 0 | AV30: 0 | AW30: 0 | AX30: 0 | AY30: 0 | AZ30: 0 | BA30: 0 | BB30: 0 | BC30: 0 | BD30: 0 | BE30: 0 | BF30: 0 | BG30: 0 | BH30: 0 | BI30: 0 | BJ30: 0 | BK30: 0 | BL30: 0 | BM30: 0 | BN30: 0 | BO30: 0 | BP30: 0 | BQ30: 0 | BR30: 0 | BS30: 0 | BT30: 0 | BU30: 0 | BV30: 0 | BW30: 0 | BX30: 0 | BY30: 0 | BZ30: 0 | CA30: 0 | CB30: 0 | CC30: 0 | CD30: 0 | CE30: 0 | CF30: 0 | CG30: 0 | CH30: 0 | CI30: 0 | CJ30: 0 | CK30: 0 | CL30: 0 | CM30: 0 | CN30: 0 | CO30: 0 | CP30: 0 | CQ30: 0 | CR30: 0 | CS30: 0 | CT30: 0 | CU30: 0 | CV30: 0 | CX30: 0 | CY30: 0 | CZ30: 0 | DA30: 0 | DB30: 0 | DC30: 0 | DD30: 0 | DE30: 0 | DF30: 0 | DG30: 0 | DH30: 0 | DI30: 0 | DJ30: 0 | DK30: 0 | DL30: 0 | DM30: 0 | DN30: 0 | DO30: 0 | DP30: 0 | DQ30: 0 | DR30: 0 | DS30: 0 | DT30: 0 | DU30: 0 | DV30: 0 | DW30: 0 | DX30: 0 | DY30: 0 | DZ30: 0 | EA30: 0 | EB30: 0 | EC30: 0 | ED30: 0 | EE30: 0 | EF30: 0 | EG30: 0 | EH30: 0 | EI30: 0 | EJ30: 0 | EK30: 0 | EL30: 0 | EM30: 0 | EN30: 0 | EO30: 0 | EP30: 0 | EQ30: 0 | ER30: 0 | ES30: 0 | ET30: 0 | EU30: 0 | EV30: 0 | EW30: 0 | EX30: 0 | EY30: 0 | EZ30: 0 | FA30: 0 | FB30: 0 | FC30: 0 | FD30: 0 | FE30: 0 | FF30: 0 | FG30: 0 | FH30: 0 | FI30: 0 | FJ30: 0 | FK30: 0 | FL30: 0 | FM30: 0 | FN30: 0 | FO30: 0 | FP30: 0 | FQ30: 0 | FR30: 0 | FS30: 0 | FT30: 0 | FU30: 0 | FV30: 0 | FW30: 0 | FX30: 0 | FY30: 0 | FZ30: 0 | GA30: 0 | GB30: 0 | GC30: 0 | GD30: 0 | GE30: 0 | GF30: 0 | GG30: 0 | GH30: 0 | GI30: 0 | GJ30: 0
A31: 1 | D31: POLES | E31: ˂ = 1 kV; CONCRETE | F31: 9.251079916 | G31: 58 | H31: 7.615773106 | I31: 2 | J31: 139 | K31: 132 | L31: 155 | M31: 209 | N31: 200 | O31: 259 | P31: 171 | Q31: 121 | R31: 192 | S31: 43 | T31: 0 | U31: 0 | V31: 0 | W31: 4 | X31: 7 | Y31: 0 | Z31: 93 | AA31: 130 | AB31: 237 | AC31: 159 | AD31: 119 | AE31: 0 | AF31: 2 | AG31: 0 | AH31: 0 | AI31: 0 | AJ31: 0 | AK31: 0 | AL31: 0 | AM31: 0 | AN31: 0 | AO31: 0 | AP31: 0 | AQ31: 0 | AR31: 0 | AS31: 0 | AT31: 0 | AU31: 0 | AV31: 0 | AW31: 0 | AX31: 0 | AY31: 0 | AZ31: 0 | BA31: 0 | BB31: 0 | BC31: 0 | BD31: 0 | BE31: 0 | BF31: 0 | BG31: 0 | BH31: 0 | BI31: 0 | BJ31: 0 | BK31: 0 | BL31: 0 | BM31: 0 | BN31: 0 | BO31: 0 | BP31: 0 | BQ31: 0 | BR31: 0 | BS31: 0 | BT31: 0 | BU31: 0 | BV31: 0 | BW31: 0 | BX31: 0 | BY31: 0 | BZ31: 0 | CA31: 0 | CB31: 0 | CC31: 0 | CD31: 0 | CE31: 0 | CF31: 0 | CG31: 0 | CH31: 0 | CI31: 0 | CJ31: 0 | CK31: 0 | CL31: 0 | CM31: 0 | CN31: 0 | CO31: 0 | CP31: 0 | CQ31: 0 | CR31: 0 | CS31: 0 | CT31: 0 | CU31: 0 | CV31: 0 | CX31: 1285.900108 | CY31: 1221.142549 | CZ31: 1433.917387 | DA31: 1933.475702 | DB31: 1850.215983 | DC31: 2396.029698 | DD31: 1581.934666 | DE31: 1119.38067 | DF31: 1776.207344 | DG31: 397.7964364 | DH31: 0 | DI31: 0 | DJ31: 0 | DK31: 37.00431966 | DL31: 64.75755941 | DM31: 0 | DN31: 860.3504322 | DO31: 1202.640389 | DP31: 2192.50594 | DQ31: 1470.921707 | DR31: 1100.87851 | DS31: 0 | DT31: 18.50215983 | DU31: 0 | DV31: 0 | DW31: 0 | DX31: 0 | DY31: 0 | DZ31: 0 | EA31: 0 | EB31: 0 | EC31: 0 | ED31: 0 | EE31: 0 | EF31: 0 | EG31: 0 | EH31: 0 | EI31: 0 | EJ31: 0 | EK31: 0 | EL31: 0 | EM31: 0 | EN31: 0 | EO31: 0 | EP31: 0 | EQ31: 0 | ER31: 0 | ES31: 0 | ET31: 0 | EU31: 0 | EV31: 0 | EW31: 0 | EX31: 0 | EY31: 0 | EZ31: 0 | FA31: 0 | FB31: 0 | FC31: 0 | FD31: 0 | FE31: 0 | FF31: 0 | FG31: 0 | FH31: 0 | FI31: 0 | FJ31: 0 | FK31: 0 | FL31: 0 | FM31: 0 | FN31: 0 | FO31: 0 | FP31: 0 | FQ31: 0 | FR31: 0 | FS31: 0 | FT31: 0 | FU31: 0 | FV31: 0 | FW31: 0 | FX31: 0 | FY31: 0 | FZ31: 0 | GA31: 0 | GB31: 0 | GC31: 0 | GD31: 0 | GE31: 0 | GF31: 0 | GG31: 0 | GH31: 0 | GI31: 0 | GJ31: 0
A32: 1 | D32: POLES | E32: > 1 kV & < = 11 kV; CONCRETE | F32: 12.04118718 | G32: 58 | H32: 7.615773106 | I32: 2 | J32: 812 | K32: 595 | L32: 653 | M32: 902 | N32: 1383 | O32: 2077 | P32: 1459 | Q32: 951 | R32: 984 | S32: 155 | T32: 19 | U32: 0 | V32: 0 | W32: 3 | X32: 6 | Y32: 0 | Z32: 86 | AA32: 132 | AB32: 132 | AC32: 301 | AD32: 153 | AE32: 0 | AF32: 1 | AG32: 0 | AH32: 1 | AI32: 0 | AJ32: 0 | AK32: 0 | AL32: 0 | AM32: 1 | AN32: 1 | AO32: 0 | AP32: 1 | AQ32: 1 | AR32: 0 | AS32: 0 | AT32: 0 | AU32: 0 | AV32: 0 | AW32: 0 | AX32: 0 | AY32: 0 | AZ32: 0 | BA32: 0 | BB32: 0 | BC32: 0 | BD32: 0 | BE32: 0 | BF32: 0 | BG32: 0 | BH32: 0 | BI32: 0 | BJ32: 0 | BK32: 0 | BL32: 0 | BM32: 0 | BN32: 0 | BO32: 0 | BP32: 0 | BQ32: 0 | BR32: 0 | BS32: 0 | BT32: 0 | BU32: 0 | BV32: 0 | BW32: 0 | BX32: 0 | BY32: 0 | BZ32: 0 | CA32: 0 | CB32: 0 | CC32: 0 | CD32: 0 | CE32: 0 | CF32: 0 | CG32: 0 | CH32: 0 | CI32: 0 | CJ32: 0 | CK32: 0 | CL32: 0 | CM32: 0 | CN32: 0 | CO32: 0 | CP32: 0 | CQ32: 0 | CR32: 0 | CS32: 0 | CT32: 0 | CU32: 0 | CV32: 0 | CX32: 9777.443988 | CY32: 7164.506371 | CZ32: 7862.895227 | DA32: 10861.15083 | DB32: 16652.96187 | DC32: 25009.54577 | DD32: 17568.09209 | DE32: 11451.16901 | DF32: 11848.52818 | DG32: 1866.384012 | DH32: 228.7825564 | DI32: 0 | DJ32: 0 | DK32: 36.12356153 | DL32: 72.24712306 | DM32: 0 | DN32: 1035.542097 | DO32: 1589.436707 | DP32: 1589.436707 | DQ32: 3624.39734 | DR32: 1842.301638 | DS32: 0 | DT32: 12.04118718 | DU32: 0 | DV32: 12.04118718 | DW32: 0 | DX32: 0 | DY32: 0 | DZ32: 0 | EA32: 12.04118718 | EB32: 12.04118718 | EC32: 0 | ED32: 12.04118718 | EE32: 12.04118718 | EF32: 0 | EG32: 0 | EH32: 0 | EI32: 0 | EJ32: 0 | EK32: 0 | EL32: 0 | EM32: 0 | EN32: 0 | EO32: 0 | EP32: 0 | EQ32: 0 | ER32: 0 | ES32: 0 | ET32: 0 | EU32: 0 | EV32: 0 | EW32: 0 | EX32: 0 | EY32: 0 | EZ32: 0 | FA32: 0 | FB32: 0 | FC32: 0 | FD32: 0 | FE32: 0 | FF32: 0 | FG32: 0 | FH32: 0 | FI32: 0 | FJ32: 0 | FK32: 0 | FL32: 0 | FM32: 0 | FN32: 0 | FO32: 0 | FP32: 0 | FQ32: 0 | FR32: 0 | FS32: 0 | FT32: 0 | FU32: 0 | FV32: 0 | FW32: 0 | FX32: 0 | FY32: 0 | FZ32: 0 | GA32: 0 | GB32: 0 | GC32: 0 | GD32: 0 | GE32: 0 | GF32: 0 | GG32: 0 | GH32: 0 | GI32: 0 | GJ32: 0
A33: 1 | D33: POLES | E33: ˃ 11 kV & < = 22 kV; CONCRETE | F33: 15.15990281 | G33: 58 | H33: 7.615773106 | I33: 2 | J33: 87 | K33: 25 | L33: 0 | M33: 88 | N33: 20 | O33: 224 | P33: 28 | Q33: 14 | R33: 3 | S33: 11 | T33: 0 | U33: 0 | V33: 0 | W33: 0 | X33: 31 | Y33: 0 | Z33: 0 | AA33: 14 | AB33: 26 | AC33: 23 | AD33: 11 | AE33: 0 | AF33: 0 | AG33: 0 | AH33: 0 | AI33: 0 | AJ33: 0 | AK33: 0 | AL33: 0 | AM33: 0 | AN33: 0 | AO33: 0 | AP33: 0 | AQ33: 0 | AR33: 0 | AS33: 0 | AT33: 0 | AU33: 0 | AV33: 0 | AW33: 0 | AX33: 0 | AY33: 0 | AZ33: 0 | BA33: 0 | BB33: 0 | BC33: 0 | BD33: 0 | BE33: 0 | BF33: 0 | BG33: 0 | BH33: 0 | BI33: 0 | BJ33: 0 | BK33: 0 | BL33: 0 | BM33: 0 | BN33: 0 | BO33: 0 | BP33: 0 | BQ33: 0 | BR33: 0 | BS33: 0 | BT33: 0 | BU33: 0 | BV33: 0 | BW33: 0 | BX33: 0 | BY33: 0 | BZ33: 0 | CA33: 0 | CB33: 0 | CC33: 0 | CD33: 0 | CE33: 0 | CF33: 0 | CG33: 0 | CH33: 0 | CI33: 0 | CJ33: 0 | CK33: 0 | CL33: 0 | CM33: 0 | CN33: 0 | CO33: 0 | CP33: 0 | CQ33: 0 | CR33: 0 | CS33: 0 | CT33: 0 | CU33: 0 | CV33: 0 | CX33: 1318.911545 | CY33: 378.9975703 | CZ33: 0 | DA33: 1334.071448 | DB33: 303.1980563 | DC33: 3395.81823 | DD33: 424.4772788 | DE33: 212.2386394 | DF33: 45.47970844 | DG33: 166.7589309 | DH33: 0 | DI33: 0 | DJ33: 0 | DK33: 0 | DL33: 469.9569872 | DM33: 0 | DN33: 0 | DO33: 212.2386394 | DP33: 394.1574731 | DQ33: 348.6777647 | DR33: 166.7589309 | DS33: 0 | DT33: 0 | DU33: 0 | DV33: 0 | DW33: 0 | DX33: 0 | DY33: 0 | DZ33: 0 | EA33: 0 | EB33: 0 | EC33: 0 | ED33: 0 | EE33: 0 | EF33: 0 | EG33: 0 | EH33: 0 | EI33: 0 | EJ33: 0 | EK33: 0 | EL33: 0 | EM33: 0 | EN33: 0 | EO33: 0 | EP33: 0 | EQ33: 0 | ER33: 0 | ES33: 0 | ET33: 0 | EU33: 0 | EV33: 0 | EW33: 0 | EX33: 0 | EY33: 0 | EZ33: 0 | FA33: 0 | FB33: 0 | FC33: 0 | FD33: 0 | FE33: 0 | FF33: 0 | FG33: 0 | FH33: 0 | FI33: 0 | FJ33: 0 | FK33: 0 | FL33: 0 | FM33: 0 | FN33: 0 | FO33: 0 | FP33: 0 | FQ33: 0 | FR33: 0 | FS33: 0 | FT33: 0 | FU33: 0 | FV33: 0 | FW33: 0 | FX33: 0 | FY33: 0 | FZ33: 0 | GA33: 0 | GB33: 0 | GC33: 0 | GD33: 0 | GE33: 0 | GF33: 0 | GG33: 0 | GH33: 0 | GI33: 0 | GJ33: 0
A34: 1 | D34: POLES | E34: 33kV Concrete | F34: 25.18051625 | G34: 58 | H34: 7.615773106 | I34: 2 | J34: 2 | K34: 70 | L34: 417 | M34: 51 | N34: 52 | O34: 122 | P34: 245 | Q34: 77 | R34: 101 | S34: 24 | T34: 0 | U34: 0 | V34: 4 | W34: 6 | X34: 0 | Y34: 0 | Z34: 0 | AA34: 463 | AB34: 77 | AC34: 0 | AD34: 0 | AE34: 0 | AF34: 0 | AG34: 0 | AH34: 2 | AI34: 2 | AJ34: 0 | AK34: 0 | AL34: 0 | AM34: 0 | AN34: 2 | AO34: 4 | AP34: 0 | AQ34: 2 | AR34: 0 | AS34: 2 | AT34: 0 | AU34: 0 | AV34: 0 | AW34: 0 | AX34: 0 | AY34: 2 | AZ34: 4 | BA34: 0 | BB34: 2 | BC34: 0 | BD34: 0 | BE34: 2 | BF34: 0 | BG34: 0 | BH34: 0 | BI34: 0 | BJ34: 0 | BK34: 0 | BL34: 0 | BM34: 0 | BN34: 0 | BO34: 0 | BP34: 0 | BQ34: 0 | BR34: 0 | BS34: 0 | BT34: 0 | BU34: 0 | BV34: 0 | BW34: 0 | BX34: 0 | BY34: 0 | BZ34: 0 | CA34: 0 | CB34: 0 | CC34: 0 | CD34: 0 | CE34: 0 | CF34: 0 | CG34: 0 | CH34: 0 | CI34: 0 | CJ34: 0 | CK34: 0 | CL34: 0 | CM34: 0 | CN34: 0 | CO34: 0 | CP34: 0 | CQ34: 0 | CR34: 0 | CS34: 0 | CT34: 0 | CU34: 0 | CV34: 0 | CX34: 50.3610325 | CY34: 1762.636137 | CZ34: 10500.27528 | DA34: 1284.206329 | DB34: 1309.386845 | DC34: 3072.022982 | DD34: 6169.226481 | DE34: 1938.899751 | DF34: 2543.232141 | DG34: 604.33239 | DH34: 0 | DI34: 0 | DJ34: 100.722065 | DK34: 151.0830975 | DL34: 0 | DM34: 0 | DN34: 0 | DO34: 11658.57902 | DP34: 1938.899751 | DQ34: 0 | DR34: 0 | DS34: 0 | DT34: 0 | DU34: 0 | DV34: 50.3610325 | DW34: 50.3610325 | DX34: 0 | DY34: 0 | DZ34: 0 | EA34: 0 | EB34: 50.3610325 | EC34: 100.722065 | ED34: 0 | EE34: 50.3610325 | EF34: 0 | EG34: 50.3610325 | EH34: 0 | EI34: 0 | EJ34: 0 | EK34: 0 | EL34: 0 | EM34: 50.3610325 | EN34: 100.722065 | EO34: 0 | EP34: 50.3610325 | EQ34: 0 | ER34: 0 | ES34: 50.3610325 | ET34: 0 | EU34: 0 | EV34: 0 | EW34: 0 | EX34: 0 | EY34: 0 | EZ34: 0 | FA34: 0 | FB34: 0 | FC34: 0 | FD34: 0 | FE34: 0 | FF34: 0 | FG34: 0 | FH34: 0 | FI34: 0 | FJ34: 0 | FK34: 0 | FL34: 0 | FM34: 0 | FN34: 0 | FO34: 0 | FP34: 0 | FQ34: 0 | FR34: 0 | FS34: 0 | FT34: 0 | FU34: 0 | FV34: 0 | FW34: 0 | FX34: 0 | FY34: 0 | FZ34: 0 | GA34: 0 | GB34: 0 | GC34: 0 | GD34: 0 | GE34: 0 | GF34: 0 | GG34: 0 | GH34: 0 | GI34: 0 | GJ34: 0
A35: 1 | D35: POLES | E35: 66kV Concrete | F35: 32.14841213 | G35: 58 | H35: 7.615773106 | I35: 2 | J35: 7 | K35: 20 | L35: 52 | M35: 0 | N35: 18 | O35: 17 | P35: 33 | Q35: 132 | R35: 19 | S35: 10 | T35: 0 | U35: 0 | V35: 0 | W35: 1 | X35: 0 | Y35: 0 | Z35: 0 | AA35: 781 | AB35: 0 | AC35: 0 | AD35: 0 | AE35: 0 | AF35: 0 | AG35: 0 | AH35: 0 | AI35: 1 | AJ35: 0 | AK35: 0 | AL35: 0 | AM35: 0 | AN35: 1 | AO35: 0 | AP35: 0 | AQ35: 0 | AR35: 0 | AS35: 0 | AT35: 0 | AU35: 0 | AV35: 0 | AW35: 1 | AX35: 0 | AY35: 0 | AZ35: 0 | BA35: 1 | BB35: 0 | BC35: 0 | BD35: 0 | BE35: 0 | BF35: 0 | BG35: 0 | BH35: 0 | BI35: 0 | BJ35: 0 | BK35: 0 | BL35: 0 | BM35: 0 | BN35: 0 | BO35: 0 | BP35: 0 | BQ35: 0 | BR35: 0 | BS35: 0 | BT35: 0 | BU35: 0 | BV35: 0 | BW35: 0 | BX35: 0 | BY35: 0 | BZ35: 0 | CA35: 0 | CB35: 0 | CC35: 0 | CD35: 0 | CE35: 0 | CF35: 0 | CG35: 0 | CH35: 0 | CI35: 0 | CJ35: 0 | CK35: 0 | CL35: 0 | CM35: 0 | CN35: 0 | CO35: 0 | CP35: 0 | CQ35: 0 | CR35: 0 | CS35: 0 | CT35: 0 | CU35: 0 | CV35: 0 | CX35: 225.0388849 | CY35: 642.9682426 | CZ35: 1671.717431 | DA35: 0 | DB35: 578.6714183 | DC35: 546.5230062 | DD35: 1060.8976 | DE35: 4243.590401 | DF35: 610.8198304 | DG35: 321.4841213 | DH35: 0 | DI35: 0 | DJ35: 0 | DK35: 32.14841213 | DL35: 0 | DM35: 0 | DN35: 0 | DO35: 25107.90987 | DP35: 0 | DQ35: 0 | DR35: 0 | DS35: 0 | DT35: 0 | DU35: 0 | DV35: 0 | DW35: 32.14841213 | DX35: 0 | DY35: 0 | DZ35: 0 | EA35: 0 | EB35: 32.14841213 | EC35: 0 | ED35: 0 | EE35: 0 | EF35: 0 | EG35: 0 | EH35: 0 | EI35: 0 | EJ35: 0 | EK35: 32.14841213 | EL35: 0 | EM35: 0 | EN35: 0 | EO35: 32.14841213 | EP35: 0 | EQ35: 0 | ER35: 0 | ES35: 0 | ET35: 0 | EU35: 0 | EV35: 0 | EW35: 0 | EX35: 0 | EY35: 0 | EZ35: 0 | FA35: 0 | FB35: 0 | FC35: 0 | FD35: 0 | FE35: 0 | FF35: 0 | FG35: 0 | FH35: 0 | FI35: 0 | FJ35: 0 | FK35: 0 | FL35: 0 | FM35: 0 | FN35: 0 | FO35: 0 | FP35: 0 | FQ35: 0 | FR35: 0 | FS35: 0 | FT35: 0 | FU35: 0 | FV35: 0 | FW35: 0 | FX35: 0 | FY35: 0 | FZ35: 0 | GA35: 0 | GB35: 0 | GC35: 0 | GD35: 0 | GE35: 0 | GF35: 0 | GG35: 0 | GH35: 0 | GI35: 0 | GJ35: 0
E36: > 22 kV & < = 66 kV; CONCRETE | F36: 0 | G36: 58 | H36: 7.615773106 | I36: 2 | J36: 9 | K36: 90 | L36: 469 | M36: 51 | N36: 70 | O36: 139 | P36: 278 | Q36: 209 | R36: 120 | S36: 34 | T36: 0 | U36: 0 | V36: 4 | W36: 7 | X36: 0 | Y36: 0 | Z36: 0 | AA36: 1244 | AB36: 77 | AC36: 0 | AD36: 0 | AE36: 0 | AF36: 0 | AG36: 0 | AH36: 2 | AI36: 3 | AJ36: 0 | AK36: 0 | AL36: 0 | AM36: 0 | AN36: 3 | AO36: 4 | AP36: 0 | AQ36: 2 | AR36: 0 | AS36: 2 | AT36: 0 | AU36: 0 | AV36: 0 | AW36: 1 | AX36: 0 | AY36: 2 | AZ36: 4 | BA36: 1 | BB36: 2 | BC36: 0 | BD36: 0 | BE36: 2 | BF36: 0 | BG36: 0 | BH36: 0 | BI36: 0 | BJ36: 0 | BK36: 0 | BL36: 0 | BM36: 0 | BN36: 0 | BO36: 0 | BP36: 0 | BQ36: 0 | BR36: 0 | BS36: 0 | BT36: 0 | BU36: 0 | BV36: 0 | BW36: 0 | BX36: 0 | BY36: 0 | BZ36: 0 | CA36: 0 | CB36: 0 | CC36: 0 | CD36: 0 | CE36: 0 | CF36: 0 | CG36: 0 | CH36: 0 | CI36: 0 | CJ36: 0 | CK36: 0 | CL36: 0 | CM36: 0 | CN36: 0 | CO36: 0 | CP36: 0 | CQ36: 0 | CR36: 0 | CS36: 0 | CT36: 0 | CU36: 0 | CV36: 0 | CX36: 0 | CY36: 0 | CZ36: 0 | DA36: 0 | DB36: 0 | DC36: 0 | DD36: 0 | DE36: 0 | DF36: 0 | DG36: 0 | DH36: 0 | DI36: 0 | DJ36: 0 | DK36: 0 | DL36: 0 | DM36: 0 | DN36: 0 | DO36: 0 | DP36: 0 | DQ36: 0 | DR36: 0 | DS36: 0 | DT36: 0 | DU36: 0 | DV36: 0 | DW36: 0 | DX36: 0 | DY36: 0 | DZ36: 0 | EA36: 0 | EB36: 0 | EC36: 0 | ED36: 0 | EE36: 0 | EF36: 0 | EG36: 0 | EH36: 0 | EI36: 0 | EJ36: 0 | EK36: 0 | EL36: 0 | EM36: 0 | EN36: 0 | EO36: 0 | EP36: 0 | EQ36: 0 | ER36: 0 | ES36: 0 | ET36: 0 | EU36: 0 | EV36: 0 | EW36: 0 | EX36: 0 | EY36: 0 | EZ36: 0 | FA36: 0 | FB36: 0 | FC36: 0 | FD36: 0 | FE36: 0 | FF36: 0 | FG36: 0 | FH36: 0 | FI36: 0 | FJ36: 0 | FK36: 0 | FL36: 0 | FM36: 0 | FN36: 0 | FO36: 0 | FP36: 0 | FQ36: 0 | FR36: 0 | FS36: 0 | FT36: 0 | FU36: 0 | FV36: 0 | FW36: 0 | FX36: 0 | FY36: 0 | FZ36: 0 | GA36: 0 | GB36: 0 | GC36: 0 | GD36: 0 | GE36: 0 | GF36: 0 | GG36: 0 | GH36: 0 | GI36: 0 | GJ36: 0
A37: 1 | D37: POLES | E37: > 66 kV & < = 132 kV; CONCRETE | F37: 36.37118229 | G37: 58 | H37: 7.615773106 | I37: 2 | J37: 2 | K37: 0 | L37: 181 | M37: 65 | N37: 41 | O37: 115 | P37: 805 | Q37: 189 | R37: 118 | S37: 32 | T37: 2 | U37: 0 | V37: 0 | W37: 10 | X37: 0 | Y37: 0 | Z37: 14 | AA37: 674 | AB37: 2 | AC37: 0 | AD37: 0 | AE37: 0 | AF37: 2 | AG37: 0 | AH37: 2 | AI37: 0 | AJ37: 0 | AK37: 0 | AL37: 0 | AM37: 0 | AN37: 2 | AO37: 0 | AP37: 0 | AQ37: 0 | AR37: 0 | AS37: 0 | AT37: 0 | AU37: 0 | AV37: 0 | AW37: 0 | AX37: 0 | AY37: 5 | AZ37: 0 | BA37: 0 | BB37: 0 | BC37: 0 | BD37: 0 | BE37: 0 | BF37: 2 | BG37: 0 | BH37: 0 | BI37: 0 | BJ37: 0 | BK37: 0 | BL37: 0 | BM37: 0 | BN37: 0 | BO37: 0 | BP37: 0 | BQ37: 0 | BR37: 0 | BS37: 0 | BT37: 0 | BU37: 0 | BV37: 0 | BW37: 0 | BX37: 0 | BY37: 0 | BZ37: 0 | CA37: 0 | CB37: 0 | CC37: 0 | CD37: 0 | CE37: 0 | CF37: 0 | CG37: 0 | CH37: 0 | CI37: 0 | CJ37: 0 | CK37: 0 | CL37: 0 | CM37: 0 | CN37: 0 | CO37: 0 | CP37: 0 | CQ37: 0 | CR37: 0 | CS37: 0 | CT37: 0 | CU37: 0 | CV37: 0 | CX37: 72.74236458 | CY37: 0 | CZ37: 6583.183994 | DA37: 2364.126849 | DB37: 1491.218474 | DC37: 4182.685963 | DD37: 29278.80174 | DE37: 6874.153453 | DF37: 4291.79951 | DG37: 1163.877833 | DH37: 72.74236458 | DI37: 0 | DJ37: 0 | DK37: 363.7118229 | DL37: 0 | DM37: 0 | DN37: 509.196552 | DO37: 24514.17686 | DP37: 72.74236458 | DQ37: 0 | DR37: 0 | DS37: 0 | DT37: 72.74236458 | DU37: 0 | DV37: 72.74236458 | DW37: 0 | DX37: 0 | DY37: 0 | DZ37: 0 | EA37: 0 | EB37: 72.74236458 | EC37: 0 | ED37: 0 | EE37: 0 | EF37: 0 | EG37: 0 | EH37: 0 | EI37: 0 | EJ37: 0 | EK37: 0 | EL37: 0 | EM37: 181.8559114 | EN37: 0 | EO37: 0 | EP37: 0 | EQ37: 0 | ER37: 0 | ES37: 0 | ET37: 72.74236458 | EU37: 0 | EV37: 0 | EW37: 0 | EX37: 0 | EY37: 0 | EZ37: 0 | FA37: 0 | FB37: 0 | FC37: 0 | FD37: 0 | FE37: 0 | FF37: 0 | FG37: 0 | FH37: 0 | FI37: 0 | FJ37: 0 | FK37: 0 | FL37: 0 | FM37: 0 | FN37: 0 | FO37: 0 | FP37: 0 | FQ37: 0 | FR37: 0 | FS37: 0 | FT37: 0 | FU37: 0 | FV37: 0 | FW37: 0 | FX37: 0 | FY37: 0 | FZ37: 0 | GA37: 0 | GB37: 0 | GC37: 0 | GD37: 0 | GE37: 0 | GF37: 0 | GG37: 0 | GH37: 0 | GI37: 0 | GJ37: 0
E38: > 132 kV; CONCRETE | F38: 0 | G38: 58 | H38: 7.615773106 | I38: 2 | J38: 0 | K38: 0 | L38: 0 | M38: 0 | N38: 0 | O38: 0 | P38: 0 | Q38: 0 | R38: 0 | S38: 0 | T38: 0 | U38: 0 | V38: 0 | W38: 0 | X38: 0 | Y38: 0 | Z38: 0 | AA38: 0 | AB38: 0 | AC38: 0 | AD38: 0 | AE38: 0 | AF38: 0 | AG38: 0 | AH38: 0 | AI38: 0 | AJ38: 0 | AK38: 0 | AL38: 0 | AM38: 0 | AN38: 0 | AO38: 0 | AP38: 0 | AQ38: 0 | AR38: 0 | AS38: 0 | AT38: 0 | AU38: 0 | AV38: 0 | AW38: 0 | AX38: 0 | AY38: 0 | AZ38: 0 | BA38: 0 | BB38: 0 | BC38: 0 | BD38: 0 | BE38: 0 | BF38: 0 | BG38: 0 | BH38: 0 | BI38: 0 | BJ38: 0 | BK38: 0 | BL38: 0 | BM38: 0 | BN38: 0 | BO38: 0 | BP38: 0 | BQ38: 0 | BR38: 0 | BS38: 0 | BT38: 0 | BU38: 0 | BV38: 0 | BW38: 0 | BX38: 0 | BY38: 0 | BZ38: 0 | CA38: 0 | CB38: 0 | CC38: 0 | CD38: 0 | CE38: 0 | CF38: 0 | CG38: 0 | CH38: 0 | CI38: 0 | CJ38: 0 | CK38: 0 | CL38: 0 | CM38: 0 | CN38: 0 | CO38: 0 | CP38: 0 | CQ38: 0 | CR38: 0 | CS38: 0 | CT38: 0 | CU38: 0 | CV38: 0 | CX38: 0 | CY38: 0 | CZ38: 0 | DA38: 0 | DB38: 0 | DC38: 0 | DD38: 0 | DE38: 0 | DF38: 0 | DG38: 0 | DH38: 0 | DI38: 0 | DJ38: 0 | DK38: 0 | DL38: 0 | DM38: 0 | DN38: 0 | DO38: 0 | DP38: 0 | DQ38: 0 | DR38: 0 | DS38: 0 | DT38: 0 | DU38: 0 | DV38: 0 | DW38: 0 | DX38: 0 | DY38: 0 | DZ38: 0 | EA38: 0 | EB38: 0 | EC38: 0 | ED38: 0 | EE38: 0 | EF38: 0 | EG38: 0 | EH38: 0 | EI38: 0 | EJ38: 0 | EK38: 0 | EL38: 0 | EM38: 0 | EN38: 0 | EO38: 0 | EP38: 0 | EQ38: 0 | ER38: 0 | ES38: 0 | ET38: 0 | EU38: 0 | EV38: 0 | EW38: 0 | EX38: 0 | EY38: 0 | EZ38: 0 | FA38: 0 | FB38: 0 | FC38: 0 | FD38: 0 | FE38: 0 | FF38: 0 | FG38: 0 | FH38: 0 | FI38: 0 | FJ38: 0 | FK38: 0 | FL38: 0 | FM38: 0 | FN38: 0 | FO38: 0 | FP38: 0 | FQ38: 0 | FR38: 0 | FS38: 0 | FT38: 0 | FU38: 0 | FV38: 0 | FW38: 0 | FX38: 0 | FY38: 0 | FZ38: 0 | GA38: 0 | GB38: 0 | GC38: 0 | GD38: 0 | GE38: 0 | GF38: 0 | GG38: 0 | GH38: 0 | GI38: 0 | GJ38: 0
A39: 1 | D39: POLES | E39: ˂ = 1 kV; STEEL | F39: 9.22612049 | G39: 58 | H39: 7.615773106 | I39: 2 | J39: 40 | K39: 26 | L39: 3 | M39: 10 | N39: 20 | O39: 20 | P39: 10 | Q39: 20 | R39: 34 | S39: 492 | T39: 27 | U39: 0 | V39: 0 | W39: 0 | X39: 0 | Y39: 0 | Z39: 13 | AA39: 0 | AB39: 13 | AC39: 53 | AD39: 27 | AE39: 3 | AF39: 0 | AG39: 3 | AH39: 0 | AI39: 3 | AJ39: 0 | AK39: 0 | AL39: 0 | AM39: 0 | AN39: 0 | AO39: 0 | AP39: 0 | AQ39: 0 | AR39: 0 | AS39: 0 | AT39: 0 | AU39: 0 | AV39: 0 | AW39: 0 | AX39: 0 | AY39: 0 | AZ39: 0 | BA39: 0 | BB39: 0 | BC39: 0 | BD39: 0 | BE39: 0 | BF39: 0 | BG39: 0 | BH39: 0 | BI39: 0 | BJ39: 0 | BK39: 0 | BL39: 0 | BM39: 0 | BN39: 0 | BO39: 0 | BP39: 0 | BQ39: 0 | BR39: 0 | BS39: 0 | BT39: 0 | BU39: 0 | BV39: 0 | BW39: 0 | BX39: 0 | BY39: 0 | BZ39: 0 | CA39: 0 | CB39: 0 | CC39: 0 | CD39: 0 | CE39: 0 | CF39: 0 | CG39: 0 | CH39: 0 | CI39: 0 | CJ39: 0 | CK39: 0 | CL39: 0 | CM39: 0 | CN39: 0 | CO39: 0 | CP39: 0 | CQ39: 0 | CR39: 0 | CS39: 0 | CT39: 0 | CU39: 0 | CV39: 0 | CX39: 369.0448196 | CY39: 239.8791327 | CZ39: 27.67836147 | DA39: 92.2612049 | DB39: 184.5224098 | DC39: 184.5224098 | DD39: 92.2612049 | DE39: 184.5224098 | DF39: 313.6880967 | DG39: 4539.251281 | DH39: 249.1052532 | DI39: 0 | DJ39: 0 | DK39: 0 | DL39: 0 | DM39: 0 | DN39: 119.9395664 | DO39: 0 | DP39: 119.9395664 | DQ39: 488.984386 | DR39: 249.1052532 | DS39: 27.67836147 | DT39: 0 | DU39: 27.67836147 | DV39: 0 | DW39: 27.67836147 | DX39: 0 | DY39: 0 | DZ39: 0 | EA39: 0 | EB39: 0 | EC39: 0 | ED39: 0 | EE39: 0 | EF39: 0 | EG39: 0 | EH39: 0 | EI39: 0 | EJ39: 0 | EK39: 0 | EL39: 0 | EM39: 0 | EN39: 0 | EO39: 0 | EP39: 0 | EQ39: 0 | ER39: 0 | ES39: 0 | ET39: 0 | EU39: 0 | EV39: 0 | EW39: 0 | EX39: 0 | EY39: 0 | EZ39: 0 | FA39: 0 | FB39: 0 | FC39: 0 | FD39: 0 | FE39: 0 | FF39: 0 | FG39: 0 | FH39: 0 | FI39: 0 | FJ39: 0 | FK39: 0 | FL39: 0 | FM39: 0 | FN39: 0 | FO39: 0 | FP39: 0 | FQ39: 0 | FR39: 0 | FS39: 0 | FT39: 0 | FU39: 0 | FV39: 0 | FW39: 0 | FX39: 0 | FY39: 0 | FZ39: 0 | GA39: 0 | GB39: 0 | GC39: 0 | GD39: 0 | GE39: 0 | GF39: 0 | GG39: 0 | GH39: 0 | GI39: 0 | GJ39: 0
A40: 1 | D40: POLES | E40: > 1 kV & < = 11 kV; STEEL | F40: 11.06430212 | G40: 58 | H40: 7.615773106 | I40: 2 | J40: 19 | K40: 4 | L40: 7 | M40: 20 | N40: 68 | O40: 13 | P40: 54 | Q40: 27 | R40: 7 | S40: 36 | T40: 13 | U40: 2 | V40: 0 | W40: 2 | X40: 0 | Y40: 0 | Z40: 0 | AA40: 0 | AB40: 0 | AC40: 0 | AD40: 11 | AE40: 0 | AF40: 0 | AG40: 0 | AH40: 0 | AI40: 0 | AJ40: 0 | AK40: 0 | AL40: 0 | AM40: 0 | AN40: 0 | AO40: 0 | AP40: 0 | AQ40: 0 | AR40: 0 | AS40: 0 | AT40: 0 | AU40: 0 | AV40: 0 | AW40: 0 | AX40: 0 | AY40: 0 | AZ40: 0 | BA40: 2 | BB40: 0 | BC40: 0 | BD40: 0 | BE40: 0 | BF40: 0 | BG40: 0 | BH40: 0 | BI40: 0 | BJ40: 0 | BK40: 0 | BL40: 0 | BM40: 0 | BN40: 0 | BO40: 0 | BP40: 0 | BQ40: 0 | BR40: 0 | BS40: 0 | BT40: 0 | BU40: 0 | BV40: 0 | BW40: 0 | BX40: 0 | BY40: 0 | BZ40: 0 | CA40: 0 | CB40: 0 | CC40: 0 | CD40: 0 | CE40: 0 | CF40: 0 | CG40: 0 | CH40: 0 | CI40: 0 | CJ40: 0 | CK40: 0 | CL40: 0 | CM40: 0 | CN40: 0 | CO40: 0 | CP40: 0 | CQ40: 0 | CR40: 0 | CS40: 0 | CT40: 0 | CU40: 0 | CV40: 0 | CX40: 210.2217403 | CY40: 44.25720848 | CZ40: 77.45011484 | DA40: 221.2860424 | DB40: 752.3725442 | DC40: 143.8359276 | DD40: 597.4723145 | DE40: 298.7361573 | DF40: 77.45011484 | DG40: 398.3148763 | DH40: 143.8359276 | DI40: 22.12860424 | DJ40: 0 | DK40: 22.12860424 | DL40: 0 | DM40: 0 | DN40: 0 | DO40: 0 | DP40: 0 | DQ40: 0 | DR40: 121.7073233 | DS40: 0 | DT40: 0 | DU40: 0 | DV40: 0 | DW40: 0 | DX40: 0 | DY40: 0 | DZ40: 0 | EA40: 0 | EB40: 0 | EC40: 0 | ED40: 0 | EE40: 0 | EF40: 0 | EG40: 0 | EH40: 0 | EI40: 0 | EJ40: 0 | EK40: 0 | EL40: 0 | EM40: 0 | EN40: 0 | EO40: 22.12860424 | EP40: 0 | EQ40: 0 | ER40: 0 | ES40: 0 | ET40: 0 | EU40: 0 | EV40: 0 | EW40: 0 | EX40: 0 | EY40: 0 | EZ40: 0 | FA40: 0 | FB40: 0 | FC40: 0 | FD40: 0 | FE40: 0 | FF40: 0 | FG40: 0 | FH40: 0 | FI40: 0 | FJ40: 0 | FK40: 0 | FL40: 0 | FM40: 0 | FN40: 0 | FO40: 0 | FP40: 0 | FQ40: 0 | FR40: 0 | FS40: 0 | FT40: 0 | FU40: 0 | FV40: 0 | FW40: 0 | FX40: 0 | FY40: 0 | FZ40: 0 | GA40: 0 | GB40: 0 | GC40: 0 | GD40: 0 | GE40: 0 | GF40: 0 | GG40: 0 | GH40: 0 | GI40: 0 | GJ40: 0
A41: 1 | D41: POLES | E41: ˃ 11 kV & < = 22 kV; STEEL | F41: 14.23487489 | G41: 58 | H41: 7.615773106 | I41: 2 | J41: 0 | K41: 0 | L41: 0 | M41: 17 | N41: 0 | O41: 0 | P41: 0 | Q41: 0 | R41: 0 | S41: 0 | T41: 0 | U41: 0 | V41: 0 | W41: 0 | X41: 0 | Y41: 0 | Z41: 0 | AA41: 0 | AB41: 0 | AC41: 0 | AD41: 0 | AE41: 0 | AF41: 0 | AG41: 0 | AH41: 0 | AI41: 0 | AJ41: 0 | AK41: 0 | AL41: 0 | AM41: 0 | AN41: 0 | AO41: 0 | AP41: 0 | AQ41: 0 | AR41: 0 | AS41: 0 | AT41: 0 | AU41: 0 | AV41: 0 | AW41: 0 | AX41: 0 | AY41: 0 | AZ41: 0 | BA41: 0 | BB41: 0 | BC41: 0 | BD41: 0 | BE41: 0 | BF41: 0 | BG41: 0 | BH41: 0 | BI41: 0 | BJ41: 0 | BK41: 0 | BL41: 0 | BM41: 0 | BN41: 0 | BO41: 0 | BP41: 0 | BQ41: 0 | BR41: 0 | BS41: 0 | BT41: 0 | BU41: 0 | BV41: 0 | BW41: 0 | BX41: 0 | BY41: 0 | BZ41: 0 | CA41: 0 | CB41: 0 | CC41: 0 | CD41: 0 | CE41: 0 | CF41: 0 | CG41: 0 | CH41: 0 | CI41: 0 | CJ41: 0 | CK41: 0 | CL41: 0 | CM41: 0 | CN41: 0 | CO41: 0 | CP41: 0 | CQ41: 0 | CR41: 0 | CS41: 0 | CT41: 0 | CU41: 0 | CV41: 0 | CX41: 0 | CY41: 0 | CZ41: 0 | DA41: 241.9928731 | DB41: 0 | DC41: 0 | DD41: 0 | DE41: 0 | DF41: 0 | DG41: 0 | DH41: 0 | DI41: 0 | DJ41: 0 | DK41: 0 | DL41: 0 | DM41: 0 | DN41: 0 | DO41: 0 | DP41: 0 | DQ41: 0 | DR41: 0 | DS41: 0 | DT41: 0 | DU41: 0 | DV41: 0 | DW41: 0 | DX41: 0 | DY41: 0 | DZ41: 0 | EA41: 0 | EB41: 0 | EC41: 0 | ED41: 0 | EE41: 0 | EF41: 0 | EG41: 0 | EH41: 0 | EI41: 0 | EJ41: 0 | EK41: 0 | EL41: 0 | EM41: 0 | EN41: 0 | EO41: 0 | EP41: 0 | EQ41: 0 | ER41: 0 | ES41: 0 | ET41: 0 | EU41: 0 | EV41: 0 | EW41: 0 | EX41: 0 | EY41: 0 | EZ41: 0 | FA41: 0 | FB41: 0 | FC41: 0 | FD41: 0 | FE41: 0 | FF41: 0 | FG41: 0 | FH41: 0 | FI41: 0 | FJ41: 0 | FK41: 0 | FL41: 0 | FM41: 0 | FN41: 0 | FO41: 0 | FP41: 0 | FQ41: 0 | FR41: 0 | FS41: 0 | FT41: 0 | FU41: 0 | FV41: 0 | FW41: 0 | FX41: 0 | FY41: 0 | FZ41: 0 | GA41: 0 | GB41: 0 | GC41: 0 | GD41: 0 | GE41: 0 | GF41: 0 | GG41: 0 | GH41: 0 | GI41: 0 | GJ41: 0
A42: 1 | D42: POLES | E42: 33kV Steel | F42: 26.86406546 | G42: 58 | H42: 7.615773106 | I42: 2 | J42: 31 | K42: 25 | L42: 36 | M42: 0 | N42: 0 | O42: 31 | P42: 0 | Q42: 11 | R42: 23 | S42: 6 | T42: 4 | U42: 0 | V42: 0 | W42: 0 | X42: 0 | Y42: 0 | Z42: 0 | AA42: 0 | AB42: 0 | AC42: 0 | AD42: 0 | AE42: 0 | AF42: 0 | AG42: 0 | AH42: 0 | AI42: 0 | AJ42: 0 | AK42: 0 | AL42: 0 | AM42: 0 | AN42: 0 | AO42: 0 | AP42: 0 | AQ42: 0 | AR42: 0 | AS42: 0 | AT42: 0 | AU42: 0 | AV42: 0 | AW42: 0 | AX42: 0 | AY42: 0 | AZ42: 0 | BA42: 0 | BB42: 0 | BC42: 0 | BD42: 0 | BE42: 0 | BF42: 0 | BG42: 0 | BH42: 0 | BI42: 0 | BJ42: 0 | BK42: 0 | BL42: 0 | BM42: 0 | BN42: 0 | BO42: 0 | BP42: 0 | BQ42: 0 | BR42: 0 | BS42: 0 | BT42: 0 | BU42: 0 | BV42: 0 | BW42: 0 | BX42: 0 | BY42: 0 | BZ42: 0 | CA42: 0 | CB42: 0 | CC42: 0 | CD42: 0 | CE42: 0 | CF42: 0 | CG42: 0 | CH42: 0 | CI42: 0 | CJ42: 0 | CK42: 0 | CL42: 0 | CM42: 0 | CN42: 0 | CO42: 0 | CP42: 0 | CQ42: 0 | CR42: 0 | CS42: 0 | CT42: 0 | CU42: 0 | CV42: 0 | CX42: 832.7860292 | CY42: 671.6016365 | CZ42: 967.1063565 | DA42: 0 | DB42: 0 | DC42: 832.7860292 | DD42: 0 | DE42: 295.50472 | DF42: 617.8735055 | DG42: 161.1843927 | DH42: 107.4562618 | DI42: 0 | DJ42: 0 | DK42: 0 | DL42: 0 | DM42: 0 | DN42: 0 | DO42: 0 | DP42: 0 | DQ42: 0 | DR42: 0 | DS42: 0 | DT42: 0 | DU42: 0 | DV42: 0 | DW42: 0 | DX42: 0 | DY42: 0 | DZ42: 0 | EA42: 0 | EB42: 0 | EC42: 0 | ED42: 0 | EE42: 0 | EF42: 0 | EG42: 0 | EH42: 0 | EI42: 0 | EJ42: 0 | EK42: 0 | EL42: 0 | EM42: 0 | EN42: 0 | EO42: 0 | EP42: 0 | EQ42: 0 | ER42: 0 | ES42: 0 | ET42: 0 | EU42: 0 | EV42: 0 | EW42: 0 | EX42: 0 | EY42: 0 | EZ42: 0 | FA42: 0 | FB42: 0 | FC42: 0 | FD42: 0 | FE42: 0 | FF42: 0 | FG42: 0 | FH42: 0 | FI42: 0 | FJ42: 0 | FK42: 0 | FL42: 0 | FM42: 0 | FN42: 0 | FO42: 0 | FP42: 0 | FQ42: 0 | FR42: 0 | FS42: 0 | FT42: 0 | FU42: 0 | FV42: 0 | FW42: 0 | FX42: 0 | FY42: 0 | FZ42: 0 | GA42: 0 | GB42: 0 | GC42: 0 | GD42: 0 | GE42: 0 | GF42: 0 | GG42: 0 | GH42: 0 | GI42: 0 | GJ42: 0
E43: 66kV Steel | F43: 0 | G43: 58 | H43: 7.615773106 | I43: 2 | J43: 0 | K43: 0 | L43: 0 | M43: 0 | N43: 0 | O43: 0 | P43: 0 | Q43: 0 | R43: 0 | S43: 0 | T43: 0 | U43: 0 | V43: 0 | W43: 0 | X43: 0 | Y43: 0 | Z43: 0 | AA43: 0 | AB43: 0 | AC43: 0 | AD43: 0 | AE43: 0 | AF43: 0 | AG43: 0 | AH43: 0 | AI43: 0 | AJ43: 0 | AK43: 0 | AL43: 0 | AM43: 0 | AN43: 0 | AO43: 0 | AP43: 0 | AQ43: 0 | AR43: 0 | AS43: 0 | AT43: 0 | AU43: 0 | AV43: 0 | AW43: 0 | AX43: 0 | AY43: 0 | AZ43: 0 | BA43: 0 | BB43: 0 | BC43: 0 | BD43: 0 | BE43: 0 | BF43: 0 | BG43: 0 | BH43: 0 | BI43: 0 | BJ43: 0 | BK43: 0 | BL43: 0 | BM43: 0 | BN43: 0 | BO43: 0 | BP43: 0 | BQ43: 0 | BR43: 0 | BS43: 0 | BT43: 0 | BU43: 0 | BV43: 0 | BW43: 0 | BX43: 0 | BY43: 0 | BZ43: 0 | CA43: 0 | CB43: 0 | CC43: 0 | CD43: 0 | CE43: 0 | CF43: 0 | CG43: 0 | CH43: 0 | CI43: 0 | CJ43: 0 | CK43: 0 | CL43: 0 | CM43: 0 | CN43: 0 | CO43: 0 | CP43: 0 | CQ43: 0 | CR43: 0 | CS43: 0 | CT43: 0 | CU43: 0 | CV43: 0 | CX43: 0 | CY43: 0 | CZ43: 0 | DA43: 0 | DB43: 0 | DC43: 0 | DD43: 0 | DE43: 0 | DF43: 0 | DG43: 0 | DH43: 0 | DI43: 0 | DJ43: 0 | DK43: 0 | DL43: 0 | DM43: 0 | DN43: 0 | DO43: 0 | DP43: 0 | DQ43: 0 | DR43: 0 | DS43: 0 | DT43: 0 | DU43: 0 | DV43: 0 | DW43: 0 | DX43: 0 | DY43: 0 | DZ43: 0 | EA43: 0 | EB43: 0 | EC43: 0 | ED43: 0 | EE43: 0 | EF43: 0 | EG43: 0 | EH43: 0 | EI43: 0 | EJ43: 0 | EK43: 0 | EL43: 0 | EM43: 0 | EN43: 0 | EO43: 0 | EP43: 0 | EQ43: 0 | ER43: 0 | ES43: 0 | ET43: 0 | EU43: 0 | EV43: 0 | EW43: 0 | EX43: 0 | EY43: 0 | EZ43: 0 | FA43: 0 | FB43: 0 | FC43: 0 | FD43: 0 | FE43: 0 | FF43: 0 | FG43: 0 | FH43: 0 | FI43: 0 | FJ43: 0 | FK43: 0 | FL43: 0 | FM43: 0 | FN43: 0 | FO43: 0 | FP43: 0 | FQ43: 0 | FR43: 0 | FS43: 0 | FT43: 0 | FU43: 0 | FV43: 0 | FW43: 0 | FX43: 0 | FY43: 0 | FZ43: 0 | GA43: 0 | GB43: 0 | GC43: 0 | GD43: 0 | GE43: 0 | GF43: 0 | GG43: 0 | GH43: 0 | GI43: 0 | GJ43: 0
E44: > 22 kV & < = 66 kV; STEEL | F44: 0 | G44: 58 | H44: 7.615773106 | I44: 2 | J44: 31 | K44: 25 | L44: 36 | M44: 0 | N44: 0 | O44: 31 | P44: 0 | Q44: 11 | R44: 23 | S44: 6 | T44: 4 | U44: 0 | V44: 0 | W44: 0 | X44: 0 | Y44: 0 | Z44: 0 | AA44: 0 | AB44: 0 | AC44: 0 | AD44: 0 | AE44: 0 | AF44: 0 | AG44: 0 | AH44: 0 | AI44: 0 | AJ44: 0 | AK44: 0 | AL44: 0 | AM44: 0 | AN44: 0 | AO44: 0 | AP44: 0 | AQ44: 0 | AR44: 0 | AS44: 0 | AT44: 0 | AU44: 0 | AV44: 0 | AW44: 0 | AX44: 0 | AY44: 0 | AZ44: 0 | BA44: 0 | BB44: 0 | BC44: 0 | BD44: 0 | BE44: 0 | BF44: 0 | BG44: 0 | BH44: 0 | BI44: 0 | BJ44: 0 | BK44: 0 | BL44: 0 | BM44: 0 | BN44: 0 | BO44: 0 | BP44: 0 | BQ44: 0 | BR44: 0 | BS44: 0 | BT44: 0 | BU44: 0 | BV44: 0 | BW44: 0 | BX44: 0 | BY44: 0 | BZ44: 0 | CA44: 0 | CB44: 0 | CC44: 0 | CD44: 0 | CE44: 0 | CF44: 0 | CG44: 0 | CH44: 0 | CI44: 0 | CJ44: 0 | CK44: 0 | CL44: 0 | CM44: 0 | CN44: 0 | CO44: 0 | CP44: 0 | CQ44: 0 | CR44: 0 | CS44: 0 | CT44: 0 | CU44: 0 | CV44: 0 | CX44: 0 | CY44: 0 | CZ44: 0 | DA44: 0 | DB44: 0 | DC44: 0 | DD44: 0 | DE44: 0 | DF44: 0 | DG44: 0 | DH44: 0 | DI44: 0 | DJ44: 0 | DK44: 0 | DL44: 0 | DM44: 0 | DN44: 0 | DO44: 0 | DP44: 0 | DQ44: 0 | DR44: 0 | DS44: 0 | DT44: 0 | DU44: 0 | DV44: 0 | DW44: 0 | DX44: 0 | DY44: 0 | DZ44: 0 | EA44: 0 | EB44: 0 | EC44: 0 | ED44: 0 | EE44: 0 | EF44: 0 | EG44: 0 | EH44: 0 | EI44: 0 | EJ44: 0 | EK44: 0 | EL44: 0 | EM44: 0 | EN44: 0 | EO44: 0 | EP44: 0 | EQ44: 0 | ER44: 0 | ES44: 0 | ET44: 0 | EU44: 0 | EV44: 0 | EW44: 0 | EX44: 0 | EY44: 0 | EZ44: 0 | FA44: 0 | FB44: 0 | FC44: 0 | FD44: 0 | FE44: 0 | FF44: 0 | FG44: 0 | FH44: 0 | FI44: 0 | FJ44: 0 | FK44: 0 | FL44: 0 | FM44: 0 | FN44: 0 | FO44: 0 | FP44: 0 | FQ44: 0 | FR44: 0 | FS44: 0 | FT44: 0 | FU44: 0 | FV44: 0 | FW44: 0 | FX44: 0 | FY44: 0 | FZ44: 0 | GA44: 0 | GB44: 0 | GC44: 0 | GD44: 0 | GE44: 0 | GF44: 0 | GG44: 0 | GH44: 0 | GI44: 0 | GJ44: 0
A45: 1 | D45: POLES | E45: > 66 kV & < = 132 kV; STEEL | F45: 42.273 | G45: 58 | H45: 7.615773106 | I45: 2 | J45: 0 | K45: 0 | L45: 0 | M45: 1 | N45: 6 | O45: 81 | P45: 42 | Q45: 0 | R45: 3 | S45: 10 | T45: 0 | U45: 0 | V45: 0 | W45: 0 | X45: 0 | Y45: 0 | Z45: 0 | AA45: 0 | AB45: 0 | AC45: 0 | AD45: 0 | AE45: 0 | AF45: 0 | AG45: 0 | AH45: 0 | AI45: 0 | AJ45: 0 | AK45: 0 | AL45: 0 | AM45: 0 | AN45: 0 | AO45: 0 | AP45: 0 | AQ45: 0 | AR45: 0 | AS45: 0 | AT45: 0 | AU45: 0 | AV45: 0 | AW45: 0 | AX45: 0 | AY45: 0 | AZ45: 0 | BA45: 0 | BB45: 0 | BC45: 0 | BD45: 0 | BE45: 0 | BF45: 0 | BG45: 0 | BH45: 0 | BI45: 0 | BJ45: 0 | BK45: 0 | BL45: 0 | BM45: 0 | BN45: 0 | BO45: 0 | BP45: 0 | BQ45: 0 | BR45: 0 | BS45: 0 | BT45: 0 | BU45: 0 | BV45: 0 | BW45: 0 | BX45: 0 | BY45: 0 | BZ45: 0 | CA45: 0 | CB45: 0 | CC45: 0 | CD45: 0 | CE45: 0 | CF45: 0 | CG45: 0 | CH45: 0 | CI45: 0 | CJ45: 0 | CK45: 0 | CL45: 0 | CM45: 0 | CN45: 0 | CO45: 0 | CP45: 0 | CQ45: 0 | CR45: 0 | CS45: 0 | CT45: 0 | CU45: 0 | CV45: 0 | CX45: 0 | CY45: 0 | CZ45: 0 | DA45: 42.273 | DB45: 253.638 | DC45: 3424.113 | DD45: 1775.466 | DE45: 0 | DF45: 126.819 | DG45: 422.73 | DH45: 0 | DI45: 0 | DJ45: 0 | DK45: 0 | DL45: 0 | DM45: 0 | DN45: 0 | DO45: 0 | DP45: 0 | DQ45: 0 | DR45: 0 | DS45: 0 | DT45: 0 | DU45: 0 | DV45: 0 | DW45: 0 | DX45: 0 | DY45: 0 | DZ45: 0 | EA45: 0 | EB45: 0 | EC45: 0 | ED45: 0 | EE45: 0 | EF45: 0 | EG45: 0 | EH45: 0 | EI45: 0 | EJ45: 0 | EK45: 0 | EL45: 0 | EM45: 0 | EN45: 0 | EO45: 0 | EP45: 0 | EQ45: 0 | ER45: 0 | ES45: 0 | ET45: 0 | EU45: 0 | EV45: 0 | EW45: 0 | EX45: 0 | EY45: 0 | EZ45: 0 | FA45: 0 | FB45: 0 | FC45: 0 | FD45: 0 | FE45: 0 | FF45: 0 | FG45: 0 | FH45: 0 | FI45: 0 | FJ45: 0 | FK45: 0 | FL45: 0 | FM45: 0 | FN45: 0 | FO45: 0 | FP45: 0 | FQ45: 0 | FR45: 0 | FS45: 0 | FT45: 0 | FU45: 0 | FV45: 0 | FW45: 0 | FX45: 0 | FY45: 0 | FZ45: 0 | GA45: 0 | GB45: 0 | GC45: 0 | GD45: 0 | GE45: 0 | GF45: 0 | GG45: 0 | GH45: 0 | GI45: 0 | GJ45: 0
E46: > 132 kV; STEEL | F46: 0 | G46: 58 | H46: 7.615773106 | I46: 2 | J46: 0 | K46: 0 | L46: 0 | M46: 0 | N46: 0 | O46: 0 | P46: 0 | Q46: 0 | R46: 0 | S46: 0 | T46: 0 | U46: 0 | V46: 0 | W46: 0 | X46: 0 | Y46: 0 | Z46: 0 | AA46: 0 | AB46: 0 | AC46: 0 | AD46: 0 | AE46: 0 | AF46: 0 | AG46: 0 | AH46: 0 | AI46: 0 | AJ46: 0 | AK46: 0 | AL46: 0 | AM46: 0 | AN46: 0 | AO46: 0 | AP46: 0 | AQ46: 0 | AR46: 0 | AS46: 0 | AT46: 0 | AU46: 0 | AV46: 0 | AW46: 0 | AX46: 0 | AY46: 0 | AZ46: 0 | BA46: 0 | BB46: 0 | BC46: 0 | BD46: 0 | BE46: 0 | BF46: 0 | BG46: 0 | BH46: 0 | BI46: 0 | BJ46: 0 | BK46: 0 | BL46: 0 | BM46: 0 | BN46: 0 | BO46: 0 | BP46: 0 | BQ46: 0 | BR46: 0 | BS46: 0 | BT46: 0 | BU46: 0 | BV46: 0 | BW46: 0 | BX46: 0 | BY46: 0 | BZ46: 0 | CA46: 0 | CB46: 0 | CC46: 0 | CD46: 0 | CE46: 0 | CF46: 0 | CG46: 0 | CH46: 0 | CI46: 0 | CJ46: 0 | CK46: 0 | CL46: 0 | CM46: 0 | CN46: 0 | CO46: 0 | CP46: 0 | CQ46: 0 | CR46: 0 | CS46: 0 | CT46: 0 | CU46: 0 | CV46: 0 | CX46: 0 | CY46: 0 | CZ46: 0 | DA46: 0 | DB46: 0 | DC46: 0 | DD46: 0 | DE46: 0 | DF46: 0 | DG46: 0 | DH46: 0 | DI46: 0 | DJ46: 0 | DK46: 0 | DL46: 0 | DM46: 0 | DN46: 0 | DO46: 0 | DP46: 0 | DQ46: 0 | DR46: 0 | DS46: 0 | DT46: 0 | DU46: 0 | DV46: 0 | DW46: 0 | DX46: 0 | DY46: 0 | DZ46: 0 | EA46: 0 | EB46: 0 | EC46: 0 | ED46: 0 | EE46: 0 | EF46: 0 | EG46: 0 | EH46: 0 | EI46: 0 | EJ46: 0 | EK46: 0 | EL46: 0 | EM46: 0 | EN46: 0 | EO46: 0 | EP46: 0 | EQ46: 0 | ER46: 0 | ES46: 0 | ET46: 0 | EU46: 0 | EV46: 0 | EW46: 0 | EX46: 0 | EY46: 0 | EZ46: 0 | FA46: 0 | FB46: 0 | FC46: 0 | FD46: 0 | FE46: 0 | FF46: 0 | FG46: 0 | FH46: 0 | FI46: 0 | FJ46: 0 | FK46: 0 | FL46: 0 | FM46: 0 | FN46: 0 | FO46: 0 | FP46: 0 | FQ46: 0 | FR46: 0 | FS46: 0 | FT46: 0 | FU46: 0 | FV46: 0 | FW46: 0 | FX46: 0 | FY46: 0 | FZ46: 0 | GA46: 0 | GB46: 0 | GC46: 0 | GD46: 0 | GE46: 0 | GF46: 0 | GG46: 0 | GH46: 0 | GI46: 0 | GJ46: 0
A47: 1 | D47: POLES | E47: Towers | F47: 1e-14 | G47: 60 | H47: 7.745966692 | I47: 2 | J47: 0 | K47: 0 | L47: 0 | M47: 0 | N47: 0 | O47: 0 | P47: 6 | Q47: 0 | R47: 0 | S47: 1 | T47: 0 | U47: 1 | V47: 0 | W47: 0 | X47: 0 | Y47: 0 | Z47: 6 | AA47: 0 | AB47: 0 | AC47: 1 | AD47: 0 | AE47: 0 | AF47: 0 | AG47: 0 | AH47: 4 | AI47: 0 | AJ47: 0 | AK47: 0 | AL47: 23 | AM47: 0 | AN47: 0 | AO47: 0 | AP47: 3 | AQ47: 9 | AR47: 0 | AS47: 0 | AT47: 3 | AU47: 119 | AV47: 0 | AW47: 1 | AX47: 0 | AY47: 2 | AZ47: 3 | BA47: 51 | BB47: 114 | BC47: 119 | BD47: 7 | BE47: 0 | BF47: 68 | BG47: 47 | BH47: 0 | BI47: 0 | BJ47: 0 | BK47: 0 | BL47: 25 | BM47: 0 | BN47: 0 | BO47: 0 | BP47: 0 | BQ47: 111 | BR47: 0 | BS47: 0 | BT47: 0 | BU47: 172 | BV47: 0 | BW47: 0 | BX47: 0 | BY47: 0 | BZ47: 0 | CA47: 0 | CB47: 0 | CC47: 0 | CD47: 0 | CE47: 0 | CF47: 0 | CG47: 0 | CH47: 0 | CI47: 0 | CJ47: 0 | CK47: 0 | CL47: 0 | CM47: 0 | CN47: 0 | CO47: 0 | CP47: 0 | CQ47: 0 | CR47: 0 | CS47: 0 | CT47: 0 | CU47: 0 | CV47: 0 | CX47: 0 | CY47: 0 | CZ47: 0 | DA47: 0 | DB47: 0 | DC47: 0 | DD47: 6e-14 | DE47: 0 | DF47: 0 | DG47: 1e-14 | DH47: 0 | DI47: 1e-14 | DJ47: 0 | DK47: 0 | DL47: 0 | DM47: 0 | DN47: 6e-14 | DO47: 0 | DP47: 0 | DQ47: 1e-14 | DR47: 0 | DS47: 0 | DT47: 0 | DU47: 0 | DV47: 4e-14 | DW47: 0 | DX47: 0 | DY47: 0 | DZ47: 2.3e-13 | EA47: 0 | EB47: 0 | EC47: 0 | ED47: 3e-14 | EE47: 9e-14 | EF47: 0 | EG47: 0 | EH47: 3e-14 | EI47: 1.19e-12 | EJ47: 0 | EK47: 1e-14 | EL47: 0 | EM47: 2e-14 | EN47: 3e-14 | EO47: 5.1e-13 | EP47: 1.14e-12 | EQ47: 1.19e-12 | ER47: 7e-14 | ES47: 0 | ET47: 6.8e-13 | EU47: 4.7e-13 | EV47: 0 | EW47: 0 | EX47: 0 | EY47: 0 | EZ47: 2.5e-13 | FA47: 0 | FB47: 0 | FC47: 0 | FD47: 0 | FE47: 1.11e-12 | FF47: 0 | FG47: 0 | FH47: 0 | FI47: 1.72e-12 | FJ47: 0 | FK47: 0 | FL47: 0 | FM47: 0 | FN47: 0 | FO47: 0 | FP47: 0 | FQ47: 0 | FR47: 0 | FS47: 0 | FT47: 0 | FU47: 0 | FV47: 0 | FW47: 0 | FX47: 0 | FY47: 0 | FZ47: 0 | GA47: 0 | GB47: 0 | GC47: 0 | GD47: 0 | GE47: 0 | GF47: 0 | GG47: 0 | GH47: 0 | GI47: 0 | GJ47: 0
A48: 2 | D48: OVERHEAD CONDUCTORS | E48: ˂ = 1 kV | F48: 31.43712355 | G48: 50 | H48: 7.071067812 | I48: 2 | J48: 181.344417 | K48: 164.7311202 | L48: 157.3791936 | M48: 150.2652665 | N48: 309.2572981 | O48: 334.2139026 | P48: 267.1386356 | Q48: 103.3930077 | R48: 103.3930077 | S48: 159.4795065 | T48: 83.38207588 | U48: 74.45863113 | V48: 78.18276576 | W48: 75.70000934 | X48: 74.81331062 | Y48: 75.87734909 | Z48: 113.6507146 | AA48: 88.46847094 | AB48: 103.1876697 | AC48: 196.645715 | AD48: 202.4979266 | AE48: 156.0589751 | AF48: 202.6993279 | AG48: 112.7880775 | AH48: 102.1476928 | AI48: 129.2806737 | AJ48: 122.8964429 | AK48: 66.50240416 | AL48: 65.61570544 | AM48: 42.56153866 | AN48: 35.1132694 | AO48: 87.6705117 | AP48: 90.95079353 | AQ48: 65.2533796 | AR48: 57.32842164 | AS48: 58.33543187 | AT48: 59.05726841 | AU48: 58.67470747 | AV48: 83.13741594 | AW48: 41.62886756 | AX48: 92.14785037 | AY48: 109.676784 | AZ48: 129.9393363 | BA48: 134.1722497 | BB48: 202.8895211 | BC48: 238.2916832 | BD48: 311.1099646 | BE48: 421.161769 | BF48: 492.6275717 | BG48: 589.4217421 | BH48: 678.1145969 | BI48: 749.1250376 | BJ48: 795.5874589 | BK48: 811.5174653 | BL48: 795.4483429 | BM48: 749.1250376 | BN48: 677.8363648 | BO48: 589.282626 | BP48: 492.2102236 | BQ48: 274.0458096 | BR48: 0 | BS48: 0 | BT48: 0 | BU48: 0 | BV48: 0 | BW48: 0 | BX48: 0 | BY48: 0 | BZ48: 0 | CA48: 0 | CB48: 0 | CC48: 0 | CD48: 0 | CE48: 0 | CF48: 0 | CG48: 0 | CH48: 0 | CI48: 0 | CJ48: 0 | CK48: 0 | CL48: 0 | CM48: 0 | CN48: 0 | CO48: 0 | CP48: 0 | CQ48: 0 | CR48: 0 | CS48: 0 | CT48: 0 | CU48: 0 | CV48: 0 | CX48: 5700.946841 | CY48: 5178.672579 | CZ48: 4947.549153 | DA48: 4723.907749 | DB48: 9722.159888 | DC48: 10506.72375 | DD48: 8398.070292 | DE48: 3250.378756 | DF48: 3250.378756 | DG48: 5013.576951 | DH48: 2621.292621 | DI48: 2340.765186 | DJ48: 2457.841267 | DK48: 2379.790546 | DL48: 2351.915289 | DM48: 2385.365598 | DN48: 3572.851558 | DO48: 2781.194251 | DP48: 3243.923522 | DQ48: 6181.975639 | DR48: 6365.952337 | DS48: 4906.045281 | DT48: 6372.283814 | DU48: 3545.732726 | DV48: 3211.229638 | DW48: 4064.212511 | DX48: 3863.510659 | DY48: 2090.644296 | DZ48: 2062.769039 | EA48: 1338.012349 | EB48: 1103.860188 | EC48: 2756.108708 | ED48: 2859.231333 | EE48: 2051.378556 | EF48: 1802.240674 | EG48: 1833.898179 | EH48: 1856.590643 | EI48: 1844.564028 | EJ48: 2613.601216 | EK48: 1308.691853 | EL48: 2896.863357 | EM48: 3447.922608 | EN48: 4084.91897 | EO48: 4217.98959 | EP48: 6378.26294 | EQ48: 7491.205086 | ER48: 9780.402395 | ES48: 13240.11456 | ET48: 15486.79383 | EU48: 18529.72413 | EV48: 21317.97236 | EW48: 23550.33636 | EX48: 25010.98124 | EY48: 25511.77482 | EZ48: 25006.60783 | FA48: 23550.33636 | FB48: 21309.22555 | FC48: 18525.35072 | FD48: 15473.67361 | FE48: 8615.211972 | FF48: 0 | FG48: 0 | FH48: 0 | FI48: 0 | FJ48: 0 | FK48: 0 | FL48: 0 | FM48: 0 | FN48: 0 | FO48: 0 | FP48: 0 | FQ48: 0 | FR48: 0 | FS48: 0 | FT48: 0 | FU48: 0 | FV48: 0 | FW48: 0 | FX48: 0 | FY48: 0 | FZ48: 0 | GA48: 0 | GB48: 0 | GC48: 0 | GD48: 0 | GE48: 0 | GF48: 0 | GG48: 0 | GH48: 0 | GI48: 0 | GJ48: 0
